Workbook

Sheet Stamdata
A1: STAMDATA
A2: Ejendomoplysninger
B3: Opvarmet etageareal | F3: 2000 | G3: m2
A5: Driftsoplysninger
B6: Nuværende og fremtidige forsyningstyper samt pris
C7: Unikt navn | D7: Type (vælg) | E7: Prisfremskrivning (uden inflation) | F7: Pris
C8: Fjernvarme_1 | D8: Fjernvarme | E8: 0.0039 | F8: 0.7 | G8: =IF(D8="","",IF(D8="vand","kr/m3","kr/kWh")) -> kr/kWh
G9: =IF(D9="","",IF(D9="vand","kr/m3","kr/kWh")) -> 
G10: =IF(D10="","",IF(D10="vand","kr/m3","kr/kWh")) -> 
E11: =IF(D11="","",VLOOKUP(D11,C22:F35,4,0)) -> 
E12: =IF(D12="","",VLOOKUP(D12,C23:F36,4,0)) -> 
E13: =IF(D13="","",VLOOKUP(D13,C33:F37,4,0)) -> 
E14: =IF(D14="","",VLOOKUP(D14,C34:F38,4,0)) -> 
E15: =IF(D15="","",VLOOKUP(D15,C35:F39,4,0)) -> 
B18: Gennemsnit af Energistyrelsens prisfremskrivninger udgivet i 2012 (uden inflation)
C19: Fjernvarme | F19: 0.0039
C20: Naturgas | F20: 0.0061
C21: Gasolie | F21: 0.0035
C22: Træpiller | F22: 0.0047
C23: El | F23: 0.015
C24: Vand
A26: Beregningsforudsætninger
B27: Beregningsperiode | F27: 30 | G27: år
B28: Investeringsår | F28: 2014 | G28: -
B29: Renter
C30: Inflation | F30: 0.018
C31: Nominel tilbagediskonteringsrente | F31: 0.05
C32: Lånerente | F32: 0.03

Sheet Vurdering af rentabilitet
A1: TOTALØKONOMISK OVERSIGT
A2: Opsummering af resultater
B4: LÅNEBEHOV ÅR 1 | E4: Forskel | G4: Reference ejendom | J4: Renoveret ejendom
C5: Investering år 1 | E5: =J5-G5 -> -1443500 | G5: =Reference!U10 -> 0 | J5: =Renovering!U10 -> -1443500 | L5: kr.
C6: Vedligehold år 1 | E6: =J6-G6 -> 307929 | G6: =Reference!U21 -> -307929 | J6: =Renovering!U21 -> 0 | L6: kr.
C7: Egenfinansiering år 1 | E7: =J7-G7 -> 0 | G7: =Reference!U25 -> 100000 | J7: =Renovering!U25 -> 100000 | L7: kr.
B8: Lån år 1 | E8: =J8-G8 -> -1135571 | G8: =G5+G6+G7 -> -207929 | J8: =J5+J6+J7 -> -1343500 | L8: kr.
B10: HUSLEJE ÅR 1 | E10: Forskel | G10: Reference ejendom | J10: Renoveret ejendom
B11: Nettohuslejeændring år 1 | E11: =J11-G11 -> 35.57154773 | G11: =G12+G17 -> -77.97680543 | J11: =J12+J17 -> -42.40525769 | L11: kr./m2
B12: Huslejeændring år 1 pga. optaget lån, reinvesteringer og vedligehold | E12: =J12-G12 -> 12.50654773 | G12: =SUM(H13:H16) -> -79.20180543 | J12: =SUM(K13:K16) -> -66.69525769 | L12: kr./m2
C13: Henlæggelse til fremtidige investeringer og reinvesteringer | E13: =K13-H13 -> 27.17872119 | H13: =Reference!P56 -> -64.01179143 | K13: =Renovering!P56 -> -36.83307024 | L13: kr./m2
C14: Henlæggelse til fremtidige vedligehold | E14: =K14-H14 -> 10.41082221 | H14: =Reference!P57 -> -10.41082221 | K14: =Renovering!P57 -> 0 | L14: kr./m2
C15: Tilskud | E15: =K15-H15 -> 3.885 | H15: =Reference!P58 -> 0.525 | K15: =Renovering!$P$58 -> 4.41 | L15: kr./m2
C16: Ydelse på optaget lån | E16: =K16-H16 -> -28.96799566 | H16: =Reference!P59 -> -5.304191786 | K16: =Renovering!P59 -> -34.27218745 | L16: kr./m2
B17: Huslejeændringer år 1 pga. ændret drift og komfortniveau | E17: =J17-G17 -> 23.065 | G17: =SUM(H18:H21) -> 1.225 | J17: =SUM(K18:K21) -> 24.29 | L17: kr./m2
C18: Elbesparelse | E18: =K18-H18 -> 0 | H18: =Reference!P60 -> 0 | K18: =Renovering!P60 -> 0 | L18: kr./m2
C19: Varmebesparelse | E19: =K19-H19 -> 9.065 | H19: =Reference!P61 -> 1.225 | K19: =Renovering!P61 -> 10.29 | L19: kr./m2
C20: Vandbesparelse | E20: =K20-H20 -> 0 | H20: =Reference!P62 -> 0 | K20: =Renovering!P62 -> 0 | L20: kr./m2
C21: Non Energy Benefit | E21: =K21-H21 -> 14 | H21: =Reference!P63 -> 0 | K21: =Renovering!P63 -> 14 | L21: kr./m2
B23: NUTIDSVÆRDI | E23: Forskel | G23: Reference ejendom | J23: Renoveret ejendom
C24: Nutidsværdi efter 30 år | E24: =J24-G24 -> 441305.3713 | G24: =Reference!P81 -> -790222.111 | J24: =Renovering!P81 -> -348916.7397 | L24: kr.
B26: FORUDSÆTNINGER
B27: Beregningsperiode | K27: =S_Beregningsperiode -> 30 | L27: år
B28: Renter
C29: Nominel tilbagediskonteringsrente | K29: =S_Tilbagediskonteringsrente -> 0.05
C30: Inflation | K30: =S_Inflation -> 0.018
A32: Huslejeændring gennem 30 år
O34: Legend til graf | P34: Henvisninger til Reference og Renoveret arket | Q34: =Reference!U2 -> 2014 | R34: =Reference!V2 -> 2015 | S34: =Reference!W2 -> 2016 | T34: =Reference!X2 -> 2017 | U34: =Reference!Y2 -> 2018 | V34: =Reference!Z2 -> 2019 | W34: =Reference!AA2 -> 2020 | X34: =Reference!AB2 -> 2021 | Y34: =Reference!AC2 -> 2022 | Z34: =Reference!AD2 -> 2023 | AA34: =Reference!AE2 -> 2024 | AB34: =Reference!AF2 -> 2025 | AC34: =Reference!AG2 -> 2026 | AD34: =Reference!AH2 -> 2027 | AE34: =Reference!AI2 -> 2028 | AF34: =Reference!AJ2 -> 2029 | AG34: =Reference!AK2 -> 2030 | AH34: =Reference!AL2 -> 2031 | AI34: =Reference!AM2 -> 2032 | AJ34: =Reference!AN2 -> 2033 | AK34: =Reference!AO2 -> 2034 | AL34: =Reference!AP2 -> 2035 | AM34: =Reference!AQ2 -> 2036 | AN34: =Reference!AR2 -> 2037 | AO34: =Reference!AS2 -> 2038 | AP34: =Reference!AT2 -> 2039 | AQ34: =Reference!AU2 -> 2040 | AR34: =Reference!AV2 -> 2041 | AS34: =Reference!AW2 -> 2042 | AT34: =Reference!AX2 -> 2043
O35: ="Reference: " & P35 -> Reference: Total inkl. driftsbesparelser og NEB | P35: =Reference!B64 -> Total inkl. driftsbesparelser og NEB | Q35: =Reference!BD64 -> -77.97680543 | R35: =Reference!BE64 -> -78.47489193 | S35: =Reference!BF64 -> -78.44738714 | T35: =Reference!BG64 -> -78.41927806 | U35: =Reference!BH64 -> -78.39055143 | V35: =Reference!BI64 -> -78.36119366 | W35: =Reference!BJ64 -> -78.3311909 | X35: =Reference!BK64 -> -78.30052897 | Y35: =Reference!BL64 -> -78.73365948 | Z35: =Reference!BM64 -> -78.70163545 | AA35: =Reference!BN64 -> -78.66890785 | AB35: =Reference!BO64 -> -78.63546121 | AC35: =Reference!BP64 -> -78.60127975 | AD35: =Reference!BQ64 -> -78.56634731 | AE35: =Reference!BR64 -> -78.5306474 | AF35: =Reference!BS64 -> -39.18277392 | AG35: =Reference!BT64 -> -38.86957311 | AH35: =Reference!BU64 -> -38.54949123 | AI35: =Reference!BV64 -> -38.22237707 | AJ35: =Reference!BW64 -> -37.88807616 | AK35: =Reference!BX64 -> -37.54643059 | AL35: =Reference!BY64 -> -37.19727899 | AM35: =Reference!BZ64 -> -36.84045647 | AN35: =Reference!CA64 -> -36.47579448 | AO35: =Reference!CB64 -> -36.1031208 | AP35: =Reference!CC64 -> -35.7222594 | AQ35: =Reference!CD64 -> -35.3330304 | AR35: =Reference!CE64 -> -34.93524996 | AS35: =Reference!CF64 -> -34.5287302 | AT35: =Reference!CG64 -> -34.11327912
O36: ="Reference: " & P36 -> Reference: Total eks. driftsbesparelser og NEB | P36: =Reference!B65 -> Total eks. driftsbesparelser og NEB | Q36: =Reference!BD65 -> -79.20180543 | R36: =Reference!BE65 -> -79.72680543 | S36: =Reference!BF65 -> -79.72680543 | T36: =Reference!BG65 -> -79.72680543 | U36: =Reference!BH65 -> -79.72680543 | V36: =Reference!BI65 -> -79.72680543 | W36: =Reference!BJ65 -> -79.72680543 | X36: =Reference!BK65 -> -79.72680543 | Y36: =Reference!BL65 -> -80.19127151 | Z36: =Reference!BM65 -> -80.19127151 | AA36: =Reference!BN65 -> -80.19127151 | AB36: =Reference!BO65 -> -80.19127151 | AC36: =Reference!BP65 -> -80.19127151 | AD36: =Reference!BQ65 -> -80.19127151 | AE36: =Reference!BR65 -> -80.19127151 | AF36: =Reference!BS65 -> -53.43848412 | AG36: =Reference!BT65 -> -53.43848412 | AH36: =Reference!BU65 -> -53.43848412 | AI36: =Reference!BV65 -> -53.43848412 | AJ36: =Reference!BW65 -> -53.43848412 | AK36: =Reference!BX65 -> -53.43848412 | AL36: =Reference!BY65 -> -53.43848412 | AM36: =Reference!BZ65 -> -53.43848412 | AN36: =Reference!CA65 -> -53.43848412 | AO36: =Reference!CB65 -> -53.43848412 | AP36: =Reference!CC65 -> -53.43848412 | AQ36: =Reference!CD65 -> -53.43848412 | AR36: =Reference!CE65 -> -53.43848412 | AS36: =Reference!CF65 -> -53.43848412 | AT36: =Reference!CG65 -> -53.43848412
O37: ="Reference: " & P37 -> Reference: Gennemsnit de næste 30 år inkl. drift og NEB | P37: =Reference!B66 -> Gennemsnit de næste 30 år inkl. drift og NEB | Q37: =Reference!BD66 -> -57.62158959 | R37: =Reference!BE66 -> -57.62158959 | S37: =Reference!BF66 -> -57.62158959 | T37: =Reference!BG66 -> -57.62158959 | U37: =Reference!BH66 -> -57.62158959 | V37: =Reference!BI66 -> -57.62158959 | W37: =Reference!BJ66 -> -57.62158959 | X37: =Reference!BK66 -> -57.62158959 | Y37: =Reference!BL66 -> -57.62158959 | Z37: =Reference!BM66 -> -57.62158959 | AA37: =Reference!BN66 -> -57.62158959 | AB37: =Reference!BO66 -> -57.62158959 | AC37: =Reference!BP66 -> -57.62158959 | AD37: =Reference!BQ66 -> -57.62158959 | AE37: =Reference!BR66 -> -57.62158959 | AF37: =Reference!BS66 -> -57.62158959 | AG37: =Reference!BT66 -> -57.62158959 | AH37: =Reference!BU66 -> -57.62158959 | AI37: =Reference!BV66 -> -57.62158959 | AJ37: =Reference!BW66 -> -57.62158959 | AK37: =Reference!BX66 -> -57.62158959 | AL37: =Reference!BY66 -> -57.62158959 | AM37: =Reference!BZ66 -> -57.62158959 | AN37: =Reference!CA66 -> -57.62158959 | AO37: =Reference!CB66 -> -57.62158959 | AP37: =Reference!CC66 -> -57.62158959 | AQ37: =Reference!CD66 -> -57.62158959 | AR37: =Reference!CE66 -> -57.62158959 | AS37: =Reference!CF66 -> -57.62158959 | AT37: =Reference!CG66 -> -57.62158959
O38: ="Renovering: " & P38 -> Renovering: Total inkl. driftsbesparelser og NEB | P38: =Renovering!B64 -> Total inkl. driftsbesparelser og NEB | Q38: =Renovering!BD64 -> -42.40525769 | R38: =Renovering!BE64 -> -46.33718433 | S38: =Renovering!BF64 -> -45.8496081 | T38: =Renovering!BG64 -> -45.35233822 | U38: =Renovering!BH64 -> -44.84518005 | V38: =Renovering!BI64 -> -44.32793501 | W38: =Renovering!BJ64 -> -43.80040048 | X38: =Renovering!BK64 -> -43.26236975 | Y38: =Renovering!BL64 -> -42.71363191 | Z38: =Renovering!BM64 -> -42.15397175 | AA38: =Renovering!BN64 -> -41.58316972 | AB38: =Renovering!BO64 -> -41.00100179 | AC38: =Renovering!BP64 -> -40.40723941 | AD38: =Renovering!BQ64 -> -39.80164936 | AE38: =Renovering!BR64 -> -39.18399371 | AF38: =Renovering!BS64 -> -56.84954749 | AG38: =Renovering!BT64 -> -56.53634668 | AH38: =Renovering!BU64 -> -56.2162648 | AI38: =Renovering!BV64 -> -55.88915064 | AJ38: =Renovering!BW64 -> -55.55484973 | AK38: =Renovering!BX64 -> -55.21320416 | AL38: =Renovering!BY64 -> -54.86405256 | AM38: =Renovering!BZ64 -> -54.50723004 | AN38: =Renovering!CA64 -> -54.14256805 | AO38: =Renovering!CB64 -> -53.76989436 | AP38: =Renovering!CC64 -> -53.38903297 | AQ38: =Renovering!CD64 -> -52.99980397 | AR38: =Renovering!CE64 -> -52.60202353 | AS38: =Renovering!CF64 -> -52.19550377 | AT38: =Renovering!CG64 -> -51.78005269
O39: ="Renovering: " & P39 -> Renovering: Total eks. driftsbesparelser og NEB | P39: =Renovering!B65 -> Total eks. driftsbesparelser og NEB | Q39: =Renovering!BD65 -> -66.69525769 | R39: =Renovering!BE65 -> -71.10525769 | S39: =Renovering!BF65 -> -71.10525769 | T39: =Renovering!BG65 -> -71.10525769 | U39: =Renovering!BH65 -> -71.10525769 | V39: =Renovering!BI65 -> -71.10525769 | W39: =Renovering!BJ65 -> -71.10525769 | X39: =Renovering!BK65 -> -71.10525769 | Y39: =Renovering!BL65 -> -71.10525769 | Z39: =Renovering!BM65 -> -71.10525769 | AA39: =Renovering!BN65 -> -71.10525769 | AB39: =Renovering!BO65 -> -71.10525769 | AC39: =Renovering!BP65 -> -71.10525769 | AD39: =Renovering!BQ65 -> -71.10525769 | AE39: =Renovering!BR65 -> -71.10525769 | AF39: =Renovering!BS65 -> -71.10525769 | AG39: =Renovering!BT65 -> -71.10525769 | AH39: =Renovering!BU65 -> -71.10525769 | AI39: =Renovering!BV65 -> -71.10525769 | AJ39: =Renovering!BW65 -> -71.10525769 | AK39: =Renovering!BX65 -> -71.10525769 | AL39: =Renovering!BY65 -> -71.10525769 | AM39: =Renovering!BZ65 -> -71.10525769 | AN39: =Renovering!CA65 -> -71.10525769 | AO39: =Renovering!CB65 -> -71.10525769 | AP39: =Renovering!CC65 -> -71.10525769 | AQ39: =Renovering!CD65 -> -71.10525769 | AR39: =Renovering!CE65 -> -71.10525769 | AS39: =Renovering!CF65 -> -71.10525769 | AT39: =Renovering!CG65 -> -71.10525769
O40: ="Renovering: " & P40 -> Renovering: Gennemsnit de næste 30 år inkl. drift og NEB | P40: =Renovering!B66 -> Gennemsnit de næste 30 år inkl. drift og NEB | Q40: =Renovering!BD66 -> -48.65114856 | R40: =Renovering!BE66 -> -48.65114856 | S40: =Renovering!BF66 -> -48.65114856 | T40: =Renovering!BG66 -> -48.65114856 | U40: =Renovering!BH66 -> -48.65114856 | V40: =Renovering!BI66 -> -48.65114856 | W40: =Renovering!BJ66 -> -48.65114856 | X40: =Renovering!BK66 -> -48.65114856 | Y40: =Renovering!BL66 -> -48.65114856 | Z40: =Renovering!BM66 -> -48.65114856 | AA40: =Renovering!BN66 -> -48.65114856 | AB40: =Renovering!BO66 -> -48.65114856 | AC40: =Renovering!BP66 -> -48.65114856 | AD40: =Renovering!BQ66 -> -48.65114856 | AE40: =Renovering!BR66 -> -48.65114856 | AF40: =Renovering!BS66 -> -48.65114856 | AG40: =Renovering!BT66 -> -48.65114856 | AH40: =Renovering!BU66 -> -48.65114856 | AI40: =Renovering!BV66 -> -48.65114856 | AJ40: =Renovering!BW66 -> -48.65114856 | AK40: =Renovering!BX66 -> -48.65114856 | AL40: =Renovering!BY66 -> -48.65114856 | AM40: =Renovering!BZ66 -> -48.65114856 | AN40: =Renovering!CA66 -> -48.65114856 | AO40: =Renovering!CB66 -> -48.65114856 | AP40: =Renovering!CC66 -> -48.65114856 | AQ40: =Renovering!CD66 -> -48.65114856 | AR40: =Renovering!CE66 -> -48.65114856 | AS40: =Renovering!CF66 -> -48.65114856 | AT40: =Renovering!CG66 -> -48.65114856
A56: Totaløkonomisk oversigt over 30 år
Q58: Reference | R58: Renovering
P59: =Reference!B72 -> Reinvesteringer (eksl. År 1) | Q59: =Reference!P72 -> -907389.9654 | R59: =Renovering!P72 -> 0
P60: =Reference!B73 -> Scrapværdi | Q60: =Reference!P73 -> 219183.1341 | R60: =Renovering!P73 -> 87673.25362
P61: =Reference!B74 -> Vedligehold (eksl. År 1) | Q61: =Reference!P74 -> -32788.16575 | R61: =Renovering!P74 -> 0
P62: =Reference!B75 -> Elbesparelse | Q62: =Reference!P75 -> 0 | R62: =Renovering!P75 -> 0
P63: =Reference!B76 -> Varmebesparelse | Q63: =Reference!P76 -> 202003.5858 | R63: =Renovering!P76 -> 428569.7884
P64: =Reference!B77 -> Vandbesparelse | Q64: =Reference!P77 -> 0 | R64: =Renovering!P77 -> 0
P65: =Reference!B78 -> Non Energy Benefits | Q65: =Reference!P78 -> 0 | R65: =Renovering!P78 -> 341220.0169
P66: =Reference!B79 -> Ydelse | Q66: =Reference!P79 -> -171230.6998 | R66: =Renovering!P79 -> -1106379.799
P67: =Reference!B80 -> Egenfinansiering (brugt på at reducere lånebehovet og dermed ydelsen) | Q67: =Reference!P80 -> -100000 | R67: =Renovering!P80 -> -100000
P68: =Reference!B81 -> Total nutidsværdi efter 30 år | Q68: =Reference!P81 -> -790222.111 | R68: =Renovering!P81 -> -348916.7397 | S68: =Q68-R68 -> -441305.3713
O79: =790-345 -> 445

Sheet Reference
A1: TOTALØKONOMIBEREGNING | BD1: HUSLEJEÆNDRING (kr./m2)
A2: Investeringer og reinvesteringer | H2: Startinvest./ reinvest. [kr.] | I2: Første år for investering [år] | J2: Sidste år for reinvest. [år] | K2: Levetid/ interval [år] | L2: Pris- udvikling [%] | M2: Scrap- værdi [kr.] | N2: Afskrivnings- faktor [-] | O2: Antal reinvest. [stk.] | P2: SUM [kr.] | Q2: =A2 -> Investeringer og reinvesteringer | T2: SUM | U2: =S_Investeringsår -> 2014 | V2: =U2+1 -> 2015 | W2: =V2+1 -> 2016 | X2: 2017 | Y2: 2018 | Z2: 2019 | AA2: 2020 | AB2: 2021 | AC2: 2022 | AD2: 2023 | AE2: 2024 | AF2: 2025 | AG2: 2026 | AH2: 2027 | AI2: 2028 | AJ2: 2029 | AK2: 2030 | AL2: 2031 | AM2: 2032 | AN2: 2033 | AO2: 2034 | AP2: 2035 | AQ2: 2036 | AR2: 2037 | AS2: 2038 | AT2: 2039 | AU2: 2040 | AV2: 2041 | AW2: 2042 | AX2: 2043 | AY2: 2044 | BB2: SUM | BC2: =A2 -> Investeringer og reinvesteringer | BD2: =S_Investeringsår -> 2014 | BE2: =BD2+1 -> 2015 | BF2: =BE2+1 -> 2016 | BG2: 2017 | BH2: 2018 | BI2: 2019 | BJ2: 2020 | BK2: 2021 | BL2: 2022 | BM2: 2023 | BN2: 2024 | BO2: 2025 | BP2: 2026 | BQ2: 2027 | BR2: 2028 | BS2: 2029 | BT2: 2030 | BU2: 2031 | BV2: 2032 | BW2: 2033 | BX2: 2034 | BY2: 2035 | BZ2: 2036 | CA2: 2037 | CB2: 2038 | CC2: 2039 | CD2: 2040 | CE2: 2041 | CF2: 2042 | CG2: 2043 | CH2: 2044 | CJ2: =A2 -> Investeringer og reinvesteringer
B3: Udskiftning af eksisterende vinduer. Restlevetid på 15 år. | H3: -1393500 | I3: 16 | J3: 30 | K3: 40 | L3: =S_Inflation -> 0.018 | M3: =-IF(ISBLANK(H3),0,(1+L3)^(K3*O3)*H3*(1-N3)) -> 870937.5 | N3: =IF((30-J3)>=K3,1,IF(K3>0,((S_Investeringsår+30)-(S_Investeringsår+I3-1+O3*K3))/K3,0)) -> 0.375 | O3: =IF(H3=0,0,ROUNDDOWN((J3-I3)/K3,0)) -> 0 | P3: =T3 -> -1821057.434 | T3: =SUM(U3:AY3) -> -1821057.434 | U3: =$H3 *IF(U$2>=$I3+S_Investeringsår-1,1,0) *IF(U$2<=$J3+S_Investeringsår-1,1,0) *IF($K3=0,0,IF((U$2-S_Investeringsår-$I3+1)/$K3=INT((U$2-S_Investeringsår-$I3+1)/$K3),1,0)) *(1+IF(ISBLANK($L3),S_Inflation,$L3))^(U$2-S_Investeringsår) -> 0 | V3: =$H3 *IF(V$2>=$I3+S_Investeringsår-1,1,0) *IF(V$2<=$J3+S_Investeringsår-1,1,0) *IF($K3=0,0,IF((V$2-S_Investeringsår-$I3+1)/$K3=INT((V$2-S_Investeringsår-$I3+1)/$K3),1,0)) *(1+IF(ISBLANK($L3),S_Inflation,$L3))^(V$2-S_Investeringsår) -> 0 | W3: 0 | X3: 0 | Y3: 0 | Z3: 0 | AA3: 0 | AB3: 0 | AC3: 0 | AD3: 0 | AE3: =$H3 *IF(AE$2>=$I3+S_Investeringsår-1,1,0) *IF(AE$2<=$J3+S_Investeringsår-1,1,0) *IF($K3=0,0,IF((AE$2-S_Investeringsår-$I3+1)/$K3=INT((AE$2-S_Investeringsår-$I3+1)/$K3),1,0)) *(1+IF(ISBLANK($L3),S_Inflation,$L3))^(AE$2-S_Investeringsår) -> 0 | AF3: 0 | AG3: 0 | AH3: 0 | AI3: 0 | AJ3: =$H3 *IF(AJ$2>=$I3+S_Investeringsår-1,1,0) *IF(AJ$2<=$J3+S_Investeringsår-1,1,0) *IF($K3=0,0,IF((AJ$2-S_Investeringsår-$I3+1)/$K3=INT((AJ$2-S_Investeringsår-$I3+1)/$K3),1,0)) *(1+IF(ISBLANK($L3),S_Inflation,$L3))^(AJ$2-S_Investeringsår) -> -1821057.434 | AK3: 0 | AL3: 0 | AM3: 0 | AN3: 0 | AO3: =$H3 *IF(AO$2>=$I3+S_Investeringsår-1,1,0) *IF(AO$2<=$J3+S_Investeringsår-1,1,0) *IF($K3=0,0,IF((AO$2-S_Investeringsår-$I3+1)/$K3=INT((AO$2-S_Investeringsår-$I3+1)/$K3),1,0)) *(1+IF(ISBLANK($L3),S_Inflation,$L3))^(AO$2-S_Investeringsår) -> 0 | AP3: 0 | AQ3: 0 | AR3: 0 | AS3: 0 | AT3: 0 | AU3: 0 | AV3: 0 | AW3: 0 | AX3: 0 | AY3: 0 | BB3: =SUM(BD3:CH3) -> -1623.923461 | BD3: =IF(OR($K3=0,($I3)=0),0, IF(U$2<$I3+S_Investeringsår-1,$H3/($I3-1)*(1+$L3)^$I3,0) + IF($K3=0,0,IF((U$2-S_Investeringsår-$I3+1)/$K3=INT((U$2-S_Investeringsår-$I3+1)/$K3),$H3*(1+$L3)^(U$2-S_Investeringsår+$K3)/$K3,BC3*S_Areal)) *IF(U$2>=$I3+S_Investeringsår-1,1,0) *IF(U$2<=$J3+S_Investeringsår-1,1,0) )/S_Areal -> -61.79454891 | BE3: =IF(OR($K3=0,($I3)=0),0, IF(V$2<$I3+S_Investeringsår-1,$H3/($I3-1)*(1+$L3)^$I3,0) + IF($K3=0,0,IF((V$2-S_Investeringsår-$I3+1)/$K3=INT((V$2-S_Investeringsår-$I3+1)/$K3),$H3*(1+$L3)^(V$2-S_Investeringsår+$K3)/$K3,BD3*S_Areal)) *IF(V$2>=$I3+S_Investeringsår-1,1,0) *IF(V$2<=$J3+S_Investeringsår-1,1,0) )/S_Areal -> -61.79454891 | BF3: =IF(OR($K3=0,($I3)=0),0, IF(W$2<$I3+S_Investeringsår-1,$H3/($I3-1)*(1+$L3)^$I3,0) + IF($K3=0,0,IF((W$2-S_Investeringsår-$I3+1)/$K3=INT((W$2-S_Investeringsår-$I3+1)/$K3),$H3*(1+$L3)^(W$2-S_Investeringsår+$K3)/$K3,BE3*S_Areal)) *IF(W$2>=$I3+S_Investeringsår-1,1,0) *IF(W$2<=$J3+S_Investeringsår-1,1,0) )/S_Areal -> -61.79454891 | BG3: -61.79454891 | BH3: =IF(OR($K3=0,($I3)=0),0, IF(Y$2<$I3+S_Investeringsår-1,$H3/($I3-1)*(1+$L3)^$I3,0) + IF($K3=0,0,IF((Y$2-S_Investeringsår-$I3+1)/$K3=INT((Y$2-S_Investeringsår-$I3+1)/$K3),$H3*(1+$L3)^(Y$2-S_Investeringsår+$K3)/$K3,BG3*S_Areal)) *IF(Y$2>=$I3+S_Investeringsår-1,1,0) *IF(Y$2<=$J3+S_Investeringsår-1,1,0) )/S_Areal -> -61.79454891 | BI3: =IF(OR($K3=0,($I3)=0),0, IF(Z$2<$I3+S_Investeringsår-1,$H3/($I3-1)*(1+$L3)^$I3,0) + IF($K3=0,0,IF((Z$2-S_Investeringsår-$I3+1)/$K3=INT((Z$2-S_Investeringsår-$I3+1)/$K3),$H3*(1+$L3)^(Z$2-S_Investeringsår+$K3)/$K3,BH3*S_Areal)) *IF(Z$2>=$I3+S_Investeringsår-1,1,0) *IF(Z$2<=$J3+S_Investeringsår-1,1,0) )/S_Areal -> -61.79454891 | BJ3: =IF(OR($K3=0,($I3)=0),0, IF(AA$2<$I3+S_Investeringsår-1,$H3/($I3-1)*(1+$L3)^$I3,0) + IF($K3=0,0,IF((AA$2-S_Investeringsår-$I3+1)/$K3=INT((AA$2-S_Investeringsår-$I3+1)/$K3),$H3*(1+$L3)^(AA$2-S_Investeringsår+$K3)/$K3,BI3*S_Areal)) *IF(AA$2>=$I3+S_Investeringsår-1,1,0) *IF(AA$2<=$J3+S_Investeringsår-1,1,0) )/S_Areal -> -61.79454891 | BK3: -61.79454891 | BL3: -61.79454891 | BM3: -61.79454891 | BN3: =IF(OR($K3=0,($I3)=0),0, IF(AE$2<$I3+S_Investeringsår-1,$H3/($I3-1)*(1+$L3)^$I3,0) + IF($K3=0,0,IF((AE$2-S_Investeringsår-$I3+1)/$K3=INT((AE$2-S_Investeringsår-$I3+1)/$K3),$H3*(1+$L3)^(AE$2-S_Investeringsår+$K3)/$K3,BM3*S_Areal)) *IF(AE$2>=$I3+S_Investeringsår-1,1,0) *IF(AE$2<=$J3+S_Investeringsår-1,1,0) )/S_Areal -> -61.79454891 | BO3: -61.79454891 | BP3: -61.79454891 | BQ3: -61.79454891 | BR3: -61.79454891 | BS3: -46.46701515 | BT3: -46.46701515 | BU3: -46.46701515 | BV3: -46.46701515 | BW3: -46.46701515 | BX3: =IF(OR($K3=0,($I3)=0),0, IF(AO$2<$I3+S_Investeringsår-1,$H3/($I3-1)*(1+$L3)^$I3,0) + IF($K3=0,0,IF((AO$2-S_Investeringsår-$I3+1)/$K3=INT((AO$2-S_Investeringsår-$I3+1)/$K3),$H3*(1+$L3)^(AO$2-S_Investeringsår+$K3)/$K3,BW3*S_Areal)) *IF(AO$2>=$I3+S_Investeringsår-1,1,0) *IF(AO$2<=$J3+S_Investeringsår-1,1,0) )/S_Areal -> -46.46701515 | BY3: -46.46701515 | BZ3: -46.46701515 | CA3: -46.46701515 | CB3: -46.46701515 | CC3: -46.46701515 | CD3: -46.46701515 | CE3: -46.46701515 | CF3: -46.46701515 | CG3: -46.46701515 | CH3: =IF(OR($K3=0,($I3)=0),0, IF(AY$2<$I3+S_Investeringsår-1,$H3/($I3-1)*(1+$L3)^$I3,0) + IF($K3=0,0,IF((AY$2-S_Investeringsår-$I3+1)/$K3=INT((AY$2-S_Investeringsår-$I3+1)/$K3),$H3*(1+$L3)^(AY$2-S_Investeringsår+$K3)/$K3,CG3*S_Areal)) *IF(AY$2>=$I3+S_Investeringsår-1,1,0) *IF(AY$2<=$J3+S_Investeringsår-1,1,0) )/S_Areal -> 0
B4: Leje af lift/arbejdsplatform til udskiftning af vinduer | H4: -50000 | I4: 16 | J4: 30 | K4: 40 | L4: 0.018 | M4: =-IF(ISBLANK(H4),0,(1+L4)^(K4*O4)*H4*(1-N4)) -> 31250 | N4: 0.375 | O4: =IF(H4=0,0,ROUNDDOWN((J4-I4)/K4,0)) -> 0 | P4: =T4 -> -65341.13504 | T4: -65341.13504 | U4: 0 | V4: 0 | W4: 0 | X4: 0 | Y4: 0 | Z4: 0 | AA4: 0 | AB4: 0 | AC4: 0 | AD4: 0 | AE4: 0 | AF4: 0 | AG4: 0 | AH4: 0 | AI4: 0 | AJ4: -65341.13504 | AK4: 0 | AL4: 0 | AM4: 0 | AN4: 0 | AO4: 0 | AP4: 0 | AQ4: 0 | AR4: 0 | AS4: 0 | AT4: 0 | AU4: 0 | AV4: 0 | AW4: 0 | AX4: 0 | AY4: 0 | BB4: -58.26779551 | BD4: -2.217242516 | BE4: -2.217242516 | BF4: -2.217242516 | BG4: -2.217242516 | BH4: -2.217242516 | BI4: -2.217242516 | BJ4: -2.217242516 | BK4: -2.217242516 | BL4: -2.217242516 | BM4: -2.217242516 | BN4: -2.217242516 | BO4: -2.217242516 | BP4: -2.217242516 | BQ4: -2.217242516 | BR4: -2.217242516 | BS4: -1.667277185 | BT4: -1.667277185 | BU4: -1.667277185 | BV4: -1.667277185 | BW4: -1.667277185 | BX4: -1.667277185 | BY4: -1.667277185 | BZ4: -1.667277185 | CA4: -1.667277185 | CB4: -1.667277185 | CC4: -1.667277185 | CD4: -1.667277185 | CE4: -1.667277185 | CF4: -1.667277185 | CG4: -1.667277185 | CH4: 0
B5: - | H5: 0 | I5: 0 | J5: 0 | K5: 0 | L5: 0.018 | M5: 0 | N5: 1 | O5: 0 | P5: 0 | T5: 0 | U5: 0 | V5: 0 | W5: 0 | X5: 0 | Y5: 0 | Z5: 0 | AA5: 0 | AB5: 0 | AC5: 0 | AD5: 0 | AE5: 0 | AF5: 0 | AG5: 0 | AH5: 0 | AI5: 0 | AJ5: 0 | AK5: 0 | AL5: 0 | AM5: 0 | AN5: 0 | AO5: 0 | AP5: 0 | AQ5: 0 | AR5: 0 | AS5: 0 | AT5: 0 | AU5: 0 | AV5: 0 | AW5: 0 | AX5: 0 | AY5: 0 | BB5: 0 | BD5: 0 | BE5: 0 | BF5: 0 | BG5: 0 | BH5: 0 | BI5: 0 | BJ5: 0 | BK5: 0 | BL5: 0 | BM5: 0 | BN5: 0 | BO5: 0 | BP5: 0 | BQ5: 0 | BR5: 0 | BS5: 0 | BT5: 0 | BU5: 0 | BV5: 0 | BW5: 0 | BX5: 0 | BY5: 0 | BZ5: 0 | CA5: 0 | CB5: 0 | CC5: 0 | CD5: 0 | CE5: 0 | CF5: 0 | CG5: 0 | CH5: 0
B6: - | H6: 0 | I6: 0 | J6: 0 | K6: 0 | L6: 0.018 | M6: 0 | N6: 1 | O6: 0 | P6: 0 | T6: 0 | U6: 0 | V6: 0 | W6: 0 | X6: 0 | Y6: 0 | Z6: 0 | AA6: 0 | AB6: 0 | AC6: 0 | AD6: 0 | AE6: 0 | AF6: 0 | AG6: 0 | AH6: 0 | AI6: 0 | AJ6: 0 | AK6: 0 | AL6: 0 | AM6: 0 | AN6: 0 | AO6: 0 | AP6: 0 | AQ6: 0 | AR6: 0 | AS6: 0 | AT6: 0 | AU6: 0 | AV6: 0 | AW6: 0 | AX6: 0 | AY6: 0 | BB6: 0 | BD6: 0 | BE6: 0 | BF6: 0 | BG6: 0 | BH6: 0 | BI6: 0 | BJ6: 0 | BK6: 0 | BL6: 0 | BM6: 0 | BN6: 0 | BO6: 0 | BP6: 0 | BQ6: 0 | BR6: 0 | BS6: 0 | BT6: 0 | BU6: 0 | BV6: 0 | BW6: 0 | BX6: 0 | BY6: 0 | BZ6: 0 | CA6: 0 | CB6: 0 | CC6: 0 | CD6: 0 | CE6: 0 | CF6: 0 | CG6: 0 | CH6: 0
B7: - | H7: 0 | I7: 0 | J7: 0 | K7: 0 | L7: 0.018 | M7: 0 | N7: 1 | O7: 0 | P7: 0 | T7: 0 | U7: 0 | V7: 0 | W7: 0 | X7: 0 | Y7: 0 | Z7: 0 | AA7: 0 | AB7: 0 | AC7: 0 | AD7: 0 | AE7: 0 | AF7: 0 | AG7: 0 | AH7: 0 | AI7: 0 | AJ7: 0 | AK7: 0 | AL7: 0 | AM7: 0 | AN7: 0 | AO7: 0 | AP7: 0 | AQ7: 0 | AR7: 0 | AS7: 0 | AT7: 0 | AU7: 0 | AV7: 0 | AW7: 0 | AX7: 0 | AY7: 0 | BB7: 0 | BD7: 0 | BE7: 0 | BF7: 0 | BG7: 0 | BH7: 0 | BI7: 0 | BJ7: 0 | BK7: 0 | BL7: 0 | BM7: 0 | BN7: 0 | BO7: 0 | BP7: 0 | BQ7: 0 | BR7: 0 | BS7: 0 | BT7: 0 | BU7: 0 | BV7: 0 | BW7: 0 | BX7: 0 | BY7: 0 | BZ7: 0 | CA7: 0 | CB7: 0 | CC7: 0 | CD7: 0 | CE7: 0 | CF7: 0 | CG7: 0 | CH7: 0
B8: - | H8: 0 | I8: 0 | J8: 0 | K8: 0 | L8: 0.018 | M8: 0 | N8: 1 | O8: 0 | P8: 0 | T8: 0 | U8: 0 | V8: 0 | W8: 0 | X8: 0 | Y8: 0 | Z8: 0 | AA8: 0 | AB8: 0 | AC8: 0 | AD8: 0 | AE8: 0 | AF8: 0 | AG8: 0 | AH8: 0 | AI8: 0 | AJ8: 0 | AK8: 0 | AL8: 0 | AM8: 0 | AN8: 0 | AO8: 0 | AP8: 0 | AQ8: 0 | AR8: 0 | AS8: 0 | AT8: 0 | AU8: 0 | AV8: 0 | AW8: 0 | AX8: =$H8 *IF(AX$2>=$I8+S_Investeringsår-1,1,0) *IF(AX$2<=$J8+S_Investeringsår-1,1,0) *IF($K8=0,0,IF((AX$2-S_Investeringsår-$I8+1)/$K8=INT((AX$2-S_Investeringsår-$I8+1)/$K8),1,0)) *(1+IF(ISBLANK($L8),S_Inflation,$L8))^(AX$2-S_Investeringsår) -> 0 | AY8: 0 | BB8: 0 | BD8: 0 | BE8: 0 | BF8: 0 | BG8: 0 | BH8: 0 | BI8: 0 | BJ8: 0 | BK8: 0 | BL8: 0 | BM8: 0 | BN8: 0 | BO8: 0 | BP8: 0 | BQ8: 0 | BR8: 0 | BS8: 0 | BT8: 0 | BU8: 0 | BV8: 0 | BW8: 0 | BX8: 0 | BY8: 0 | BZ8: 0 | CA8: 0 | CB8: 0 | CC8: 0 | CD8: 0 | CE8: 0 | CF8: 0 | CG8: 0 | CH8: 0
B9: - | H9: 0 | I9: 0 | J9: 0 | K9: 0 | L9: 0.018 | M9: 0 | N9: 1 | O9: 0 | P9: 0 | T9: 0 | U9: 0 | V9: 0 | W9: 0 | X9: 0 | Y9: 0 | Z9: 0 | AA9: 0 | AB9: 0 | AC9: 0 | AD9: 0 | AE9: 0 | AF9: 0 | AG9: 0 | AH9: 0 | AI9: 0 | AJ9: 0 | AK9: 0 | AL9: 0 | AM9: 0 | AN9: 0 | AO9: 0 | AP9: 0 | AQ9: 0 | AR9: 0 | AS9: 0 | AT9: 0 | AU9: 0 | AV9: 0 | AW9: 0 | AX9: 0 | AY9: =$H9 *IF(AY$2>=$I9+S_Investeringsår-1,1,0) *IF(AY$2<=$J9+S_Investeringsår-1,1,0) *IF($K9=0,0,IF((AY$2-S_Investeringsår-$I9+1)/$K9=INT((AY$2-S_Investeringsår-$I9+1)/$K9),1,0)) *(1+IF(ISBLANK($L9),S_Inflation,$L9))^(AY$2-S_Investeringsår) -> 0 | BB9: 0 | BD9: 0 | BE9: 0 | BF9: 0 | BG9: 0 | BH9: 0 | BI9: 0 | BJ9: 0 | BK9: 0 | BL9: 0 | BM9: 0 | BN9: 0 | BO9: 0 | BP9: 0 | BQ9: 0 | BR9: 0 | BS9: 0 | BT9: 0 | BU9: 0 | BV9: 0 | BW9: 0 | BX9: 0 | BY9: 0 | BZ9: 0 | CA9: 0 | CB9: 0 | CC9: 0 | CD9: 0 | CE9: 0 | CF9: 0 | CG9: 0 | CH9: 0
B10: Investeringer og reinvesteringer | P10: =T10 -> -1886398.569 | T10: -1886398.569 | U10: =SUM(U3:U9) -> 0 | V10: 0 | W10: 0 | X10: 0 | Y10: 0 | Z10: 0 | AA10: 0 | AB10: 0 | AC10: 0 | AD10: 0 | AE10: 0 | AF10: 0 | AG10: 0 | AH10: 0 | AI10: 0 | AJ10: -1886398.569 | AK10: 0 | AL10: 0 | AM10: 0 | AN10: 0 | AO10: 0 | AP10: 0 | AQ10: 0 | AR10: 0 | AS10: 0 | AT10: =SUM(AT3:AT9) -> 0 | AU10: 0 | AV10: 0 | AW10: 0 | AX10: 0 | AY10: 0 | BB10: =SUM(BD10:CH10) -> -1682.191257 | BD10: =SUM(BD3:BD9) -> -64.01179143 | BE10: =SUM(BE3:BE9) -> -64.01179143 | BF10: -64.01179143 | BG10: -64.01179143 | BH10: -64.01179143 | BI10: -64.01179143 | BJ10: -64.01179143 | BK10: -64.01179143 | BL10: -64.01179143 | BM10: -64.01179143 | BN10: -64.01179143 | BO10: -64.01179143 | BP10: -64.01179143 | BQ10: -64.01179143 | BR10: -64.01179143 | BS10: -48.13429234 | BT10: -48.13429234 | BU10: -48.13429234 | BV10: -48.13429234 | BW10: -48.13429234 | BX10: -48.13429234 | BY10: -48.13429234 | BZ10: -48.13429234 | CA10: -48.13429234 | CB10: -48.13429234 | CC10: -48.13429234 | CD10: -48.13429234 | CE10: -48.13429234 | CF10: -48.13429234 | CG10: -48.13429234 | CH10: 0
B11: Scrapværdi | P11: =T11 -> 902187.5 | T11: 902187.5 | U11: =IF(S_Investeringsår+S_Beregningsperiode-1=U2,SUM($M$3:$M$9),0) -> 0 | V11: 0 | W11: 0 | X11: 0 | Y11: 0 | Z11: 0 | AA11: 0 | AB11: 0 | AC11: 0 | AD11: 0 | AE11: 0 | AF11: 0 | AG11: 0 | AH11: 0 | AI11: 0 | AJ11: 0 | AK11: 0 | AL11: 0 | AM11: 0 | AN11: 0 | AO11: 0 | AP11: 0 | AQ11: 0 | AR11: 0 | AS11: 0 | AT11: =IF(S_Investeringsår+S_Beregningsperiode-1=AT2,SUM($M$3:$M$9),0) -> 0 | AU11: 0 | AV11: 0 | AW11: 0 | AX11: 902187.5 | AY11: 0
A12: Vedligeholdelse | H12: Periodisk udgift [kr.] | I12: Første gang [år] | J12: Sidste gang [år] | K12: Levetid/ interval [år] | L12: Pris- udvikling [%] | M12: Scrap- værdi [kr.] | N12: Afskrivnings- faktor [-] | O12: Antal reinvest. [stk.] | P12: SUM [kr.] | Q12: =A12 -> Vedligeholdelse | T12: SUM | U12: =S_Investeringsår -> 2014 | V12: =U12+1 -> 2015 | W12: =V12+1 -> 2016 | X12: 2017 | Y12: 2018 | Z12: 2019 | AA12: 2020 | AB12: 2021 | AC12: 2022 | AD12: 2023 | AE12: 2024 | AF12: 2025 | AG12: 2026 | AH12: 2027 | AI12: 2028 | AJ12: 2029 | AK12: 2030 | AL12: 2031 | AM12: 2032 | AN12: 2033 | AO12: 2034 | AP12: 2035 | AQ12: 2036 | AR12: 2037 | AS12: 2038 | AT12: 2039 | AU12: 2040 | AV12: 2041 | AW12: 2042 | AX12: 2043 | AY12: 2044 | BB12: SUM | BC12: =A12 -> Vedligeholdelse | BD12: =S_Investeringsår -> 2014 | BE12: =BD12+1 -> 2015 | BF12: =BE12+1 -> 2016 | BG12: 2017 | BH12: 2018 | BI12: 2019 | BJ12: 2020 | BK12: 2021 | BL12: 2022 | BM12: 2023 | BN12: 2024 | BO12: 2025 | BP12: 2026 | BQ12: 2027 | BR12: 2028 | BS12: 2029 | BT12: 2030 | BU12: 2031 | BV12: 2032 | BW12: 2033 | BX12: 2034 | BY12: 2035 | BZ12: 2036 | CA12: 2037 | CB12: 2038 | CC12: 2039 | CD12: 2040 | CE12: 2041 | CF12: 2042 | CG12: 2043 | CH12: 2044 | CJ12: =A12 -> Vedligeholdelse
B13: Overfladebehandling (1x alkyloliemaling, fast vindue, udvendig) | H13: -29500 | I13: 1 | J13: 15 | K13: 8 | L13: =S_Inflation -> 0.018 | M13: =-IF(ISBLANK(H13),0,(1+L13)^(K13*O13)*H13*(1-N13)) -> 0 | N13: =IF((30-J13)>=K13,1,IF(K13>0,((S_Investeringsår+30)-(S_Investeringsår+I13-1+O13*K13))/K13,0)) -> 1 | O13: =IF(H13=0,0,ROUNDDOWN((J13-I13)/K13,0)) -> 1 | P13: =T13 -> -63525.47839 | T13: =SUM(U13:AY13) -> -63525.47839 | U13: =$H13 *IF(U$2>=$I13+S_Investeringsår-1,1,0) *IF(U$2<=$J13+S_Investeringsår-1,1,0) *IF($K13=0,0,IF((U$2-S_Investeringsår-$I13+1)/$K13=INT((U$2-S_Investeringsår-$I13+1)/$K13),1,0)) *(1+IF(ISBLANK($L13),S_Inflation,$L13))^(U$2-S_Investeringsår) -> -29500 | V13: =$H13 *IF(V$2>=$I13+S_Investeringsår-1,1,0) *IF(V$2<=$J13+S_Investeringsår-1,1,0) *IF($K13=0,0,IF((V$2-S_Investeringsår-$I13+1)/$K13=INT((V$2-S_Investeringsår-$I13+1)/$K13),1,0)) *(1+IF(ISBLANK($L13),S_Inflation,$L13))^(V$2-S_Investeringsår) -> 0 | W13: 0 | X13: 0 | Y13: 0 | Z13: 0 | AA13: 0 | AB13: 0 | AC13: -34025.47839 | AD13: 0 | AE13: =$H13 *IF(AE$2>=$I13+S_Investeringsår-1,1,0) *IF(AE$2<=$J13+S_Investeringsår-1,1,0) *IF($K13=0,0,IF((AE$2-S_Investeringsår-$I13+1)/$K13=INT((AE$2-S_Investeringsår-$I13+1)/$K13),1,0)) *(1+IF(ISBLANK($L13),S_Inflation,$L13))^(AE$2-S_Investeringsår) -> 0 | AF13: 0 | AG13: 0 | AH13: 0 | AI13: 0 | AJ13: 0 | AK13: 0 | AL13: 0 | AM13: 0 | AN13: 0 | AO13: =$H13 *IF(AO$2>=$I13+S_Investeringsår-1,1,0) *IF(AO$2<=$J13+S_Investeringsår-1,1,0) *IF($K13=0,0,IF((AO$2-S_Investeringsår-$I13+1)/$K13=INT((AO$2-S_Investeringsår-$I13+1)/$K13),1,0)) *(1+IF(ISBLANK($L13),S_Inflation,$L13))^(AO$2-S_Investeringsår) -> 0 | AP13: 0 | AQ13: 0 | AR13: 0 | AS13: 0 | AT13: 0 | AU13: 0 | AV13: 0 | AW13: 0 | AX13: 0 | AY13: 0 | BB13: =SUM(BD13:CH13) -> -34.18251093 | BD13: =IF(OR($K13=0,($I13)=0),0, IF(U$2<$I13+S_Investeringsår-1,$H13/($I13-1)*(1+$L13)^$I13,0) + IF($K13=0,0,IF((U$2-S_Investeringsår-$I13+1)/$K13=INT((U$2-S_Investeringsår-$I13+1)/$K13),$H13*(1+$L13)^(U$2-S_Investeringsår+$K13)/$K13,BC13*S_Areal)) *IF(U$2>=$I13+S_Investeringsår-1,1,0) *IF(U$2<=$J13+S_Investeringsår-1,1,0) )/S_Areal -> -2.126592399 | BE13: -2.126592399 | BF13: -2.126592399 | BG13: -2.126592399 | BH13: -2.126592399 | BI13: -2.126592399 | BJ13: -2.126592399 | BK13: -2.126592399 | BL13: -2.452824533 | BM13: -2.452824533 | BN13: =IF(OR($K13=0,($I13)=0),0, IF(AE$2<$I13+S_Investeringsår-1,$H13/($I13-1)*(1+$L13)^$I13,0) + IF($K13=0,0,IF((AE$2-S_Investeringsår-$I13+1)/$K13=INT((AE$2-S_Investeringsår-$I13+1)/$K13),$H13*(1+$L13)^(AE$2-S_Investeringsår+$K13)/$K13,BM13*S_Areal)) *IF(AE$2>=$I13+S_Investeringsår-1,1,0) *IF(AE$2<=$J13+S_Investeringsår-1,1,0) )/S_Areal -> -2.452824533 | BO13: -2.452824533 | BP13: -2.452824533 | BQ13: -2.452824533 | BR13: -2.452824533 | BS13: 0 | BT13: 0 | BU13: 0 | BV13: 0 | BW13: 0 | BX13: =IF(OR($K13=0,($I13)=0),0, IF(AO$2<$I13+S_Investeringsår-1,$H13/($I13-1)*(1+$L13)^$I13,0) + IF($K13=0,0,IF((AO$2-S_Investeringsår-$I13+1)/$K13=INT((AO$2-S_Investeringsår-$I13+1)/$K13),$H13*(1+$L13)^(AO$2-S_Investeringsår+$K13)/$K13,BW13*S_Areal)) *IF(AO$2>=$I13+S_Investeringsår-1,1,0) *IF(AO$2<=$J13+S_Investeringsår-1,1,0) )/S_Areal -> 0 | BY13: 0 | BZ13: 0 | CA13: 0 | CB13: 0 | CC13: 0 | CD13: 0 | CE13: 0 | CF13: 0 | CG13: 0 | CH13: =IF(OR($K13=0,($I13)=0),0, IF(AY$2<$I13+S_Investeringsår-1,$H13/($I13-1)*(1+$L13)^$I13,0) + IF($K13=0,0,IF((AY$2-S_Investeringsår-$I13+1)/$K13=INT((AY$2-S_Investeringsår-$I13+1)/$K13),$H13*(1+$L13)^(AY$2-S_Investeringsår+$K13)/$K13,CG13*S_Areal)) *IF(AY$2>=$I13+S_Investeringsår-1,1,0) *IF(AY$2<=$J13+S_Investeringsår-1,1,0) )/S_Areal -> 0
B14: Leje af lift til udskifning af punkterede ruder samt malingsarbejder | H14: -12500 | I14: 1 | J14: 15 | K14: 8 | L14: 0.018 | M14: =-IF(ISBLANK(H14),0,(1+L14)^(K14*O14)*H14*(1-N14)) -> 0 | N14: 1 | O14: =IF(H14=0,0,ROUNDDOWN((J14-I14)/K14,0)) -> 1 | P14: =T14 -> -26917.57559 | T14: -26917.57559 | U14: =$H14 *IF(U$2>=$I14+S_Investeringsår-1,1,0) *IF(U$2<=$J14+S_Investeringsår-1,1,0) *IF($K14=0,0,IF((U$2-S_Investeringsår-$I14+1)/$K14=INT((U$2-S_Investeringsår-$I14+1)/$K14),1,0)) *(1+IF(ISBLANK($L14),S_Inflation,$L14))^(U$2-S_Investeringsår) -> -12500 | V14: 0 | W14: 0 | X14: 0 | Y14: 0 | Z14: 0 | AA14: 0 | AB14: 0 | AC14: -14417.57559 | AD14: 0 | AE14: 0 | AF14: 0 | AG14: 0 | AH14: 0 | AI14: 0 | AJ14: 0 | AK14: 0 | AL14: 0 | AM14: 0 | AN14: 0 | AO14: 0 | AP14: 0 | AQ14: 0 | AR14: 0 | AS14: 0 | AT14: 0 | AU14: 0 | AV14: 0 | AW14: 0 | AX14: =$H14 *IF(AX$2>=$I14+S_Investeringsår-1,1,0) *IF(AX$2<=$J14+S_Investeringsår-1,1,0) *IF($K14=0,0,IF((AX$2-S_Investeringsår-$I14+1)/$K14=INT((AX$2-S_Investeringsår-$I14+1)/$K14),1,0)) *(1+IF(ISBLANK($L14),S_Inflation,$L14))^(AX$2-S_Investeringsår) -> 0 | AY14: 0 | BB14: -14.4841148 | BD14: -0.9010984743 | BE14: -0.9010984743 | BF14: -0.9010984743 | BG14: -0.9010984743 | BH14: -0.9010984743 | BI14: -0.9010984743 | BJ14: -0.9010984743 | BK14: -0.9010984743 | BL14: -1.039332429 | BM14: -1.039332429 | BN14: -1.039332429 | BO14: -1.039332429 | BP14: -1.039332429 | BQ14: -1.039332429 | BR14: -1.039332429 | BS14: 0 | BT14: 0 | BU14: 0 | BV14: 0 | BW14: 0 | BX14: 0 | BY14: 0 | BZ14: 0 | CA14: 0 | CB14: 0 | CC14: 0 | CD14: 0 | CE14: 0 | CF14: 0 | CG14: 0 | CH14: 0
B15: Udskiftning af termorude med energirude, 1.188 x 1.488 mm | H15: -232813 | I15: 1 | J15: 15 | K15: 40 | L15: 0.018 | M15: 0 | N15: 0.75 | O15: 0 | P15: -232813 | T15: -232813 | U15: =$H15 *IF(U$2>=$I15+S_Investeringsår-1,1,0) *IF(U$2<=$J15+S_Investeringsår-1,1,0) *IF($K15=0,0,IF((U$2-S_Investeringsår-$I15+1)/$K15=INT((U$2-S_Investeringsår-$I15+1)/$K15),1,0)) *(1+IF(ISBLANK($L15),S_Inflation,$L15))^(U$2-S_Investeringsår) -> -232813 | V15: 0 | W15: 0 | X15: 0 | Y15: 0 | Z15: 0 | AA15: 0 | AB15: 0 | AC15: 0 | AD15: 0 | AE15: 0 | AF15: 0 | AG15: 0 | AH15: 0 | AI15: 0 | AJ15: 0 | AK15: 0 | AL15: 0 | AM15: 0 | AN15: 0 | AO15: 0 | AP15: 0 | AQ15: 0 | AR15: 0 | AS15: 0 | AT15: 0 | AU15: 0 | AV15: 0 | AW15: 0 | AX15: 0 | AY15: 0 | BB15: -89.10859975 | BD15: -5.940573317 | BE15: -5.940573317 | BF15: -5.940573317 | BG15: -5.940573317 | BH15: -5.940573317 | BI15: -5.940573317 | BJ15: -5.940573317 | BK15: -5.940573317 | BL15: -5.940573317 | BM15: -5.940573317 | BN15: -5.940573317 | BO15: -5.940573317 | BP15: -5.940573317 | BQ15: -5.940573317 | BR15: -5.940573317 | BS15: 0 | BT15: 0 | BU15: 0 | BV15: 0 | BW15: 0 | BX15: 0 | BY15: 0 | BZ15: 0 | CA15: 0 | CB15: 0 | CC15: 0 | CD15: 0 | CE15: 0 | CF15: 0 | CG15: 0 | CH15: 0
B16: Montering af tætningsliste mellem ramme og karm | H16: -33116 | I16: 1 | J16: 15 | K16: 15 | L16: 0.018 | M16: 0 | N16: 1 | O16: 0 | P16: -33116 | T16: -33116 | U16: -33116 | V16: 0 | W16: 0 | X16: 0 | Y16: 0 | Z16: 0 | AA16: 0 | AB16: 0 | AC16: 0 | AD16: 0 | AE16: 0 | AF16: 0 | AG16: 0 | AH16: 0 | AI16: 0 | AJ16: 0 | AK16: 0 | AL16: 0 | AM16: 0 | AN16: 0 | AO16: 0 | AP16: 0 | AQ16: 0 | AR16: 0 | AS16: 0 | AT16: 0 | AU16: 0 | AV16: 0 | AW16: 0 | AX16: 0 | AY16: 0 | BB16: -21.63837028 | BD16: -1.442558019 | BE16: -1.442558019 | BF16: -1.442558019 | BG16: -1.442558019 | BH16: -1.442558019 | BI16: -1.442558019 | BJ16: -1.442558019 | BK16: -1.442558019 | BL16: -1.442558019 | BM16: -1.442558019 | BN16: -1.442558019 | BO16: -1.442558019 | BP16: -1.442558019 | BQ16: -1.442558019 | BR16: -1.442558019 | BS16: 0 | BT16: 0 | BU16: 0 | BV16: 0 | BW16: 0 | BX16: 0 | BY16: 0 | BZ16: 0 | CA16: 0 | CB16: 0 | CC16: 0 | CD16: 0 | CE16: 0 | CF16: 0 | CG16: 0 | CH16: 0
B17: - | H17: =G17*-F17 -> 0 | I17: 0 | J17: 0 | K17: 0 | L17: 0.018 | M17: 0 | N17: 1 | O17: 0 | P17: 0 | T17: 0 | U17: 0 | V17: 0 | W17: 0 | X17: 0 | Y17: 0 | Z17: 0 | AA17: 0 | AB17: 0 | AC17: 0 | AD17: 0 | AE17: 0 | AF17: 0 | AG17: 0 | AH17: 0 | AI17: 0 | AJ17: 0 | AK17: 0 | AL17: 0 | AM17: 0 | AN17: 0 | AO17: 0 | AP17: 0 | AQ17: 0 | AR17: 0 | AS17: 0 | AT17: 0 | AU17: 0 | AV17: 0 | AW17: 0 | AX17: 0 | AY17: 0 | BB17: 0 | BD17: 0 | BE17: 0 | BF17: 0 | BG17: 0 | BH17: 0 | BI17: 0 | BJ17: 0 | BK17: 0 | BL17: 0 | BM17: 0 | BN17: 0 | BO17: 0 | BP17: 0 | BQ17: 0 | BR17: 0 | BS17: 0 | BT17: 0 | BU17: 0 | BV17: 0 | BW17: 0 | BX17: 0 | BY17: 0 | BZ17: 0 | CA17: 0 | CB17: 0 | CC17: 0 | CD17: 0 | CE17: 0 | CF17: 0 | CG17: 0 | CH17: 0
B18: - | H18: 0 | I18: 0 | J18: 0 | K18: 0 | L18: 0.018 | M18: 0 | N18: 1 | O18: 0 | P18: 0 | T18: 0 | U18: 0 | V18: 0 | W18: 0 | X18: 0 | Y18: 0 | Z18: 0 | AA18: 0 | AB18: 0 | AC18: 0 | AD18: 0 | AE18: 0 | AF18: 0 | AG18: 0 | AH18: 0 | AI18: 0 | AJ18: 0 | AK18: 0 | AL18: 0 | AM18: 0 | AN18: 0 | AO18: 0 | AP18: 0 | AQ18: 0 | AR18: 0 | AS18: 0 | AT18: 0 | AU18: 0 | AV18: 0 | AW18: 0 | AX18: 0 | AY18: 0 | BB18: 0 | BD18: 0 | BE18: 0 | BF18: 0 | BG18: 0 | BH18: 0 | BI18: 0 | BJ18: 0 | BK18: 0 | BL18: 0 | BM18: 0 | BN18: 0 | BO18: 0 | BP18: 0 | BQ18: 0 | BR18: 0 | BS18: 0 | BT18: 0 | BU18: 0 | BV18: 0 | BW18: 0 | BX18: 0 | BY18: 0 | BZ18: 0 | CA18: 0 | CB18: 0 | CC18: 0 | CD18: 0 | CE18: 0 | CF18: 0 | CG18: 0 | CH18: 0
B19: - | H19: 0 | I19: 0 | J19: 0 | K19: 0 | L19: 0.018 | M19: 0 | N19: 1 | O19: 0 | P19: 0 | T19: 0 | U19: 0 | V19: 0 | W19: 0 | X19: 0 | Y19: 0 | Z19: 0 | AA19: 0 | AB19: 0 | AC19: 0 | AD19: 0 | AE19: 0 | AF19: 0 | AG19: 0 | AH19: 0 | AI19: 0 | AJ19: 0 | AK19: 0 | AL19: 0 | AM19: 0 | AN19: 0 | AO19: 0 | AP19: 0 | AQ19: 0 | AR19: 0 | AS19: 0 | AT19: 0 | AU19: 0 | AV19: 0 | AW19: 0 | AX19: 0 | AY19: 0 | BB19: 0 | BD19: 0 | BE19: 0 | BF19: 0 | BG19: 0 | BH19: 0 | BI19: 0 | BJ19: 0 | BK19: 0 | BL19: 0 | BM19: 0 | BN19: 0 | BO19: 0 | BP19: 0 | BQ19: 0 | BR19: 0 | BS19: 0 | BT19: 0 | BU19: 0 | BV19: 0 | BW19: 0 | BX19: 0 | BY19: 0 | BZ19: 0 | CA19: 0 | CB19: 0 | CC19: 0 | CD19: 0 | CE19: 0 | CF19: 0 | CG19: 0 | CH19: 0
B20: - | H20: 0 | I20: 0 | J20: 0 | K20: 0 | L20: 0.018 | M20: 0 | N20: 1 | O20: 0 | P20: 0 | T20: 0 | U20: 0 | V20: 0 | W20: 0 | X20: 0 | Y20: 0 | Z20: 0 | AA20: 0 | AB20: 0 | AC20: 0 | AD20: 0 | AE20: 0 | AF20: 0 | AG20: 0 | AH20: 0 | AI20: 0 | AJ20: 0 | AK20: 0 | AL20: 0 | AM20: 0 | AN20: 0 | AO20: 0 | AP20: 0 | AQ20: 0 | AR20: 0 | AS20: 0 | AT20: 0 | AU20: 0 | AV20: 0 | AW20: 0 | AX20: 0 | AY20: 0 | BB20: 0 | BD20: 0 | BE20: 0 | BF20: 0 | BG20: 0 | BH20: 0 | BI20: 0 | BJ20: 0 | BK20: 0 | BL20: 0 | BM20: 0 | BN20: 0 | BO20: 0 | BP20: 0 | BQ20: 0 | BR20: 0 | BS20: 0 | BT20: 0 | BU20: 0 | BV20: 0 | BW20: 0 | BX20: 0 | BY20: 0 | BZ20: 0 | CA20: 0 | CB20: 0 | CC20: 0 | CD20: 0 | CE20: 0 | CF20: 0 | CG20: 0 | CH20: 0
B21: Vedligehold | P21: -356372.054 | T21: -356372.054 | U21: =SUM(U13:U20) -> -307929 | V21: =SUM(V13:V20) -> 0 | W21: 0 | X21: 0 | Y21: 0 | Z21: 0 | AA21: 0 | AB21: 0 | AC21: -48443.05398 | AD21: 0 | AE21: 0 | AF21: 0 | AG21: 0 | AH21: 0 | AI21: 0 | AJ21: 0 | AK21: 0 | AL21: 0 | AM21: 0 | AN21: 0 | AO21: 0 | AP21: 0 | AQ21: 0 | AR21: 0 | AS21: 0 | AT21: 0 | AU21: 0 | AV21: 0 | AW21: 0 | AX21: 0 | AY21: 0 | BB21: -159.4135958 | BD21: =SUM(BD13:BD20) -> -10.41082221 | BE21: =SUM(BE13:BE20) -> -10.41082221 | BF21: -10.41082221 | BG21: -10.41082221 | BH21: -10.41082221 | BI21: -10.41082221 | BJ21: -10.41082221 | BK21: -10.41082221 | BL21: -10.8752883 | BM21: -10.8752883 | BN21: -10.8752883 | BO21: -10.8752883 | BP21: -10.8752883 | BQ21: -10.8752883 | BR21: -10.8752883 | BS21: 0 | BT21: 0 | BU21: 0 | BV21: 0 | BW21: 0 | BX21: 0 | BY21: 0 | BZ21: 0 | CA21: 0 | CB21: 0 | CC21: 0 | CD21: 0 | CE21: 0 | CF21: 0 | CG21: 0 | CH21: 0
B22: Scrapværdi | P22: =T22 -> 0 | T22: =SUM(U22:AY22) -> 0 | U22: =IF(S_Investeringsår+S_Beregningsperiode-1=U12,SUM($M$13:$M$20),0) -> 0 | V22: 0 | W22: 0 | X22: 0 | Y22: 0 | Z22: 0 | AA22: 0 | AB22: 0 | AC22: 0 | AD22: 0 | AE22: 0 | AF22: 0 | AG22: 0 | AH22: 0 | AI22: 0 | AJ22: 0 | AK22: 0 | AL22: 0 | AM22: 0 | AN22: 0 | AO22: 0 | AP22: 0 | AQ22: 0 | AR22: 0 | AS22: 0 | AT22: 0 | AU22: 0 | AV22: 0 | AW22: 0 | AX22: 0 | AY22: 0
A23: Finansiering | D23: Hovedstol [kr.] | E23: Årlig ydelse [kr.] | H23: Egenfinansiering/ tilskud [kr.] | I23: Første gang [år] | J23: Sidste gang [år] | K23: Interval [år] | L23: Pris- udvikling [%] | P23: SUM [kr.] | Q23: =A23 -> Finansiering | T23: SUM | U23: =S_Investeringsår -> 2014 | V23: =U23+1 -> 2015 | W23: =V23+1 -> 2016 | X23: 2017 | Y23: 2018 | Z23: 2019 | AA23: 2020 | AB23: 2021 | AC23: 2022 | AD23: 2023 | AE23: 2024 | AF23: 2025 | AG23: 2026 | AH23: 2027 | AI23: 2028 | AJ23: 2029 | AK23: 2030 | AL23: 2031 | AM23: 2032 | AN23: 2033 | AO23: 2034 | AP23: 2035 | AQ23: 2036 | AR23: 2037 | AS23: 2038 | AT23: 2039 | AU23: 2040 | AV23: 2041 | AW23: 2042 | AX23: 2043 | AY23: 2044 | BB23: SUM | BC23: =A23 -> Finansiering | BD23: =S_Investeringsår -> 2014 | BE23: =BD23+1 -> 2015 | BF23: =BE23+1 -> 2016 | BG23: =BF23+1 -> 2017 | BH23: =BG23+1 -> 2018 | BI23: 2019 | BJ23: 2020 | BK23: 2021 | BL23: 2022 | BM23: 2023 | BN23: 2024 | BO23: 2025 | BP23: 2026 | BQ23: 2027 | BR23: 2028 | BS23: 2029 | BT23: 2030 | BU23: 2031 | BV23: 2032 | BW23: 2033 | BX23: 2034 | BY23: 2035 | BZ23: 2036 | CA23: 2037 | CB23: 2038 | CC23: 2039 | CD23: 2040 | CE23: 2041 | CF23: 2042 | CG23: 2043 | CH23: 2044 | CJ23: =A23 -> Finansiering
A24: Egenfinansiering og tilskud
B25: Egenfinansiering (bruges på at reducere lånebehovet og dermed ydelsen) | H25: 100000 | I25: 1 | J25: 1 | K25: 1 | L25: =S_Inflation -> 0.018 | P25: =T25 -> 100000 | T25: =SUM(U25:AY25) -> 100000 | U25: =$H25 *IF(U$2>=$I25+S_Investeringsår-1,1,0) *IF(U$2<=$J25+S_Investeringsår-1,1,0) *IF($K25=0,0,IF((U$2-S_Investeringsår-$I25+1)/$K25=INT((U$2-S_Investeringsår-$I25+1)/$K25),1,0)) *(1+IF(ISBLANK($L25),S_Inflation,$L25))^(U$2-S_Investeringsår) -> 100000 | V25: 0 | W25: 0 | X25: 0 | Y25: 0 | Z25: 0 | AA25: 0 | AB25: 0 | AC25: 0 | AD25: 0 | AE25: =$H25 *IF(AE$2>=$I25+S_Investeringsår-1,1,0) *IF(AE$2<=$J25+S_Investeringsår-1,1,0) *IF($K25=0,0,IF((AE$2-S_Investeringsår-$I25+1)/$K25=INT((AE$2-S_Investeringsår-$I25+1)/$K25),1,0)) *(1+IF(ISBLANK($L25),S_Inflation,$L25))^(AE$2-S_Investeringsår) -> 0 | AF25: 0 | AG25: 0 | AH25: 0 | AI25: 0 | AJ25: 0 | AK25: 0 | AL25: 0 | AM25: 0 | AN25: 0 | AO25: =$H25 *IF(AO$2>=$I25+S_Investeringsår-1,1,0) *IF(AO$2<=$J25+S_Investeringsår-1,1,0) *IF($K25=0,0,IF((AO$2-S_Investeringsår-$I25+1)/$K25=INT((AO$2-S_Investeringsår-$I25+1)/$K25),1,0)) *(1+IF(ISBLANK($L25),S_Inflation,$L25))^(AO$2-S_Investeringsår) -> 0 | AP25: 0 | AQ25: 0 | AR25: 0 | AS25: 0 | AT25: 0 | AU25: 0 | AV25: 0 | AW25: 0 | AX25: 0 | AY25: 0 | BB25: =SUM(BD25:CH25) -> 50 | BD25: =U25/S_Areal -> 50 | BE25: 0 | BF25: 0 | BG25: 0 | BH25: 0 | BI25: 0 | BJ25: 0 | BK25: 0 | BL25: 0 | BM25: 0 | BN25: =AE25/S_Areal -> 0 | BO25: 0 | BP25: 0 | BQ25: 0 | BR25: 0 | BS25: 0 | BT25: 0 | BU25: 0 | BV25: 0 | BW25: 0 | BX25: =AO25/S_Areal -> 0 | BY25: 0 | BZ25: 0 | CA25: 0 | CB25: 0 | CC25: 0 | CD25: 0 | CE25: 0 | CF25: 0 | CG25: 0 | CH25: =AY25/S_Areal -> 0
B26: Tilskud til energibesparelser | H26: 1050 | I26: 1 | J26: 1 | K26: 1 | L26: =S_Inflation -> 0.018 | P26: 1050 | T26: 1050 | U26: =$H26 *IF(U$2>=$I26+S_Investeringsår-1,1,0) *IF(U$2<=$J26+S_Investeringsår-1,1,0) *IF($K26=0,0,IF((U$2-S_Investeringsår-$I26+1)/$K26=INT((U$2-S_Investeringsår-$I26+1)/$K26),1,0)) *(1+IF(ISBLANK($L26),S_Inflation,$L26))^(U$2-S_Investeringsår) -> 1050 | V26: 0 | W26: 0 | X26: 0 | Y26: 0 | Z26: 0 | AA26: 0 | AB26: 0 | AC26: 0 | AD26: 0 | AE26: 0 | AF26: 0 | AG26: 0 | AH26: 0 | AI26: 0 | AJ26: 0 | AK26: 0 | AL26: 0 | AM26: 0 | AN26: 0 | AO26: 0 | AP26: 0 | AQ26: 0 | AR26: 0 | AS26: 0 | AT26: 0 | AU26: 0 | AV26: 0 | AW26: 0 | AX26: 0 | AY26: 0 | BB26: 0.525 | BD26: =U26/S_Areal -> 0.525 | BE26: 0 | BF26: 0 | BG26: 0 | BH26: 0 | BI26: 0 | BJ26: 0 | BK26: 0 | BL26: 0 | BM26: 0 | BN26: 0 | BO26: 0 | BP26: 0 | BQ26: 0 | BR26: 0 | BS26: 0 | BT26: 0 | BU26: 0 | BV26: 0 | BW26: 0 | BX26: 0 | BY26: 0 | BZ26: 0 | CA26: 0 | CB26: 0 | CC26: 0 | CD26: 0 | CE26: 0 | CF26: 0 | CG26: 0 | CH26: 0
B27: Tilskud fra dispositionsfond | H27: 0 | I27: 0 | J27: 0 | K27: 0 | L27: =S_Inflation -> 0.018 | P27: 0 | T27: 0 | U27: 0 | V27: 0 | W27: 0 | X27: 0 | Y27: 0 | Z27: 0 | AA27: 0 | AB27: 0 | AC27: 0 | AD27: 0 | AE27: 0 | AF27: 0 | AG27: 0 | AH27: 0 | AI27: 0 | AJ27: 0 | AK27: 0 | AL27: 0 | AM27: 0 | AN27: 0 | AO27: 0 | AP27: 0 | AQ27: 0 | AR27: 0 | AS27: 0 | AT27: 0 | AU27: 0 | AV27: 0 | AW27: 0 | AX27: 0 | AY27: 0 | BB27: 0 | BD27: =U27/S_Areal -> 0 | BE27: =V27/S_Areal -> 0 | BF27: =W27/S_Areal -> 0 | BG27: =X27/S_Areal -> 0 | BH27: =Y27/S_Areal -> 0 | BI27: =Z27/S_Areal -> 0 | BJ27: =AA27/S_Areal -> 0 | BK27: =AB27/S_Areal -> 0 | BL27: =AC27/S_Areal -> 0 | BM27: =AD27/S_Areal -> 0 | BN27: =AE27/S_Areal -> 0 | BO27: =AF27/S_Areal -> 0 | BP27: =AG27/S_Areal -> 0 | BQ27: =AH27/S_Areal -> 0 | BR27: =AI27/S_Areal -> 0 | BS27: =AJ27/S_Areal -> 0 | BT27: =AK27/S_Areal -> 0 | BU27: =AL27/S_Areal -> 0 | BV27: =AM27/S_Areal -> 0 | BW27: =AN27/S_Areal -> 0 | BX27: =AO27/S_Areal -> 0 | BY27: =AP27/S_Areal -> 0 | BZ27: =AQ27/S_Areal -> 0 | CA27: =AR27/S_Areal -> 0 | CB27: =AS27/S_Areal -> 0 | CC27: =AT27/S_Areal -> 0 | CD27: =AU27/S_Areal -> 0 | CE27: =AV27/S_Areal -> 0 | CF27: =AW27/S_Areal -> 0 | CG27: =AX27/S_Areal -> 0 | CH27: =AY27/S_Areal -> 0
B28: Tilskud fra landsbyggefonden | H28: 0 | I28: 0 | J28: 0 | K28: 0 | L28: =S_Inflation -> 0.018 | P28: 0 | T28: 0 | U28: 0 | V28: 0 | W28: 0 | X28: 0 | Y28: 0 | Z28: 0 | AA28: 0 | AB28: 0 | AC28: 0 | AD28: 0 | AE28: 0 | AF28: 0 | AG28: 0 | AH28: 0 | AI28: 0 | AJ28: 0 | AK28: 0 | AL28: 0 | AM28: 0 | AN28: 0 | AO28: 0 | AP28: 0 | AQ28: 0 | AR28: 0 | AS28: 0 | AT28: 0 | AU28: 0 | AV28: 0 | AW28: 0 | AX28: 0 | AY28: 0 | BB28: 0 | BD28: =U28/S_Areal -> 0 | BE28: =V28/S_Areal -> 0 | BF28: =W28/S_Areal -> 0 | BG28: =X28/S_Areal -> 0 | BH28: =Y28/S_Areal -> 0 | BI28: =Z28/S_Areal -> 0 | BJ28: =AA28/S_Areal -> 0 | BK28: =AB28/S_Areal -> 0 | BL28: =AC28/S_Areal -> 0 | BM28: =AD28/S_Areal -> 0 | BN28: =AE28/S_Areal -> 0 | BO28: =AF28/S_Areal -> 0 | BP28: =AG28/S_Areal -> 0 | BQ28: =AH28/S_Areal -> 0 | BR28: =AI28/S_Areal -> 0 | BS28: =AJ28/S_Areal -> 0 | BT28: =AK28/S_Areal -> 0 | BU28: =AL28/S_Areal -> 0 | BV28: =AM28/S_Areal -> 0 | BW28: =AN28/S_Areal -> 0 | BX28: =AO28/S_Areal -> 0 | BY28: =AP28/S_Areal -> 0 | BZ28: =AQ28/S_Areal -> 0 | CA28: =AR28/S_Areal -> 0 | CB28: =AS28/S_Areal -> 0 | CC28: =AT28/S_Areal -> 0 | CD28: =AU28/S_Areal -> 0 | CE28: =AV28/S_Areal -> 0 | CF28: =AW28/S_Areal -> 0 | CG28: =AX28/S_Areal -> 0 | CH28: =AY28/S_Areal -> 0
B29: Andre tilskud | H29: 0 | I29: 0 | J29: 0 | K29: 0 | L29: =S_Inflation -> 0.018 | P29: 0 | T29: 0 | U29: 0 | V29: 0 | W29: 0 | X29: 0 | Y29: 0 | Z29: 0 | AA29: 0 | AB29: 0 | AC29: 0 | AD29: 0 | AE29: 0 | AF29: 0 | AG29: 0 | AH29: 0 | AI29: 0 | AJ29: 0 | AK29: 0 | AL29: 0 | AM29: 0 | AN29: 0 | AO29: 0 | AP29: 0 | AQ29: 0 | AR29: 0 | AS29: 0 | AT29: 0 | AU29: 0 | AV29: 0 | AW29: 0 | AX29: 0 | AY29: 0 | BB29: 0 | BD29: 0 | BE29: 0 | BF29: 0 | BG29: 0 | BH29: 0 | BI29: 0 | BJ29: 0 | BK29: 0 | BL29: 0 | BM29: 0 | BN29: 0 | BO29: 0 | BP29: 0 | BQ29: 0 | BR29: 0 | BS29: 0 | BT29: 0 | BU29: 0 | BV29: 0 | BW29: 0 | BX29: 0 | BY29: 0 | BZ29: 0 | CA29: 0 | CB29: 0 | CC29: 0 | CD29: 0 | CE29: 0 | CF29: 0 | CG29: 0 | CH29: 0
B30: Tilskud | P30: 1050 | T30: 1050 | U30: =SUM(U26:U29) -> 1050 | V30: =SUM(V26:V29) -> 0 | W30: 0 | X30: 0 | Y30: 0 | Z30: 0 | AA30: 0 | AB30: 0 | AC30: 0 | AD30: 0 | AE30: 0 | AF30: 0 | AG30: 0 | AH30: 0 | AI30: 0 | AJ30: 0 | AK30: 0 | AL30: 0 | AM30: 0 | AN30: 0 | AO30: 0 | AP30: 0 | AQ30: 0 | AR30: 0 | AS30: 0 | AT30: 0 | AU30: 0 | AV30: 0 | AW30: 0 | AX30: 0 | AY30: 0 | BB30: 0.525 | BD30: =SUM(BD26:BD29) -> 0.525 | BE30: =SUM(BE26:BE29) -> 0 | BF30: 0 | BG30: 0 | BH30: 0 | BI30: 0 | BJ30: 0 | BK30: 0 | BL30: 0 | BM30: 0 | BN30: 0 | BO30: 0 | BP30: 0 | BQ30: 0 | BR30: 0 | BS30: 0 | BT30: 0 | BU30: 0 | BV30: 0 | BW30: 0 | BX30: 0 | BY30: 0 | BZ30: 0 | CA30: 0 | CB30: 0 | CC30: 0 | CD30: 0 | CE30: 0 | CF30: 0 | CG30: 0 | CH30: 0
A31: Årlig ydelse med valgt finansieringsform (vælg)
B32: Finansieringsforslag 1 - Simpel låneberegning | D32: =IF($B$32=$B$34,D34,0)+IF($B$32=$B$35,D35,0)+IF($B$32=$B$36,D36,0) -> -207929 | E32: =IF($B$32=$B$34,E34,"") -> -10608.38357 | P32: =T32 -> -318251.5071 | T32: =SUM(U32:AY32) -> -318251.5071 | U32: =IF(ISBLANK($B$32),"",IF($B$32=$B$34,U34,0)+IF($B$32=$B$35,U35,0)+(IF($B$32=$B$36,U36,0))) -> -10608.38357 | V32: =IF(ISBLANK($B$32),"",IF($B$32=$B$34,V34,0)+IF($B$32=$B$35,V35,0)+(IF($B$32=$B$36,V36,0))) -> -10608.38357 | W32: -10608.38357 | X32: -10608.38357 | Y32: -10608.38357 | Z32: -10608.38357 | AA32: -10608.38357 | AB32: -10608.38357 | AC32: -10608.38357 | AD32: -10608.38357 | AE32: -10608.38357 | AF32: -10608.38357 | AG32: -10608.38357 | AH32: -10608.38357 | AI32: -10608.38357 | AJ32: -10608.38357 | AK32: -10608.38357 | AL32: -10608.38357 | AM32: -10608.38357 | AN32: -10608.38357 | AO32: -10608.38357 | AP32: -10608.38357 | AQ32: -10608.38357 | AR32: -10608.38357 | AS32: -10608.38357 | AT32: -10608.38357 | AU32: -10608.38357 | AV32: -10608.38357 | AW32: -10608.38357 | AX32: -10608.38357 | AY32: 0 | BB32: =SUM(BD32:CH32) -> -159.1257536 | BD32: =U32/S_Areal -> -5.304191786 | BE32: -5.304191786 | BF32: -5.304191786 | BG32: -5.304191786 | BH32: -5.304191786 | BI32: -5.304191786 | BJ32: -5.304191786 | BK32: -5.304191786 | BL32: -5.304191786 | BM32: -5.304191786 | BN32: -5.304191786 | BO32: -5.304191786 | BP32: -5.304191786 | BQ32: -5.304191786 | BR32: -5.304191786 | BS32: -5.304191786 | BT32: -5.304191786 | BU32: -5.304191786 | BV32: -5.304191786 | BW32: -5.304191786 | BX32: -5.304191786 | BY32: -5.304191786 | BZ32: -5.304191786 | CA32: -5.304191786 | CB32: -5.304191786 | CC32: -5.304191786 | CD32: -5.304191786 | CE32: -5.304191786 | CF32: -5.304191786 | CG32: -5.304191786 | CH32: 0
A33: Mulige finansieringsformer
B34: Finansieringsforslag 1 - Simpel låneberegning | D34: =U10+U21+U25 -> -207929 | E34: =V34 -> -10608.38357 | P34: =T34 -> -318251.5071 | T34: =SUM(U34:AY34) -> -318251.5071 | U34: =IF(OR(U$2<S_Investeringsår,U$2>=S_Investeringsår+S_Beregningsperiode),0,-PMT(S_rente,S_Beregningsperiode,$D$34)) -> -10608.38357 | V34: =IF(OR(V$2<S_Investeringsår,V$2>=S_Investeringsår+S_Beregningsperiode),0,-PMT(S_rente,S_Beregningsperiode,$D$34)) -> -10608.38357 | W34: -10608.38357 | X34: -10608.38357 | Y34: -10608.38357 | Z34: -10608.38357 | AA34: -10608.38357 | AB34: -10608.38357 | AC34: -10608.38357 | AD34: -10608.38357 | AE34: -10608.38357 | AF34: -10608.38357 | AG34: -10608.38357 | AH34: -10608.38357 | AI34: -10608.38357 | AJ34: -10608.38357 | AK34: -10608.38357 | AL34: -10608.38357 | AM34: -10608.38357 | AN34: -10608.38357 | AO34: -10608.38357 | AP34: -10608.38357 | AQ34: -10608.38357 | AR34: -10608.38357 | AS34: -10608.38357 | AT34: -10608.38357 | AU34: -10608.38357 | AV34: -10608.38357 | AW34: -10608.38357 | AX34: -10608.38357 | AY34: 0 | BB34: =SUM(BD34:CH34) -> -159.1257536 | BD34: =U34/S_Areal -> -5.304191786 | BE34: -5.304191786 | BF34: -5.304191786 | BG34: -5.304191786 | BH34: -5.304191786 | BI34: -5.304191786 | BJ34: -5.304191786 | BK34: -5.304191786 | BL34: -5.304191786 | BM34: -5.304191786 | BN34: =AE34/S_Areal -> -5.304191786 | BO34: -5.304191786 | BP34: -5.304191786 | BQ34: -5.304191786 | BR34: -5.304191786 | BS34: -5.304191786 | BT34: -5.304191786 | BU34: -5.304191786 | BV34: -5.304191786 | BW34: -5.304191786 | BX34: =AO34/S_Areal -> -5.304191786 | BY34: -5.304191786 | BZ34: -5.304191786 | CA34: -5.304191786 | CB34: -5.304191786 | CC34: -5.304191786 | CD34: -5.304191786 | CE34: -5.304191786 | CF34: -5.304191786 | CG34: -5.304191786 | CH34: =AY34/S_Areal -> 0
B35: Finansieringsforslag 2 - Vippet låneprofil | D35: =D34 -> -207929 | P35: =T35 -> -318680.0891 | T35: =SUM(U35:AY35) -> -318680.0891 | U35: =$AI$35/(1+S_Inflation)^($AI$2-U2) -> -8263.809979 | V35: -8412.558558 | W35: -8563.984612 | X35: -8718.136335 | Y35: -8875.062789 | Z35: -9034.813919 | AA35: -9197.44057 | AB35: -9362.9945 | AC35: -9531.528401 | AD35: -9703.095912 | AE35: -9877.751639 | AF35: -10055.55117 | AG35: -10236.55109 | AH35: =$AI$35/(1+S_Inflation)^($AI$2-AH2) -> -10420.80901 | AI35: =+AI34 -> -10608.38357 | AJ35: =+AJ34 -> -10608.38357 | AK35: =+AK34 -> -10608.38357 | AL35: =$AI$35/(1+S_Inflation)^($AK$2-AL2) -> -10799.33448 | AM35: -10993.7225 | AN35: -11191.6095 | AO35: -11393.05847 | AP35: -11598.13352 | AQ35: -11806.89993 | AR35: -12019.42413 | AS35: -12235.77376 | AT35: -12456.01769 | AU35: -12680.22601 | AV35: -12908.47008 | AW35: -13140.82254 | AX35: -13377.35734 | AY35: =IF(OR(AY$2<S_Investeringsår,AY$2>=S_Investeringsår+S_Beregningsperiode),0,((AY$2-S_Investeringsår)*$G$35+$F$35)) -> 0 | BB35: =SUM(BD35:CH35) -> -159.3400446 | BD35: -4.131904989 | BE35: -4.206279279 | BF35: -4.281992306 | BG35: -4.359068168 | BH35: -4.437531395 | BI35: -4.51740696 | BJ35: -4.598720285 | BK35: -4.68149725 | BL35: -4.765764201 | BM35: -4.851547956 | BN35: -4.938875819 | BO35: -5.027775584 | BP35: -5.118275545 | BQ35: -5.210404505 | BR35: -5.304191786 | BS35: -5.304191786 | BT35: -5.304191786 | BU35: -5.399667238 | BV35: -5.496861248 | BW35: -5.59580475 | BX35: -5.696529236 | BY35: -5.799066762 | BZ35: -5.903449964 | CA35: -6.009712063 | CB35: -6.11788688 | CC35: -6.228008844 | CD35: -6.340113003 | CE35: -6.454235038 | CF35: -6.570411268 | CG35: -6.688678671 | CH35: 0
B36: Finansieringsforslag 3 - Egen indtastet låneprofil | D36: =D35 -> -207929 | P36: =T36 -> -600000 | T36: =SUM(U36:AY36) -> -600000 | U36: -20000 | V36: -20000 | W36: -20000 | X36: -20000 | Y36: -20000 | Z36: -20000 | AA36: -20000 | AB36: -20000 | AC36: -20000 | AD36: -20000 | AE36: -20000 | AF36: -20000 | AG36: -20000 | AH36: -20000 | AI36: -20000 | AJ36: -20000 | AK36: -20000 | AL36: -20000 | AM36: -20000 | AN36: -20000 | AO36: -20000 | AP36: -20000 | AQ36: -20000 | AR36: -20000 | AS36: -20000 | AT36: -20000 | AU36: -20000 | AV36: -20000 | AW36: -20000 | AX36: -20000 | AY36: 0 | BB36: =SUM(BD36:CH36) -> -300 | BD36: -10 | BE36: -10 | BF36: -10 | BG36: -10 | BH36: -10 | BI36: -10 | BJ36: -10 | BK36: -10 | BL36: -10 | BM36: -10 | BN36: -10 | BO36: -10 | BP36: -10 | BQ36: -10 | BR36: -10 | BS36: -10 | BT36: -10 | BU36: -10 | BV36: -10 | BW36: -10 | BX36: -10 | BY36: -10 | BZ36: -10 | CA36: -10 | CB36: -10 | CC36: -10 | CD36: -10 | CE36: -10 | CF36: -10 | CG36: -10 | CH36: 0
A37: Energi- og vandforbrug | C37: Forsyningstype | D37: Navn | E37: Pris [kr./kWh] | F37: Enhed | G37: Forbrug(-) / besparelse(+) per år | H37: Periodisk udgift(-) / besparelse(+) [kr.] | I37: Første gang [år] | J37: Sidste gang [år] | K37: Interval [år] | L37: Pris- udvikling [%] | M37: Energipris-fremskrivning [%] | P37: SUM [kr.] | Q37: =A37 -> Energi- og vandforbrug | T37: SUM | U37: =S_Investeringsår -> 2014 | V37: =U37+1 -> 2015 | W37: =V37+1 -> 2016 | X37: 2017 | Y37: 2018 | Z37: 2019 | AA37: 2020 | AB37: 2021 | AC37: 2022 | AD37: 2023 | AE37: 2024 | AF37: 2025 | AG37: 2026 | AH37: 2027 | AI37: 2028 | AJ37: 2029 | AK37: 2030 | AL37: 2031 | AM37: 2032 | AN37: 2033 | AO37: 2034 | AP37: 2035 | AQ37: 2036 | AR37: 2037 | AS37: 2038 | AT37: 2039 | AU37: 2040 | AV37: 2041 | AW37: 2042 | AX37: 2043 | AY37: 2044 | BB37: SUM | BC37: =A37 -> Energi- og vandforbrug | BD37: =S_Investeringsår -> 2014 | BE37: =BD37+1 -> 2015 | BF37: 2016 | BG37: =BF37+1 -> 2017 | BH37: 2018 | BI37: 2019 | BJ37: 2020 | BK37: 2021 | BL37: 2022 | BM37: 2023 | BN37: 2024 | BO37: 2025 | BP37: 2026 | BQ37: 2027 | BR37: 2028 | BS37: 2029 | BT37: 2030 | BU37: 2031 | BV37: 2032 | BW37: 2033 | BX37: 2034 | BY37: 2035 | BZ37: 2036 | CA37: 2037 | CB37: 2038 | CC37: 2039 | CD37: 2040 | CE37: 2041 | CF37: 2042 | CG37: 2043 | CH37: 2044 | CJ37: =A37 -> Energi- og vandforbrug
B38: Udskiftning af termorude med energirude, 1.188 mm x 1.488 mm | C38: =IF(ISBLANK(D38),"",VLOOKUP($D38,S_forsyningsoplysninger,2,0)) -> Fjernvarme | D38: Fjernvarme_1 | E38: =IF(ISBLANK(D38),"",VLOOKUP(D38,S_forsyningsoplysninger,4,0)) -> 0.7 | F38: =IF(ISBLANK(D38),"",VLOOKUP(D38,S_forsyningsoplysninger,5,0)) -> kr/kWh | G38: 3500 | H38: =IF(ISBLANK(D38),0,G38*E38) -> 2450 | I38: 1 | J38: 15 | K38: 1 | L38: =S_Inflation -> 0.018 | M38: =IF(ISBLANK(D38),0%,VLOOKUP(D38,S_forsyningsoplysninger,3,0)) -> 0.0039 | P38: =T38 -> 42977.15611 | T38: =SUM(U38:AY38) -> 42977.15611 | U38: =$H38 *IF(U$2>=$I38+S_Investeringsår-1,1,0) *IF(U$2<=$J38+S_Investeringsår-1,1,0) *IF($K38=0,0,IF((U$2-S_Investeringsår-$I38+1)/$K38=INT((U$2-S_Investeringsår-$I38+1)/$K38),1,0)) *(1+IF(ISBLANK($L38),S_Inflation,$L38))^(U$2-S_Investeringsår) *(1+IF($C38="",0%,VLOOKUP($C38,Stamdata!$D$7:$E$15,2,0)))^(U$2-S_Investeringsår) -> 2450 | V38: =$H38 *IF(V$2>=$I38+S_Investeringsår-1,1,0) *IF(V$2<=$J38+S_Investeringsår-1,1,0) *IF($K38=0,0,IF((V$2-S_Investeringsår-$I38+1)/$K38=INT((V$2-S_Investeringsår-$I38+1)/$K38),1,0)) *(1+IF(ISBLANK($L38),S_Inflation,$L38))^(V$2-S_Investeringsår) *(1+IF($C38="",0%,VLOOKUP($C38,Stamdata!$D$7:$E$15,2,0)))^(V$2-S_Investeringsår) -> 2503.82699 | W38: =$H38 *IF(W$2>=$I38+S_Investeringsår-1,1,0) *IF(W$2<=$J38+S_Investeringsår-1,1,0) *IF($K38=0,0,IF((W$2-S_Investeringsår-$I38+1)/$K38=INT((W$2-S_Investeringsår-$I38+1)/$K38),1,0)) *(1+IF(ISBLANK($L38),S_Inflation,$L38))^(W$2-S_Investeringsår) *(1+IF($C38="",0%,VLOOKUP($C38,Stamdata!$D$7:$E$15,2,0)))^(W$2-S_Investeringsår) -> 2558.83657 | X38: =$H38 *IF(X$2>=$I38+S_Investeringsår-1,1,0) *IF(X$2<=$J38+S_Investeringsår-1,1,0) *IF($K38=0,0,IF((X$2-S_Investeringsår-$I38+1)/$K38=INT((X$2-S_Investeringsår-$I38+1)/$K38),1,0)) *(1+IF(ISBLANK($L38),S_Inflation,$L38))^(X$2-S_Investeringsår) *(1+IF($C38="",0%,VLOOKUP($C38,Stamdata!$D$7:$E$15,2,0)))^(X$2-S_Investeringsår) -> 2615.054721 | Y38: =$H38 *IF(Y$2>=$I38+S_Investeringsår-1,1,0) *IF(Y$2<=$J38+S_Investeringsår-1,1,0) *IF($K38=0,0,IF((Y$2-S_Investeringsår-$I38+1)/$K38=INT((Y$2-S_Investeringsår-$I38+1)/$K38),1,0)) *(1+IF(ISBLANK($L38),S_Inflation,$L38))^(Y$2-S_Investeringsår) *(1+IF($C38="",0%,VLOOKUP($C38,Stamdata!$D$7:$E$15,2,0)))^(Y$2-S_Investeringsår) -> 2672.507996 | Z38: =$H38 *IF(Z$2>=$I38+S_Investeringsår-1,1,0) *IF(Z$2<=$J38+S_Investeringsår-1,1,0) *IF($K38=0,0,IF((Z$2-S_Investeringsår-$I38+1)/$K38=INT((Z$2-S_Investeringsår-$I38+1)/$K38),1,0)) *(1+IF(ISBLANK($L38),S_Inflation,$L38))^(Z$2-S_Investeringsår) *(1+IF($C38="",0%,VLOOKUP($C38,Stamdata!$D$7:$E$15,2,0)))^(Z$2-S_Investeringsår) -> 2731.223531 | AA38: =$H38 *IF(AA$2>=$I38+S_Investeringsår-1,1,0) *IF(AA$2<=$J38+S_Investeringsår-1,1,0) *IF($K38=0,0,IF((AA$2-S_Investeringsår-$I38+1)/$K38=INT((AA$2-S_Investeringsår-$I38+1)/$K38),1,0)) *(1+IF(ISBLANK($L38),S_Inflation,$L38))^(AA$2-S_Investeringsår) *(1+IF($C38="",0%,VLOOKUP($C38,Stamdata!$D$7:$E$15,2,0)))^(AA$2-S_Investeringsår) -> 2791.229059 | AB38: =$H38 *IF(AB$2>=$I38+S_Investeringsår-1,1,0) *IF(AB$2<=$J38+S_Investeringsår-1,1,0) *IF($K38=0,0,IF((AB$2-S_Investeringsår-$I38+1)/$K38=INT((AB$2-S_Investeringsår-$I38+1)/$K38),1,0)) *(1+IF(ISBLANK($L38),S_Inflation,$L38))^(AB$2-S_Investeringsår) *(1+IF($C38="",0%,VLOOKUP($C38,Stamdata!$D$7:$E$15,2,0)))^(AB$2-S_Investeringsår) -> 2852.552919 | AC38: =$H38 *IF(AC$2>=$I38+S_Investeringsår-1,1,0) *IF(AC$2<=$J38+S_Investeringsår-1,1,0) *IF($K38=0,0,IF((AC$2-S_Investeringsår-$I38+1)/$K38=INT((AC$2-S_Investeringsår-$I38+1)/$K38),1,0)) *(1+IF(ISBLANK($L38),S_Inflation,$L38))^(AC$2-S_Investeringsår) *(1+IF($C38="",0%,VLOOKUP($C38,Stamdata!$D$7:$E$15,2,0)))^(AC$2-S_Investeringsår) -> 2915.224077 | AD38: =$H38 *IF(AD$2>=$I38+S_Investeringsår-1,1,0) *IF(AD$2<=$J38+S_Investeringsår-1,1,0) *IF($K38=0,0,IF((AD$2-S_Investeringsår-$I38+1)/$K38=INT((AD$2-S_Investeringsår-$I38+1)/$K38),1,0)) *(1+IF(ISBLANK($L38),S_Inflation,$L38))^(AD$2-S_Investeringsår) *(1+IF($C38="",0%,VLOOKUP($C38,Stamdata!$D$7:$E$15,2,0)))^(AD$2-S_Investeringsår) -> 2979.272133 | AE38: =$H38 *IF(AE$2>=$I38+S_Investeringsår-1,1,0) *IF(AE$2<=$J38+S_Investeringsår-1,1,0) *IF($K38=0,0,IF((AE$2-S_Investeringsår-$I38+1)/$K38=INT((AE$2-S_Investeringsår-$I38+1)/$K38),1,0)) *(1+IF(ISBLANK($L38),S_Inflation,$L38))^(AE$2-S_Investeringsår) *(1+IF($C38="",0%,VLOOKUP($C38,Stamdata!$D$7:$E$15,2,0)))^(AE$2-S_Investeringsår) -> 3044.727338 | AF38: =$H38 *IF(AF$2>=$I38+S_Investeringsår-1,1,0) *IF(AF$2<=$J38+S_Investeringsår-1,1,0) *IF($K38=0,0,IF((AF$2-S_Investeringsår-$I38+1)/$K38=INT((AF$2-S_Investeringsår-$I38+1)/$K38),1,0)) *(1+IF(ISBLANK($L38),S_Inflation,$L38))^(AF$2-S_Investeringsår) *(1+IF($C38="",0%,VLOOKUP($C38,Stamdata!$D$7:$E$15,2,0)))^(AF$2-S_Investeringsår) -> 3111.620607 | AG38: =$H38 *IF(AG$2>=$I38+S_Investeringsår-1,1,0) *IF(AG$2<=$J38+S_Investeringsår-1,1,0) *IF($K38=0,0,IF((AG$2-S_Investeringsår-$I38+1)/$K38=INT((AG$2-S_Investeringsår-$I38+1)/$K38),1,0)) *(1+IF(ISBLANK($L38),S_Inflation,$L38))^(AG$2-S_Investeringsår) *(1+IF($C38="",0%,VLOOKUP($C38,Stamdata!$D$7:$E$15,2,0)))^(AG$2-S_Investeringsår) -> 3179.983534 | AH38: =$H38 *IF(AH$2>=$I38+S_Investeringsår-1,1,0) *IF(AH$2<=$J38+S_Investeringsår-1,1,0) *IF($K38=0,0,IF((AH$2-S_Investeringsår-$I38+1)/$K38=INT((AH$2-S_Investeringsår-$I38+1)/$K38),1,0)) *(1+IF(ISBLANK($L38),S_Inflation,$L38))^(AH$2-S_Investeringsår) *(1+IF($C38="",0%,VLOOKUP($C38,Stamdata!$D$7:$E$15,2,0)))^(AH$2-S_Investeringsår) -> 3249.848408 | AI38: =$H38 *IF(AI$2>=$I38+S_Investeringsår-1,1,0) *IF(AI$2<=$J38+S_Investeringsår-1,1,0) *IF($K38=0,0,IF((AI$2-S_Investeringsår-$I38+1)/$K38=INT((AI$2-S_Investeringsår-$I38+1)/$K38),1,0)) *(1+IF(ISBLANK($L38),S_Inflation,$L38))^(AI$2-S_Investeringsår) *(1+IF($C38="",0%,VLOOKUP($C38,Stamdata!$D$7:$E$15,2,0)))^(AI$2-S_Investeringsår) -> 3321.248227 | AJ38: =$H38 *IF(AJ$2>=$I38+S_Investeringsår-1,1,0) *IF(AJ$2<=$J38+S_Investeringsår-1,1,0) *IF($K38=0,0,IF((AJ$2-S_Investeringsår-$I38+1)/$K38=INT((AJ$2-S_Investeringsår-$I38+1)/$K38),1,0)) *(1+IF(ISBLANK($L38),S_Inflation,$L38))^(AJ$2-S_Investeringsår) *(1+IF($C38="",0%,VLOOKUP($C38,Stamdata!$D$7:$E$15,2,0)))^(AJ$2-S_Investeringsår) -> 0 | AK38: =$H38 *IF(AK$2>=$I38+S_Investeringsår-1,1,0) *IF(AK$2<=$J38+S_Investeringsår-1,1,0) *IF($K38=0,0,IF((AK$2-S_Investeringsår-$I38+1)/$K38=INT((AK$2-S_Investeringsår-$I38+1)/$K38),1,0)) *(1+IF(ISBLANK($L38),S_Inflation,$L38))^(AK$2-S_Investeringsår) *(1+IF($C38="",0%,VLOOKUP($C38,Stamdata!$D$7:$E$15,2,0)))^(AK$2-S_Investeringsår) -> 0 | AL38: =$H38 *IF(AL$2>=$I38+S_Investeringsår-1,1,0) *IF(AL$2<=$J38+S_Investeringsår-1,1,0) *IF($K38=0,0,IF((AL$2-S_Investeringsår-$I38+1)/$K38=INT((AL$2-S_Investeringsår-$I38+1)/$K38),1,0)) *(1+IF(ISBLANK($L38),S_Inflation,$L38))^(AL$2-S_Investeringsår) *(1+IF($C38="",0%,VLOOKUP($C38,Stamdata!$D$7:$E$15,2,0)))^(AL$2-S_Investeringsår) -> 0 | AM38: =$H38 *IF(AM$2>=$I38+S_Investeringsår-1,1,0) *IF(AM$2<=$J38+S_Investeringsår-1,1,0) *IF($K38=0,0,IF((AM$2-S_Investeringsår-$I38+1)/$K38=INT((AM$2-S_Investeringsår-$I38+1)/$K38),1,0)) *(1+IF(ISBLANK($L38),S_Inflation,$L38))^(AM$2-S_Investeringsår) *(1+IF($C38="",0%,VLOOKUP($C38,Stamdata!$D$7:$E$15,2,0)))^(AM$2-S_Investeringsår) -> 0 | AN38: =$H38 *IF(AN$2>=$I38+S_Investeringsår-1,1,0) *IF(AN$2<=$J38+S_Investeringsår-1,1,0) *IF($K38=0,0,IF((AN$2-S_Investeringsår-$I38+1)/$K38=INT((AN$2-S_Investeringsår-$I38+1)/$K38),1,0)) *(1+IF(ISBLANK($L38),S_Inflation,$L38))^(AN$2-S_Investeringsår) *(1+IF($C38="",0%,VLOOKUP($C38,Stamdata!$D$7:$E$15,2,0)))^(AN$2-S_Investeringsår) -> 0 | AO38: =$H38 *IF(AO$2>=$I38+S_Investeringsår-1,1,0) *IF(AO$2<=$J38+S_Investeringsår-1,1,0) *IF($K38=0,0,IF((AO$2-S_Investeringsår-$I38+1)/$K38=INT((AO$2-S_Investeringsår-$I38+1)/$K38),1,0)) *(1+IF(ISBLANK($L38),S_Inflation,$L38))^(AO$2-S_Investeringsår) *(1+IF($C38="",0%,VLOOKUP($C38,Stamdata!$D$7:$E$15,2,0)))^(AO$2-S_Investeringsår) -> 0 | AP38: =$H38 *IF(AP$2>=$I38+S_Investeringsår-1,1,0) *IF(AP$2<=$J38+S_Investeringsår-1,1,0) *IF($K38=0,0,IF((AP$2-S_Investeringsår-$I38+1)/$K38=INT((AP$2-S_Investeringsår-$I38+1)/$K38),1,0)) *(1+IF(ISBLANK($L38),S_Inflation,$L38))^(AP$2-S_Investeringsår) *(1+IF($C38="",0%,VLOOKUP($C38,Stamdata!$D$7:$E$15,2,0)))^(AP$2-S_Investeringsår) -> 0 | AQ38: =$H38 *IF(AQ$2>=$I38+S_Investeringsår-1,1,0) *IF(AQ$2<=$J38+S_Investeringsår-1,1,0) *IF($K38=0,0,IF((AQ$2-S_Investeringsår-$I38+1)/$K38=INT((AQ$2-S_Investeringsår-$I38+1)/$K38),1,0)) *(1+IF(ISBLANK($L38),S_Inflation,$L38))^(AQ$2-S_Investeringsår) *(1+IF($C38="",0%,VLOOKUP($C38,Stamdata!$D$7:$E$15,2,0)))^(AQ$2-S_Investeringsår) -> 0 | AR38: =$H38 *IF(AR$2>=$I38+S_Investeringsår-1,1,0) *IF(AR$2<=$J38+S_Investeringsår-1,1,0) *IF($K38=0,0,IF((AR$2-S_Investeringsår-$I38+1)/$K38=INT((AR$2-S_Investeringsår-$I38+1)/$K38),1,0)) *(1+IF(ISBLANK($L38),S_Inflation,$L38))^(AR$2-S_Investeringsår) *(1+IF($C38="",0%,VLOOKUP($C38,Stamdata!$D$7:$E$15,2,0)))^(AR$2-S_Investeringsår) -> 0 | AS38: =$H38 *IF(AS$2>=$I38+S_Investeringsår-1,1,0) *IF(AS$2<=$J38+S_Investeringsår-1,1,0) *IF($K38=0,0,IF((AS$2-S_Investeringsår-$I38+1)/$K38=INT((AS$2-S_Investeringsår-$I38+1)/$K38),1,0)) *(1+IF(ISBLANK($L38),S_Inflation,$L38))^(AS$2-S_Investeringsår) *(1+IF($C38="",0%,VLOOKUP($C38,Stamdata!$D$7:$E$15,2,0)))^(AS$2-S_Investeringsår) -> 0 | AT38: =$H38 *IF(AT$2>=$I38+S_Investeringsår-1,1,0) *IF(AT$2<=$J38+S_Investeringsår-1,1,0) *IF($K38=0,0,IF((AT$2-S_Investeringsår-$I38+1)/$K38=INT((AT$2-S_Investeringsår-$I38+1)/$K38),1,0)) *(1+IF(ISBLANK($L38),S_Inflation,$L38))^(AT$2-S_Investeringsår) *(1+IF($C38="",0%,VLOOKUP($C38,Stamdata!$D$7:$E$15,2,0)))^(AT$2-S_Investeringsår) -> 0 | AU38: =$H38 *IF(AU$2>=$I38+S_Investeringsår-1,1,0) *IF(AU$2<=$J38+S_Investeringsår-1,1,0) *IF($K38=0,0,IF((AU$2-S_Investeringsår-$I38+1)/$K38=INT((AU$2-S_Investeringsår-$I38+1)/$K38),1,0)) *(1+IF(ISBLANK($L38),S_Inflation,$L38))^(AU$2-S_Investeringsår) *(1+IF($C38="",0%,VLOOKUP($C38,Stamdata!$D$7:$E$15,2,0)))^(AU$2-S_Investeringsår) -> 0 | AV38: =$H38 *IF(AV$2>=$I38+S_Investeringsår-1,1,0) *IF(AV$2<=$J38+S_Investeringsår-1,1,0) *IF($K38=0,0,IF((AV$2-S_Investeringsår-$I38+1)/$K38=INT((AV$2-S_Investeringsår-$I38+1)/$K38),1,0)) *(1+IF(ISBLANK($L38),S_Inflation,$L38))^(AV$2-S_Investeringsår) *(1+IF($C38="",0%,VLOOKUP($C38,Stamdata!$D$7:$E$15,2,0)))^(AV$2-S_Investeringsår) -> 0 | AW38: =$H38 *IF(AW$2>=$I38+S_Investeringsår-1,1,0) *IF(AW$2<=$J38+S_Investeringsår-1,1,0) *IF($K38=0,0,IF((AW$2-S_Investeringsår-$I38+1)/$K38=INT((AW$2-S_Investeringsår-$I38+1)/$K38),1,0)) *(1+IF(ISBLANK($L38),S_Inflation,$L38))^(AW$2-S_Investeringsår) *(1+IF($C38="",0%,VLOOKUP($C38,Stamdata!$D$7:$E$15,2,0)))^(AW$2-S_Investeringsår) -> 0 | AX38: =$H38 *IF(AX$2>=$I38+S_Investeringsår-1,1,0) *IF(AX$2<=$J38+S_Investeringsår-1,1,0) *IF($K38=0,0,IF((AX$2-S_Investeringsår-$I38+1)/$K38=INT((AX$2-S_Investeringsår-$I38+1)/$K38),1,0)) *(1+IF(ISBLANK($L38),S_Inflation,$L38))^(AX$2-S_Investeringsår) *(1+IF($C38="",0%,VLOOKUP($C38,Stamdata!$D$7:$E$15,2,0)))^(AX$2-S_Investeringsår) -> 0 | AY38: =$H38 *IF(AY$2>=$I38+S_Investeringsår-1,1,0) *IF(AY$2<=$J38+S_Investeringsår-1,1,0) *IF($K38=0,0,IF((AY$2-S_Investeringsår-$I38+1)/$K38=INT((AY$2-S_Investeringsår-$I38+1)/$K38),1,0)) *(1+IF(ISBLANK($L38),S_Inflation,$L38))^(AY$2-S_Investeringsår) *(1+IF($C38="",0%,VLOOKUP($C38,Stamdata!$D$7:$E$15,2,0)))^(AY$2-S_Investeringsår) -> 0 | BB38: =SUM(BD38:CH38) -> 21.48857806 | BD38: =U38/S_Areal -> 1.225 | BE38: 1.251913495 | BF38: 1.279418285 | BG38: 1.30752736 | BH38: 1.336253998 | BI38: 1.365611766 | BJ38: 1.395614529 | BK38: 1.42627646 | BL38: 1.457612039 | BM38: 1.489636067 | BN38: =AE38/S_Areal -> 1.522363669 | BO38: 1.555810303 | BP38: 1.589991767 | BQ38: 1.624924204 | BR38: 1.660624114 | BS38: 0 | BT38: 0 | BU38: 0 | BV38: 0 | BW38: 0 | BX38: =AO38/S_Areal -> 0 | BY38: 0 | BZ38: 0 | CA38: 0 | CB38: 0 | CC38: 0 | CD38: 0 | CE38: 0 | CF38: 0 | CG38: 0 | CH38: =AY38/S_Areal -> 0
B39: Udskiftning af fast vindue af træ/alu, 1.188 mm x 1.488 mm, lavenergi | C39: Fjernvarme | D39: Fjernvarme_1 | E39: 0.7 | F39: =IF(ISBLANK(D39),"",VLOOKUP(D39,S_forsyningsoplysninger,5,0)) -> kr/kWh | G39: 29400 | H39: =IF(ISBLANK(D39),0,G39*E39) -> 20580 | I39: 16 | J39: 30 | K39: 1 | L39: 0.018 | M39: 0.0039 | P39: =T39 -> 500138.6799 | T39: 500138.6799 | U39: =$H39 *IF(U$2>=$I39+S_Investeringsår-1,1,0) *IF(U$2<=$J39+S_Investeringsår-1,1,0) *IF($K39=0,0,IF((U$2-S_Investeringsår-$I39+1)/$K39=INT((U$2-S_Investeringsår-$I39+1)/$K39),1,0)) *(1+IF(ISBLANK($L39),S_Inflation,$L39))^(U$2-S_Investeringsår) *(1+IF($C39="",0%,VLOOKUP($C39,Stamdata!$D$7:$E$15,2,0)))^(U$2-S_Investeringsår) -> 0 | V39: =$H39 *IF(V$2>=$I39+S_Investeringsår-1,1,0) *IF(V$2<=$J39+S_Investeringsår-1,1,0) *IF($K39=0,0,IF((V$2-S_Investeringsår-$I39+1)/$K39=INT((V$2-S_Investeringsår-$I39+1)/$K39),1,0)) *(1+IF(ISBLANK($L39),S_Inflation,$L39))^(V$2-S_Investeringsår) *(1+IF($C39="",0%,VLOOKUP($C39,Stamdata!$D$7:$E$15,2,0)))^(V$2-S_Investeringsår) -> 0 | W39: =$H39 *IF(W$2>=$I39+S_Investeringsår-1,1,0) *IF(W$2<=$J39+S_Investeringsår-1,1,0) *IF($K39=0,0,IF((W$2-S_Investeringsår-$I39+1)/$K39=INT((W$2-S_Investeringsår-$I39+1)/$K39),1,0)) *(1+IF(ISBLANK($L39),S_Inflation,$L39))^(W$2-S_Investeringsår) *(1+IF($C39="",0%,VLOOKUP($C39,Stamdata!$D$7:$E$15,2,0)))^(W$2-S_Investeringsår) -> 0 | X39: =$H39 *IF(X$2>=$I39+S_Investeringsår-1,1,0) *IF(X$2<=$J39+S_Investeringsår-1,1,0) *IF($K39=0,0,IF((X$2-S_Investeringsår-$I39+1)/$K39=INT((X$2-S_Investeringsår-$I39+1)/$K39),1,0)) *(1+IF(ISBLANK($L39),S_Inflation,$L39))^(X$2-S_Investeringsår) *(1+IF($C39="",0%,VLOOKUP($C39,Stamdata!$D$7:$E$15,2,0)))^(X$2-S_Investeringsår) -> 0 | Y39: =$H39 *IF(Y$2>=$I39+S_Investeringsår-1,1,0) *IF(Y$2<=$J39+S_Investeringsår-1,1,0) *IF($K39=0,0,IF((Y$2-S_Investeringsår-$I39+1)/$K39=INT((Y$2-S_Investeringsår-$I39+1)/$K39),1,0)) *(1+IF(ISBLANK($L39),S_Inflation,$L39))^(Y$2-S_Investeringsår) *(1+IF($C39="",0%,VLOOKUP($C39,Stamdata!$D$7:$E$15,2,0)))^(Y$2-S_Investeringsår) -> 0 | Z39: =$H39 *IF(Z$2>=$I39+S_Investeringsår-1,1,0) *IF(Z$2<=$J39+S_Investeringsår-1,1,0) *IF($K39=0,0,IF((Z$2-S_Investeringsår-$I39+1)/$K39=INT((Z$2-S_Investeringsår-$I39+1)/$K39),1,0)) *(1+IF(ISBLANK($L39),S_Inflation,$L39))^(Z$2-S_Investeringsår) *(1+IF($C39="",0%,VLOOKUP($C39,Stamdata!$D$7:$E$15,2,0)))^(Z$2-S_Investeringsår) -> 0 | AA39: =$H39 *IF(AA$2>=$I39+S_Investeringsår-1,1,0) *IF(AA$2<=$J39+S_Investeringsår-1,1,0) *IF($K39=0,0,IF((AA$2-S_Investeringsår-$I39+1)/$K39=INT((AA$2-S_Investeringsår-$I39+1)/$K39),1,0)) *(1+IF(ISBLANK($L39),S_Inflation,$L39))^(AA$2-S_Investeringsår) *(1+IF($C39="",0%,VLOOKUP($C39,Stamdata!$D$7:$E$15,2,0)))^(AA$2-S_Investeringsår) -> 0 | AB39: =$H39 *IF(AB$2>=$I39+S_Investeringsår-1,1,0) *IF(AB$2<=$J39+S_Investeringsår-1,1,0) *IF($K39=0,0,IF((AB$2-S_Investeringsår-$I39+1)/$K39=INT((AB$2-S_Investeringsår-$I39+1)/$K39),1,0)) *(1+IF(ISBLANK($L39),S_Inflation,$L39))^(AB$2-S_Investeringsår) *(1+IF($C39="",0%,VLOOKUP($C39,Stamdata!$D$7:$E$15,2,0)))^(AB$2-S_Investeringsår) -> 0 | AC39: =$H39 *IF(AC$2>=$I39+S_Investeringsår-1,1,0) *IF(AC$2<=$J39+S_Investeringsår-1,1,0) *IF($K39=0,0,IF((AC$2-S_Investeringsår-$I39+1)/$K39=INT((AC$2-S_Investeringsår-$I39+1)/$K39),1,0)) *(1+IF(ISBLANK($L39),S_Inflation,$L39))^(AC$2-S_Investeringsår) *(1+IF($C39="",0%,VLOOKUP($C39,Stamdata!$D$7:$E$15,2,0)))^(AC$2-S_Investeringsår) -> 0 | AD39: =$H39 *IF(AD$2>=$I39+S_Investeringsår-1,1,0) *IF(AD$2<=$J39+S_Investeringsår-1,1,0) *IF($K39=0,0,IF((AD$2-S_Investeringsår-$I39+1)/$K39=INT((AD$2-S_Investeringsår-$I39+1)/$K39),1,0)) *(1+IF(ISBLANK($L39),S_Inflation,$L39))^(AD$2-S_Investeringsår) *(1+IF($C39="",0%,VLOOKUP($C39,Stamdata!$D$7:$E$15,2,0)))^(AD$2-S_Investeringsår) -> 0 | AE39: =$H39 *IF(AE$2>=$I39+S_Investeringsår-1,1,0) *IF(AE$2<=$J39+S_Investeringsår-1,1,0) *IF($K39=0,0,IF((AE$2-S_Investeringsår-$I39+1)/$K39=INT((AE$2-S_Investeringsår-$I39+1)/$K39),1,0)) *(1+IF(ISBLANK($L39),S_Inflation,$L39))^(AE$2-S_Investeringsår) *(1+IF($C39="",0%,VLOOKUP($C39,Stamdata!$D$7:$E$15,2,0)))^(AE$2-S_Investeringsår) -> 0 | AF39: =$H39 *IF(AF$2>=$I39+S_Investeringsår-1,1,0) *IF(AF$2<=$J39+S_Investeringsår-1,1,0) *IF($K39=0,0,IF((AF$2-S_Investeringsår-$I39+1)/$K39=INT((AF$2-S_Investeringsår-$I39+1)/$K39),1,0)) *(1+IF(ISBLANK($L39),S_Inflation,$L39))^(AF$2-S_Investeringsår) *(1+IF($C39="",0%,VLOOKUP($C39,Stamdata!$D$7:$E$15,2,0)))^(AF$2-S_Investeringsår) -> 0 | AG39: =$H39 *IF(AG$2>=$I39+S_Investeringsår-1,1,0) *IF(AG$2<=$J39+S_Investeringsår-1,1,0) *IF($K39=0,0,IF((AG$2-S_Investeringsår-$I39+1)/$K39=INT((AG$2-S_Investeringsår-$I39+1)/$K39),1,0)) *(1+IF(ISBLANK($L39),S_Inflation,$L39))^(AG$2-S_Investeringsår) *(1+IF($C39="",0%,VLOOKUP($C39,Stamdata!$D$7:$E$15,2,0)))^(AG$2-S_Investeringsår) -> 0 | AH39: =$H39 *IF(AH$2>=$I39+S_Investeringsår-1,1,0) *IF(AH$2<=$J39+S_Investeringsår-1,1,0) *IF($K39=0,0,IF((AH$2-S_Investeringsår-$I39+1)/$K39=INT((AH$2-S_Investeringsår-$I39+1)/$K39),1,0)) *(1+IF(ISBLANK($L39),S_Inflation,$L39))^(AH$2-S_Investeringsår) *(1+IF($C39="",0%,VLOOKUP($C39,Stamdata!$D$7:$E$15,2,0)))^(AH$2-S_Investeringsår) -> 0 | AI39: =$H39 *IF(AI$2>=$I39+S_Investeringsår-1,1,0) *IF(AI$2<=$J39+S_Investeringsår-1,1,0) *IF($K39=0,0,IF((AI$2-S_Investeringsår-$I39+1)/$K39=INT((AI$2-S_Investeringsår-$I39+1)/$K39),1,0)) *(1+IF(ISBLANK($L39),S_Inflation,$L39))^(AI$2-S_Investeringsår) *(1+IF($C39="",0%,VLOOKUP($C39,Stamdata!$D$7:$E$15,2,0)))^(AI$2-S_Investeringsår) -> 0 | AJ39: =$H39 *IF(AJ$2>=$I39+S_Investeringsår-1,1,0) *IF(AJ$2<=$J39+S_Investeringsår-1,1,0) *IF($K39=0,0,IF((AJ$2-S_Investeringsår-$I39+1)/$K39=INT((AJ$2-S_Investeringsår-$I39+1)/$K39),1,0)) *(1+IF(ISBLANK($L39),S_Inflation,$L39))^(AJ$2-S_Investeringsår) *(1+IF($C39="",0%,VLOOKUP($C39,Stamdata!$D$7:$E$15,2,0)))^(AJ$2-S_Investeringsår) -> 28511.42041 | AK39: =$H39 *IF(AK$2>=$I39+S_Investeringsår-1,1,0) *IF(AK$2<=$J39+S_Investeringsår-1,1,0) *IF($K39=0,0,IF((AK$2-S_Investeringsår-$I39+1)/$K39=INT((AK$2-S_Investeringsår-$I39+1)/$K39),1,0)) *(1+IF(ISBLANK($L39),S_Inflation,$L39))^(AK$2-S_Investeringsår) *(1+IF($C39="",0%,VLOOKUP($C39,Stamdata!$D$7:$E$15,2,0)))^(AK$2-S_Investeringsår) -> 29137.82202 | AL39: =$H39 *IF(AL$2>=$I39+S_Investeringsår-1,1,0) *IF(AL$2<=$J39+S_Investeringsår-1,1,0) *IF($K39=0,0,IF((AL$2-S_Investeringsår-$I39+1)/$K39=INT((AL$2-S_Investeringsår-$I39+1)/$K39),1,0)) *(1+IF(ISBLANK($L39),S_Inflation,$L39))^(AL$2-S_Investeringsår) *(1+IF($C39="",0%,VLOOKUP($C39,Stamdata!$D$7:$E$15,2,0)))^(AL$2-S_Investeringsår) -> 29777.98579 | AM39: =$H39 *IF(AM$2>=$I39+S_Investeringsår-1,1,0) *IF(AM$2<=$J39+S_Investeringsår-1,1,0) *IF($K39=0,0,IF((AM$2-S_Investeringsår-$I39+1)/$K39=INT((AM$2-S_Investeringsår-$I39+1)/$K39),1,0)) *(1+IF(ISBLANK($L39),S_Inflation,$L39))^(AM$2-S_Investeringsår) *(1+IF($C39="",0%,VLOOKUP($C39,Stamdata!$D$7:$E$15,2,0)))^(AM$2-S_Investeringsår) -> 30432.2141 | AN39: =$H39 *IF(AN$2>=$I39+S_Investeringsår-1,1,0) *IF(AN$2<=$J39+S_Investeringsår-1,1,0) *IF($K39=0,0,IF((AN$2-S_Investeringsår-$I39+1)/$K39=INT((AN$2-S_Investeringsår-$I39+1)/$K39),1,0)) *(1+IF(ISBLANK($L39),S_Inflation,$L39))^(AN$2-S_Investeringsår) *(1+IF($C39="",0%,VLOOKUP($C39,Stamdata!$D$7:$E$15,2,0)))^(AN$2-S_Investeringsår) -> 31100.81593 | AO39: =$H39 *IF(AO$2>=$I39+S_Investeringsår-1,1,0) *IF(AO$2<=$J39+S_Investeringsår-1,1,0) *IF($K39=0,0,IF((AO$2-S_Investeringsår-$I39+1)/$K39=INT((AO$2-S_Investeringsår-$I39+1)/$K39),1,0)) *(1+IF(ISBLANK($L39),S_Inflation,$L39))^(AO$2-S_Investeringsår) *(1+IF($C39="",0%,VLOOKUP($C39,Stamdata!$D$7:$E$15,2,0)))^(AO$2-S_Investeringsår) -> 31784.10707 | AP39: =$H39 *IF(AP$2>=$I39+S_Investeringsår-1,1,0) *IF(AP$2<=$J39+S_Investeringsår-1,1,0) *IF($K39=0,0,IF((AP$2-S_Investeringsår-$I39+1)/$K39=INT((AP$2-S_Investeringsår-$I39+1)/$K39),1,0)) *(1+IF(ISBLANK($L39),S_Inflation,$L39))^(AP$2-S_Investeringsår) *(1+IF($C39="",0%,VLOOKUP($C39,Stamdata!$D$7:$E$15,2,0)))^(AP$2-S_Investeringsår) -> 32482.41026 | AQ39: =$H39 *IF(AQ$2>=$I39+S_Investeringsår-1,1,0) *IF(AQ$2<=$J39+S_Investeringsår-1,1,0) *IF($K39=0,0,IF((AQ$2-S_Investeringsår-$I39+1)/$K39=INT((AQ$2-S_Investeringsår-$I39+1)/$K39),1,0)) *(1+IF(ISBLANK($L39),S_Inflation,$L39))^(AQ$2-S_Investeringsår) *(1+IF($C39="",0%,VLOOKUP($C39,Stamdata!$D$7:$E$15,2,0)))^(AQ$2-S_Investeringsår) -> 33196.05531 | AR39: =$H39 *IF(AR$2>=$I39+S_Investeringsår-1,1,0) *IF(AR$2<=$J39+S_Investeringsår-1,1,0) *IF($K39=0,0,IF((AR$2-S_Investeringsår-$I39+1)/$K39=INT((AR$2-S_Investeringsår-$I39+1)/$K39),1,0)) *(1+IF(ISBLANK($L39),S_Inflation,$L39))^(AR$2-S_Investeringsår) *(1+IF($C39="",0%,VLOOKUP($C39,Stamdata!$D$7:$E$15,2,0)))^(AR$2-S_Investeringsår) -> 33925.37929 | AS39: =$H39 *IF(AS$2>=$I39+S_Investeringsår-1,1,0) *IF(AS$2<=$J39+S_Investeringsår-1,1,0) *IF($K39=0,0,IF((AS$2-S_Investeringsår-$I39+1)/$K39=INT((AS$2-S_Investeringsår-$I39+1)/$K39),1,0)) *(1+IF(ISBLANK($L39),S_Inflation,$L39))^(AS$2-S_Investeringsår) *(1+IF($C39="",0%,VLOOKUP($C39,Stamdata!$D$7:$E$15,2,0)))^(AS$2-S_Investeringsår) -> 34670.72665 | AT39: =$H39 *IF(AT$2>=$I39+S_Investeringsår-1,1,0) *IF(AT$2<=$J39+S_Investeringsår-1,1,0) *IF($K39=0,0,IF((AT$2-S_Investeringsår-$I39+1)/$K39=INT((AT$2-S_Investeringsår-$I39+1)/$K39),1,0)) *(1+IF(ISBLANK($L39),S_Inflation,$L39))^(AT$2-S_Investeringsår) *(1+IF($C39="",0%,VLOOKUP($C39,Stamdata!$D$7:$E$15,2,0)))^(AT$2-S_Investeringsår) -> 35432.44945 | AU39: =$H39 *IF(AU$2>=$I39+S_Investeringsår-1,1,0) *IF(AU$2<=$J39+S_Investeringsår-1,1,0) *IF($K39=0,0,IF((AU$2-S_Investeringsår-$I39+1)/$K39=INT((AU$2-S_Investeringsår-$I39+1)/$K39),1,0)) *(1+IF(ISBLANK($L39),S_Inflation,$L39))^(AU$2-S_Investeringsår) *(1+IF($C39="",0%,VLOOKUP($C39,Stamdata!$D$7:$E$15,2,0)))^(AU$2-S_Investeringsår) -> 36210.90745 | AV39: =$H39 *IF(AV$2>=$I39+S_Investeringsår-1,1,0) *IF(AV$2<=$J39+S_Investeringsår-1,1,0) *IF($K39=0,0,IF((AV$2-S_Investeringsår-$I39+1)/$K39=INT((AV$2-S_Investeringsår-$I39+1)/$K39),1,0)) *(1+IF(ISBLANK($L39),S_Inflation,$L39))^(AV$2-S_Investeringsår) *(1+IF($C39="",0%,VLOOKUP($C39,Stamdata!$D$7:$E$15,2,0)))^(AV$2-S_Investeringsår) -> 37006.46833 | AW39: =$H39 *IF(AW$2>=$I39+S_Investeringsår-1,1,0) *IF(AW$2<=$J39+S_Investeringsår-1,1,0) *IF($K39=0,0,IF((AW$2-S_Investeringsår-$I39+1)/$K39=INT((AW$2-S_Investeringsår-$I39+1)/$K39),1,0)) *(1+IF(ISBLANK($L39),S_Inflation,$L39))^(AW$2-S_Investeringsår) *(1+IF($C39="",0%,VLOOKUP($C39,Stamdata!$D$7:$E$15,2,0)))^(AW$2-S_Investeringsår) -> 37819.50784 | AX39: =$H39 *IF(AX$2>=$I39+S_Investeringsår-1,1,0) *IF(AX$2<=$J39+S_Investeringsår-1,1,0) *IF($K39=0,0,IF((AX$2-S_Investeringsår-$I39+1)/$K39=INT((AX$2-S_Investeringsår-$I39+1)/$K39),1,0)) *(1+IF(ISBLANK($L39),S_Inflation,$L39))^(AX$2-S_Investeringsår) *(1+IF($C39="",0%,VLOOKUP($C39,Stamdata!$D$7:$E$15,2,0)))^(AX$2-S_Investeringsår) -> 38650.41 | AY39: =$H39 *IF(AY$2>=$I39+S_Investeringsår-1,1,0) *IF(AY$2<=$J39+S_Investeringsår-1,1,0) *IF($K39=0,0,IF((AY$2-S_Investeringsår-$I39+1)/$K39=INT((AY$2-S_Investeringsår-$I39+1)/$K39),1,0)) *(1+IF(ISBLANK($L39),S_Inflation,$L39))^(AY$2-S_Investeringsår) *(1+IF($C39="",0%,VLOOKUP($C39,Stamdata!$D$7:$E$15,2,0)))^(AY$2-S_Investeringsår) -> 0 | BB39: 250.06934 | BD39: 0 | BE39: 0 | BF39: 0 | BG39: 0 | BH39: 0 | BI39: 0 | BJ39: 0 | BK39: 0 | BL39: 0 | BM39: 0 | BN39: 0 | BO39: 0 | BP39: 0 | BQ39: 0 | BR39: 0 | BS39: 14.2557102 | BT39: 14.56891101 | BU39: 14.8889929 | BV39: 15.21610705 | BW39: 15.55040796 | BX39: 15.89205354 | BY39: 16.24120513 | BZ39: 16.59802766 | CA39: 16.96268964 | CB39: 17.33536333 | CC39: 17.71622473 | CD39: 18.10545373 | CE39: 18.50323417 | CF39: 18.90975392 | CG39: 19.325205 | CH39: 0
B40: - | G40: 0 | H40: 0 | I40: 0 | J40: 0 | K40: 0 | L40: 0.018 | M40: 0 | P40: 0 | T40: 0 | U40: =$H40 *IF(U$2>=$I40+S_Investeringsår-1,1,0) *IF(U$2<=$J40+S_Investeringsår-1,1,0) *IF($K40=0,0,IF((U$2-S_Investeringsår-$I40+1)/$K40=INT((U$2-S_Investeringsår-$I40+1)/$K40),1,0)) *(1+IF(ISBLANK($L40),S_Inflation,$L40))^(U$2-S_Investeringsår) *(1+IF($C40="",0%,VLOOKUP($C40,Stamdata!$D$7:$E$15,2,0)))^(U$2-S_Investeringsår) -> 0 | V40: =$H40 *IF(V$2>=$I40+S_Investeringsår-1,1,0) *IF(V$2<=$J40+S_Investeringsår-1,1,0) *IF($K40=0,0,IF((V$2-S_Investeringsår-$I40+1)/$K40=INT((V$2-S_Investeringsår-$I40+1)/$K40),1,0)) *(1+IF(ISBLANK($L40),S_Inflation,$L40))^(V$2-S_Investeringsår) *(1+IF($C40="",0%,VLOOKUP($C40,Stamdata!$D$7:$E$15,2,0)))^(V$2-S_Investeringsår) -> 0 | W40: =$H40 *IF(W$2>=$I40+S_Investeringsår-1,1,0) *IF(W$2<=$J40+S_Investeringsår-1,1,0) *IF($K40=0,0,IF((W$2-S_Investeringsår-$I40+1)/$K40=INT((W$2-S_Investeringsår-$I40+1)/$K40),1,0)) *(1+IF(ISBLANK($L40),S_Inflation,$L40))^(W$2-S_Investeringsår) *(1+IF($C40="",0%,VLOOKUP($C40,Stamdata!$D$7:$E$15,2,0)))^(W$2-S_Investeringsår) -> 0 | X40: =$H40 *IF(X$2>=$I40+S_Investeringsår-1,1,0) *IF(X$2<=$J40+S_Investeringsår-1,1,0) *IF($K40=0,0,IF((X$2-S_Investeringsår-$I40+1)/$K40=INT((X$2-S_Investeringsår-$I40+1)/$K40),1,0)) *(1+IF(ISBLANK($L40),S_Inflation,$L40))^(X$2-S_Investeringsår) *(1+IF($C40="",0%,VLOOKUP($C40,Stamdata!$D$7:$E$15,2,0)))^(X$2-S_Investeringsår) -> 0 | Y40: =$H40 *IF(Y$2>=$I40+S_Investeringsår-1,1,0) *IF(Y$2<=$J40+S_Investeringsår-1,1,0) *IF($K40=0,0,IF((Y$2-S_Investeringsår-$I40+1)/$K40=INT((Y$2-S_Investeringsår-$I40+1)/$K40),1,0)) *(1+IF(ISBLANK($L40),S_Inflation,$L40))^(Y$2-S_Investeringsår) *(1+IF($C40="",0%,VLOOKUP($C40,Stamdata!$D$7:$E$15,2,0)))^(Y$2-S_Investeringsår) -> 0 | Z40: =$H40 *IF(Z$2>=$I40+S_Investeringsår-1,1,0) *IF(Z$2<=$J40+S_Investeringsår-1,1,0) *IF($K40=0,0,IF((Z$2-S_Investeringsår-$I40+1)/$K40=INT((Z$2-S_Investeringsår-$I40+1)/$K40),1,0)) *(1+IF(ISBLANK($L40),S_Inflation,$L40))^(Z$2-S_Investeringsår) *(1+IF($C40="",0%,VLOOKUP($C40,Stamdata!$D$7:$E$15,2,0)))^(Z$2-S_Investeringsår) -> 0 | AA40: =$H40 *IF(AA$2>=$I40+S_Investeringsår-1,1,0) *IF(AA$2<=$J40+S_Investeringsår-1,1,0) *IF($K40=0,0,IF((AA$2-S_Investeringsår-$I40+1)/$K40=INT((AA$2-S_Investeringsår-$I40+1)/$K40),1,0)) *(1+IF(ISBLANK($L40),S_Inflation,$L40))^(AA$2-S_Investeringsår) *(1+IF($C40="",0%,VLOOKUP($C40,Stamdata!$D$7:$E$15,2,0)))^(AA$2-S_Investeringsår) -> 0 | AB40: =$H40 *IF(AB$2>=$I40+S_Investeringsår-1,1,0) *IF(AB$2<=$J40+S_Investeringsår-1,1,0) *IF($K40=0,0,IF((AB$2-S_Investeringsår-$I40+1)/$K40=INT((AB$2-S_Investeringsår-$I40+1)/$K40),1,0)) *(1+IF(ISBLANK($L40),S_Inflation,$L40))^(AB$2-S_Investeringsår) *(1+IF($C40="",0%,VLOOKUP($C40,Stamdata!$D$7:$E$15,2,0)))^(AB$2-S_Investeringsår) -> 0 | AC40: =$H40 *IF(AC$2>=$I40+S_Investeringsår-1,1,0) *IF(AC$2<=$J40+S_Investeringsår-1,1,0) *IF($K40=0,0,IF((AC$2-S_Investeringsår-$I40+1)/$K40=INT((AC$2-S_Investeringsår-$I40+1)/$K40),1,0)) *(1+IF(ISBLANK($L40),S_Inflation,$L40))^(AC$2-S_Investeringsår) *(1+IF($C40="",0%,VLOOKUP($C40,Stamdata!$D$7:$E$15,2,0)))^(AC$2-S_Investeringsår) -> 0 | AD40: =$H40 *IF(AD$2>=$I40+S_Investeringsår-1,1,0) *IF(AD$2<=$J40+S_Investeringsår-1,1,0) *IF($K40=0,0,IF((AD$2-S_Investeringsår-$I40+1)/$K40=INT((AD$2-S_Investeringsår-$I40+1)/$K40),1,0)) *(1+IF(ISBLANK($L40),S_Inflation,$L40))^(AD$2-S_Investeringsår) *(1+IF($C40="",0%,VLOOKUP($C40,Stamdata!$D$7:$E$15,2,0)))^(AD$2-S_Investeringsår) -> 0 | AE40: =$H40 *IF(AE$2>=$I40+S_Investeringsår-1,1,0) *IF(AE$2<=$J40+S_Investeringsår-1,1,0) *IF($K40=0,0,IF((AE$2-S_Investeringsår-$I40+1)/$K40=INT((AE$2-S_Investeringsår-$I40+1)/$K40),1,0)) *(1+IF(ISBLANK($L40),S_Inflation,$L40))^(AE$2-S_Investeringsår) *(1+IF($C40="",0%,VLOOKUP($C40,Stamdata!$D$7:$E$15,2,0)))^(AE$2-S_Investeringsår) -> 0 | AF40: =$H40 *IF(AF$2>=$I40+S_Investeringsår-1,1,0) *IF(AF$2<=$J40+S_Investeringsår-1,1,0) *IF($K40=0,0,IF((AF$2-S_Investeringsår-$I40+1)/$K40=INT((AF$2-S_Investeringsår-$I40+1)/$K40),1,0)) *(1+IF(ISBLANK($L40),S_Inflation,$L40))^(AF$2-S_Investeringsår) *(1+IF($C40="",0%,VLOOKUP($C40,Stamdata!$D$7:$E$15,2,0)))^(AF$2-S_Investeringsår) -> 0 | AG40: =$H40 *IF(AG$2>=$I40+S_Investeringsår-1,1,0) *IF(AG$2<=$J40+S_Investeringsår-1,1,0) *IF($K40=0,0,IF((AG$2-S_Investeringsår-$I40+1)/$K40=INT((AG$2-S_Investeringsår-$I40+1)/$K40),1,0)) *(1+IF(ISBLANK($L40),S_Inflation,$L40))^(AG$2-S_Investeringsår) *(1+IF($C40="",0%,VLOOKUP($C40,Stamdata!$D$7:$E$15,2,0)))^(AG$2-S_Investeringsår) -> 0 | AH40: =$H40 *IF(AH$2>=$I40+S_Investeringsår-1,1,0) *IF(AH$2<=$J40+S_Investeringsår-1,1,0) *IF($K40=0,0,IF((AH$2-S_Investeringsår-$I40+1)/$K40=INT((AH$2-S_Investeringsår-$I40+1)/$K40),1,0)) *(1+IF(ISBLANK($L40),S_Inflation,$L40))^(AH$2-S_Investeringsår) *(1+IF($C40="",0%,VLOOKUP($C40,Stamdata!$D$7:$E$15,2,0)))^(AH$2-S_Investeringsår) -> 0 | AI40: =$H40 *IF(AI$2>=$I40+S_Investeringsår-1,1,0) *IF(AI$2<=$J40+S_Investeringsår-1,1,0) *IF($K40=0,0,IF((AI$2-S_Investeringsår-$I40+1)/$K40=INT((AI$2-S_Investeringsår-$I40+1)/$K40),1,0)) *(1+IF(ISBLANK($L40),S_Inflation,$L40))^(AI$2-S_Investeringsår) *(1+IF($C40="",0%,VLOOKUP($C40,Stamdata!$D$7:$E$15,2,0)))^(AI$2-S_Investeringsår) -> 0 | AJ40: =$H40 *IF(AJ$2>=$I40+S_Investeringsår-1,1,0) *IF(AJ$2<=$J40+S_Investeringsår-1,1,0) *IF($K40=0,0,IF((AJ$2-S_Investeringsår-$I40+1)/$K40=INT((AJ$2-S_Investeringsår-$I40+1)/$K40),1,0)) *(1+IF(ISBLANK($L40),S_Inflation,$L40))^(AJ$2-S_Investeringsår) *(1+IF($C40="",0%,VLOOKUP($C40,Stamdata!$D$7:$E$15,2,0)))^(AJ$2-S_Investeringsår) -> 0 | AK40: =$H40 *IF(AK$2>=$I40+S_Investeringsår-1,1,0) *IF(AK$2<=$J40+S_Investeringsår-1,1,0) *IF($K40=0,0,IF((AK$2-S_Investeringsår-$I40+1)/$K40=INT((AK$2-S_Investeringsår-$I40+1)/$K40),1,0)) *(1+IF(ISBLANK($L40),S_Inflation,$L40))^(AK$2-S_Investeringsår) *(1+IF($C40="",0%,VLOOKUP($C40,Stamdata!$D$7:$E$15,2,0)))^(AK$2-S_Investeringsår) -> 0 | AL40: =$H40 *IF(AL$2>=$I40+S_Investeringsår-1,1,0) *IF(AL$2<=$J40+S_Investeringsår-1,1,0) *IF($K40=0,0,IF((AL$2-S_Investeringsår-$I40+1)/$K40=INT((AL$2-S_Investeringsår-$I40+1)/$K40),1,0)) *(1+IF(ISBLANK($L40),S_Inflation,$L40))^(AL$2-S_Investeringsår) *(1+IF($C40="",0%,VLOOKUP($C40,Stamdata!$D$7:$E$15,2,0)))^(AL$2-S_Investeringsår) -> 0 | AM40: =$H40 *IF(AM$2>=$I40+S_Investeringsår-1,1,0) *IF(AM$2<=$J40+S_Investeringsår-1,1,0) *IF($K40=0,0,IF((AM$2-S_Investeringsår-$I40+1)/$K40=INT((AM$2-S_Investeringsår-$I40+1)/$K40),1,0)) *(1+IF(ISBLANK($L40),S_Inflation,$L40))^(AM$2-S_Investeringsår) *(1+IF($C40="",0%,VLOOKUP($C40,Stamdata!$D$7:$E$15,2,0)))^(AM$2-S_Investeringsår) -> 0 | AN40: =$H40 *IF(AN$2>=$I40+S_Investeringsår-1,1,0) *IF(AN$2<=$J40+S_Investeringsår-1,1,0) *IF($K40=0,0,IF((AN$2-S_Investeringsår-$I40+1)/$K40=INT((AN$2-S_Investeringsår-$I40+1)/$K40),1,0)) *(1+IF(ISBLANK($L40),S_Inflation,$L40))^(AN$2-S_Investeringsår) *(1+IF($C40="",0%,VLOOKUP($C40,Stamdata!$D$7:$E$15,2,0)))^(AN$2-S_Investeringsår) -> 0 | AO40: =$H40 *IF(AO$2>=$I40+S_Investeringsår-1,1,0) *IF(AO$2<=$J40+S_Investeringsår-1,1,0) *IF($K40=0,0,IF((AO$2-S_Investeringsår-$I40+1)/$K40=INT((AO$2-S_Investeringsår-$I40+1)/$K40),1,0)) *(1+IF(ISBLANK($L40),S_Inflation,$L40))^(AO$2-S_Investeringsår) *(1+IF($C40="",0%,VLOOKUP($C40,Stamdata!$D$7:$E$15,2,0)))^(AO$2-S_Investeringsår) -> 0 | AP40: =$H40 *IF(AP$2>=$I40+S_Investeringsår-1,1,0) *IF(AP$2<=$J40+S_Investeringsår-1,1,0) *IF($K40=0,0,IF((AP$2-S_Investeringsår-$I40+1)/$K40=INT((AP$2-S_Investeringsår-$I40+1)/$K40),1,0)) *(1+IF(ISBLANK($L40),S_Inflation,$L40))^(AP$2-S_Investeringsår) *(1+IF($C40="",0%,VLOOKUP($C40,Stamdata!$D$7:$E$15,2,0)))^(AP$2-S_Investeringsår) -> 0 | AQ40: =$H40 *IF(AQ$2>=$I40+S_Investeringsår-1,1,0) *IF(AQ$2<=$J40+S_Investeringsår-1,1,0) *IF($K40=0,0,IF((AQ$2-S_Investeringsår-$I40+1)/$K40=INT((AQ$2-S_Investeringsår-$I40+1)/$K40),1,0)) *(1+IF(ISBLANK($L40),S_Inflation,$L40))^(AQ$2-S_Investeringsår) *(1+IF($C40="",0%,VLOOKUP($C40,Stamdata!$D$7:$E$15,2,0)))^(AQ$2-S_Investeringsår) -> 0 | AR40: =$H40 *IF(AR$2>=$I40+S_Investeringsår-1,1,0) *IF(AR$2<=$J40+S_Investeringsår-1,1,0) *IF($K40=0,0,IF((AR$2-S_Investeringsår-$I40+1)/$K40=INT((AR$2-S_Investeringsår-$I40+1)/$K40),1,0)) *(1+IF(ISBLANK($L40),S_Inflation,$L40))^(AR$2-S_Investeringsår) *(1+IF($C40="",0%,VLOOKUP($C40,Stamdata!$D$7:$E$15,2,0)))^(AR$2-S_Investeringsår) -> 0 | AS40: =$H40 *IF(AS$2>=$I40+S_Investeringsår-1,1,0) *IF(AS$2<=$J40+S_Investeringsår-1,1,0) *IF($K40=0,0,IF((AS$2-S_Investeringsår-$I40+1)/$K40=INT((AS$2-S_Investeringsår-$I40+1)/$K40),1,0)) *(1+IF(ISBLANK($L40),S_Inflation,$L40))^(AS$2-S_Investeringsår) *(1+IF($C40="",0%,VLOOKUP($C40,Stamdata!$D$7:$E$15,2,0)))^(AS$2-S_Investeringsår) -> 0 | AT40: =$H40 *IF(AT$2>=$I40+S_Investeringsår-1,1,0) *IF(AT$2<=$J40+S_Investeringsår-1,1,0) *IF($K40=0,0,IF((AT$2-S_Investeringsår-$I40+1)/$K40=INT((AT$2-S_Investeringsår-$I40+1)/$K40),1,0)) *(1+IF(ISBLANK($L40),S_Inflation,$L40))^(AT$2-S_Investeringsår) *(1+IF($C40="",0%,VLOOKUP($C40,Stamdata!$D$7:$E$15,2,0)))^(AT$2-S_Investeringsår) -> 0 | AU40: =$H40 *IF(AU$2>=$I40+S_Investeringsår-1,1,0) *IF(AU$2<=$J40+S_Investeringsår-1,1,0) *IF($K40=0,0,IF((AU$2-S_Investeringsår-$I40+1)/$K40=INT((AU$2-S_Investeringsår-$I40+1)/$K40),1,0)) *(1+IF(ISBLANK($L40),S_Inflation,$L40))^(AU$2-S_Investeringsår) *(1+IF($C40="",0%,VLOOKUP($C40,Stamdata!$D$7:$E$15,2,0)))^(AU$2-S_Investeringsår) -> 0 | AV40: =$H40 *IF(AV$2>=$I40+S_Investeringsår-1,1,0) *IF(AV$2<=$J40+S_Investeringsår-1,1,0) *IF($K40=0,0,IF((AV$2-S_Investeringsår-$I40+1)/$K40=INT((AV$2-S_Investeringsår-$I40+1)/$K40),1,0)) *(1+IF(ISBLANK($L40),S_Inflation,$L40))^(AV$2-S_Investeringsår) *(1+IF($C40="",0%,VLOOKUP($C40,Stamdata!$D$7:$E$15,2,0)))^(AV$2-S_Investeringsår) -> 0 | AW40: =$H40 *IF(AW$2>=$I40+S_Investeringsår-1,1,0) *IF(AW$2<=$J40+S_Investeringsår-1,1,0) *IF($K40=0,0,IF((AW$2-S_Investeringsår-$I40+1)/$K40=INT((AW$2-S_Investeringsår-$I40+1)/$K40),1,0)) *(1+IF(ISBLANK($L40),S_Inflation,$L40))^(AW$2-S_Investeringsår) *(1+IF($C40="",0%,VLOOKUP($C40,Stamdata!$D$7:$E$15,2,0)))^(AW$2-S_Investeringsår) -> 0 | AX40: =$H40 *IF(AX$2>=$I40+S_Investeringsår-1,1,0) *IF(AX$2<=$J40+S_Investeringsår-1,1,0) *IF($K40=0,0,IF((AX$2-S_Investeringsår-$I40+1)/$K40=INT((AX$2-S_Investeringsår-$I40+1)/$K40),1,0)) *(1+IF(ISBLANK($L40),S_Inflation,$L40))^(AX$2-S_Investeringsår) *(1+IF($C40="",0%,VLOOKUP($C40,Stamdata!$D$7:$E$15,2,0)))^(AX$2-S_Investeringsår) -> 0 | AY40: =$H40 *IF(AY$2>=$I40+S_Investeringsår-1,1,0) *IF(AY$2<=$J40+S_Investeringsår-1,1,0) *IF($K40=0,0,IF((AY$2-S_Investeringsår-$I40+1)/$K40=INT((AY$2-S_Investeringsår-$I40+1)/$K40),1,0)) *(1+IF(ISBLANK($L40),S_Inflation,$L40))^(AY$2-S_Investeringsår) *(1+IF($C40="",0%,VLOOKUP($C40,Stamdata!$D$7:$E$15,2,0)))^(AY$2-S_Investeringsår) -> 0 | BB40: 0 | BD40: 0 | BE40: 0 | BF40: 0 | BG40: 0 | BH40: 0 | BI40: 0 | BJ40: 0 | BK40: 0 | BL40: 0 | BM40: 0 | BN40: 0 | BO40: 0 | BP40: 0 | BQ40: 0 | BR40: 0 | BS40: 0 | BT40: 0 | BU40: 0 | BV40: 0 | BW40: 0 | BX40: 0 | BY40: 0 | BZ40: 0 | CA40: 0 | CB40: 0 | CC40: 0 | CD40: 0 | CE40: 0 | CF40: 0 | CG40: 0 | CH40: 0
B41: - | G41: 0 | H41: 0 | I41: 0 | J41: 0 | K41: 0 | L41: 0.018 | M41: 0 | P41: 0 | T41: 0 | U41: =$H41 *IF(U$2>=$I41+S_Investeringsår-1,1,0) *IF(U$2<=$J41+S_Investeringsår-1,1,0) *IF($K41=0,0,IF((U$2-S_Investeringsår-$I41+1)/$K41=INT((U$2-S_Investeringsår-$I41+1)/$K41),1,0)) *(1+IF(ISBLANK($L41),S_Inflation,$L41))^(U$2-S_Investeringsår) *(1+IF($C41="",0%,VLOOKUP($C41,Stamdata!$D$7:$E$15,2,0)))^(U$2-S_Investeringsår) -> 0 | V41: =$H41 *IF(V$2>=$I41+S_Investeringsår-1,1,0) *IF(V$2<=$J41+S_Investeringsår-1,1,0) *IF($K41=0,0,IF((V$2-S_Investeringsår-$I41+1)/$K41=INT((V$2-S_Investeringsår-$I41+1)/$K41),1,0)) *(1+IF(ISBLANK($L41),S_Inflation,$L41))^(V$2-S_Investeringsår) *(1+IF($C41="",0%,VLOOKUP($C41,Stamdata!$D$7:$E$15,2,0)))^(V$2-S_Investeringsår) -> 0 | W41: =$H41 *IF(W$2>=$I41+S_Investeringsår-1,1,0) *IF(W$2<=$J41+S_Investeringsår-1,1,0) *IF($K41=0,0,IF((W$2-S_Investeringsår-$I41+1)/$K41=INT((W$2-S_Investeringsår-$I41+1)/$K41),1,0)) *(1+IF(ISBLANK($L41),S_Inflation,$L41))^(W$2-S_Investeringsår) *(1+IF($C41="",0%,VLOOKUP($C41,Stamdata!$D$7:$E$15,2,0)))^(W$2-S_Investeringsår) -> 0 | X41: =$H41 *IF(X$2>=$I41+S_Investeringsår-1,1,0) *IF(X$2<=$J41+S_Investeringsår-1,1,0) *IF($K41=0,0,IF((X$2-S_Investeringsår-$I41+1)/$K41=INT((X$2-S_Investeringsår-$I41+1)/$K41),1,0)) *(1+IF(ISBLANK($L41),S_Inflation,$L41))^(X$2-S_Investeringsår) *(1+IF($C41="",0%,VLOOKUP($C41,Stamdata!$D$7:$E$15,2,0)))^(X$2-S_Investeringsår) -> 0 | Y41: =$H41 *IF(Y$2>=$I41+S_Investeringsår-1,1,0) *IF(Y$2<=$J41+S_Investeringsår-1,1,0) *IF($K41=0,0,IF((Y$2-S_Investeringsår-$I41+1)/$K41=INT((Y$2-S_Investeringsår-$I41+1)/$K41),1,0)) *(1+IF(ISBLANK($L41),S_Inflation,$L41))^(Y$2-S_Investeringsår) *(1+IF($C41="",0%,VLOOKUP($C41,Stamdata!$D$7:$E$15,2,0)))^(Y$2-S_Investeringsår) -> 0 | Z41: =$H41 *IF(Z$2>=$I41+S_Investeringsår-1,1,0) *IF(Z$2<=$J41+S_Investeringsår-1,1,0) *IF($K41=0,0,IF((Z$2-S_Investeringsår-$I41+1)/$K41=INT((Z$2-S_Investeringsår-$I41+1)/$K41),1,0)) *(1+IF(ISBLANK($L41),S_Inflation,$L41))^(Z$2-S_Investeringsår) *(1+IF($C41="",0%,VLOOKUP($C41,Stamdata!$D$7:$E$15,2,0)))^(Z$2-S_Investeringsår) -> 0 | AA41: =$H41 *IF(AA$2>=$I41+S_Investeringsår-1,1,0) *IF(AA$2<=$J41+S_Investeringsår-1,1,0) *IF($K41=0,0,IF((AA$2-S_Investeringsår-$I41+1)/$K41=INT((AA$2-S_Investeringsår-$I41+1)/$K41),1,0)) *(1+IF(ISBLANK($L41),S_Inflation,$L41))^(AA$2-S_Investeringsår) *(1+IF($C41="",0%,VLOOKUP($C41,Stamdata!$D$7:$E$15,2,0)))^(AA$2-S_Investeringsår) -> 0 | AB41: =$H41 *IF(AB$2>=$I41+S_Investeringsår-1,1,0) *IF(AB$2<=$J41+S_Investeringsår-1,1,0) *IF($K41=0,0,IF((AB$2-S_Investeringsår-$I41+1)/$K41=INT((AB$2-S_Investeringsår-$I41+1)/$K41),1,0)) *(1+IF(ISBLANK($L41),S_Inflation,$L41))^(AB$2-S_Investeringsår) *(1+IF($C41="",0%,VLOOKUP($C41,Stamdata!$D$7:$E$15,2,0)))^(AB$2-S_Investeringsår) -> 0 | AC41: =$H41 *IF(AC$2>=$I41+S_Investeringsår-1,1,0) *IF(AC$2<=$J41+S_Investeringsår-1,1,0) *IF($K41=0,0,IF((AC$2-S_Investeringsår-$I41+1)/$K41=INT((AC$2-S_Investeringsår-$I41+1)/$K41),1,0)) *(1+IF(ISBLANK($L41),S_Inflation,$L41))^(AC$2-S_Investeringsår) *(1+IF($C41="",0%,VLOOKUP($C41,Stamdata!$D$7:$E$15,2,0)))^(AC$2-S_Investeringsår) -> 0 | AD41: =$H41 *IF(AD$2>=$I41+S_Investeringsår-1,1,0) *IF(AD$2<=$J41+S_Investeringsår-1,1,0) *IF($K41=0,0,IF((AD$2-S_Investeringsår-$I41+1)/$K41=INT((AD$2-S_Investeringsår-$I41+1)/$K41),1,0)) *(1+IF(ISBLANK($L41),S_Inflation,$L41))^(AD$2-S_Investeringsår) *(1+IF($C41="",0%,VLOOKUP($C41,Stamdata!$D$7:$E$15,2,0)))^(AD$2-S_Investeringsår) -> 0 | AE41: =$H41 *IF(AE$2>=$I41+S_Investeringsår-1,1,0) *IF(AE$2<=$J41+S_Investeringsår-1,1,0) *IF($K41=0,0,IF((AE$2-S_Investeringsår-$I41+1)/$K41=INT((AE$2-S_Investeringsår-$I41+1)/$K41),1,0)) *(1+IF(ISBLANK($L41),S_Inflation,$L41))^(AE$2-S_Investeringsår) *(1+IF($C41="",0%,VLOOKUP($C41,Stamdata!$D$7:$E$15,2,0)))^(AE$2-S_Investeringsår) -> 0 | AF41: =$H41 *IF(AF$2>=$I41+S_Investeringsår-1,1,0) *IF(AF$2<=$J41+S_Investeringsår-1,1,0) *IF($K41=0,0,IF((AF$2-S_Investeringsår-$I41+1)/$K41=INT((AF$2-S_Investeringsår-$I41+1)/$K41),1,0)) *(1+IF(ISBLANK($L41),S_Inflation,$L41))^(AF$2-S_Investeringsår) *(1+IF($C41="",0%,VLOOKUP($C41,Stamdata!$D$7:$E$15,2,0)))^(AF$2-S_Investeringsår) -> 0 | AG41: =$H41 *IF(AG$2>=$I41+S_Investeringsår-1,1,0) *IF(AG$2<=$J41+S_Investeringsår-1,1,0) *IF($K41=0,0,IF((AG$2-S_Investeringsår-$I41+1)/$K41=INT((AG$2-S_Investeringsår-$I41+1)/$K41),1,0)) *(1+IF(ISBLANK($L41),S_Inflation,$L41))^(AG$2-S_Investeringsår) *(1+IF($C41="",0%,VLOOKUP($C41,Stamdata!$D$7:$E$15,2,0)))^(AG$2-S_Investeringsår) -> 0 | AH41: =$H41 *IF(AH$2>=$I41+S_Investeringsår-1,1,0) *IF(AH$2<=$J41+S_Investeringsår-1,1,0) *IF($K41=0,0,IF((AH$2-S_Investeringsår-$I41+1)/$K41=INT((AH$2-S_Investeringsår-$I41+1)/$K41),1,0)) *(1+IF(ISBLANK($L41),S_Inflation,$L41))^(AH$2-S_Investeringsår) *(1+IF($C41="",0%,VLOOKUP($C41,Stamdata!$D$7:$E$15,2,0)))^(AH$2-S_Investeringsår) -> 0 | AI41: =$H41 *IF(AI$2>=$I41+S_Investeringsår-1,1,0) *IF(AI$2<=$J41+S_Investeringsår-1,1,0) *IF($K41=0,0,IF((AI$2-S_Investeringsår-$I41+1)/$K41=INT((AI$2-S_Investeringsår-$I41+1)/$K41),1,0)) *(1+IF(ISBLANK($L41),S_Inflation,$L41))^(AI$2-S_Investeringsår) *(1+IF($C41="",0%,VLOOKUP($C41,Stamdata!$D$7:$E$15,2,0)))^(AI$2-S_Investeringsår) -> 0 | AJ41: =$H41 *IF(AJ$2>=$I41+S_Investeringsår-1,1,0) *IF(AJ$2<=$J41+S_Investeringsår-1,1,0) *IF($K41=0,0,IF((AJ$2-S_Investeringsår-$I41+1)/$K41=INT((AJ$2-S_Investeringsår-$I41+1)/$K41),1,0)) *(1+IF(ISBLANK($L41),S_Inflation,$L41))^(AJ$2-S_Investeringsår) *(1+IF($C41="",0%,VLOOKUP($C41,Stamdata!$D$7:$E$15,2,0)))^(AJ$2-S_Investeringsår) -> 0 | AK41: =$H41 *IF(AK$2>=$I41+S_Investeringsår-1,1,0) *IF(AK$2<=$J41+S_Investeringsår-1,1,0) *IF($K41=0,0,IF((AK$2-S_Investeringsår-$I41+1)/$K41=INT((AK$2-S_Investeringsår-$I41+1)/$K41),1,0)) *(1+IF(ISBLANK($L41),S_Inflation,$L41))^(AK$2-S_Investeringsår) *(1+IF($C41="",0%,VLOOKUP($C41,Stamdata!$D$7:$E$15,2,0)))^(AK$2-S_Investeringsår) -> 0 | AL41: =$H41 *IF(AL$2>=$I41+S_Investeringsår-1,1,0) *IF(AL$2<=$J41+S_Investeringsår-1,1,0) *IF($K41=0,0,IF((AL$2-S_Investeringsår-$I41+1)/$K41=INT((AL$2-S_Investeringsår-$I41+1)/$K41),1,0)) *(1+IF(ISBLANK($L41),S_Inflation,$L41))^(AL$2-S_Investeringsår) *(1+IF($C41="",0%,VLOOKUP($C41,Stamdata!$D$7:$E$15,2,0)))^(AL$2-S_Investeringsår) -> 0 | AM41: =$H41 *IF(AM$2>=$I41+S_Investeringsår-1,1,0) *IF(AM$2<=$J41+S_Investeringsår-1,1,0) *IF($K41=0,0,IF((AM$2-S_Investeringsår-$I41+1)/$K41=INT((AM$2-S_Investeringsår-$I41+1)/$K41),1,0)) *(1+IF(ISBLANK($L41),S_Inflation,$L41))^(AM$2-S_Investeringsår) *(1+IF($C41="",0%,VLOOKUP($C41,Stamdata!$D$7:$E$15,2,0)))^(AM$2-S_Investeringsår) -> 0 | AN41: =$H41 *IF(AN$2>=$I41+S_Investeringsår-1,1,0) *IF(AN$2<=$J41+S_Investeringsår-1,1,0) *IF($K41=0,0,IF((AN$2-S_Investeringsår-$I41+1)/$K41=INT((AN$2-S_Investeringsår-$I41+1)/$K41),1,0)) *(1+IF(ISBLANK($L41),S_Inflation,$L41))^(AN$2-S_Investeringsår) *(1+IF($C41="",0%,VLOOKUP($C41,Stamdata!$D$7:$E$15,2,0)))^(AN$2-S_Investeringsår) -> 0 | AO41: =$H41 *IF(AO$2>=$I41+S_Investeringsår-1,1,0) *IF(AO$2<=$J41+S_Investeringsår-1,1,0) *IF($K41=0,0,IF((AO$2-S_Investeringsår-$I41+1)/$K41=INT((AO$2-S_Investeringsår-$I41+1)/$K41),1,0)) *(1+IF(ISBLANK($L41),S_Inflation,$L41))^(AO$2-S_Investeringsår) *(1+IF($C41="",0%,VLOOKUP($C41,Stamdata!$D$7:$E$15,2,0)))^(AO$2-S_Investeringsår) -> 0 | AP41: =$H41 *IF(AP$2>=$I41+S_Investeringsår-1,1,0) *IF(AP$2<=$J41+S_Investeringsår-1,1,0) *IF($K41=0,0,IF((AP$2-S_Investeringsår-$I41+1)/$K41=INT((AP$2-S_Investeringsår-$I41+1)/$K41),1,0)) *(1+IF(ISBLANK($L41),S_Inflation,$L41))^(AP$2-S_Investeringsår) *(1+IF($C41="",0%,VLOOKUP($C41,Stamdata!$D$7:$E$15,2,0)))^(AP$2-S_Investeringsår) -> 0 | AQ41: =$H41 *IF(AQ$2>=$I41+S_Investeringsår-1,1,0) *IF(AQ$2<=$J41+S_Investeringsår-1,1,0) *IF($K41=0,0,IF((AQ$2-S_Investeringsår-$I41+1)/$K41=INT((AQ$2-S_Investeringsår-$I41+1)/$K41),1,0)) *(1+IF(ISBLANK($L41),S_Inflation,$L41))^(AQ$2-S_Investeringsår) *(1+IF($C41="",0%,VLOOKUP($C41,Stamdata!$D$7:$E$15,2,0)))^(AQ$2-S_Investeringsår) -> 0 | AR41: =$H41 *IF(AR$2>=$I41+S_Investeringsår-1,1,0) *IF(AR$2<=$J41+S_Investeringsår-1,1,0) *IF($K41=0,0,IF((AR$2-S_Investeringsår-$I41+1)/$K41=INT((AR$2-S_Investeringsår-$I41+1)/$K41),1,0)) *(1+IF(ISBLANK($L41),S_Inflation,$L41))^(AR$2-S_Investeringsår) *(1+IF($C41="",0%,VLOOKUP($C41,Stamdata!$D$7:$E$15,2,0)))^(AR$2-S_Investeringsår) -> 0 | AS41: =$H41 *IF(AS$2>=$I41+S_Investeringsår-1,1,0) *IF(AS$2<=$J41+S_Investeringsår-1,1,0) *IF($K41=0,0,IF((AS$2-S_Investeringsår-$I41+1)/$K41=INT((AS$2-S_Investeringsår-$I41+1)/$K41),1,0)) *(1+IF(ISBLANK($L41),S_Inflation,$L41))^(AS$2-S_Investeringsår) *(1+IF($C41="",0%,VLOOKUP($C41,Stamdata!$D$7:$E$15,2,0)))^(AS$2-S_Investeringsår) -> 0 | AT41: =$H41 *IF(AT$2>=$I41+S_Investeringsår-1,1,0) *IF(AT$2<=$J41+S_Investeringsår-1,1,0) *IF($K41=0,0,IF((AT$2-S_Investeringsår-$I41+1)/$K41=INT((AT$2-S_Investeringsår-$I41+1)/$K41),1,0)) *(1+IF(ISBLANK($L41),S_Inflation,$L41))^(AT$2-S_Investeringsår) *(1+IF($C41="",0%,VLOOKUP($C41,Stamdata!$D$7:$E$15,2,0)))^(AT$2-S_Investeringsår) -> 0 | AU41: =$H41 *IF(AU$2>=$I41+S_Investeringsår-1,1,0) *IF(AU$2<=$J41+S_Investeringsår-1,1,0) *IF($K41=0,0,IF((AU$2-S_Investeringsår-$I41+1)/$K41=INT((AU$2-S_Investeringsår-$I41+1)/$K41),1,0)) *(1+IF(ISBLANK($L41),S_Inflation,$L41))^(AU$2-S_Investeringsår) *(1+IF($C41="",0%,VLOOKUP($C41,Stamdata!$D$7:$E$15,2,0)))^(AU$2-S_Investeringsår) -> 0 | AV41: =$H41 *IF(AV$2>=$I41+S_Investeringsår-1,1,0) *IF(AV$2<=$J41+S_Investeringsår-1,1,0) *IF($K41=0,0,IF((AV$2-S_Investeringsår-$I41+1)/$K41=INT((AV$2-S_Investeringsår-$I41+1)/$K41),1,0)) *(1+IF(ISBLANK($L41),S_Inflation,$L41))^(AV$2-S_Investeringsår) *(1+IF($C41="",0%,VLOOKUP($C41,Stamdata!$D$7:$E$15,2,0)))^(AV$2-S_Investeringsår) -> 0 | AW41: =$H41 *IF(AW$2>=$I41+S_Investeringsår-1,1,0) *IF(AW$2<=$J41+S_Investeringsår-1,1,0) *IF($K41=0,0,IF((AW$2-S_Investeringsår-$I41+1)/$K41=INT((AW$2-S_Investeringsår-$I41+1)/$K41),1,0)) *(1+IF(ISBLANK($L41),S_Inflation,$L41))^(AW$2-S_Investeringsår) *(1+IF($C41="",0%,VLOOKUP($C41,Stamdata!$D$7:$E$15,2,0)))^(AW$2-S_Investeringsår) -> 0 | AX41: =$H41 *IF(AX$2>=$I41+S_Investeringsår-1,1,0) *IF(AX$2<=$J41+S_Investeringsår-1,1,0) *IF($K41=0,0,IF((AX$2-S_Investeringsår-$I41+1)/$K41=INT((AX$2-S_Investeringsår-$I41+1)/$K41),1,0)) *(1+IF(ISBLANK($L41),S_Inflation,$L41))^(AX$2-S_Investeringsår) *(1+IF($C41="",0%,VLOOKUP($C41,Stamdata!$D$7:$E$15,2,0)))^(AX$2-S_Investeringsår) -> 0 | AY41: =$H41 *IF(AY$2>=$I41+S_Investeringsår-1,1,0) *IF(AY$2<=$J41+S_Investeringsår-1,1,0) *IF($K41=0,0,IF((AY$2-S_Investeringsår-$I41+1)/$K41=INT((AY$2-S_Investeringsår-$I41+1)/$K41),1,0)) *(1+IF(ISBLANK($L41),S_Inflation,$L41))^(AY$2-S_Investeringsår) *(1+IF($C41="",0%,VLOOKUP($C41,Stamdata!$D$7:$E$15,2,0)))^(AY$2-S_Investeringsår) -> 0 | BB41: 0 | BD41: 0 | BE41: 0 | BF41: 0 | BG41: 0 | BH41: 0 | BI41: 0 | BJ41: 0 | BK41: 0 | BL41: 0 | BM41: 0 | BN41: 0 | BO41: 0 | BP41: 0 | BQ41: 0 | BR41: 0 | BS41: 0 | BT41: 0 | BU41: 0 | BV41: 0 | BW41: 0 | BX41: 0 | BY41: 0 | BZ41: 0 | CA41: 0 | CB41: 0 | CC41: 0 | CD41: 0 | CE41: 0 | CF41: 0 | CG41: 0 | CH41: 0
B42: - | G42: 0 | H42: 0 | I42: 0 | J42: 0 | K42: 0 | L42: 0.018 | M42: 0 | P42: 0 | T42: 0 | U42: =$H42 *IF(U$2>=$I42+S_Investeringsår-1,1,0) *IF(U$2<=$J42+S_Investeringsår-1,1,0) *IF($K42=0,0,IF((U$2-S_Investeringsår-$I42+1)/$K42=INT((U$2-S_Investeringsår-$I42+1)/$K42),1,0)) *(1+IF(ISBLANK($L42),S_Inflation,$L42))^(U$2-S_Investeringsår) *(1+IF($C42="",0%,VLOOKUP($C42,Stamdata!$D$7:$E$15,2,0)))^(U$2-S_Investeringsår) -> 0 | V42: =$H42 *IF(V$2>=$I42+S_Investeringsår-1,1,0) *IF(V$2<=$J42+S_Investeringsår-1,1,0) *IF($K42=0,0,IF((V$2-S_Investeringsår-$I42+1)/$K42=INT((V$2-S_Investeringsår-$I42+1)/$K42),1,0)) *(1+IF(ISBLANK($L42),S_Inflation,$L42))^(V$2-S_Investeringsår) *(1+IF($C42="",0%,VLOOKUP($C42,Stamdata!$D$7:$E$15,2,0)))^(V$2-S_Investeringsår) -> 0 | W42: =$H42 *IF(W$2>=$I42+S_Investeringsår-1,1,0) *IF(W$2<=$J42+S_Investeringsår-1,1,0) *IF($K42=0,0,IF((W$2-S_Investeringsår-$I42+1)/$K42=INT((W$2-S_Investeringsår-$I42+1)/$K42),1,0)) *(1+IF(ISBLANK($L42),S_Inflation,$L42))^(W$2-S_Investeringsår) *(1+IF($C42="",0%,VLOOKUP($C42,Stamdata!$D$7:$E$15,2,0)))^(W$2-S_Investeringsår) -> 0 | X42: =$H42 *IF(X$2>=$I42+S_Investeringsår-1,1,0) *IF(X$2<=$J42+S_Investeringsår-1,1,0) *IF($K42=0,0,IF((X$2-S_Investeringsår-$I42+1)/$K42=INT((X$2-S_Investeringsår-$I42+1)/$K42),1,0)) *(1+IF(ISBLANK($L42),S_Inflation,$L42))^(X$2-S_Investeringsår) *(1+IF($C42="",0%,VLOOKUP($C42,Stamdata!$D$7:$E$15,2,0)))^(X$2-S_Investeringsår) -> 0 | Y42: =$H42 *IF(Y$2>=$I42+S_Investeringsår-1,1,0) *IF(Y$2<=$J42+S_Investeringsår-1,1,0) *IF($K42=0,0,IF((Y$2-S_Investeringsår-$I42+1)/$K42=INT((Y$2-S_Investeringsår-$I42+1)/$K42),1,0)) *(1+IF(ISBLANK($L42),S_Inflation,$L42))^(Y$2-S_Investeringsår) *(1+IF($C42="",0%,VLOOKUP($C42,Stamdata!$D$7:$E$15,2,0)))^(Y$2-S_Investeringsår) -> 0 | Z42: =$H42 *IF(Z$2>=$I42+S_Investeringsår-1,1,0) *IF(Z$2<=$J42+S_Investeringsår-1,1,0) *IF($K42=0,0,IF((Z$2-S_Investeringsår-$I42+1)/$K42=INT((Z$2-S_Investeringsår-$I42+1)/$K42),1,0)) *(1+IF(ISBLANK($L42),S_Inflation,$L42))^(Z$2-S_Investeringsår) *(1+IF($C42="",0%,VLOOKUP($C42,Stamdata!$D$7:$E$15,2,0)))^(Z$2-S_Investeringsår) -> 0 | AA42: =$H42 *IF(AA$2>=$I42+S_Investeringsår-1,1,0) *IF(AA$2<=$J42+S_Investeringsår-1,1,0) *IF($K42=0,0,IF((AA$2-S_Investeringsår-$I42+1)/$K42=INT((AA$2-S_Investeringsår-$I42+1)/$K42),1,0)) *(1+IF(ISBLANK($L42),S_Inflation,$L42))^(AA$2-S_Investeringsår) *(1+IF($C42="",0%,VLOOKUP($C42,Stamdata!$D$7:$E$15,2,0)))^(AA$2-S_Investeringsår) -> 0 | AB42: =$H42 *IF(AB$2>=$I42+S_Investeringsår-1,1,0) *IF(AB$2<=$J42+S_Investeringsår-1,1,0) *IF($K42=0,0,IF((AB$2-S_Investeringsår-$I42+1)/$K42=INT((AB$2-S_Investeringsår-$I42+1)/$K42),1,0)) *(1+IF(ISBLANK($L42),S_Inflation,$L42))^(AB$2-S_Investeringsår) *(1+IF($C42="",0%,VLOOKUP($C42,Stamdata!$D$7:$E$15,2,0)))^(AB$2-S_Investeringsår) -> 0 | AC42: =$H42 *IF(AC$2>=$I42+S_Investeringsår-1,1,0) *IF(AC$2<=$J42+S_Investeringsår-1,1,0) *IF($K42=0,0,IF((AC$2-S_Investeringsår-$I42+1)/$K42=INT((AC$2-S_Investeringsår-$I42+1)/$K42),1,0)) *(1+IF(ISBLANK($L42),S_Inflation,$L42))^(AC$2-S_Investeringsår) *(1+IF($C42="",0%,VLOOKUP($C42,Stamdata!$D$7:$E$15,2,0)))^(AC$2-S_Investeringsår) -> 0 | AD42: =$H42 *IF(AD$2>=$I42+S_Investeringsår-1,1,0) *IF(AD$2<=$J42+S_Investeringsår-1,1,0) *IF($K42=0,0,IF((AD$2-S_Investeringsår-$I42+1)/$K42=INT((AD$2-S_Investeringsår-$I42+1)/$K42),1,0)) *(1+IF(ISBLANK($L42),S_Inflation,$L42))^(AD$2-S_Investeringsår) *(1+IF($C42="",0%,VLOOKUP($C42,Stamdata!$D$7:$E$15,2,0)))^(AD$2-S_Investeringsår) -> 0 | AE42: =$H42 *IF(AE$2>=$I42+S_Investeringsår-1,1,0) *IF(AE$2<=$J42+S_Investeringsår-1,1,0) *IF($K42=0,0,IF((AE$2-S_Investeringsår-$I42+1)/$K42=INT((AE$2-S_Investeringsår-$I42+1)/$K42),1,0)) *(1+IF(ISBLANK($L42),S_Inflation,$L42))^(AE$2-S_Investeringsår) *(1+IF($C42="",0%,VLOOKUP($C42,Stamdata!$D$7:$E$15,2,0)))^(AE$2-S_Investeringsår) -> 0 | AF42: =$H42 *IF(AF$2>=$I42+S_Investeringsår-1,1,0) *IF(AF$2<=$J42+S_Investeringsår-1,1,0) *IF($K42=0,0,IF((AF$2-S_Investeringsår-$I42+1)/$K42=INT((AF$2-S_Investeringsår-$I42+1)/$K42),1,0)) *(1+IF(ISBLANK($L42),S_Inflation,$L42))^(AF$2-S_Investeringsår) *(1+IF($C42="",0%,VLOOKUP($C42,Stamdata!$D$7:$E$15,2,0)))^(AF$2-S_Investeringsår) -> 0 | AG42: =$H42 *IF(AG$2>=$I42+S_Investeringsår-1,1,0) *IF(AG$2<=$J42+S_Investeringsår-1,1,0) *IF($K42=0,0,IF((AG$2-S_Investeringsår-$I42+1)/$K42=INT((AG$2-S_Investeringsår-$I42+1)/$K42),1,0)) *(1+IF(ISBLANK($L42),S_Inflation,$L42))^(AG$2-S_Investeringsår) *(1+IF($C42="",0%,VLOOKUP($C42,Stamdata!$D$7:$E$15,2,0)))^(AG$2-S_Investeringsår) -> 0 | AH42: =$H42 *IF(AH$2>=$I42+S_Investeringsår-1,1,0) *IF(AH$2<=$J42+S_Investeringsår-1,1,0) *IF($K42=0,0,IF((AH$2-S_Investeringsår-$I42+1)/$K42=INT((AH$2-S_Investeringsår-$I42+1)/$K42),1,0)) *(1+IF(ISBLANK($L42),S_Inflation,$L42))^(AH$2-S_Investeringsår) *(1+IF($C42="",0%,VLOOKUP($C42,Stamdata!$D$7:$E$15,2,0)))^(AH$2-S_Investeringsår) -> 0 | AI42: =$H42 *IF(AI$2>=$I42+S_Investeringsår-1,1,0) *IF(AI$2<=$J42+S_Investeringsår-1,1,0) *IF($K42=0,0,IF((AI$2-S_Investeringsår-$I42+1)/$K42=INT((AI$2-S_Investeringsår-$I42+1)/$K42),1,0)) *(1+IF(ISBLANK($L42),S_Inflation,$L42))^(AI$2-S_Investeringsår) *(1+IF($C42="",0%,VLOOKUP($C42,Stamdata!$D$7:$E$15,2,0)))^(AI$2-S_Investeringsår) -> 0 | AJ42: =$H42 *IF(AJ$2>=$I42+S_Investeringsår-1,1,0) *IF(AJ$2<=$J42+S_Investeringsår-1,1,0) *IF($K42=0,0,IF((AJ$2-S_Investeringsår-$I42+1)/$K42=INT((AJ$2-S_Investeringsår-$I42+1)/$K42),1,0)) *(1+IF(ISBLANK($L42),S_Inflation,$L42))^(AJ$2-S_Investeringsår) *(1+IF($C42="",0%,VLOOKUP($C42,Stamdata!$D$7:$E$15,2,0)))^(AJ$2-S_Investeringsår) -> 0 | AK42: =$H42 *IF(AK$2>=$I42+S_Investeringsår-1,1,0) *IF(AK$2<=$J42+S_Investeringsår-1,1,0) *IF($K42=0,0,IF((AK$2-S_Investeringsår-$I42+1)/$K42=INT((AK$2-S_Investeringsår-$I42+1)/$K42),1,0)) *(1+IF(ISBLANK($L42),S_Inflation,$L42))^(AK$2-S_Investeringsår) *(1+IF($C42="",0%,VLOOKUP($C42,Stamdata!$D$7:$E$15,2,0)))^(AK$2-S_Investeringsår) -> 0 | AL42: =$H42 *IF(AL$2>=$I42+S_Investeringsår-1,1,0) *IF(AL$2<=$J42+S_Investeringsår-1,1,0) *IF($K42=0,0,IF((AL$2-S_Investeringsår-$I42+1)/$K42=INT((AL$2-S_Investeringsår-$I42+1)/$K42),1,0)) *(1+IF(ISBLANK($L42),S_Inflation,$L42))^(AL$2-S_Investeringsår) *(1+IF($C42="",0%,VLOOKUP($C42,Stamdata!$D$7:$E$15,2,0)))^(AL$2-S_Investeringsår) -> 0 | AM42: =$H42 *IF(AM$2>=$I42+S_Investeringsår-1,1,0) *IF(AM$2<=$J42+S_Investeringsår-1,1,0) *IF($K42=0,0,IF((AM$2-S_Investeringsår-$I42+1)/$K42=INT((AM$2-S_Investeringsår-$I42+1)/$K42),1,0)) *(1+IF(ISBLANK($L42),S_Inflation,$L42))^(AM$2-S_Investeringsår) *(1+IF($C42="",0%,VLOOKUP($C42,Stamdata!$D$7:$E$15,2,0)))^(AM$2-S_Investeringsår) -> 0 | AN42: =$H42 *IF(AN$2>=$I42+S_Investeringsår-1,1,0) *IF(AN$2<=$J42+S_Investeringsår-1,1,0) *IF($K42=0,0,IF((AN$2-S_Investeringsår-$I42+1)/$K42=INT((AN$2-S_Investeringsår-$I42+1)/$K42),1,0)) *(1+IF(ISBLANK($L42),S_Inflation,$L42))^(AN$2-S_Investeringsår) *(1+IF($C42="",0%,VLOOKUP($C42,Stamdata!$D$7:$E$15,2,0)))^(AN$2-S_Investeringsår) -> 0 | AO42: =$H42 *IF(AO$2>=$I42+S_Investeringsår-1,1,0) *IF(AO$2<=$J42+S_Investeringsår-1,1,0) *IF($K42=0,0,IF((AO$2-S_Investeringsår-$I42+1)/$K42=INT((AO$2-S_Investeringsår-$I42+1)/$K42),1,0)) *(1+IF(ISBLANK($L42),S_Inflation,$L42))^(AO$2-S_Investeringsår) *(1+IF($C42="",0%,VLOOKUP($C42,Stamdata!$D$7:$E$15,2,0)))^(AO$2-S_Investeringsår) -> 0 | AP42: =$H42 *IF(AP$2>=$I42+S_Investeringsår-1,1,0) *IF(AP$2<=$J42+S_Investeringsår-1,1,0) *IF($K42=0,0,IF((AP$2-S_Investeringsår-$I42+1)/$K42=INT((AP$2-S_Investeringsår-$I42+1)/$K42),1,0)) *(1+IF(ISBLANK($L42),S_Inflation,$L42))^(AP$2-S_Investeringsår) *(1+IF($C42="",0%,VLOOKUP($C42,Stamdata!$D$7:$E$15,2,0)))^(AP$2-S_Investeringsår) -> 0 | AQ42: =$H42 *IF(AQ$2>=$I42+S_Investeringsår-1,1,0) *IF(AQ$2<=$J42+S_Investeringsår-1,1,0) *IF($K42=0,0,IF((AQ$2-S_Investeringsår-$I42+1)/$K42=INT((AQ$2-S_Investeringsår-$I42+1)/$K42),1,0)) *(1+IF(ISBLANK($L42),S_Inflation,$L42))^(AQ$2-S_Investeringsår) *(1+IF($C42="",0%,VLOOKUP($C42,Stamdata!$D$7:$E$15,2,0)))^(AQ$2-S_Investeringsår) -> 0 | AR42: =$H42 *IF(AR$2>=$I42+S_Investeringsår-1,1,0) *IF(AR$2<=$J42+S_Investeringsår-1,1,0) *IF($K42=0,0,IF((AR$2-S_Investeringsår-$I42+1)/$K42=INT((AR$2-S_Investeringsår-$I42+1)/$K42),1,0)) *(1+IF(ISBLANK($L42),S_Inflation,$L42))^(AR$2-S_Investeringsår) *(1+IF($C42="",0%,VLOOKUP($C42,Stamdata!$D$7:$E$15,2,0)))^(AR$2-S_Investeringsår) -> 0 | AS42: =$H42 *IF(AS$2>=$I42+S_Investeringsår-1,1,0) *IF(AS$2<=$J42+S_Investeringsår-1,1,0) *IF($K42=0,0,IF((AS$2-S_Investeringsår-$I42+1)/$K42=INT((AS$2-S_Investeringsår-$I42+1)/$K42),1,0)) *(1+IF(ISBLANK($L42),S_Inflation,$L42))^(AS$2-S_Investeringsår) *(1+IF($C42="",0%,VLOOKUP($C42,Stamdata!$D$7:$E$15,2,0)))^(AS$2-S_Investeringsår) -> 0 | AT42: =$H42 *IF(AT$2>=$I42+S_Investeringsår-1,1,0) *IF(AT$2<=$J42+S_Investeringsår-1,1,0) *IF($K42=0,0,IF((AT$2-S_Investeringsår-$I42+1)/$K42=INT((AT$2-S_Investeringsår-$I42+1)/$K42),1,0)) *(1+IF(ISBLANK($L42),S_Inflation,$L42))^(AT$2-S_Investeringsår) *(1+IF($C42="",0%,VLOOKUP($C42,Stamdata!$D$7:$E$15,2,0)))^(AT$2-S_Investeringsår) -> 0 | AU42: =$H42 *IF(AU$2>=$I42+S_Investeringsår-1,1,0) *IF(AU$2<=$J42+S_Investeringsår-1,1,0) *IF($K42=0,0,IF((AU$2-S_Investeringsår-$I42+1)/$K42=INT((AU$2-S_Investeringsår-$I42+1)/$K42),1,0)) *(1+IF(ISBLANK($L42),S_Inflation,$L42))^(AU$2-S_Investeringsår) *(1+IF($C42="",0%,VLOOKUP($C42,Stamdata!$D$7:$E$15,2,0)))^(AU$2-S_Investeringsår) -> 0 | AV42: =$H42 *IF(AV$2>=$I42+S_Investeringsår-1,1,0) *IF(AV$2<=$J42+S_Investeringsår-1,1,0) *IF($K42=0,0,IF((AV$2-S_Investeringsår-$I42+1)/$K42=INT((AV$2-S_Investeringsår-$I42+1)/$K42),1,0)) *(1+IF(ISBLANK($L42),S_Inflation,$L42))^(AV$2-S_Investeringsår) *(1+IF($C42="",0%,VLOOKUP($C42,Stamdata!$D$7:$E$15,2,0)))^(AV$2-S_Investeringsår) -> 0 | AW42: =$H42 *IF(AW$2>=$I42+S_Investeringsår-1,1,0) *IF(AW$2<=$J42+S_Investeringsår-1,1,0) *IF($K42=0,0,IF((AW$2-S_Investeringsår-$I42+1)/$K42=INT((AW$2-S_Investeringsår-$I42+1)/$K42),1,0)) *(1+IF(ISBLANK($L42),S_Inflation,$L42))^(AW$2-S_Investeringsår) *(1+IF($C42="",0%,VLOOKUP($C42,Stamdata!$D$7:$E$15,2,0)))^(AW$2-S_Investeringsår) -> 0 | AX42: =$H42 *IF(AX$2>=$I42+S_Investeringsår-1,1,0) *IF(AX$2<=$J42+S_Investeringsår-1,1,0) *IF($K42=0,0,IF((AX$2-S_Investeringsår-$I42+1)/$K42=INT((AX$2-S_Investeringsår-$I42+1)/$K42),1,0)) *(1+IF(ISBLANK($L42),S_Inflation,$L42))^(AX$2-S_Investeringsår) *(1+IF($C42="",0%,VLOOKUP($C42,Stamdata!$D$7:$E$15,2,0)))^(AX$2-S_Investeringsår) -> 0 | AY42: =$H42 *IF(AY$2>=$I42+S_Investeringsår-1,1,0) *IF(AY$2<=$J42+S_Investeringsår-1,1,0) *IF($K42=0,0,IF((AY$2-S_Investeringsår-$I42+1)/$K42=INT((AY$2-S_Investeringsår-$I42+1)/$K42),1,0)) *(1+IF(ISBLANK($L42),S_Inflation,$L42))^(AY$2-S_Investeringsår) *(1+IF($C42="",0%,VLOOKUP($C42,Stamdata!$D$7:$E$15,2,0)))^(AY$2-S_Investeringsår) -> 0 | BB42: 0 | BD42: 0 | BE42: 0 | BF42: 0 | BG42: 0 | BH42: 0 | BI42: 0 | BJ42: 0 | BK42: 0 | BL42: 0 | BM42: 0 | BN42: 0 | BO42: 0 | BP42: 0 | BQ42: 0 | BR42: 0 | BS42: 0 | BT42: 0 | BU42: 0 | BV42: 0 | BW42: 0 | BX42: 0 | BY42: 0 | BZ42: 0 | CA42: 0 | CB42: 0 | CC42: 0 | CD42: 0 | CE42: 0 | CF42: 0 | CG42: 0 | CH42: 0
B43: - | G43: 0 | H43: 0 | I43: 0 | J43: 0 | K43: 0 | L43: 0.018 | M43: 0 | P43: 0 | T43: 0 | U43: =$H43 *IF(U$2>=$I43+S_Investeringsår-1,1,0) *IF(U$2<=$J43+S_Investeringsår-1,1,0) *IF($K43=0,0,IF((U$2-S_Investeringsår-$I43+1)/$K43=INT((U$2-S_Investeringsår-$I43+1)/$K43),1,0)) *(1+IF(ISBLANK($L43),S_Inflation,$L43))^(U$2-S_Investeringsår) *(1+IF($C43="",0%,VLOOKUP($C43,Stamdata!$D$7:$E$15,2,0)))^(U$2-S_Investeringsår) -> 0 | V43: =$H43 *IF(V$2>=$I43+S_Investeringsår-1,1,0) *IF(V$2<=$J43+S_Investeringsår-1,1,0) *IF($K43=0,0,IF((V$2-S_Investeringsår-$I43+1)/$K43=INT((V$2-S_Investeringsår-$I43+1)/$K43),1,0)) *(1+IF(ISBLANK($L43),S_Inflation,$L43))^(V$2-S_Investeringsår) *(1+IF($C43="",0%,VLOOKUP($C43,Stamdata!$D$7:$E$15,2,0)))^(V$2-S_Investeringsår) -> 0 | W43: =$H43 *IF(W$2>=$I43+S_Investeringsår-1,1,0) *IF(W$2<=$J43+S_Investeringsår-1,1,0) *IF($K43=0,0,IF((W$2-S_Investeringsår-$I43+1)/$K43=INT((W$2-S_Investeringsår-$I43+1)/$K43),1,0)) *(1+IF(ISBLANK($L43),S_Inflation,$L43))^(W$2-S_Investeringsår) *(1+IF($C43="",0%,VLOOKUP($C43,Stamdata!$D$7:$E$15,2,0)))^(W$2-S_Investeringsår) -> 0 | X43: =$H43 *IF(X$2>=$I43+S_Investeringsår-1,1,0) *IF(X$2<=$J43+S_Investeringsår-1,1,0) *IF($K43=0,0,IF((X$2-S_Investeringsår-$I43+1)/$K43=INT((X$2-S_Investeringsår-$I43+1)/$K43),1,0)) *(1+IF(ISBLANK($L43),S_Inflation,$L43))^(X$2-S_Investeringsår) *(1+IF($C43="",0%,VLOOKUP($C43,Stamdata!$D$7:$E$15,2,0)))^(X$2-S_Investeringsår) -> 0 | Y43: =$H43 *IF(Y$2>=$I43+S_Investeringsår-1,1,0) *IF(Y$2<=$J43+S_Investeringsår-1,1,0) *IF($K43=0,0,IF((Y$2-S_Investeringsår-$I43+1)/$K43=INT((Y$2-S_Investeringsår-$I43+1)/$K43),1,0)) *(1+IF(ISBLANK($L43),S_Inflation,$L43))^(Y$2-S_Investeringsår) *(1+IF($C43="",0%,VLOOKUP($C43,Stamdata!$D$7:$E$15,2,0)))^(Y$2-S_Investeringsår) -> 0 | Z43: =$H43 *IF(Z$2>=$I43+S_Investeringsår-1,1,0) *IF(Z$2<=$J43+S_Investeringsår-1,1,0) *IF($K43=0,0,IF((Z$2-S_Investeringsår-$I43+1)/$K43=INT((Z$2-S_Investeringsår-$I43+1)/$K43),1,0)) *(1+IF(ISBLANK($L43),S_Inflation,$L43))^(Z$2-S_Investeringsår) *(1+IF($C43="",0%,VLOOKUP($C43,Stamdata!$D$7:$E$15,2,0)))^(Z$2-S_Investeringsår) -> 0 | AA43: =$H43 *IF(AA$2>=$I43+S_Investeringsår-1,1,0) *IF(AA$2<=$J43+S_Investeringsår-1,1,0) *IF($K43=0,0,IF((AA$2-S_Investeringsår-$I43+1)/$K43=INT((AA$2-S_Investeringsår-$I43+1)/$K43),1,0)) *(1+IF(ISBLANK($L43),S_Inflation,$L43))^(AA$2-S_Investeringsår) *(1+IF($C43="",0%,VLOOKUP($C43,Stamdata!$D$7:$E$15,2,0)))^(AA$2-S_Investeringsår) -> 0 | AB43: =$H43 *IF(AB$2>=$I43+S_Investeringsår-1,1,0) *IF(AB$2<=$J43+S_Investeringsår-1,1,0) *IF($K43=0,0,IF((AB$2-S_Investeringsår-$I43+1)/$K43=INT((AB$2-S_Investeringsår-$I43+1)/$K43),1,0)) *(1+IF(ISBLANK($L43),S_Inflation,$L43))^(AB$2-S_Investeringsår) *(1+IF($C43="",0%,VLOOKUP($C43,Stamdata!$D$7:$E$15,2,0)))^(AB$2-S_Investeringsår) -> 0 | AC43: =$H43 *IF(AC$2>=$I43+S_Investeringsår-1,1,0) *IF(AC$2<=$J43+S_Investeringsår-1,1,0) *IF($K43=0,0,IF((AC$2-S_Investeringsår-$I43+1)/$K43=INT((AC$2-S_Investeringsår-$I43+1)/$K43),1,0)) *(1+IF(ISBLANK($L43),S_Inflation,$L43))^(AC$2-S_Investeringsår) *(1+IF($C43="",0%,VLOOKUP($C43,Stamdata!$D$7:$E$15,2,0)))^(AC$2-S_Investeringsår) -> 0 | AD43: =$H43 *IF(AD$2>=$I43+S_Investeringsår-1,1,0) *IF(AD$2<=$J43+S_Investeringsår-1,1,0) *IF($K43=0,0,IF((AD$2-S_Investeringsår-$I43+1)/$K43=INT((AD$2-S_Investeringsår-$I43+1)/$K43),1,0)) *(1+IF(ISBLANK($L43),S_Inflation,$L43))^(AD$2-S_Investeringsår) *(1+IF($C43="",0%,VLOOKUP($C43,Stamdata!$D$7:$E$15,2,0)))^(AD$2-S_Investeringsår) -> 0 | AE43: =$H43 *IF(AE$2>=$I43+S_Investeringsår-1,1,0) *IF(AE$2<=$J43+S_Investeringsår-1,1,0) *IF($K43=0,0,IF((AE$2-S_Investeringsår-$I43+1)/$K43=INT((AE$2-S_Investeringsår-$I43+1)/$K43),1,0)) *(1+IF(ISBLANK($L43),S_Inflation,$L43))^(AE$2-S_Investeringsår) *(1+IF($C43="",0%,VLOOKUP($C43,Stamdata!$D$7:$E$15,2,0)))^(AE$2-S_Investeringsår) -> 0 | AF43: =$H43 *IF(AF$2>=$I43+S_Investeringsår-1,1,0) *IF(AF$2<=$J43+S_Investeringsår-1,1,0) *IF($K43=0,0,IF((AF$2-S_Investeringsår-$I43+1)/$K43=INT((AF$2-S_Investeringsår-$I43+1)/$K43),1,0)) *(1+IF(ISBLANK($L43),S_Inflation,$L43))^(AF$2-S_Investeringsår) *(1+IF($C43="",0%,VLOOKUP($C43,Stamdata!$D$7:$E$15,2,0)))^(AF$2-S_Investeringsår) -> 0 | AG43: =$H43 *IF(AG$2>=$I43+S_Investeringsår-1,1,0) *IF(AG$2<=$J43+S_Investeringsår-1,1,0) *IF($K43=0,0,IF((AG$2-S_Investeringsår-$I43+1)/$K43=INT((AG$2-S_Investeringsår-$I43+1)/$K43),1,0)) *(1+IF(ISBLANK($L43),S_Inflation,$L43))^(AG$2-S_Investeringsår) *(1+IF($C43="",0%,VLOOKUP($C43,Stamdata!$D$7:$E$15,2,0)))^(AG$2-S_Investeringsår) -> 0 | AH43: =$H43 *IF(AH$2>=$I43+S_Investeringsår-1,1,0) *IF(AH$2<=$J43+S_Investeringsår-1,1,0) *IF($K43=0,0,IF((AH$2-S_Investeringsår-$I43+1)/$K43=INT((AH$2-S_Investeringsår-$I43+1)/$K43),1,0)) *(1+IF(ISBLANK($L43),S_Inflation,$L43))^(AH$2-S_Investeringsår) *(1+IF($C43="",0%,VLOOKUP($C43,Stamdata!$D$7:$E$15,2,0)))^(AH$2-S_Investeringsår) -> 0 | AI43: =$H43 *IF(AI$2>=$I43+S_Investeringsår-1,1,0) *IF(AI$2<=$J43+S_Investeringsår-1,1,0) *IF($K43=0,0,IF((AI$2-S_Investeringsår-$I43+1)/$K43=INT((AI$2-S_Investeringsår-$I43+1)/$K43),1,0)) *(1+IF(ISBLANK($L43),S_Inflation,$L43))^(AI$2-S_Investeringsår) *(1+IF($C43="",0%,VLOOKUP($C43,Stamdata!$D$7:$E$15,2,0)))^(AI$2-S_Investeringsår) -> 0 | AJ43: =$H43 *IF(AJ$2>=$I43+S_Investeringsår-1,1,0) *IF(AJ$2<=$J43+S_Investeringsår-1,1,0) *IF($K43=0,0,IF((AJ$2-S_Investeringsår-$I43+1)/$K43=INT((AJ$2-S_Investeringsår-$I43+1)/$K43),1,0)) *(1+IF(ISBLANK($L43),S_Inflation,$L43))^(AJ$2-S_Investeringsår) *(1+IF($C43="",0%,VLOOKUP($C43,Stamdata!$D$7:$E$15,2,0)))^(AJ$2-S_Investeringsår) -> 0 | AK43: =$H43 *IF(AK$2>=$I43+S_Investeringsår-1,1,0) *IF(AK$2<=$J43+S_Investeringsår-1,1,0) *IF($K43=0,0,IF((AK$2-S_Investeringsår-$I43+1)/$K43=INT((AK$2-S_Investeringsår-$I43+1)/$K43),1,0)) *(1+IF(ISBLANK($L43),S_Inflation,$L43))^(AK$2-S_Investeringsår) *(1+IF($C43="",0%,VLOOKUP($C43,Stamdata!$D$7:$E$15,2,0)))^(AK$2-S_Investeringsår) -> 0 | AL43: =$H43 *IF(AL$2>=$I43+S_Investeringsår-1,1,0) *IF(AL$2<=$J43+S_Investeringsår-1,1,0) *IF($K43=0,0,IF((AL$2-S_Investeringsår-$I43+1)/$K43=INT((AL$2-S_Investeringsår-$I43+1)/$K43),1,0)) *(1+IF(ISBLANK($L43),S_Inflation,$L43))^(AL$2-S_Investeringsår) *(1+IF($C43="",0%,VLOOKUP($C43,Stamdata!$D$7:$E$15,2,0)))^(AL$2-S_Investeringsår) -> 0 | AM43: =$H43 *IF(AM$2>=$I43+S_Investeringsår-1,1,0) *IF(AM$2<=$J43+S_Investeringsår-1,1,0) *IF($K43=0,0,IF((AM$2-S_Investeringsår-$I43+1)/$K43=INT((AM$2-S_Investeringsår-$I43+1)/$K43),1,0)) *(1+IF(ISBLANK($L43),S_Inflation,$L43))^(AM$2-S_Investeringsår) *(1+IF($C43="",0%,VLOOKUP($C43,Stamdata!$D$7:$E$15,2,0)))^(AM$2-S_Investeringsår) -> 0 | AN43: =$H43 *IF(AN$2>=$I43+S_Investeringsår-1,1,0) *IF(AN$2<=$J43+S_Investeringsår-1,1,0) *IF($K43=0,0,IF((AN$2-S_Investeringsår-$I43+1)/$K43=INT((AN$2-S_Investeringsår-$I43+1)/$K43),1,0)) *(1+IF(ISBLANK($L43),S_Inflation,$L43))^(AN$2-S_Investeringsår) *(1+IF($C43="",0%,VLOOKUP($C43,Stamdata!$D$7:$E$15,2,0)))^(AN$2-S_Investeringsår) -> 0 | AO43: =$H43 *IF(AO$2>=$I43+S_Investeringsår-1,1,0) *IF(AO$2<=$J43+S_Investeringsår-1,1,0) *IF($K43=0,0,IF((AO$2-S_Investeringsår-$I43+1)/$K43=INT((AO$2-S_Investeringsår-$I43+1)/$K43),1,0)) *(1+IF(ISBLANK($L43),S_Inflation,$L43))^(AO$2-S_Investeringsår) *(1+IF($C43="",0%,VLOOKUP($C43,Stamdata!$D$7:$E$15,2,0)))^(AO$2-S_Investeringsår) -> 0 | AP43: =$H43 *IF(AP$2>=$I43+S_Investeringsår-1,1,0) *IF(AP$2<=$J43+S_Investeringsår-1,1,0) *IF($K43=0,0,IF((AP$2-S_Investeringsår-$I43+1)/$K43=INT((AP$2-S_Investeringsår-$I43+1)/$K43),1,0)) *(1+IF(ISBLANK($L43),S_Inflation,$L43))^(AP$2-S_Investeringsår) *(1+IF($C43="",0%,VLOOKUP($C43,Stamdata!$D$7:$E$15,2,0)))^(AP$2-S_Investeringsår) -> 0 | AQ43: =$H43 *IF(AQ$2>=$I43+S_Investeringsår-1,1,0) *IF(AQ$2<=$J43+S_Investeringsår-1,1,0) *IF($K43=0,0,IF((AQ$2-S_Investeringsår-$I43+1)/$K43=INT((AQ$2-S_Investeringsår-$I43+1)/$K43),1,0)) *(1+IF(ISBLANK($L43),S_Inflation,$L43))^(AQ$2-S_Investeringsår) *(1+IF($C43="",0%,VLOOKUP($C43,Stamdata!$D$7:$E$15,2,0)))^(AQ$2-S_Investeringsår) -> 0 | AR43: =$H43 *IF(AR$2>=$I43+S_Investeringsår-1,1,0) *IF(AR$2<=$J43+S_Investeringsår-1,1,0) *IF($K43=0,0,IF((AR$2-S_Investeringsår-$I43+1)/$K43=INT((AR$2-S_Investeringsår-$I43+1)/$K43),1,0)) *(1+IF(ISBLANK($L43),S_Inflation,$L43))^(AR$2-S_Investeringsår) *(1+IF($C43="",0%,VLOOKUP($C43,Stamdata!$D$7:$E$15,2,0)))^(AR$2-S_Investeringsår) -> 0 | AS43: =$H43 *IF(AS$2>=$I43+S_Investeringsår-1,1,0) *IF(AS$2<=$J43+S_Investeringsår-1,1,0) *IF($K43=0,0,IF((AS$2-S_Investeringsår-$I43+1)/$K43=INT((AS$2-S_Investeringsår-$I43+1)/$K43),1,0)) *(1+IF(ISBLANK($L43),S_Inflation,$L43))^(AS$2-S_Investeringsår) *(1+IF($C43="",0%,VLOOKUP($C43,Stamdata!$D$7:$E$15,2,0)))^(AS$2-S_Investeringsår) -> 0 | AT43: =$H43 *IF(AT$2>=$I43+S_Investeringsår-1,1,0) *IF(AT$2<=$J43+S_Investeringsår-1,1,0) *IF($K43=0,0,IF((AT$2-S_Investeringsår-$I43+1)/$K43=INT((AT$2-S_Investeringsår-$I43+1)/$K43),1,0)) *(1+IF(ISBLANK($L43),S_Inflation,$L43))^(AT$2-S_Investeringsår) *(1+IF($C43="",0%,VLOOKUP($C43,Stamdata!$D$7:$E$15,2,0)))^(AT$2-S_Investeringsår) -> 0 | AU43: =$H43 *IF(AU$2>=$I43+S_Investeringsår-1,1,0) *IF(AU$2<=$J43+S_Investeringsår-1,1,0) *IF($K43=0,0,IF((AU$2-S_Investeringsår-$I43+1)/$K43=INT((AU$2-S_Investeringsår-$I43+1)/$K43),1,0)) *(1+IF(ISBLANK($L43),S_Inflation,$L43))^(AU$2-S_Investeringsår) *(1+IF($C43="",0%,VLOOKUP($C43,Stamdata!$D$7:$E$15,2,0)))^(AU$2-S_Investeringsår) -> 0 | AV43: =$H43 *IF(AV$2>=$I43+S_Investeringsår-1,1,0) *IF(AV$2<=$J43+S_Investeringsår-1,1,0) *IF($K43=0,0,IF((AV$2-S_Investeringsår-$I43+1)/$K43=INT((AV$2-S_Investeringsår-$I43+1)/$K43),1,0)) *(1+IF(ISBLANK($L43),S_Inflation,$L43))^(AV$2-S_Investeringsår) *(1+IF($C43="",0%,VLOOKUP($C43,Stamdata!$D$7:$E$15,2,0)))^(AV$2-S_Investeringsår) -> 0 | AW43: =$H43 *IF(AW$2>=$I43+S_Investeringsår-1,1,0) *IF(AW$2<=$J43+S_Investeringsår-1,1,0) *IF($K43=0,0,IF((AW$2-S_Investeringsår-$I43+1)/$K43=INT((AW$2-S_Investeringsår-$I43+1)/$K43),1,0)) *(1+IF(ISBLANK($L43),S_Inflation,$L43))^(AW$2-S_Investeringsår) *(1+IF($C43="",0%,VLOOKUP($C43,Stamdata!$D$7:$E$15,2,0)))^(AW$2-S_Investeringsår) -> 0 | AX43: =$H43 *IF(AX$2>=$I43+S_Investeringsår-1,1,0) *IF(AX$2<=$J43+S_Investeringsår-1,1,0) *IF($K43=0,0,IF((AX$2-S_Investeringsår-$I43+1)/$K43=INT((AX$2-S_Investeringsår-$I43+1)/$K43),1,0)) *(1+IF(ISBLANK($L43),S_Inflation,$L43))^(AX$2-S_Investeringsår) *(1+IF($C43="",0%,VLOOKUP($C43,Stamdata!$D$7:$E$15,2,0)))^(AX$2-S_Investeringsår) -> 0 | AY43: =$H43 *IF(AY$2>=$I43+S_Investeringsår-1,1,0) *IF(AY$2<=$J43+S_Investeringsår-1,1,0) *IF($K43=0,0,IF((AY$2-S_Investeringsår-$I43+1)/$K43=INT((AY$2-S_Investeringsår-$I43+1)/$K43),1,0)) *(1+IF(ISBLANK($L43),S_Inflation,$L43))^(AY$2-S_Investeringsår) *(1+IF($C43="",0%,VLOOKUP($C43,Stamdata!$D$7:$E$15,2,0)))^(AY$2-S_Investeringsår) -> 0 | BB43: 0 | BD43: 0 | BE43: 0 | BF43: 0 | BG43: 0 | BH43: 0 | BI43: 0 | BJ43: 0 | BK43: 0 | BL43: 0 | BM43: 0 | BN43: 0 | BO43: 0 | BP43: 0 | BQ43: 0 | BR43: 0 | BS43: 0 | BT43: 0 | BU43: 0 | BV43: 0 | BW43: 0 | BX43: 0 | BY43: 0 | BZ43: 0 | CA43: 0 | CB43: 0 | CC43: 0 | CD43: 0 | CE43: 0 | CF43: 0 | CG43: 0 | CH43: 0
B44: Elbesparelse | P44: 0 | T44: 0 | U44: =SUMIF($C$38:$C$43,"El",U$38:U$43) -> 0 | V44: 0 | W44: 0 | X44: 0 | Y44: 0 | Z44: 0 | AA44: 0 | AB44: 0 | AC44: 0 | AD44: 0 | AE44: 0 | AF44: 0 | AG44: 0 | AH44: 0 | AI44: 0 | AJ44: 0 | AK44: 0 | AL44: 0 | AM44: 0 | AN44: 0 | AO44: 0 | AP44: 0 | AQ44: 0 | AR44: 0 | AS44: 0 | AT44: 0 | AU44: 0 | AV44: 0 | AW44: 0 | AX44: 0 | AY44: 0 | BB44: 0 | BD44: =SUMIF($C$38:$C$43,"El",BD$38:BD$43) -> 0 | BE44: =SUMIF($C$38:$C$43,"El",BE$38:BE$43) -> 0 | BF44: 0 | BG44: 0 | BH44: 0 | BI44: 0 | BJ44: 0 | BK44: 0 | BL44: 0 | BM44: 0 | BN44: 0 | BO44: 0 | BP44: 0 | BQ44: 0 | BR44: 0 | BS44: 0 | BT44: 0 | BU44: 0 | BV44: 0 | BW44: 0 | BX44: 0 | BY44: 0 | BZ44: 0 | CA44: 0 | CB44: 0 | CC44: 0 | CD44: 0 | CE44: 0 | CF44: 0 | CG44: 0 | CH44: 0
B45: Varmebesparelse | P45: 543115.836 | T45: 543115.836 | U45: =SUMIF($C$38:$C$43,"Fjernvarme",U$38:U$43)+SUMIF($C$38:$C$43,"Naturgas",U$38:U$43)+SUMIF($C$38:$C$43,"Gasolie",U$38:U$43)+SUMIF($C$38:$C$43,"Træpiller",U$38:U$43) -> 2450 | V45: =SUMIF($C$38:$C$43,"Fjernvarme",V$38:V$43)+SUMIF($C$38:$C$43,"Naturgas",V$38:V$43)+SUMIF($C$38:$C$43,"Gasolie",V$38:V$43)+SUMIF($C$38:$C$43,"Træpiller",V$38:V$43) -> 2503.82699 | W45: 2558.83657 | X45: 2615.054721 | Y45: 2672.507996 | Z45: 2731.223531 | AA45: 2791.229059 | AB45: 2852.552919 | AC45: 2915.224077 | AD45: 2979.272133 | AE45: 3044.727338 | AF45: 3111.620607 | AG45: 3179.983534 | AH45: 3249.848408 | AI45: 3321.248227 | AJ45: 28511.42041 | AK45: 29137.82202 | AL45: 29777.98579 | AM45: 30432.2141 | AN45: 31100.81593 | AO45: 31784.10707 | AP45: 32482.41026 | AQ45: 33196.05531 | AR45: 33925.37929 | AS45: 34670.72665 | AT45: 35432.44945 | AU45: 36210.90745 | AV45: 37006.46833 | AW45: 37819.50784 | AX45: 38650.41 | AY45: 0 | BB45: 271.557918 | BD45: =SUMIF($C$38:$C$43,"Fjernvarme",BD$38:BD$43)+SUMIF($C$38:$C$43,"Naturgas",BD$38:BD$43)+SUMIF($C$38:$C$43,"Gasolie",BD$38:BD$43)+SUMIF($C$38:$C$43,"Træpiller",BD$38:BD$43) -> 1.225 | BE45: =SUMIF($C$38:$C$43,"Fjernvarme",BE$38:BE$43)+SUMIF($C$38:$C$43,"Naturgas",BE$38:BE$43)+SUMIF($C$38:$C$43,"Gasolie",BE$38:BE$43)+SUMIF($C$38:$C$43,"Træpiller",BE$38:BE$43) -> 1.251913495 | BF45: 1.279418285 | BG45: 1.30752736 | BH45: 1.336253998 | BI45: 1.365611766 | BJ45: 1.395614529 | BK45: 1.42627646 | BL45: 1.457612039 | BM45: 1.489636067 | BN45: 1.522363669 | BO45: 1.555810303 | BP45: 1.589991767 | BQ45: 1.624924204 | BR45: 1.660624114 | BS45: 14.2557102 | BT45: 14.56891101 | BU45: 14.8889929 | BV45: 15.21610705 | BW45: 15.55040796 | BX45: 15.89205354 | BY45: 16.24120513 | BZ45: 16.59802766 | CA45: 16.96268964 | CB45: 17.33536333 | CC45: 17.71622473 | CD45: 18.10545373 | CE45: 18.50323417 | CF45: 18.90975392 | CG45: 19.325205 | CH45: 0
B46: Vandbesparelse | P46: 0 | T46: 0 | U46: =SUMIF($C$38:$C$43,"Vand",U$38:U$43) -> 0 | V46: 0 | W46: 0 | X46: 0 | Y46: 0 | Z46: 0 | AA46: 0 | AB46: 0 | AC46: 0 | AD46: 0 | AE46: 0 | AF46: 0 | AG46: 0 | AH46: 0 | AI46: 0 | AJ46: 0 | AK46: 0 | AL46: 0 | AM46: 0 | AN46: 0 | AO46: 0 | AP46: 0 | AQ46: 0 | AR46: 0 | AS46: 0 | AT46: 0 | AU46: 0 | AV46: 0 | AW46: 0 | AX46: 0 | AY46: 0 | BB46: 0 | BD46: =SUMIF($C$38:$C$43,"Vand",BD$38:BD$43) -> 0 | BE46: =SUMIF($C$38:$C$43,"Vand",BE$38:BE$43) -> 0 | BF46: 0 | BG46: 0 | BH46: 0 | BI46: 0 | BJ46: 0 | BK46: 0 | BL46: 0 | BM46: 0 | BN46: 0 | BO46: 0 | BP46: 0 | BQ46: 0 | BR46: 0 | BS46: 0 | BT46: 0 | BU46: 0 | BV46: 0 | BW46: 0 | BX46: 0 | BY46: 0 | BZ46: 0 | CA46: 0 | CB46: 0 | CC46: 0 | CD46: 0 | CE46: 0 | CF46: 0 | CG46: 0 | CH46: 0
A47: Non-Energy Benefits | H47: Periodisk beløb [kr.] | I47: Første gang [år] | J47: Sidste gang [år] | K47: Interval [år] | L47: Pris- udvikling [%] | P47: SUM [kr.] | Q47: =A47 -> Non-Energy Benefits | T47: SUM | U47: =S_Investeringsår -> 2014 | V47: =U47+1 -> 2015 | W47: =V47+1 -> 2016 | X47: 2017 | Y47: 2018 | Z47: 2019 | AA47: 2020 | AB47: 2021 | AC47: 2022 | AD47: 2023 | AE47: 2024 | AF47: 2025 | AG47: 2026 | AH47: 2027 | AI47: 2028 | AJ47: 2029 | AK47: 2030 | AL47: 2031 | AM47: 2032 | AN47: 2033 | AO47: 2034 | AP47: 2035 | AQ47: 2036 | AR47: 2037 | AS47: 2038 | AT47: 2039 | AU47: 2040 | AV47: 2041 | AW47: 2042 | AX47: 2043 | AY47: 2044 | BB47: SUM | BC47: =A47 -> Non-Energy Benefits | BD47: =S_Investeringsår -> 2014 | BE47: =BD47+1 -> 2015 | BF47: 2016 | BG47: 2017 | BH47: 2018 | BI47: 2019 | BJ47: 2020 | BK47: 2021 | BL47: 2022 | BM47: 2023 | BN47: 2024 | BO47: 2025 | BP47: 2026 | BQ47: 2027 | BR47: 2028 | BS47: 2029 | BT47: 2030 | BU47: 2031 | BV47: 2032 | BW47: 2033 | BX47: 2034 | BY47: 2035 | BZ47: 2036 | CA47: 2037 | CB47: 2038 | CC47: 2039 | CD47: 2040 | CE47: 2041 | CF47: 2042 | CG47: 2043 | CH47: 2044 | CJ47: =A47 -> Non-Energy Benefits
B48: - | H48: 0 | I48: 0 | J48: 0 | K48: 0 | L48: =S_Inflation -> 0.018 | P48: =T48 -> 0 | T48: =SUM(U48:AY48) -> 0 | U48: =$H48 *IF(U$2>=$I48+S_Investeringsår-1,1,0) *IF(U$2<=$J48+S_Investeringsår-1,1,0) *IF($K48=0,0,IF((U$2-S_Investeringsår-$I48+1)/$K48=INT((U$2-S_Investeringsår-$I48+1)/$K48),1,0)) *(1+IF(ISBLANK($L48),S_Inflation,$L48))^(U$2-S_Investeringsår) -> 0 | V48: =$H48 *IF(V$2>=$I48+S_Investeringsår-1,1,0) *IF(V$2<=$J48+S_Investeringsår-1,1,0) *IF($K48=0,0,IF((V$2-S_Investeringsår-$I48+1)/$K48=INT((V$2-S_Investeringsår-$I48+1)/$K48),1,0)) *(1+IF(ISBLANK($L48),S_Inflation,$L48))^(V$2-S_Investeringsår) -> 0 | W48: 0 | X48: 0 | Y48: 0 | Z48: 0 | AA48: 0 | AB48: 0 | AC48: 0 | AD48: 0 | AE48: =$H48 *IF(AE$2>=$I48+S_Investeringsår-1,1,0) *IF(AE$2<=$J48+S_Investeringsår-1,1,0) *IF($K48=0,0,IF((AE$2-S_Investeringsår-$I48+1)/$K48=INT((AE$2-S_Investeringsår-$I48+1)/$K48),1,0)) *(1+IF(ISBLANK($L48),S_Inflation,$L48))^(AE$2-S_Investeringsår) -> 0 | AF48: 0 | AG48: 0 | AH48: 0 | AI48: 0 | AJ48: 0 | AK48: 0 | AL48: 0 | AM48: 0 | AN48: 0 | AO48: =$H48 *IF(AO$2>=$I48+S_Investeringsår-1,1,0) *IF(AO$2<=$J48+S_Investeringsår-1,1,0) *IF($K48=0,0,IF((AO$2-S_Investeringsår-$I48+1)/$K48=INT((AO$2-S_Investeringsår-$I48+1)/$K48),1,0)) *(1+IF(ISBLANK($L48),S_Inflation,$L48))^(AO$2-S_Investeringsår) -> 0 | AP48: 0 | AQ48: 0 | AR48: 0 | AS48: 0 | AT48: 0 | AU48: 0 | AV48: 0 | AW48: 0 | AX48: 0 | AY48: 0 | BB48: =SUM(BD48:CH48) -> 0 | BD48: =U48/S_Areal -> 0 | BE48: 0 | BF48: 0 | BG48: 0 | BH48: 0 | BI48: 0 | BJ48: 0 | BK48: 0 | BL48: 0 | BM48: 0 | BN48: =AE48/S_Areal -> 0 | BO48: 0 | BP48: 0 | BQ48: 0 | BR48: 0 | BS48: 0 | BT48: 0 | BU48: 0 | BV48: 0 | BW48: 0 | BX48: =AO48/S_Areal -> 0 | BY48: 0 | BZ48: 0 | CA48: 0 | CB48: 0 | CC48: 0 | CD48: 0 | CE48: 0 | CF48: 0 | CG48: 0 | CH48: =AY48/S_Areal -> 0
B49: - | H49: 0 | I49: 0 | J49: 0 | K49: 0 | L49: 0.018 | P49: 0 | T49: 0 | U49: 0 | V49: 0 | W49: 0 | X49: 0 | Y49: 0 | Z49: 0 | AA49: 0 | AB49: 0 | AC49: 0 | AD49: 0 | AE49: 0 | AF49: 0 | AG49: 0 | AH49: 0 | AI49: 0 | AJ49: 0 | AK49: 0 | AL49: 0 | AM49: 0 | AN49: 0 | AO49: 0 | AP49: 0 | AQ49: 0 | AR49: 0 | AS49: 0 | AT49: 0 | AU49: 0 | AV49: 0 | AW49: 0 | AX49: 0 | AY49: 0 | BB49: 0 | BD49: 0 | BE49: 0 | BF49: 0 | BG49: 0 | BH49: 0 | BI49: 0 | BJ49: 0 | BK49: 0 | BL49: 0 | BM49: 0 | BN49: 0 | BO49: 0 | BP49: 0 | BQ49: 0 | BR49: 0 | BS49: 0 | BT49: 0 | BU49: 0 | BV49: 0 | BW49: 0 | BX49: 0 | BY49: 0 | BZ49: 0 | CA49: 0 | CB49: 0 | CC49: 0 | CD49: 0 | CE49: 0 | CF49: 0 | CG49: 0 | CH49: 0
B50: - | H50: 0 | I50: 0 | J50: 0 | K50: 0 | L50: 0.018 | P50: 0 | T50: 0 | U50: 0 | V50: 0 | W50: 0 | X50: 0 | Y50: 0 | Z50: 0 | AA50: 0 | AB50: 0 | AC50: 0 | AD50: 0 | AE50: 0 | AF50: 0 | AG50: 0 | AH50: 0 | AI50: 0 | AJ50: 0 | AK50: 0 | AL50: 0 | AM50: 0 | AN50: 0 | AO50: 0 | AP50: 0 | AQ50: 0 | AR50: 0 | AS50: 0 | AT50: 0 | AU50: 0 | AV50: 0 | AW50: 0 | AX50: 0 | AY50: 0 | BB50: 0 | BD50: 0 | BE50: 0 | BF50: 0 | BG50: 0 | BH50: 0 | BI50: 0 | BJ50: 0 | BK50: 0 | BL50: 0 | BM50: 0 | BN50: 0 | BO50: 0 | BP50: 0 | BQ50: 0 | BR50: 0 | BS50: 0 | BT50: 0 | BU50: 0 | BV50: 0 | BW50: 0 | BX50: 0 | BY50: 0 | BZ50: 0 | CA50: 0 | CB50: 0 | CC50: 0 | CD50: 0 | CE50: 0 | CF50: 0 | CG50: 0 | CH50: 0
B51: - | H51: 0 | I51: 0 | J51: 0 | K51: 0 | L51: 0.018 | P51: 0 | T51: 0 | U51: 0 | V51: 0 | W51: 0 | X51: 0 | Y51: 0 | Z51: 0 | AA51: 0 | AB51: 0 | AC51: 0 | AD51: 0 | AE51: 0 | AF51: 0 | AG51: 0 | AH51: 0 | AI51: 0 | AJ51: 0 | AK51: 0 | AL51: 0 | AM51: 0 | AN51: 0 | AO51: 0 | AP51: 0 | AQ51: 0 | AR51: 0 | AS51: 0 | AT51: 0 | AU51: 0 | AV51: 0 | AW51: 0 | AX51: 0 | AY51: 0 | BB51: 0 | BD51: 0 | BE51: 0 | BF51: 0 | BG51: 0 | BH51: 0 | BI51: 0 | BJ51: 0 | BK51: 0 | BL51: 0 | BM51: 0 | BN51: 0 | BO51: 0 | BP51: 0 | BQ51: 0 | BR51: 0 | BS51: 0 | BT51: 0 | BU51: 0 | BV51: 0 | BW51: 0 | BX51: 0 | BY51: 0 | BZ51: 0 | CA51: 0 | CB51: 0 | CC51: 0 | CD51: 0 | CE51: 0 | CF51: 0 | CG51: 0 | CH51: 0
B52: - | H52: 0 | I52: 0 | J52: 0 | K52: 0 | L52: 0.018 | P52: 0 | T52: 0 | U52: 0 | V52: 0 | W52: 0 | X52: 0 | Y52: 0 | Z52: 0 | AA52: 0 | AB52: 0 | AC52: 0 | AD52: 0 | AE52: 0 | AF52: 0 | AG52: 0 | AH52: 0 | AI52: 0 | AJ52: 0 | AK52: 0 | AL52: 0 | AM52: 0 | AN52: 0 | AO52: 0 | AP52: 0 | AQ52: 0 | AR52: 0 | AS52: 0 | AT52: 0 | AU52: 0 | AV52: 0 | AW52: 0 | AX52: 0 | AY52: 0 | BB52: 0 | BD52: 0 | BE52: 0 | BF52: 0 | BG52: 0 | BH52: 0 | BI52: 0 | BJ52: 0 | BK52: 0 | BL52: 0 | BM52: 0 | BN52: 0 | BO52: 0 | BP52: 0 | BQ52: 0 | BR52: 0 | BS52: 0 | BT52: 0 | BU52: 0 | BV52: 0 | BW52: 0 | BX52: 0 | BY52: 0 | BZ52: 0 | CA52: 0 | CB52: 0 | CC52: 0 | CD52: 0 | CE52: 0 | CF52: 0 | CG52: 0 | CH52: 0
B53: - | H53: 0 | I53: 0 | J53: 0 | K53: 0 | L53: 0.018 | P53: 0 | T53: 0 | U53: 0 | V53: 0 | W53: 0 | X53: 0 | Y53: 0 | Z53: 0 | AA53: 0 | AB53: 0 | AC53: 0 | AD53: 0 | AE53: 0 | AF53: 0 | AG53: 0 | AH53: 0 | AI53: 0 | AJ53: 0 | AK53: 0 | AL53: 0 | AM53: 0 | AN53: 0 | AO53: 0 | AP53: 0 | AQ53: 0 | AR53: 0 | AS53: 0 | AT53: 0 | AU53: 0 | AV53: 0 | AW53: 0 | AX53: 0 | AY53: 0 | BB53: 0 | BD53: 0 | BE53: 0 | BF53: 0 | BG53: 0 | BH53: 0 | BI53: 0 | BJ53: 0 | BK53: 0 | BL53: 0 | BM53: 0 | BN53: 0 | BO53: 0 | BP53: 0 | BQ53: 0 | BR53: 0 | BS53: 0 | BT53: 0 | BU53: 0 | BV53: 0 | BW53: 0 | BX53: 0 | BY53: 0 | BZ53: 0 | CA53: 0 | CB53: 0 | CC53: 0 | CD53: 0 | CE53: 0 | CF53: 0 | CG53: 0 | CH53: 0
B54: Non Energy Benefits | P54: 0 | T54: 0 | U54: =SUM(U48:U53) -> 0 | V54: 0 | W54: 0 | X54: 0 | Y54: 0 | Z54: 0 | AA54: 0 | AB54: 0 | AC54: 0 | AD54: 0 | AE54: 0 | AF54: 0 | AG54: 0 | AH54: 0 | AI54: 0 | AJ54: 0 | AK54: 0 | AL54: 0 | AM54: 0 | AN54: 0 | AO54: 0 | AP54: 0 | AQ54: 0 | AR54: 0 | AS54: 0 | AT54: 0 | AU54: 0 | AV54: 0 | AW54: 0 | AX54: 0 | AY54: 0 | BB54: 0 | BD54: =SUM(BD48:BD53) -> 0 | BE54: 0 | BF54: 0 | BG54: 0 | BH54: 0 | BI54: 0 | BJ54: 0 | BK54: 0 | BL54: 0 | BM54: 0 | BN54: 0 | BO54: 0 | BP54: 0 | BQ54: 0 | BR54: 0 | BS54: 0 | BT54: 0 | BU54: 0 | BV54: 0 | BW54: 0 | BX54: 0 | BY54: 0 | BZ54: 0 | CA54: 0 | CB54: 0 | CC54: 0 | CD54: 0 | CE54: 0 | CF54: 0 | CG54: 0 | CH54: 0
A55: Huslejeændring (kr./m2) | O55: Gennemsnit over 30 år [kr.] | P55: SUM år 1 [kr.] | Q55: =A55 -> Huslejeændring (kr./m2) | BC55: =A55 -> Huslejeændring (kr./m2) | BD55: =S_Investeringsår -> 2014 | BE55: =BD55+1 -> 2015 | BF55: =BE55+1 -> 2016 | BG55: 2017 | BH55: 2018 | BI55: 2019 | BJ55: 2020 | BK55: 2021 | BL55: 2022 | BM55: 2023 | BN55: 2024 | BO55: 2025 | BP55: 2026 | BQ55: 2027 | BR55: 2028 | BS55: 2029 | BT55: 2030 | BU55: 2031 | BV55: 2032 | BW55: 2033 | BX55: 2034 | BY55: 2035 | BZ55: 2036 | CA55: 2037 | CB55: 2038 | CC55: 2039 | CD55: 2040 | CE55: 2041 | CF55: 2042 | CG55: 2043 | CH55: 2044
B56: Henlæggelse til investeringer og reinvestringer | O56: =SUM(BD56:CG56)/S_Beregningsperiode -> -56.07304188 | P56: =BD56 -> -64.01179143 | BB56: =SUM(BD56:CG56) -> -1682.191257 | BD56: =BD10 -> -64.01179143 | BE56: -64.01179143 | BF56: -64.01179143 | BG56: -64.01179143 | BH56: -64.01179143 | BI56: -64.01179143 | BJ56: -64.01179143 | BK56: -64.01179143 | BL56: -64.01179143 | BM56: -64.01179143 | BN56: -64.01179143 | BO56: -64.01179143 | BP56: -64.01179143 | BQ56: -64.01179143 | BR56: -64.01179143 | BS56: -48.13429234 | BT56: -48.13429234 | BU56: -48.13429234 | BV56: -48.13429234 | BW56: -48.13429234 | BX56: -48.13429234 | BY56: -48.13429234 | BZ56: -48.13429234 | CA56: -48.13429234 | CB56: -48.13429234 | CC56: -48.13429234 | CD56: -48.13429234 | CE56: -48.13429234 | CF56: -48.13429234 | CG56: -48.13429234 | CH56: 0
B57: Henlæggelse til fremtidig vedligehold | O57: -5.313786525 | P57: -10.41082221 | BB57: =SUM(BD57:CG57) -> -159.4135958 | BD57: =BD21 -> -10.41082221 | BE57: -10.41082221 | BF57: -10.41082221 | BG57: -10.41082221 | BH57: -10.41082221 | BI57: -10.41082221 | BJ57: -10.41082221 | BK57: -10.41082221 | BL57: -10.8752883 | BM57: -10.8752883 | BN57: -10.8752883 | BO57: -10.8752883 | BP57: -10.8752883 | BQ57: -10.8752883 | BR57: -10.8752883 | BS57: 0 | BT57: 0 | BU57: 0 | BV57: 0 | BW57: 0 | BX57: 0 | BY57: 0 | BZ57: 0 | CA57: 0 | CB57: 0 | CC57: 0 | CD57: 0 | CE57: 0 | CF57: 0 | CG57: 0 | CH57: 0
B58: Tilskud | O58: =SUM(BD58:CG58)/S_Beregningsperiode -> 0.0175 | P58: 0.525 | BB58: 0.525 | BD58: =BD30 -> 0.525 | BE58: =BE30 -> 0 | BF58: 0 | BG58: 0 | BH58: 0 | BI58: 0 | BJ58: 0 | BK58: 0 | BL58: 0 | BM58: 0 | BN58: 0 | BO58: 0 | BP58: 0 | BQ58: 0 | BR58: 0 | BS58: 0 | BT58: 0 | BU58: 0 | BV58: 0 | BW58: 0 | BX58: 0 | BY58: 0 | BZ58: 0 | CA58: 0 | CB58: 0 | CC58: 0 | CD58: 0 | CE58: 0 | CF58: 0 | CG58: 0 | CH58: 0
B59: Ydelse | O59: -5.304191786 | P59: -5.304191786 | BB59: -159.1257536 | BD59: =U32/S_Areal -> -5.304191786 | BE59: -5.304191786 | BF59: -5.304191786 | BG59: -5.304191786 | BH59: -5.304191786 | BI59: -5.304191786 | BJ59: -5.304191786 | BK59: -5.304191786 | BL59: -5.304191786 | BM59: -5.304191786 | BN59: -5.304191786 | BO59: -5.304191786 | BP59: -5.304191786 | BQ59: -5.304191786 | BR59: -5.304191786 | BS59: -5.304191786 | BT59: -5.304191786 | BU59: -5.304191786 | BV59: -5.304191786 | BW59: -5.304191786 | BX59: -5.304191786 | BY59: -5.304191786 | BZ59: -5.304191786 | CA59: -5.304191786 | CB59: -5.304191786 | CC59: -5.304191786 | CD59: -5.304191786 | CE59: -5.304191786 | CF59: -5.304191786 | CG59: -5.304191786 | CH59: 0
B60: Elbesparelse | O60: 0 | P60: 0 | BB60: 0 | BD60: =BD44 -> 0 | BE60: 0 | BF60: 0 | BG60: 0 | BH60: 0 | BI60: 0 | BJ60: 0 | BK60: 0 | BL60: 0 | BM60: 0 | BN60: 0 | BO60: 0 | BP60: 0 | BQ60: 0 | BR60: 0 | BS60: 0 | BT60: 0 | BU60: 0 | BV60: 0 | BW60: 0 | BX60: 0 | BY60: 0 | BZ60: 0 | CA60: 0 | CB60: 0 | CC60: 0 | CD60: 0 | CE60: 0 | CF60: 0 | CG60: 0 | CH60: 0
B61: Varmebesparelse | O61: 9.0519306 | P61: =BD61 -> 1.225 | BB61: 271.557918 | BD61: =BD45 -> 1.225 | BE61: 1.251913495 | BF61: 1.279418285 | BG61: 1.30752736 | BH61: 1.336253998 | BI61: 1.365611766 | BJ61: 1.395614529 | BK61: 1.42627646 | BL61: 1.457612039 | BM61: 1.489636067 | BN61: 1.522363669 | BO61: 1.555810303 | BP61: 1.589991767 | BQ61: 1.624924204 | BR61: 1.660624114 | BS61: 14.2557102 | BT61: 14.56891101 | BU61: 14.8889929 | BV61: 15.21610705 | BW61: 15.55040796 | BX61: 15.89205354 | BY61: 16.24120513 | BZ61: 16.59802766 | CA61: 16.96268964 | CB61: 17.33536333 | CC61: 17.71622473 | CD61: 18.10545373 | CE61: 18.50323417 | CF61: 18.90975392 | CG61: 19.325205 | CH61: 0
B62: Vandbesparelse | O62: 0 | P62: 0 | BB62: 0 | BD62: =BD46 -> 0 | BE62: 0 | BF62: 0 | BG62: 0 | BH62: 0 | BI62: 0 | BJ62: 0 | BK62: 0 | BL62: 0 | BM62: 0 | BN62: 0 | BO62: 0 | BP62: 0 | BQ62: 0 | BR62: 0 | BS62: 0 | BT62: 0 | BU62: 0 | BV62: 0 | BW62: 0 | BX62: 0 | BY62: 0 | BZ62: 0 | CA62: 0 | CB62: 0 | CC62: 0 | CD62: 0 | CE62: 0 | CF62: 0 | CG62: 0 | CH62: 0
B63: Non Energy Benefit | O63: 0 | P63: 0 | BB63: 0 | BD63: =BD54 -> 0 | BE63: 0 | BF63: 0 | BG63: 0 | BH63: 0 | BI63: 0 | BJ63: 0 | BK63: 0 | BL63: 0 | BM63: 0 | BN63: 0 | BO63: 0 | BP63: 0 | BQ63: 0 | BR63: 0 | BS63: 0 | BT63: 0 | BU63: 0 | BV63: 0 | BW63: 0 | BX63: 0 | BY63: 0 | BZ63: 0 | CA63: 0 | CB63: 0 | CC63: 0 | CD63: 0 | CE63: 0 | CF63: 0 | CG63: 0 | CH63: 0
B64: Total inkl. driftsbesparelser og NEB | O64: -57.62158959 | P64: -77.97680543 | BB64: -1728.647688 | BD64: =SUM(BD56:BD63) -> -77.97680543 | BE64: -78.47489193 | BF64: -78.44738714 | BG64: -78.41927806 | BH64: -78.39055143 | BI64: -78.36119366 | BJ64: -78.3311909 | BK64: -78.30052897 | BL64: -78.73365948 | BM64: -78.70163545 | BN64: -78.66890785 | BO64: -78.63546121 | BP64: =SUM(BP56:BP63) -> -78.60127975 | BQ64: -78.56634731 | BR64: -78.5306474 | BS64: -39.18277392 | BT64: -38.86957311 | BU64: -38.54949123 | BV64: -38.22237707 | BW64: -37.88807616 | BX64: -37.54643059 | BY64: -37.19727899 | BZ64: -36.84045647 | CA64: -36.47579448 | CB64: -36.1031208 | CC64: -35.7222594 | CD64: -35.3330304 | CE64: -34.93524996 | CF64: -34.5287302 | CG64: -34.11327912 | CH64: 0
B65: Total eks. driftsbesparelser og NEB | O65: -66.67352019 | P65: =BD65 -> -79.20180543 | BB65: -2000.205606 | BD65: =SUM(BD56:BD59) -> -79.20180543 | BE65: =SUM(BE56:BE59) -> -79.72680543 | BF65: =SUM(BF56:BF59) -> -79.72680543 | BG65: -79.72680543 | BH65: -79.72680543 | BI65: -79.72680543 | BJ65: -79.72680543 | BK65: -79.72680543 | BL65: -80.19127151 | BM65: -80.19127151 | BN65: -80.19127151 | BO65: -80.19127151 | BP65: -80.19127151 | BQ65: -80.19127151 | BR65: -80.19127151 | BS65: -53.43848412 | BT65: -53.43848412 | BU65: -53.43848412 | BV65: -53.43848412 | BW65: -53.43848412 | BX65: -53.43848412 | BY65: -53.43848412 | BZ65: -53.43848412 | CA65: -53.43848412 | CB65: -53.43848412 | CC65: -53.43848412 | CD65: -53.43848412 | CE65: -53.43848412 | CF65: -53.43848412 | CG65: -53.43848412 | CH65: 0
B66: Gennemsnit de næste 30 år inkl. drift og NEB | O66: -57.62158959 | P66: =BD66 -> -57.62158959 | BB66: -1728.647688 | BD66: =SUM($BD$56:$CH$63)/S_Beregningsperiode -> -57.62158959 | BE66: =SUM($BD$56:$CH$63)/S_Beregningsperiode -> -57.62158959 | BF66: -57.62158959 | BG66: -57.62158959 | BH66: -57.62158959 | BI66: -57.62158959 | BJ66: -57.62158959 | BK66: -57.62158959 | BL66: -57.62158959 | BM66: -57.62158959 | BN66: -57.62158959 | BO66: -57.62158959 | BP66: -57.62158959 | BQ66: -57.62158959 | BR66: -57.62158959 | BS66: -57.62158959 | BT66: -57.62158959 | BU66: -57.62158959 | BV66: -57.62158959 | BW66: -57.62158959 | BX66: -57.62158959 | BY66: -57.62158959 | BZ66: -57.62158959 | CA66: -57.62158959 | CB66: -57.62158959 | CC66: -57.62158959 | CD66: -57.62158959 | CE66: -57.62158959 | CF66: -57.62158959 | CG66: -57.62158959 | CH66: -57.62158959
A71: Totaløkonomisk oversigt i nutidskroner | P71: SUM [nutidskr..] | U71: =S_Investeringsår -> 2014 | V71: =U71+1 -> 2015 | W71: =V71+1 -> 2016 | X71: 2017 | Y71: 2018 | Z71: 2019 | AA71: 2020 | AB71: 2021 | AC71: 2022 | AD71: 2023 | AE71: 2024 | AF71: 2025 | AG71: 2026 | AH71: 2027 | AI71: 2028 | AJ71: 2029 | AK71: 2030 | AL71: 2031 | AM71: 2032 | AN71: 2033 | AO71: 2034 | AP71: 2035 | AQ71: 2036 | AR71: 2037 | AS71: 2038 | AT71: 2039 | AU71: 2040 | AV71: 2041 | AW71: 2042 | AX71: 2043 | AY71: 2044
B72: Reinvesteringer (eksl. År 1) | P72: =T72 -> -907389.9654 | T72: =SUM(V72:AY72) -> -907389.9654 | U72: =U10 *(1+S_Tilbagediskonteringsrente)^-(U$2-S_Investeringsår) -> 0 | V72: 0 | W72: 0 | X72: 0 | Y72: 0 | Z72: 0 | AA72: 0 | AB72: 0 | AC72: 0 | AD72: 0 | AE72: 0 | AF72: 0 | AG72: 0 | AH72: 0 | AI72: 0 | AJ72: =AJ10 *(1+S_Tilbagediskonteringsrente)^-(AJ$2-S_Investeringsår) -> -907389.9654 | AK72: 0 | AL72: 0 | AM72: 0 | AN72: 0 | AO72: 0 | AP72: 0 | AQ72: 0 | AR72: 0 | AS72: 0 | AT72: 0 | AU72: 0 | AV72: 0 | AW72: 0 | AX72: 0 | AY72: 0
B73: Scrapværdi | P73: =T73 -> 219183.1341 | T73: =SUM(U73:BAY73) -> 219183.1341 | U73: =(U11+U22) *(1+S_Tilbagediskonteringsrente)^-(U$2-S_Investeringsår) -> 0 | V73: 0 | W73: 0 | X73: 0 | Y73: 0 | Z73: 0 | AA73: 0 | AB73: 0 | AC73: 0 | AD73: 0 | AE73: 0 | AF73: 0 | AG73: 0 | AH73: 0 | AI73: 0 | AJ73: 0 | AK73: 0 | AL73: 0 | AM73: 0 | AN73: 0 | AO73: 0 | AP73: 0 | AQ73: 0 | AR73: 0 | AS73: 0 | AT73: 0 | AU73: 0 | AV73: 0 | AW73: 0 | AX73: 219183.1341 | AY73: 0
B74: Vedligehold (eksl. År 1) | P74: -32788.16575 | T74: =SUM(V74:AY74) -> -32788.16575 | U74: =U21 *(1+S_Tilbagediskonteringsrente)^-(U$2-S_Investeringsår) -> -307929 | V74: 0 | W74: 0 | X74: 0 | Y74: 0 | Z74: 0 | AA74: 0 | AB74: 0 | AC74: -32788.16575 | AD74: 0 | AE74: 0 | AF74: 0 | AG74: 0 | AH74: 0 | AI74: 0 | AJ74: 0 | AK74: 0 | AL74: 0 | AM74: 0 | AN74: 0 | AO74: 0 | AP74: 0 | AQ74: 0 | AR74: 0 | AS74: 0 | AT74: 0 | AU74: 0 | AV74: 0 | AW74: 0 | AX74: 0 | AY74: 0
B75: Elbesparelse | P75: 0 | T75: =SUM(U75:AY75) -> 0 | U75: =U44 *(1+S_Tilbagediskonteringsrente)^-(U$2-S_Investeringsår) -> 0 | V75: 0 | W75: 0 | X75: 0 | Y75: 0 | Z75: 0 | AA75: 0 | AB75: 0 | AC75: 0 | AD75: 0 | AE75: 0 | AF75: 0 | AG75: 0 | AH75: 0 | AI75: 0 | AJ75: 0 | AK75: 0 | AL75: 0 | AM75: 0 | AN75: 0 | AO75: 0 | AP75: 0 | AQ75: 0 | AR75: 0 | AS75: 0 | AT75: 0 | AU75: 0 | AV75: 0 | AW75: 0 | AX75: 0 | AY75: 0
B76: Varmebesparelse | P76: 202003.5858 | T76: 202003.5858 | U76: =U45 *(1+S_Tilbagediskonteringsrente)^-(U$2-S_Investeringsår) -> 2450 | V76: 2384.597133 | W76: 2320.940199 | X76: 2258.98259 | Y76: 2198.678942 | Z76: 2139.985103 | AA76: 2082.858099 | AB76: 2027.256103 | AC76: 1973.138405 | AD76: 1920.465381 | AE76: 1869.198466 | AF76: 1819.300124 | AG76: 1770.733821 | AH76: 1723.463997 | AI76: 1677.456044 | AJ76: 13714.48071 | AK76: 13348.37199 | AL76: 12992.03657 | AM76: 12645.21353 | AN76: 12307.64895 | AO76: 11979.09568 | AP76: 11659.31315 | AQ76: 11348.06723 | AR76: 11045.13003 | AS76: 10750.27976 | AT76: 10463.30053 | AU76: 10183.98223 | AV76: 9912.120335 | AW76: 9647.515811 | AX76: 9389.974917 | AY76: 0
B77: Vandbesparelse | P77: 0 | T77: 0 | U77: =U46 *(1+S_Tilbagediskonteringsrente)^-(U$2-S_Investeringsår) -> 0 | V77: 0 | W77: 0 | X77: 0 | Y77: 0 | Z77: 0 | AA77: 0 | AB77: 0 | AC77: 0 | AD77: 0 | AE77: 0 | AF77: 0 | AG77: 0 | AH77: 0 | AI77: 0 | AJ77: 0 | AK77: 0 | AL77: 0 | AM77: 0 | AN77: 0 | AO77: 0 | AP77: 0 | AQ77: 0 | AR77: 0 | AS77: 0 | AT77: 0 | AU77: 0 | AV77: 0 | AW77: 0 | AX77: 0 | AY77: 0
B78: Non Energy Benefits | P78: 0 | T78: 0 | U78: =U54 *(1+S_Tilbagediskonteringsrente)^-(U$2-S_Investeringsår) -> 0 | V78: =V54 *(1+S_Tilbagediskonteringsrente)^-(V$2-S_Investeringsår) -> 0 | W78: =W54 *(1+S_Tilbagediskonteringsrente)^-(W$2-S_Investeringsår) -> 0 | X78: =X54 *(1+S_Tilbagediskonteringsrente)^-(X$2-S_Investeringsår) -> 0 | Y78: 0 | Z78: 0 | AA78: 0 | AB78: 0 | AC78: 0 | AD78: 0 | AE78: 0 | AF78: 0 | AG78: 0 | AH78: 0 | AI78: 0 | AJ78: 0 | AK78: 0 | AL78: 0 | AM78: 0 | AN78: 0 | AO78: 0 | AP78: 0 | AQ78: 0 | AR78: 0 | AS78: 0 | AT78: 0 | AU78: 0 | AV78: 0 | AW78: 0 | AX78: 0 | AY78: 0
B79: Ydelse | P79: -171230.6998 | T79: -171230.6998 | U79: =U32 *(1+S_Tilbagediskonteringsrente)^-(U$2-S_Investeringsår) -> -10608.38357 | V79: =V32 *(1+S_Tilbagediskonteringsrente)^-(V$2-S_Investeringsår) -> -10103.22245 | W79: -9622.116618 | X79: -9163.920588 | Y79: -8727.543418 | Z79: -8311.946112 | AA79: -7916.139154 | AB79: -7539.180147 | AC79: -7180.171568 | AD79: -6838.258637 | AE79: -6512.627273 | AF79: -6202.502165 | AG79: -5907.144919 | AH79: -5625.852304 | AI79: -5357.954575 | AJ79: -5102.813881 | AK79: -4859.822744 | AL79: -4628.402613 | AM79: -4408.002489 | AN79: -4198.097608 | AO79: -3998.188198 | AP79: -3807.798284 | AQ79: -3626.474556 | AR79: -3453.785292 | AS79: -3289.319325 | AT79: -3132.685072 | AU79: -2983.509592 | AV79: -2841.437707 | AW79: -2706.131149 | AX79: -2577.267761 | AY79: 0
B80: Egenfinansiering (brugt på at reducere lånebehovet og dermed ydelsen) | P80: =T80 -> -100000 | T80: -100000 | U80: =-U25 *(1+S_Tilbagediskonteringsrente)^-(U$2-S_Investeringsår) -> -100000
B81: Total nutidsværdi efter 30 år | P81: -790222.111 | T81: =SUM(U81:AY81) -> -790222.111 | U81: =SUM(U75:U80)+U73 -> -108158.3836 | V81: =SUM(V72:V80) -> -7718.625315 | W81: =SUM(W72:W80) -> -7301.176419 | X81: =SUM(X72:X80) -> -6904.937998 | Y81: =SUM(Y72:Y80) -> -6528.864475 | Z81: -6171.961009 | AA81: -5833.281055 | AB81: -5511.924044 | AC81: -37995.19891 | AD81: -4917.793256 | AE81: -4643.428807 | AF81: -4383.202041 | AG81: -4136.411098 | AH81: -3902.388307 | AI81: -3680.498531 | AJ81: -898778.2985 | AK81: 8488.549248 | AL81: 8363.633952 | AM81: 8237.211042 | AN81: 8109.551345 | AO81: 7980.90748 | AP81: 7851.514865 | AQ81: 7721.592673 | AR81: 7591.344742 | AS81: 7460.960436 | AT81: 7330.61546 | AU81: 7200.472633 | AV81: 7070.682628 | AW81: 6941.384661 | AX81: 225995.8412 | AY81: 0
B82: Resultalt (akkumuleret) | U82: =U81 -> -108158.3836 | V82: =U82+V81 -> -115877.0089 | W82: =V82+W81 -> -123178.1853 | X82: =W82+X81 -> -130083.1233 | Y82: =X82+Y81 -> -136611.9878 | Z82: =Y82+Z81 -> -142783.9488 | AA82: =Z82+AA81 -> -148617.2298 | AB82: -154129.1539 | AC82: -192124.3528 | AD82: -197042.1461 | AE82: -201685.5749 | AF82: -206068.7769 | AG82: -210205.188 | AH82: -214107.5763 | AI82: -217788.0748 | AJ82: -1116566.373 | AK82: -1108077.824 | AL82: -1099714.19 | AM82: -1091476.979 | AN82: -1083367.428 | AO82: -1075386.52 | AP82: -1067535.005 | AQ82: -1059813.413 | AR82: -1052222.068 | AS82: -1044761.108 | AT82: -1037430.492 | AU82: -1030230.019 | AV82: -1023159.337 | AW82: -1016217.952 | AX82: -790222.111 | AY82: -790222.111

Sheet Renovering
A1: TOTALØKONOMIBEREGNING | BD1: HUSLEJEÆNDRING (kr/m2)
A2: Investeringer og reinvesteringer | H2: Startinvest./ reinvest. [kr.] | I2: Første år for investering [år] | J2: Sidste år for reinvest. [år] | K2: Levetid/ interval [år] | L2: Pris- udvikling [%] | M2: Scrap- værdi [kr.] | N2: Afskrivnings- faktor [-] | O2: Antal reinvest. [stk.] | P2: SUM [kr.] | Q2: =A2 -> Investeringer og reinvesteringer | T2: SUM | U2: =S_Investeringsår -> 2014 | V2: =U2+1 -> 2015 | W2: =V2+1 -> 2016 | X2: 2017 | Y2: 2018 | Z2: 2019 | AA2: 2020 | AB2: 2021 | AC2: 2022 | AD2: 2023 | AE2: 2024 | AF2: 2025 | AG2: 2026 | AH2: 2027 | AI2: 2028 | AJ2: 2029 | AK2: 2030 | AL2: 2031 | AM2: 2032 | AN2: 2033 | AO2: 2034 | AP2: 2035 | AQ2: 2036 | AR2: 2037 | AS2: 2038 | AT2: 2039 | AU2: 2040 | AV2: 2041 | AW2: 2042 | AX2: 2043 | AY2: 2044 | BB2: SUM | BC2: =A2 -> Investeringer og reinvesteringer | BD2: =S_Investeringsår -> 2014 | BE2: =BD2+1 -> 2015 | BF2: =BE2+1 -> 2016 | BG2: 2017 | BH2: 2018 | BI2: 2019 | BJ2: 2020 | BK2: 2021 | BL2: 2022 | BM2: 2023 | BN2: 2024 | BO2: 2025 | BP2: 2026 | BQ2: 2027 | BR2: 2028 | BS2: 2029 | BT2: 2030 | BU2: 2031 | BV2: 2032 | BW2: 2033 | BX2: 2034 | BY2: 2035 | BZ2: 2036 | CA2: 2037 | CB2: 2038 | CC2: 2039 | CD2: 2040 | CE2: 2041 | CF2: 2042 | CG2: 2043 | CH2: 2044 | CJ2: =A2 -> Investeringer og reinvesteringer
B3: Udskiftning af eksisterende vinduer. Restlevetid 15 år. | H3: -1393500 | I3: 1 | J3: 30 | K3: 40 | L3: =S_Inflation -> 0.018 | M3: =-IF(ISBLANK(H3),0,(1+L3)^(K3*O3)*H3*(1-N3)) -> 348375 | N3: =IF((30-J3)>=K3,1,IF(K3>0,((S_Investeringsår+30)-(S_Investeringsår+I3-1+O3*K3))/K3,0)) -> 0.75 | O3: =IF(H3=0,0,ROUNDDOWN((J3-I3)/K3,0)) -> 0 | P3: =T3 -> -1393500 | T3: =SUM(U3:AY3) -> -1393500 | U3: =$H3 *IF(U$2>=$I3+S_Investeringsår-1,1,0) *IF(U$2<=$J3+S_Investeringsår-1,1,0) *IF($K3=0,0,IF((U$2-S_Investeringsår-$I3+1)/$K3=INT((U$2-S_Investeringsår-$I3+1)/$K3),1,0)) *(1+IF(ISBLANK($L3),S_Inflation,$L3))^(U$2-S_Investeringsår) -> -1393500 | V3: 0 | W3: 0 | X3: 0 | Y3: 0 | Z3: 0 | AA3: 0 | AB3: 0 | AC3: 0 | AD3: 0 | AE3: 0 | AF3: 0 | AG3: 0 | AH3: 0 | AI3: 0 | AJ3: 0 | AK3: =$H3 *IF(AK$2>=$I3+S_Investeringsår-1,1,0) *IF(AK$2<=$J3+S_Investeringsår-1,1,0) *IF($K3=0,0,IF((AK$2-S_Investeringsår-$I3+1)/$K3=INT((AK$2-S_Investeringsår-$I3+1)/$K3),1,0)) *(1+IF(ISBLANK($L3),S_Inflation,$L3))^(AK$2-S_Investeringsår) -> 0 | AL3: 0 | AM3: 0 | AN3: 0 | AO3: 0 | AP3: 0 | AQ3: 0 | AR3: 0 | AS3: 0 | AT3: 0 | AU3: 0 | AV3: 0 | AW3: 0 | AX3: 0 | AY3: 0 | BB3: =SUM(BD3:CH3) -> -1066.717355 | BD3: =IF(OR($K3=0,($I3)=0),0, IF(U$2<$I3+S_Investeringsår-1,$H3/($I3-1)*(1+$L3)^$I3,0) + IF($K3=0,0,IF((U$2-S_Investeringsår-$I3+1)/$K3=INT((U$2-S_Investeringsår-$I3+1)/$K3),$H3*(1+$L3)^(U$2-S_Investeringsår+$K3)/$K3,BC3*S_Areal)) *IF(U$2>=$I3+S_Investeringsår-1,1,0) *IF(U$2<=$J3+S_Investeringsår-1,1,0) )/S_Areal -> -35.55724516 | BE3: -35.55724516 | BF3: -35.55724516 | BG3: -35.55724516 | BH3: -35.55724516 | BI3: -35.55724516 | BJ3: -35.55724516 | BK3: -35.55724516 | BL3: -35.55724516 | BM3: -35.55724516 | BN3: =IF(OR($K3=0,($I3)=0),0, IF(AE$2<$I3+S_Investeringsår-1,$H3/($I3-1)*(1+$L3)^$I3,0) + IF($K3=0,0,IF((AE$2-S_Investeringsår-$I3+1)/$K3=INT((AE$2-S_Investeringsår-$I3+1)/$K3),$H3*(1+$L3)^(AE$2-S_Investeringsår+$K3)/$K3,BM3*S_Areal)) *IF(AE$2>=$I3+S_Investeringsår-1,1,0) *IF(AE$2<=$J3+S_Investeringsår-1,1,0) )/S_Areal -> -35.55724516 | BO3: -35.55724516 | BP3: -35.55724516 | BQ3: -35.55724516 | BR3: -35.55724516 | BS3: -35.55724516 | BT3: -35.55724516 | BU3: -35.55724516 | BV3: -35.55724516 | BW3: -35.55724516 | BX3: =IF(OR($K3=0,($I3)=0),0, IF(AO$2<$I3+S_Investeringsår-1,$H3/($I3-1)*(1+$L3)^$I3,0) + IF($K3=0,0,IF((AO$2-S_Investeringsår-$I3+1)/$K3=INT((AO$2-S_Investeringsår-$I3+1)/$K3),$H3*(1+$L3)^(AO$2-S_Investeringsår+$K3)/$K3,BW3*S_Areal)) *IF(AO$2>=$I3+S_Investeringsår-1,1,0) *IF(AO$2<=$J3+S_Investeringsår-1,1,0) )/S_Areal -> -35.55724516 | BY3: -35.55724516 | BZ3: -35.55724516 | CA3: -35.55724516 | CB3: -35.55724516 | CC3: -35.55724516 | CD3: -35.55724516 | CE3: -35.55724516 | CF3: -35.55724516 | CG3: -35.55724516 | CH3: =IF(OR($K3=0,($I3)=0),0, IF(AY$2<$I3+S_Investeringsår-1,$H3/($I3-1)*(1+$L3)^$I3,0) + IF($K3=0,0,IF((AY$2-S_Investeringsår-$I3+1)/$K3=INT((AY$2-S_Investeringsår-$I3+1)/$K3),$H3*(1+$L3)^(AY$2-S_Investeringsår+$K3)/$K3,CG3*S_Areal)) *IF(AY$2>=$I3+S_Investeringsår-1,1,0) *IF(AY$2<=$J3+S_Investeringsår-1,1,0) )/S_Areal -> 0
B4: Leje af lift/arbejdsplatform til udskiftning af vinduerne | H4: -50000 | I4: 1 | J4: 30 | K4: 40 | L4: 0.018 | M4: =-IF(ISBLANK(H4),0,(1+L4)^(K4*O4)*H4*(1-N4)) -> 12500 | N4: 0.75 | O4: =IF(H4=0,0,ROUNDDOWN((J4-I4)/K4,0)) -> 0 | P4: -50000 | T4: -50000 | U4: -50000 | V4: 0 | W4: 0 | X4: 0 | Y4: 0 | Z4: 0 | AA4: 0 | AB4: 0 | AC4: 0 | AD4: 0 | AE4: 0 | AF4: 0 | AG4: 0 | AH4: 0 | AI4: 0 | AJ4: 0 | AK4: 0 | AL4: 0 | AM4: 0 | AN4: 0 | AO4: 0 | AP4: 0 | AQ4: 0 | AR4: 0 | AS4: 0 | AT4: 0 | AU4: 0 | AV4: 0 | AW4: 0 | AX4: 0 | AY4: 0 | BB4: =SUM(BD4:CH4) -> -38.27475259 | BD4: -1.275825086 | BE4: -1.275825086 | BF4: -1.275825086 | BG4: -1.275825086 | BH4: -1.275825086 | BI4: -1.275825086 | BJ4: -1.275825086 | BK4: -1.275825086 | BL4: -1.275825086 | BM4: -1.275825086 | BN4: -1.275825086 | BO4: -1.275825086 | BP4: -1.275825086 | BQ4: -1.275825086 | BR4: -1.275825086 | BS4: -1.275825086 | BT4: -1.275825086 | BU4: -1.275825086 | BV4: -1.275825086 | BW4: -1.275825086 | BX4: -1.275825086 | BY4: -1.275825086 | BZ4: -1.275825086 | CA4: -1.275825086 | CB4: -1.275825086 | CC4: -1.275825086 | CD4: -1.275825086 | CE4: -1.275825086 | CF4: -1.275825086 | CG4: -1.275825086 | CH4: 0
B5: - | H5: 0 | I5: 0 | J5: 0 | K5: 0 | L5: 0.018 | M5: 0 | N5: 1 | O5: 0 | P5: 0 | T5: 0 | U5: 0 | V5: 0 | W5: 0 | X5: 0 | Y5: 0 | Z5: 0 | AA5: 0 | AB5: 0 | AC5: 0 | AD5: 0 | AE5: 0 | AF5: 0 | AG5: 0 | AH5: 0 | AI5: 0 | AJ5: 0 | AK5: 0 | AL5: 0 | AM5: 0 | AN5: 0 | AO5: 0 | AP5: 0 | AQ5: 0 | AR5: 0 | AS5: 0 | AT5: 0 | AU5: 0 | AV5: 0 | AW5: 0 | AX5: 0 | AY5: 0 | BB5: 0 | BD5: 0 | BE5: 0 | BF5: 0 | BG5: 0 | BH5: 0 | BI5: 0 | BJ5: 0 | BK5: 0 | BL5: 0 | BM5: 0 | BN5: 0 | BO5: 0 | BP5: 0 | BQ5: 0 | BR5: 0 | BS5: 0 | BT5: 0 | BU5: 0 | BV5: 0 | BW5: 0 | BX5: 0 | BY5: 0 | BZ5: 0 | CA5: 0 | CB5: 0 | CC5: 0 | CD5: 0 | CE5: 0 | CF5: 0 | CG5: 0 | CH5: 0
B6: - | H6: 0 | I6: 0 | J6: 0 | K6: 0 | L6: 0.018 | M6: 0 | N6: 1 | O6: 0 | P6: 0 | T6: 0 | U6: 0 | V6: 0 | W6: 0 | X6: 0 | Y6: 0 | Z6: 0 | AA6: 0 | AB6: 0 | AC6: 0 | AD6: 0 | AE6: 0 | AF6: 0 | AG6: 0 | AH6: 0 | AI6: 0 | AJ6: 0 | AK6: 0 | AL6: 0 | AM6: 0 | AN6: 0 | AO6: 0 | AP6: 0 | AQ6: 0 | AR6: 0 | AS6: 0 | AT6: 0 | AU6: 0 | AV6: 0 | AW6: 0 | AX6: 0 | AY6: 0 | BB6: 0 | BD6: 0 | BE6: 0 | BF6: 0 | BG6: 0 | BH6: 0 | BI6: 0 | BJ6: 0 | BK6: 0 | BL6: 0 | BM6: 0 | BN6: 0 | BO6: 0 | BP6: 0 | BQ6: 0 | BR6: 0 | BS6: 0 | BT6: 0 | BU6: 0 | BV6: 0 | BW6: 0 | BX6: 0 | BY6: 0 | BZ6: 0 | CA6: 0 | CB6: 0 | CC6: 0 | CD6: 0 | CE6: 0 | CF6: 0 | CG6: 0 | CH6: 0
B7: - | H7: 0 | I7: 0 | J7: 0 | K7: 0 | L7: 0.018 | M7: 0 | N7: 1 | O7: 0 | P7: 0 | T7: 0 | U7: 0 | V7: 0 | W7: 0 | X7: 0 | Y7: 0 | Z7: 0 | AA7: 0 | AB7: 0 | AC7: 0 | AD7: 0 | AE7: 0 | AF7: 0 | AG7: 0 | AH7: 0 | AI7: 0 | AJ7: 0 | AK7: 0 | AL7: 0 | AM7: 0 | AN7: 0 | AO7: 0 | AP7: 0 | AQ7: 0 | AR7: 0 | AS7: 0 | AT7: 0 | AU7: 0 | AV7: 0 | AW7: 0 | AX7: 0 | AY7: 0 | BB7: 0 | BD7: 0 | BE7: 0 | BF7: 0 | BG7: 0 | BH7: 0 | BI7: 0 | BJ7: 0 | BK7: 0 | BL7: 0 | BM7: 0 | BN7: 0 | BO7: 0 | BP7: 0 | BQ7: 0 | BR7: 0 | BS7: 0 | BT7: 0 | BU7: 0 | BV7: 0 | BW7: 0 | BX7: 0 | BY7: 0 | BZ7: 0 | CA7: 0 | CB7: 0 | CC7: 0 | CD7: 0 | CE7: 0 | CF7: 0 | CG7: 0 | CH7: 0
B8: - | H8: 0 | I8: 0 | J8: 0 | K8: 0 | L8: 0.018 | M8: 0 | N8: 1 | O8: 0 | P8: 0 | T8: 0 | U8: 0 | V8: 0 | W8: 0 | X8: 0 | Y8: 0 | Z8: 0 | AA8: 0 | AB8: 0 | AC8: 0 | AD8: 0 | AE8: 0 | AF8: 0 | AG8: 0 | AH8: 0 | AI8: 0 | AJ8: 0 | AK8: 0 | AL8: 0 | AM8: 0 | AN8: 0 | AO8: 0 | AP8: 0 | AQ8: 0 | AR8: 0 | AS8: 0 | AT8: 0 | AU8: 0 | AV8: 0 | AW8: 0 | AX8: 0 | AY8: 0 | BB8: 0 | BD8: 0 | BE8: 0 | BF8: 0 | BG8: 0 | BH8: 0 | BI8: 0 | BJ8: 0 | BK8: 0 | BL8: 0 | BM8: 0 | BN8: 0 | BO8: 0 | BP8: 0 | BQ8: 0 | BR8: 0 | BS8: 0 | BT8: 0 | BU8: 0 | BV8: 0 | BW8: 0 | BX8: 0 | BY8: 0 | BZ8: 0 | CA8: 0 | CB8: 0 | CC8: 0 | CD8: 0 | CE8: 0 | CF8: 0 | CG8: 0 | CH8: 0
B9: - | H9: 0 | I9: 0 | J9: 0 | K9: 0 | L9: 0.018 | M9: 0 | N9: 1 | O9: 0 | P9: 0 | T9: 0 | U9: 0 | V9: 0 | W9: 0 | X9: 0 | Y9: 0 | Z9: 0 | AA9: 0 | AB9: 0 | AC9: 0 | AD9: 0 | AE9: 0 | AF9: 0 | AG9: 0 | AH9: 0 | AI9: 0 | AJ9: 0 | AK9: 0 | AL9: 0 | AM9: 0 | AN9: 0 | AO9: 0 | AP9: 0 | AQ9: 0 | AR9: 0 | AS9: 0 | AT9: 0 | AU9: 0 | AV9: 0 | AW9: 0 | AX9: 0 | AY9: 0 | BB9: 0 | BD9: 0 | BE9: 0 | BF9: 0 | BG9: 0 | BH9: 0 | BI9: 0 | BJ9: 0 | BK9: 0 | BL9: 0 | BM9: 0 | BN9: 0 | BO9: 0 | BP9: 0 | BQ9: 0 | BR9: 0 | BS9: 0 | BT9: 0 | BU9: 0 | BV9: 0 | BW9: 0 | BX9: 0 | BY9: 0 | BZ9: 0 | CA9: 0 | CB9: 0 | CC9: 0 | CD9: 0 | CE9: 0 | CF9: 0 | CG9: 0 | CH9: 0
B10: Investeringer og reinvesteringer | P10: -1443500 | T10: -1443500 | U10: =SUM(U3:U9) -> -1443500 | V10: 0 | W10: 0 | X10: 0 | Y10: 0 | Z10: 0 | AA10: 0 | AB10: 0 | AC10: 0 | AD10: 0 | AE10: 0 | AF10: 0 | AG10: 0 | AH10: 0 | AI10: 0 | AJ10: 0 | AK10: 0 | AL10: 0 | AM10: 0 | AN10: 0 | AO10: 0 | AP10: 0 | AQ10: 0 | AR10: 0 | AS10: 0 | AT10: 0 | AU10: 0 | AV10: 0 | AW10: 0 | AX10: 0 | AY10: 0 | BB10: -1104.992107 | BC10: Henlæggelse | BD10: =SUM(BD3:BD9) -> -36.83307024 | BE10: -36.83307024 | BF10: -36.83307024 | BG10: -36.83307024 | BH10: -36.83307024 | BI10: -36.83307024 | BJ10: -36.83307024 | BK10: -36.83307024 | BL10: -36.83307024 | BM10: -36.83307024 | BN10: -36.83307024 | BO10: -36.83307024 | BP10: -36.83307024 | BQ10: -36.83307024 | BR10: -36.83307024 | BS10: -36.83307024 | BT10: -36.83307024 | BU10: -36.83307024 | BV10: -36.83307024 | BW10: -36.83307024 | BX10: -36.83307024 | BY10: -36.83307024 | BZ10: -36.83307024 | CA10: -36.83307024 | CB10: -36.83307024 | CC10: -36.83307024 | CD10: -36.83307024 | CE10: -36.83307024 | CF10: -36.83307024 | CG10: -36.83307024 | CH10: 0
B11: Scrapværdi | P11: =T11 -> 360875 | T11: 360875 | U11: =IF(S_Investeringsår+S_Beregningsperiode-1=U2,SUM($M$3:$M$9),0) -> 0 | V11: =IF(S_Investeringsår+S_Beregningsperiode-1=V2,SUM($M$3:$M$9),0) -> 0 | W11: 0 | X11: 0 | Y11: 0 | Z11: 0 | AA11: 0 | AB11: 0 | AC11: 0 | AD11: 0 | AE11: 0 | AF11: 0 | AG11: 0 | AH11: 0 | AI11: 0 | AJ11: 0 | AK11: 0 | AL11: 0 | AM11: 0 | AN11: 0 | AO11: 0 | AP11: 0 | AQ11: 0 | AR11: 0 | AS11: 0 | AT11: 0 | AU11: 0 | AV11: 0 | AW11: 0 | AX11: 360875 | AY11: 0
A12: Vedligeholdelse | H12: Periodisk udgift [kr.] | I12: Første gang [år] | J12: Sidste gang [år] | K12: Levetid/ interval [år] | L12: Pris- udvikling [%] | M12: Scrap- værdi [kr.] | N12: Afskrivnings- faktor [-] | O12: Antal reinvest. [stk.] | P12: SUM [kr.] | Q12: =A12 -> Vedligeholdelse | T12: SUM | U12: =S_Investeringsår -> 2014 | V12: =U12+1 -> 2015 | W12: =V12+1 -> 2016 | X12: 2017 | Y12: 2018 | Z12: 2019 | AA12: 2020 | AB12: 2021 | AC12: 2022 | AD12: 2023 | AE12: 2024 | AF12: 2025 | AG12: 2026 | AH12: 2027 | AI12: 2028 | AJ12: 2029 | AK12: 2030 | AL12: 2031 | AM12: 2032 | AN12: 2033 | AO12: 2034 | AP12: 2035 | AQ12: 2036 | AR12: 2037 | AS12: 2038 | AT12: 2039 | AU12: 2040 | AV12: 2041 | AW12: 2042 | AX12: 2043 | AY12: 2044 | BB12: SUM | BC12: =A12 -> Vedligeholdelse | BD12: =S_Investeringsår -> 2014 | BE12: =BD12+1 -> 2015 | BF12: =BE12+1 -> 2016 | BG12: 2017 | BH12: 2018 | BI12: 2019 | BJ12: 2020 | BK12: 2021 | BL12: 2022 | BM12: 2023 | BN12: 2024 | BO12: 2025 | BP12: 2026 | BQ12: 2027 | BR12: 2028 | BS12: 2029 | BT12: 2030 | BU12: 2031 | BV12: 2032 | BW12: 2033 | BX12: 2034 | BY12: 2035 | BZ12: 2036 | CA12: 2037 | CB12: 2038 | CC12: 2039 | CD12: 2040 | CE12: 2041 | CF12: 2042 | CG12: 2043 | CH12: 2044 | CJ12: =A12 -> Vedligeholdelse
B13: - | H13: =-G13*F13*0.5 -> 0 | I13: 0 | J13: 0 | K13: 0 | L13: =S_Inflation -> 0.018 | M13: 0 | N13: =IF((30-J13)>=K13,1,IF(K13>0,((S_Investeringsår+30)-(S_Investeringsår+I13-1+O13*K13))/K13,0)) -> 1 | O13: =IF(H13=0,0,ROUNDDOWN((J13-I13)/K13,0)) -> 0 | P13: =T13 -> 0 | T13: =SUM(U13:AY13) -> 0 | U13: =$H13 *IF(U$2>=$I13+S_Investeringsår-1,1,0) *IF(U$2<=$J13+S_Investeringsår-1,1,0) *IF($K13=0,0,IF((U$2-S_Investeringsår-$I13+1)/$K13=INT((U$2-S_Investeringsår-$I13+1)/$K13),1,0)) *(1+IF(ISBLANK($L13),S_Inflation,$L13))^(U$2-S_Investeringsår) -> 0 | V13: =$H13 *IF(V$2>=$I13+S_Investeringsår-1,1,0) *IF(V$2<=$J13+S_Investeringsår-1,1,0) *IF($K13=0,0,IF((V$2-S_Investeringsår-$I13+1)/$K13=INT((V$2-S_Investeringsår-$I13+1)/$K13),1,0)) *(1+IF(ISBLANK($L13),S_Inflation,$L13))^(V$2-S_Investeringsår) -> 0 | W13: 0 | X13: 0 | Y13: 0 | Z13: 0 | AA13: 0 | AB13: 0 | AC13: 0 | AD13: 0 | AE13: 0 | AF13: 0 | AG13: 0 | AH13: 0 | AI13: 0 | AJ13: 0 | AK13: 0 | AL13: =$H13 *IF(AL$2>=$I13+S_Investeringsår-1,1,0) *IF(AL$2<=$J13+S_Investeringsår-1,1,0) *IF($K13=0,0,IF((AL$2-S_Investeringsår-$I13+1)/$K13=INT((AL$2-S_Investeringsår-$I13+1)/$K13),1,0)) *(1+IF(ISBLANK($L13),S_Inflation,$L13))^(AL$2-S_Investeringsår) -> 0 | AM13: 0 | AN13: 0 | AO13: 0 | AP13: 0 | AQ13: 0 | AR13: 0 | AS13: 0 | AT13: 0 | AU13: 0 | AV13: 0 | AW13: 0 | AX13: 0 | AY13: 0 | BB13: =SUM(BD13:CH13) -> 0 | BD13: =IF(OR($K13=0,($I13)=0),0, IF(U$2<$I13+S_Investeringsår-1,$H13/($I13-1)*(1+$L13)^$I13,0) + IF($K13=0,0,IF((U$2-S_Investeringsår-$I13+1)/$K13=INT((U$2-S_Investeringsår-$I13+1)/$K13),$H13*(1+$L13)^(U$2-S_Investeringsår+$K13)/$K13,BC13*S_Areal)) *IF(U$2>=$I13+S_Investeringsår-1,1,0) *IF(U$2<=$J13+S_Investeringsår-1,1,0) )/S_Areal -> 0 | BE13: 0 | BF13: 0 | BG13: 0 | BH13: 0 | BI13: 0 | BJ13: 0 | BK13: 0 | BL13: 0 | BM13: 0 | BN13: =IF(OR($K13=0,($I13)=0),0, IF(AE$2<$I13+S_Investeringsår-1,$H13/($I13-1)*(1+$L13)^$I13,0) + IF($K13=0,0,IF((AE$2-S_Investeringsår-$I13+1)/$K13=INT((AE$2-S_Investeringsår-$I13+1)/$K13),$H13*(1+$L13)^(AE$2-S_Investeringsår+$K13)/$K13,BM13*S_Areal)) *IF(AE$2>=$I13+S_Investeringsår-1,1,0) *IF(AE$2<=$J13+S_Investeringsår-1,1,0) )/S_Areal -> 0 | BO13: 0 | BP13: 0 | BQ13: 0 | BR13: 0 | BS13: 0 | BT13: 0 | BU13: 0 | BV13: 0 | BW13: 0 | BX13: =IF(OR($K13=0,($I13)=0),0, IF(AO$2<$I13+S_Investeringsår-1,$H13/($I13-1)*(1+$L13)^$I13,0) + IF($K13=0,0,IF((AO$2-S_Investeringsår-$I13+1)/$K13=INT((AO$2-S_Investeringsår-$I13+1)/$K13),$H13*(1+$L13)^(AO$2-S_Investeringsår+$K13)/$K13,BW13*S_Areal)) *IF(AO$2>=$I13+S_Investeringsår-1,1,0) *IF(AO$2<=$J13+S_Investeringsår-1,1,0) )/S_Areal -> 0 | BY13: 0 | BZ13: 0 | CA13: 0 | CB13: 0 | CC13: 0 | CD13: 0 | CE13: 0 | CF13: 0 | CG13: 0 | CH13: =IF(OR($K13=0,($I13)=0),0, IF(AY$2<$I13+S_Investeringsår-1,$H13/($I13-1)*(1+$L13)^$I13,0) + IF($K13=0,0,IF((AY$2-S_Investeringsår-$I13+1)/$K13=INT((AY$2-S_Investeringsår-$I13+1)/$K13),$H13*(1+$L13)^(AY$2-S_Investeringsår+$K13)/$K13,CG13*S_Areal)) *IF(AY$2>=$I13+S_Investeringsår-1,1,0) *IF(AY$2<=$J13+S_Investeringsår-1,1,0) )/S_Areal -> 0
B14: - | H14: =-G14*F14 -> 0 | I14: 0 | J14: 0 | K14: 0 | L14: 0.018 | M14: 0 | N14: 1 | O14: =IF(H14=0,0,ROUNDDOWN((J14-I14)/K14,0)) -> 0 | P14: =T14 -> 0 | T14: 0 | U14: =$H14 *IF(U$2>=$I14+S_Investeringsår-1,1,0) *IF(U$2<=$J14+S_Investeringsår-1,1,0) *IF($K14=0,0,IF((U$2-S_Investeringsår-$I14+1)/$K14=INT((U$2-S_Investeringsår-$I14+1)/$K14),1,0)) *(1+IF(ISBLANK($L14),S_Inflation,$L14))^(U$2-S_Investeringsår) -> 0 | V14: 0 | W14: 0 | X14: 0 | Y14: 0 | Z14: 0 | AA14: 0 | AB14: 0 | AC14: 0 | AD14: 0 | AE14: 0 | AF14: 0 | AG14: 0 | AH14: 0 | AI14: 0 | AJ14: 0 | AK14: 0 | AL14: 0 | AM14: 0 | AN14: 0 | AO14: 0 | AP14: 0 | AQ14: 0 | AR14: 0 | AS14: 0 | AT14: 0 | AU14: 0 | AV14: 0 | AW14: 0 | AX14: 0 | AY14: 0 | BB14: 0 | BD14: 0 | BE14: 0 | BF14: 0 | BG14: 0 | BH14: 0 | BI14: 0 | BJ14: 0 | BK14: 0 | BL14: 0 | BM14: 0 | BN14: 0 | BO14: 0 | BP14: 0 | BQ14: 0 | BR14: 0 | BS14: 0 | BT14: 0 | BU14: 0 | BV14: 0 | BW14: 0 | BX14: 0 | BY14: 0 | BZ14: 0 | CA14: 0 | CB14: 0 | CC14: 0 | CD14: 0 | CE14: 0 | CF14: 0 | CG14: 0 | CH14: 0
B15: - | H15: =4*G15*-F15 -> 0 | I15: 0 | J15: 0 | K15: 0 | L15: 0.018 | M15: 0 | N15: 1 | O15: 0 | P15: 0 | T15: 0 | U15: =$H15 *IF(U$2>=$I15+S_Investeringsår-1,1,0) *IF(U$2<=$J15+S_Investeringsår-1,1,0) *IF($K15=0,0,IF((U$2-S_Investeringsår-$I15+1)/$K15=INT((U$2-S_Investeringsår-$I15+1)/$K15),1,0)) *(1+IF(ISBLANK($L15),S_Inflation,$L15))^(U$2-S_Investeringsår) -> 0 | V15: 0 | W15: 0 | X15: 0 | Y15: 0 | Z15: 0 | AA15: 0 | AB15: 0 | AC15: 0 | AD15: 0 | AE15: 0 | AF15: 0 | AG15: 0 | AH15: 0 | AI15: 0 | AJ15: 0 | AK15: 0 | AL15: 0 | AM15: 0 | AN15: 0 | AO15: 0 | AP15: 0 | AQ15: 0 | AR15: 0 | AS15: 0 | AT15: 0 | AU15: 0 | AV15: 0 | AW15: 0 | AX15: 0 | AY15: 0 | BB15: 0 | BD15: 0 | BE15: 0 | BF15: 0 | BG15: 0 | BH15: 0 | BI15: 0 | BJ15: 0 | BK15: 0 | BL15: 0 | BM15: 0 | BN15: 0 | BO15: 0 | BP15: 0 | BQ15: 0 | BR15: 0 | BS15: 0 | BT15: 0 | BU15: 0 | BV15: 0 | BW15: 0 | BX15: 0 | BY15: 0 | BZ15: 0 | CA15: 0 | CB15: 0 | CC15: 0 | CD15: 0 | CE15: 0 | CF15: 0 | CG15: 0 | CH15: 0
B16: - | H16: 0 | I16: 0 | J16: 0 | K16: 0 | L16: 0.018 | M16: 0 | N16: 1 | O16: 0 | P16: 0 | T16: 0 | U16: =$H16 *IF(U$2>=$I16+S_Investeringsår-1,1,0) *IF(U$2<=$J16+S_Investeringsår-1,1,0) *IF($K16=0,0,IF((U$2-S_Investeringsår-$I16+1)/$K16=INT((U$2-S_Investeringsår-$I16+1)/$K16),1,0)) *(1+IF(ISBLANK($L16),S_Inflation,$L16))^(U$2-S_Investeringsår) -> 0 | V16: 0 | W16: 0 | X16: 0 | Y16: 0 | Z16: 0 | AA16: 0 | AB16: 0 | AC16: 0 | AD16: 0 | AE16: 0 | AF16: 0 | AG16: 0 | AH16: 0 | AI16: 0 | AJ16: 0 | AK16: 0 | AL16: 0 | AM16: 0 | AN16: 0 | AO16: 0 | AP16: 0 | AQ16: 0 | AR16: 0 | AS16: 0 | AT16: 0 | AU16: 0 | AV16: 0 | AW16: 0 | AX16: 0 | AY16: 0 | BB16: 0 | BD16: 0 | BE16: 0 | BF16: 0 | BG16: 0 | BH16: 0 | BI16: 0 | BJ16: 0 | BK16: 0 | BL16: 0 | BM16: 0 | BN16: 0 | BO16: 0 | BP16: 0 | BQ16: 0 | BR16: 0 | BS16: 0 | BT16: 0 | BU16: 0 | BV16: 0 | BW16: 0 | BX16: 0 | BY16: 0 | BZ16: 0 | CA16: 0 | CB16: 0 | CC16: 0 | CD16: 0 | CE16: 0 | CF16: 0 | CG16: 0 | CH16: 0
B17: - | H17: 0 | I17: 0 | J17: 0 | K17: 0 | L17: 0.018 | M17: 0 | N17: 1 | O17: 0 | P17: 0 | T17: 0 | U17: 0 | V17: 0 | W17: 0 | X17: 0 | Y17: 0 | Z17: 0 | AA17: 0 | AB17: 0 | AC17: 0 | AD17: 0 | AE17: 0 | AF17: 0 | AG17: 0 | AH17: 0 | AI17: 0 | AJ17: 0 | AK17: 0 | AL17: 0 | AM17: 0 | AN17: 0 | AO17: 0 | AP17: 0 | AQ17: 0 | AR17: 0 | AS17: 0 | AT17: 0 | AU17: 0 | AV17: 0 | AW17: 0 | AX17: 0 | AY17: 0 | BB17: 0 | BD17: 0 | BE17: 0 | BF17: 0 | BG17: 0 | BH17: 0 | BI17: 0 | BJ17: 0 | BK17: 0 | BL17: 0 | BM17: 0 | BN17: 0 | BO17: 0 | BP17: 0 | BQ17: 0 | BR17: 0 | BS17: 0 | BT17: 0 | BU17: 0 | BV17: 0 | BW17: 0 | BX17: 0 | BY17: 0 | BZ17: 0 | CA17: 0 | CB17: 0 | CC17: 0 | CD17: 0 | CE17: 0 | CF17: 0 | CG17: 0 | CH17: 0
B18: - | H18: 0 | I18: 0 | J18: 0 | K18: 0 | L18: 0.018 | M18: 0 | N18: 1 | O18: 0 | P18: 0 | T18: 0 | U18: 0 | V18: 0 | W18: 0 | X18: 0 | Y18: 0 | Z18: 0 | AA18: 0 | AB18: 0 | AC18: 0 | AD18: 0 | AE18: 0 | AF18: 0 | AG18: 0 | AH18: 0 | AI18: 0 | AJ18: 0 | AK18: 0 | AL18: 0 | AM18: 0 | AN18: 0 | AO18: 0 | AP18: 0 | AQ18: 0 | AR18: 0 | AS18: 0 | AT18: 0 | AU18: 0 | AV18: 0 | AW18: 0 | AX18: 0 | AY18: 0 | BB18: 0 | BD18: 0 | BE18: 0 | BF18: 0 | BG18: 0 | BH18: 0 | BI18: 0 | BJ18: 0 | BK18: 0 | BL18: 0 | BM18: 0 | BN18: 0 | BO18: 0 | BP18: 0 | BQ18: 0 | BR18: 0 | BS18: 0 | BT18: 0 | BU18: 0 | BV18: 0 | BW18: 0 | BX18: 0 | BY18: 0 | BZ18: 0 | CA18: 0 | CB18: 0 | CC18: 0 | CD18: 0 | CE18: 0 | CF18: 0 | CG18: 0 | CH18: 0
B19: - | H19: 0 | I19: 0 | J19: 0 | K19: 0 | L19: 0.018 | M19: 0 | N19: 1 | O19: 0 | P19: 0 | T19: 0 | U19: 0 | V19: 0 | W19: 0 | X19: 0 | Y19: 0 | Z19: 0 | AA19: 0 | AB19: 0 | AC19: 0 | AD19: 0 | AE19: 0 | AF19: 0 | AG19: 0 | AH19: 0 | AI19: 0 | AJ19: 0 | AK19: 0 | AL19: 0 | AM19: 0 | AN19: 0 | AO19: 0 | AP19: 0 | AQ19: 0 | AR19: 0 | AS19: 0 | AT19: 0 | AU19: 0 | AV19: 0 | AW19: 0 | AX19: 0 | AY19: 0 | BB19: 0 | BD19: 0 | BE19: 0 | BF19: 0 | BG19: 0 | BH19: 0 | BI19: 0 | BJ19: 0 | BK19: 0 | BL19: 0 | BM19: 0 | BN19: 0 | BO19: 0 | BP19: 0 | BQ19: 0 | BR19: 0 | BS19: 0 | BT19: 0 | BU19: 0 | BV19: 0 | BW19: 0 | BX19: 0 | BY19: 0 | BZ19: 0 | CA19: 0 | CB19: 0 | CC19: 0 | CD19: 0 | CE19: 0 | CF19: 0 | CG19: 0 | CH19: 0
B20: - | H20: 0 | I20: 0 | J20: 0 | K20: 0 | L20: 0.018 | M20: 0 | N20: 1 | O20: 0 | P20: 0 | T20: 0 | U20: 0 | V20: 0 | W20: 0 | X20: 0 | Y20: 0 | Z20: 0 | AA20: 0 | AB20: 0 | AC20: 0 | AD20: 0 | AE20: 0 | AF20: 0 | AG20: 0 | AH20: 0 | AI20: 0 | AJ20: 0 | AK20: 0 | AL20: 0 | AM20: 0 | AN20: 0 | AO20: 0 | AP20: 0 | AQ20: 0 | AR20: 0 | AS20: 0 | AT20: 0 | AU20: 0 | AV20: 0 | AW20: 0 | AX20: 0 | AY20: 0 | BB20: 0 | BD20: 0 | BE20: 0 | BF20: 0 | BG20: 0 | BH20: 0 | BI20: 0 | BJ20: 0 | BK20: 0 | BL20: 0 | BM20: 0 | BN20: 0 | BO20: 0 | BP20: 0 | BQ20: 0 | BR20: 0 | BS20: 0 | BT20: 0 | BU20: 0 | BV20: 0 | BW20: 0 | BX20: 0 | BY20: 0 | BZ20: 0 | CA20: 0 | CB20: 0 | CC20: 0 | CD20: 0 | CE20: 0 | CF20: 0 | CG20: 0 | CH20: 0
B21: Vedligehold | P21: 0 | T21: 0 | U21: =SUM(U13:U20) -> 0 | V21: =SUM(V13:V20) -> 0 | W21: 0 | X21: 0 | Y21: 0 | Z21: 0 | AA21: 0 | AB21: 0 | AC21: 0 | AD21: 0 | AE21: 0 | AF21: 0 | AG21: 0 | AH21: 0 | AI21: 0 | AJ21: 0 | AK21: 0 | AL21: 0 | AM21: 0 | AN21: 0 | AO21: 0 | AP21: 0 | AQ21: 0 | AR21: 0 | AS21: 0 | AT21: 0 | AU21: 0 | AV21: 0 | AW21: 0 | AX21: 0 | AY21: 0 | BB21: 0 | BC21: Henlæggelse | BD21: =SUM(BD13:BD20) -> 0 | BE21: =SUM(BE13:BE20) -> 0 | BF21: 0 | BG21: 0 | BH21: 0 | BI21: 0 | BJ21: 0 | BK21: 0 | BL21: 0 | BM21: 0 | BN21: 0 | BO21: 0 | BP21: 0 | BQ21: 0 | BR21: 0 | BS21: 0 | BT21: 0 | BU21: 0 | BV21: 0 | BW21: 0 | BX21: 0 | BY21: 0 | BZ21: 0 | CA21: 0 | CB21: 0 | CC21: 0 | CD21: 0 | CE21: 0 | CF21: 0 | CG21: 0 | CH21: 0
B22: Scrapværdi | P22: =T22 -> 0 | T22: =SUM(U22:AY22) -> 0 | U22: =IF(S_Investeringsår+S_Beregningsperiode-1=U12,SUM($M$13:$M$20),0) -> 0 | V22: 0 | W22: 0 | X22: 0 | Y22: 0 | Z22: 0 | AA22: 0 | AB22: 0 | AC22: 0 | AD22: 0 | AE22: 0 | AF22: 0 | AG22: 0 | AH22: 0 | AI22: 0 | AJ22: 0 | AK22: 0 | AL22: 0 | AM22: 0 | AN22: 0 | AO22: 0 | AP22: 0 | AQ22: 0 | AR22: 0 | AS22: 0 | AT22: 0 | AU22: 0 | AV22: 0 | AW22: 0 | AX22: 0 | AY22: 0
A23: Finansiering | D23: Hovedstol [kr.] | E23: Årlig ydelse [kr.] | H23: Egenfinansiering/ tilskud [kr.] | I23: Første gang [år] | J23: Sidste gang [år] | K23: Interval [år] | L23: Pris- udvikling [%] | P23: SUM [kr.] | Q23: =A23 -> Finansiering | T23: SUM | U23: =S_Investeringsår -> 2014 | V23: =U23+1 -> 2015 | W23: =V23+1 -> 2016 | X23: 2017 | Y23: 2018 | Z23: 2019 | AA23: 2020 | AB23: 2021 | AC23: 2022 | AD23: 2023 | AE23: 2024 | AF23: 2025 | AG23: 2026 | AH23: 2027 | AI23: 2028 | AJ23: 2029 | AK23: 2030 | AL23: 2031 | AM23: 2032 | AN23: 2033 | AO23: 2034 | AP23: 2035 | AQ23: 2036 | AR23: 2037 | AS23: 2038 | AT23: 2039 | AU23: 2040 | AV23: 2041 | AW23: 2042 | AX23: 2043 | AY23: 2044 | BB23: SUM | BC23: =A23 -> Finansiering | BD23: =S_Investeringsår -> 2014 | BE23: =BD23+1 -> 2015 | BF23: =BE23+1 -> 2016 | BG23: 2017 | BH23: 2018 | BI23: 2019 | BJ23: 2020 | BK23: 2021 | BL23: 2022 | BM23: 2023 | BN23: 2024 | BO23: 2025 | BP23: 2026 | BQ23: 2027 | BR23: 2028 | BS23: 2029 | BT23: 2030 | BU23: 2031 | BV23: 2032 | BW23: 2033 | BX23: 2034 | BY23: 2035 | BZ23: 2036 | CA23: 2037 | CB23: 2038 | CC23: 2039 | CD23: 2040 | CE23: 2041 | CF23: 2042 | CG23: 2043 | CH23: 2044 | CJ23: =A23 -> Finansiering
A24: Egenfinansiering og tilskud
B25: Egenfinansiering (bruges på at reducere lånebehovet og dermed ydelsen) | H25: 100000 | I25: 1 | J25: 1 | K25: 1 | L25: =S_Inflation -> 0.018 | P25: =T25 -> 100000 | T25: =SUM(U25:AY25) -> 100000 | U25: =$H25 *IF(U$2>=$I25+S_Investeringsår-1,1,0) *IF(U$2<=$J25+S_Investeringsår-1,1,0) *IF($K25=0,0,IF((U$2-S_Investeringsår-$I25+1)/$K25=INT((U$2-S_Investeringsår-$I25+1)/$K25),1,0)) *(1+IF(ISBLANK($L25),S_Inflation,$L25))^(U$2-S_Investeringsår) -> 100000 | V25: 0 | W25: 0 | X25: 0 | Y25: 0 | Z25: 0 | AA25: 0 | AB25: 0 | AC25: 0 | AD25: 0 | AE25: 0 | AF25: 0 | AG25: 0 | AH25: 0 | AI25: 0 | AJ25: 0 | AK25: =$H25 *IF(AK$2>=$I25+S_Investeringsår-1,1,0) *IF(AK$2<=$J25+S_Investeringsår-1,1,0) *IF($K25=0,0,IF((AK$2-S_Investeringsår-$I25+1)/$K25=INT((AK$2-S_Investeringsår-$I25+1)/$K25),1,0)) *(1+IF(ISBLANK($L25),S_Inflation,$L25))^(AK$2-S_Investeringsår) -> 0 | AL25: 0 | AM25: 0 | AN25: 0 | AO25: 0 | AP25: 0 | AQ25: 0 | AR25: 0 | AS25: 0 | AT25: 0 | AU25: 0 | AV25: 0 | AW25: 0 | AX25: 0 | AY25: 0 | BB25: =SUM(BD25:CH25) -> 50 | BD25: =U25/S_Areal -> 50 | BE25: 0 | BF25: 0 | BG25: 0 | BH25: 0 | BI25: 0 | BJ25: 0 | BK25: 0 | BL25: 0 | BM25: 0 | BN25: =AE25/S_Areal -> 0 | BO25: 0 | BP25: 0 | BQ25: 0 | BR25: 0 | BS25: 0 | BT25: 0 | BU25: 0 | BV25: 0 | BW25: 0 | BX25: =AO25/S_Areal -> 0 | BY25: 0 | BZ25: 0 | CA25: 0 | CB25: 0 | CC25: 0 | CD25: 0 | CE25: 0 | CF25: 0 | CG25: 0 | CH25: =AY25/S_Areal -> 0
B26: Tilskud til energibesparelser | H26: 8820 | I26: 1 | J26: 1 | K26: 1 | L26: =S_Inflation -> 0.018 | P26: 8820 | T26: 8820 | U26: 8820 | V26: 0 | W26: 0 | X26: 0 | Y26: 0 | Z26: 0 | AA26: 0 | AB26: 0 | AC26: 0 | AD26: 0 | AE26: 0 | AF26: 0 | AG26: 0 | AH26: 0 | AI26: 0 | AJ26: 0 | AK26: 0 | AL26: 0 | AM26: 0 | AN26: 0 | AO26: 0 | AP26: 0 | AQ26: 0 | AR26: 0 | AS26: 0 | AT26: 0 | AU26: 0 | AV26: 0 | AW26: 0 | AX26: 0 | AY26: 0 | BB26: 4.41 | BD26: 4.41 | BE26: 0 | BF26: 0 | BG26: 0 | BH26: 0 | BI26: 0 | BJ26: 0 | BK26: 0 | BL26: 0 | BM26: 0 | BN26: 0 | BO26: 0 | BP26: 0 | BQ26: 0 | BR26: 0 | BS26: 0 | BT26: 0 | BU26: 0 | BV26: 0 | BW26: 0 | BX26: 0 | BY26: 0 | BZ26: 0 | CA26: 0 | CB26: 0 | CC26: 0 | CD26: 0 | CE26: 0 | CF26: 0 | CG26: 0 | CH26: 0
B27: Tilskud fra dispositionsfond | H27: 0 | I27: 0 | J27: 0 | K27: 0 | L27: =S_Inflation -> 0.018 | P27: 0 | T27: 0 | U27: 0 | V27: 0 | W27: 0 | X27: 0 | Y27: 0 | Z27: 0 | AA27: 0 | AB27: 0 | AC27: 0 | AD27: 0 | AE27: 0 | AF27: 0 | AG27: 0 | AH27: 0 | AI27: 0 | AJ27: 0 | AK27: 0 | AL27: 0 | AM27: 0 | AN27: 0 | AO27: 0 | AP27: 0 | AQ27: 0 | AR27: 0 | AS27: 0 | AT27: 0 | AU27: 0 | AV27: 0 | AW27: 0 | AX27: 0 | AY27: 0 | BB27: 0 | BD27: =U27/S_Areal -> 0 | BE27: =V27/S_Areal -> 0 | BF27: =W27/S_Areal -> 0 | BG27: =X27/S_Areal -> 0 | BH27: =Y27/S_Areal -> 0 | BI27: =Z27/S_Areal -> 0 | BJ27: =AA27/S_Areal -> 0 | BK27: =AB27/S_Areal -> 0 | BL27: =AC27/S_Areal -> 0 | BM27: =AD27/S_Areal -> 0 | BN27: =AE27/S_Areal -> 0 | BO27: =AF27/S_Areal -> 0 | BP27: =AG27/S_Areal -> 0 | BQ27: =AH27/S_Areal -> 0 | BR27: =AI27/S_Areal -> 0 | BS27: =AJ27/S_Areal -> 0 | BT27: =AK27/S_Areal -> 0 | BU27: =AL27/S_Areal -> 0 | BV27: =AM27/S_Areal -> 0 | BW27: =AN27/S_Areal -> 0 | BX27: =AO27/S_Areal -> 0 | BY27: =AP27/S_Areal -> 0 | BZ27: =AQ27/S_Areal -> 0 | CA27: =AR27/S_Areal -> 0 | CB27: =AS27/S_Areal -> 0 | CC27: =AT27/S_Areal -> 0 | CD27: =AU27/S_Areal -> 0 | CE27: =AV27/S_Areal -> 0 | CF27: =AW27/S_Areal -> 0 | CG27: =AX27/S_Areal -> 0 | CH27: =AY27/S_Areal -> 0
B28: Tilskud fra landsbyggefonden | H28: 0 | I28: 0 | J28: 0 | K28: 0 | L28: =S_Inflation -> 0.018 | P28: 0 | T28: 0 | U28: 0 | V28: 0 | W28: 0 | X28: 0 | Y28: 0 | Z28: 0 | AA28: 0 | AB28: 0 | AC28: 0 | AD28: 0 | AE28: 0 | AF28: 0 | AG28: 0 | AH28: 0 | AI28: 0 | AJ28: 0 | AK28: 0 | AL28: 0 | AM28: 0 | AN28: 0 | AO28: 0 | AP28: 0 | AQ28: 0 | AR28: 0 | AS28: 0 | AT28: 0 | AU28: 0 | AV28: 0 | AW28: 0 | AX28: 0 | AY28: 0 | BB28: 0 | BD28: =U28/S_Areal -> 0 | BE28: =V28/S_Areal -> 0 | BF28: =W28/S_Areal -> 0 | BG28: =X28/S_Areal -> 0 | BH28: =Y28/S_Areal -> 0 | BI28: =Z28/S_Areal -> 0 | BJ28: =AA28/S_Areal -> 0 | BK28: =AB28/S_Areal -> 0 | BL28: =AC28/S_Areal -> 0 | BM28: =AD28/S_Areal -> 0 | BN28: =AE28/S_Areal -> 0 | BO28: =AF28/S_Areal -> 0 | BP28: =AG28/S_Areal -> 0 | BQ28: =AH28/S_Areal -> 0 | BR28: =AI28/S_Areal -> 0 | BS28: =AJ28/S_Areal -> 0 | BT28: =AK28/S_Areal -> 0 | BU28: =AL28/S_Areal -> 0 | BV28: =AM28/S_Areal -> 0 | BW28: =AN28/S_Areal -> 0 | BX28: =AO28/S_Areal -> 0 | BY28: =AP28/S_Areal -> 0 | BZ28: =AQ28/S_Areal -> 0 | CA28: =AR28/S_Areal -> 0 | CB28: =AS28/S_Areal -> 0 | CC28: =AT28/S_Areal -> 0 | CD28: =AU28/S_Areal -> 0 | CE28: =AV28/S_Areal -> 0 | CF28: =AW28/S_Areal -> 0 | CG28: =AX28/S_Areal -> 0 | CH28: =AY28/S_Areal -> 0
B29: Andre tilskud | H29: 0 | I29: 0 | J29: 0 | K29: 0 | L29: =S_Inflation -> 0.018 | P29: 0 | T29: 0 | U29: 0 | V29: 0 | W29: 0 | X29: 0 | Y29: 0 | Z29: 0 | AA29: 0 | AB29: 0 | AC29: 0 | AD29: 0 | AE29: 0 | AF29: 0 | AG29: 0 | AH29: 0 | AI29: 0 | AJ29: 0 | AK29: 0 | AL29: 0 | AM29: 0 | AN29: 0 | AO29: 0 | AP29: 0 | AQ29: 0 | AR29: 0 | AS29: 0 | AT29: 0 | AU29: 0 | AV29: 0 | AW29: 0 | AX29: 0 | AY29: 0 | BB29: 0 | BD29: 0 | BE29: 0 | BF29: 0 | BG29: 0 | BH29: 0 | BI29: 0 | BJ29: 0 | BK29: 0 | BL29: 0 | BM29: 0 | BN29: 0 | BO29: 0 | BP29: 0 | BQ29: 0 | BR29: 0 | BS29: 0 | BT29: 0 | BU29: 0 | BV29: 0 | BW29: 0 | BX29: 0 | BY29: 0 | BZ29: 0 | CA29: 0 | CB29: 0 | CC29: 0 | CD29: 0 | CE29: 0 | CF29: 0 | CG29: 0 | CH29: 0
B30: Tilskud | P30: 8820 | T30: =SUM(U30:AY30) -> 8820 | U30: =SUM(U26:U29) -> 8820 | V30: =SUM(V26:V29) -> 0 | W30: 0 | X30: 0 | Y30: 0 | Z30: 0 | AA30: 0 | AB30: 0 | AC30: 0 | AD30: 0 | AE30: 0 | AF30: 0 | AG30: 0 | AH30: 0 | AI30: 0 | AJ30: 0 | AK30: 0 | AL30: 0 | AM30: 0 | AN30: 0 | AO30: 0 | AP30: 0 | AQ30: 0 | AR30: 0 | AS30: 0 | AT30: 0 | AU30: 0 | AV30: 0 | AW30: 0 | AX30: 0 | AY30: 0 | BB30: 4.41 | BD30: =SUM(BD26:BD29) -> 4.41 | BE30: =SUM(BE26:BE29) -> 0 | BF30: =SUM(BF26:BF29) -> 0 | BG30: 0 | BH30: 0 | BI30: 0 | BJ30: 0 | BK30: 0 | BL30: 0 | BM30: 0 | BN30: 0 | BO30: 0 | BP30: 0 | BQ30: 0 | BR30: 0 | BS30: 0 | BT30: 0 | BU30: 0 | BV30: 0 | BW30: 0 | BX30: 0 | BY30: 0 | BZ30: 0 | CA30: 0 | CB30: 0 | CC30: 0 | CD30: 0 | CE30: 0 | CF30: 0 | CG30: 0 | CH30: 0
A31: Årlig ydelse med valgt finansieringsform (vælg)
B32: Finansieringsforslag 1 - Simpel låneberegning | D32: =IF($B$32=$B$34,D34,0)+IF($B$32=$B$35,D35,0)+IF($B$32=$B$36,D36,0) -> -1343500 | E32: =IF($B$32=$B$34,E34,"") -> -68544.3749 | P32: =T32 -> -2056331.247 | T32: =SUM(U32:AY32) -> -2056331.247 | U32: =IF(ISBLANK($B$32),"",IF($B$32=$B$34,U34,0)+IF($B$32=$B$35,U35,0)+(IF($B$32=$B$36,U36,0))) -> -68544.3749 | V32: -68544.3749 | W32: -68544.3749 | X32: -68544.3749 | Y32: -68544.3749 | Z32: -68544.3749 | AA32: -68544.3749 | AB32: -68544.3749 | AC32: -68544.3749 | AD32: -68544.3749 | AE32: -68544.3749 | AF32: -68544.3749 | AG32: -68544.3749 | AH32: -68544.3749 | AI32: -68544.3749 | AJ32: -68544.3749 | AK32: -68544.3749 | AL32: -68544.3749 | AM32: -68544.3749 | AN32: -68544.3749 | AO32: -68544.3749 | AP32: -68544.3749 | AQ32: -68544.3749 | AR32: -68544.3749 | AS32: -68544.3749 | AT32: -68544.3749 | AU32: -68544.3749 | AV32: -68544.3749 | AW32: -68544.3749 | AX32: -68544.3749 | AY32: 0 | BB32: =SUM(BD32:CH32) -> -1028.165623 | BD32: =U32/S_Areal -> -34.27218745 | BE32: -34.27218745 | BF32: -34.27218745 | BG32: -34.27218745 | BH32: -34.27218745 | BI32: -34.27218745 | BJ32: -34.27218745 | BK32: -34.27218745 | BL32: -34.27218745 | BM32: -34.27218745 | BN32: -34.27218745 | BO32: -34.27218745 | BP32: -34.27218745 | BQ32: -34.27218745 | BR32: -34.27218745 | BS32: -34.27218745 | BT32: -34.27218745 | BU32: -34.27218745 | BV32: -34.27218745 | BW32: -34.27218745 | BX32: -34.27218745 | BY32: -34.27218745 | BZ32: -34.27218745 | CA32: -34.27218745 | CB32: -34.27218745 | CC32: -34.27218745 | CD32: -34.27218745 | CE32: -34.27218745 | CF32: -34.27218745 | CG32: -34.27218745 | CH32: 0
A33: Mulige finansieringsformer
B34: Finansieringsforslag 1 - Simpel låneberegning | D34: =U10+U21+U25 -> -1343500 | E34: =V34 -> -68544.3749 | P34: =T34 -> -2056331.247 | T34: =SUM(U34:AY34) -> -2056331.247 | U34: =IF(OR(U$2<S_Investeringsår,U$2>=S_Investeringsår+S_Beregningsperiode),0,-PMT(S_rente,S_Beregningsperiode,$D$34)) -> -68544.3749 | V34: -68544.3749 | W34: -68544.3749 | X34: -68544.3749 | Y34: -68544.3749 | Z34: -68544.3749 | AA34: -68544.3749 | AB34: -68544.3749 | AC34: -68544.3749 | AD34: -68544.3749 | AE34: -68544.3749 | AF34: -68544.3749 | AG34: -68544.3749 | AH34: -68544.3749 | AI34: -68544.3749 | AJ34: -68544.3749 | AK34: -68544.3749 | AL34: -68544.3749 | AM34: -68544.3749 | AN34: -68544.3749 | AO34: -68544.3749 | AP34: -68544.3749 | AQ34: -68544.3749 | AR34: -68544.3749 | AS34: -68544.3749 | AT34: -68544.3749 | AU34: -68544.3749 | AV34: -68544.3749 | AW34: -68544.3749 | AX34: -68544.3749 | AY34: 0 | BB34: =SUM(BD34:CH34) -> -1028.165623 | BD34: =U34/S_Areal -> -34.27218745 | BE34: -34.27218745 | BF34: -34.27218745 | BG34: -34.27218745 | BH34: -34.27218745 | BI34: -34.27218745 | BJ34: -34.27218745 | BK34: -34.27218745 | BL34: -34.27218745 | BM34: -34.27218745 | BN34: =AE34/S_Areal -> -34.27218745 | BO34: -34.27218745 | BP34: -34.27218745 | BQ34: -34.27218745 | BR34: -34.27218745 | BS34: -34.27218745 | BT34: -34.27218745 | BU34: -34.27218745 | BV34: -34.27218745 | BW34: -34.27218745 | BX34: =AO34/S_Areal -> -34.27218745 | BY34: -34.27218745 | BZ34: -34.27218745 | CA34: -34.27218745 | CB34: -34.27218745 | CC34: -34.27218745 | CD34: -34.27218745 | CE34: -34.27218745 | CF34: -34.27218745 | CG34: -34.27218745 | CH34: =AY34/S_Areal -> 0
B35: Finansieringsforslag 2 - Vippet låneprofil | D35: =D34 -> -1343500 | P35: =T35 -> -2059100.461 | T35: =SUM(U35:AY35) -> -2059100.461 | U35: =$AI$35/(1+S_Inflation)^($AI$2-U2) -> -53395.28736 | V35: -54356.40254 | W35: -55334.81778 | X35: -56330.8445 | Y35: -57344.7997 | Z35: -58377.0061 | AA35: -59427.79221 | AB35: -60497.49247 | AC35: -61586.44733 | AD35: -62695.00338 | AE35: -63823.51344 | AF35: -64972.33669 | AG35: -66141.83875 | AH35: =$AI$35/(1+S_Inflation)^($AI$2-AH2) -> -67332.39184 | AI35: =+AI34 -> -68544.3749 | AJ35: =+AJ34 -> -68544.3749 | AK35: =+AK34 -> -68544.3749 | AL35: =$AI$35/(1+S_Inflation)^($AK$2-AL2) -> -69778.17364 | AM35: -71034.18077 | AN35: -72312.79602 | AO35: -73614.42635 | AP35: -74939.48603 | AQ35: -76288.39678 | AR35: -77661.58792 | AS35: -79059.4965 | AT35: -80482.56744 | AU35: -81931.25365 | AV35: -83406.01622 | AW35: -84907.32451 | AX35: -86435.65635 | AY35: =IF(OR(AY$2<S_Investeringsår,AY$2>=S_Investeringsår+S_Beregningsperiode),0,((AY$2-S_Investeringsår)*$G$35+$F$35)) -> 0 | BB35: =SUM(BD35:CH35) -> -1029.55023 | BD35: -26.69764368 | BE35: -27.17820127 | BF35: -27.66740889 | BG35: -28.16542225 | BH35: -28.67239985 | BI35: -29.18850305 | BJ35: -29.7138961 | BK35: -30.24874623 | BL35: -30.79322367 | BM35: -31.34750169 | BN35: -31.91175672 | BO35: -32.48616834 | BP35: -33.07091937 | BQ35: -33.66619592 | BR35: -34.27218745 | BS35: -34.27218745 | BT35: -34.27218745 | BU35: -34.88908682 | BV35: -35.51709039 | BW35: -36.15639801 | BX35: -36.80721318 | BY35: -37.46974301 | BZ35: -38.14419839 | CA35: -38.83079396 | CB35: -39.52974825 | CC35: -40.24128372 | CD35: -40.96562683 | CE35: -41.70300811 | CF35: -42.45366225 | CG35: -43.21782817 | CH35: 0
B36: Finansieringsforslag 3 - Egen indtastet låneprofil | D36: =D35 -> -1343500 | P36: =T36 -> -600000 | T36: =SUM(U36:AY36) -> -600000 | U36: -20000 | V36: -20000 | W36: -20000 | X36: -20000 | Y36: -20000 | Z36: -20000 | AA36: -20000 | AB36: -20000 | AC36: -20000 | AD36: -20000 | AE36: -20000 | AF36: -20000 | AG36: -20000 | AH36: -20000 | AI36: -20000 | AJ36: -20000 | AK36: -20000 | AL36: -20000 | AM36: -20000 | AN36: -20000 | AO36: -20000 | AP36: -20000 | AQ36: -20000 | AR36: -20000 | AS36: -20000 | AT36: -20000 | AU36: -20000 | AV36: -20000 | AW36: -20000 | AX36: -20000 | AY36: 0 | BB36: =SUM(BD36:CH36) -> -300 | BD36: -10 | BE36: -10 | BF36: -10 | BG36: -10 | BH36: -10 | BI36: -10 | BJ36: -10 | BK36: -10 | BL36: -10 | BM36: -10 | BN36: -10 | BO36: -10 | BP36: -10 | BQ36: -10 | BR36: -10 | BS36: -10 | BT36: -10 | BU36: -10 | BV36: -10 | BW36: -10 | BX36: -10 | BY36: -10 | BZ36: -10 | CA36: -10 | CB36: -10 | CC36: -10 | CD36: -10 | CE36: -10 | CF36: -10 | CG36: -10 | CH36: 0
A37: Energi- og vandforbrug | C37: Forsyningstype | D37: Navn | E37: Pris [kr./kWh] | F37: Enhed | G37: Forbrug(-) / besparelse(+) per år | H37: Periodisk udgift(-) / besparelse(+) [kr.] | I37: Første gang [år] | J37: Sidste gang [år] | K37: Interval [år] | L37: Pris- udvikling [%] | M37: Energipris-fremskrivning [%] | P37: SUM [kr.] | Q37: =A37 -> Energi- og vandforbrug | T37: SUM | U37: =S_Investeringsår -> 2014 | V37: =U37+1 -> 2015 | W37: =V37+1 -> 2016 | X37: 2017 | Y37: 2018 | Z37: 2019 | AA37: 2020 | AB37: 2021 | AC37: 2022 | AD37: 2023 | AE37: 2024 | AF37: 2025 | AG37: 2026 | AH37: 2027 | AI37: 2028 | AJ37: 2029 | AK37: 2030 | AL37: 2031 | AM37: 2032 | AN37: 2033 | AO37: 2034 | AP37: 2035 | AQ37: 2036 | AR37: 2037 | AS37: 2038 | AT37: 2039 | AU37: 2040 | AV37: 2041 | AW37: 2042 | AX37: 2043 | AY37: 2044 | BB37: SUM | BC37: =A37 -> Energi- og vandforbrug | BD37: =S_Investeringsår -> 2014 | BE37: =BD37+1 -> 2015 | BF37: =BE37+1 -> 2016 | BG37: 2017 | BH37: 2018 | BI37: 2019 | BJ37: 2020 | BK37: 2021 | BL37: 2022 | BM37: 2023 | BN37: 2024 | BO37: 2025 | BP37: 2026 | BQ37: 2027 | BR37: 2028 | BS37: 2029 | BT37: 2030 | BU37: 2031 | BV37: 2032 | BW37: 2033 | BX37: 2034 | BY37: 2035 | BZ37: 2036 | CA37: 2037 | CB37: 2038 | CC37: 2039 | CD37: 2040 | CE37: 2041 | CF37: 2042 | CG37: 2043 | CH37: 2044 | CJ37: =A37 -> Energi- og vandforbrug
B38: Udskiftning af vindue træ/alu, 1.188 mm x 1.488 mm, lavenergi | C38: =IF(ISBLANK(D38),"",VLOOKUP($D38,S_forsyningsoplysninger,2,0)) -> Fjernvarme | D38: Fjernvarme_1 | E38: =IF(ISBLANK(D38),"",VLOOKUP(D38,S_forsyningsoplysninger,4,0)) -> 0.7 | F38: =IF(ISBLANK(D38),"",VLOOKUP(D38,S_forsyningsoplysninger,5,0)) -> kr/kWh | G38: 29400 | H38: =IF(ISBLANK(D38),0,G38*E38) -> 20580 | I38: 1 | J38: 30 | K38: 1 | L38: =S_Inflation -> 0.018 | M38: =IF(ISBLANK(D38),0%,VLOOKUP(D38,S_forsyningsoplysninger,3,0)) -> 0.0039 | P38: =T38 -> 861146.7912 | T38: =SUM(U38:AY38) -> 861146.7912 | U38: =$H38 *IF(U$2>=$I38+S_Investeringsår-1,1,0) *IF(U$2<=$J38+S_Investeringsår-1,1,0) *IF($K38=0,0,IF((U$2-S_Investeringsår-$I38+1)/$K38=INT((U$2-S_Investeringsår-$I38+1)/$K38),1,0)) *(1+IF(ISBLANK($L38),S_Inflation,$L38))^(U$2-S_Investeringsår) *(1+IF($C38="",0%,VLOOKUP($C38,Stamdata!$D$7:$E$15,2,0)))^(U$2-S_Investeringsår) -> 20580 | V38: =$H38 *IF(V$2>=$I38+S_Investeringsår-1,1,0) *IF(V$2<=$J38+S_Investeringsår-1,1,0) *IF($K38=0,0,IF((V$2-S_Investeringsår-$I38+1)/$K38=INT((V$2-S_Investeringsår-$I38+1)/$K38),1,0)) *(1+IF(ISBLANK($L38),S_Inflation,$L38))^(V$2-S_Investeringsår) *(1+IF($C38="",0%,VLOOKUP($C38,Stamdata!$D$7:$E$15,2,0)))^(V$2-S_Investeringsår) -> 21032.14672 | W38: =$H38 *IF(W$2>=$I38+S_Investeringsår-1,1,0) *IF(W$2<=$J38+S_Investeringsår-1,1,0) *IF($K38=0,0,IF((W$2-S_Investeringsår-$I38+1)/$K38=INT((W$2-S_Investeringsår-$I38+1)/$K38),1,0)) *(1+IF(ISBLANK($L38),S_Inflation,$L38))^(W$2-S_Investeringsår) *(1+IF($C38="",0%,VLOOKUP($C38,Stamdata!$D$7:$E$15,2,0)))^(W$2-S_Investeringsår) -> 21494.22719 | X38: =$H38 *IF(X$2>=$I38+S_Investeringsår-1,1,0) *IF(X$2<=$J38+S_Investeringsår-1,1,0) *IF($K38=0,0,IF((X$2-S_Investeringsår-$I38+1)/$K38=INT((X$2-S_Investeringsår-$I38+1)/$K38),1,0)) *(1+IF(ISBLANK($L38),S_Inflation,$L38))^(X$2-S_Investeringsår) *(1+IF($C38="",0%,VLOOKUP($C38,Stamdata!$D$7:$E$15,2,0)))^(X$2-S_Investeringsår) -> 21966.45966 | Y38: =$H38 *IF(Y$2>=$I38+S_Investeringsår-1,1,0) *IF(Y$2<=$J38+S_Investeringsår-1,1,0) *IF($K38=0,0,IF((Y$2-S_Investeringsår-$I38+1)/$K38=INT((Y$2-S_Investeringsår-$I38+1)/$K38),1,0)) *(1+IF(ISBLANK($L38),S_Inflation,$L38))^(Y$2-S_Investeringsår) *(1+IF($C38="",0%,VLOOKUP($C38,Stamdata!$D$7:$E$15,2,0)))^(Y$2-S_Investeringsår) -> 22449.06717 | Z38: =$H38 *IF(Z$2>=$I38+S_Investeringsår-1,1,0) *IF(Z$2<=$J38+S_Investeringsår-1,1,0) *IF($K38=0,0,IF((Z$2-S_Investeringsår-$I38+1)/$K38=INT((Z$2-S_Investeringsår-$I38+1)/$K38),1,0)) *(1+IF(ISBLANK($L38),S_Inflation,$L38))^(Z$2-S_Investeringsår) *(1+IF($C38="",0%,VLOOKUP($C38,Stamdata!$D$7:$E$15,2,0)))^(Z$2-S_Investeringsår) -> 22942.27766 | AA38: =$H38 *IF(AA$2>=$I38+S_Investeringsår-1,1,0) *IF(AA$2<=$J38+S_Investeringsår-1,1,0) *IF($K38=0,0,IF((AA$2-S_Investeringsår-$I38+1)/$K38=INT((AA$2-S_Investeringsår-$I38+1)/$K38),1,0)) *(1+IF(ISBLANK($L38),S_Inflation,$L38))^(AA$2-S_Investeringsår) *(1+IF($C38="",0%,VLOOKUP($C38,Stamdata!$D$7:$E$15,2,0)))^(AA$2-S_Investeringsår) -> 23446.32409 | AB38: =$H38 *IF(AB$2>=$I38+S_Investeringsår-1,1,0) *IF(AB$2<=$J38+S_Investeringsår-1,1,0) *IF($K38=0,0,IF((AB$2-S_Investeringsår-$I38+1)/$K38=INT((AB$2-S_Investeringsår-$I38+1)/$K38),1,0)) *(1+IF(ISBLANK($L38),S_Inflation,$L38))^(AB$2-S_Investeringsår) *(1+IF($C38="",0%,VLOOKUP($C38,Stamdata!$D$7:$E$15,2,0)))^(AB$2-S_Investeringsår) -> 23961.44452 | AC38: =$H38 *IF(AC$2>=$I38+S_Investeringsår-1,1,0) *IF(AC$2<=$J38+S_Investeringsår-1,1,0) *IF($K38=0,0,IF((AC$2-S_Investeringsår-$I38+1)/$K38=INT((AC$2-S_Investeringsår-$I38+1)/$K38),1,0)) *(1+IF(ISBLANK($L38),S_Inflation,$L38))^(AC$2-S_Investeringsår) *(1+IF($C38="",0%,VLOOKUP($C38,Stamdata!$D$7:$E$15,2,0)))^(AC$2-S_Investeringsår) -> 24487.88225 | AD38: =$H38 *IF(AD$2>=$I38+S_Investeringsår-1,1,0) *IF(AD$2<=$J38+S_Investeringsår-1,1,0) *IF($K38=0,0,IF((AD$2-S_Investeringsår-$I38+1)/$K38=INT((AD$2-S_Investeringsår-$I38+1)/$K38),1,0)) *(1+IF(ISBLANK($L38),S_Inflation,$L38))^(AD$2-S_Investeringsår) *(1+IF($C38="",0%,VLOOKUP($C38,Stamdata!$D$7:$E$15,2,0)))^(AD$2-S_Investeringsår) -> 25025.88592 | AE38: =$H38 *IF(AE$2>=$I38+S_Investeringsår-1,1,0) *IF(AE$2<=$J38+S_Investeringsår-1,1,0) *IF($K38=0,0,IF((AE$2-S_Investeringsår-$I38+1)/$K38=INT((AE$2-S_Investeringsår-$I38+1)/$K38),1,0)) *(1+IF(ISBLANK($L38),S_Inflation,$L38))^(AE$2-S_Investeringsår) *(1+IF($C38="",0%,VLOOKUP($C38,Stamdata!$D$7:$E$15,2,0)))^(AE$2-S_Investeringsår) -> 25575.70964 | AF38: =$H38 *IF(AF$2>=$I38+S_Investeringsår-1,1,0) *IF(AF$2<=$J38+S_Investeringsår-1,1,0) *IF($K38=0,0,IF((AF$2-S_Investeringsår-$I38+1)/$K38=INT((AF$2-S_Investeringsår-$I38+1)/$K38),1,0)) *(1+IF(ISBLANK($L38),S_Inflation,$L38))^(AF$2-S_Investeringsår) *(1+IF($C38="",0%,VLOOKUP($C38,Stamdata!$D$7:$E$15,2,0)))^(AF$2-S_Investeringsår) -> 26137.6131 | AG38: =$H38 *IF(AG$2>=$I38+S_Investeringsår-1,1,0) *IF(AG$2<=$J38+S_Investeringsår-1,1,0) *IF($K38=0,0,IF((AG$2-S_Investeringsår-$I38+1)/$K38=INT((AG$2-S_Investeringsår-$I38+1)/$K38),1,0)) *(1+IF(ISBLANK($L38),S_Inflation,$L38))^(AG$2-S_Investeringsår) *(1+IF($C38="",0%,VLOOKUP($C38,Stamdata!$D$7:$E$15,2,0)))^(AG$2-S_Investeringsår) -> 26711.86168 | AH38: =$H38 *IF(AH$2>=$I38+S_Investeringsår-1,1,0) *IF(AH$2<=$J38+S_Investeringsår-1,1,0) *IF($K38=0,0,IF((AH$2-S_Investeringsår-$I38+1)/$K38=INT((AH$2-S_Investeringsår-$I38+1)/$K38),1,0)) *(1+IF(ISBLANK($L38),S_Inflation,$L38))^(AH$2-S_Investeringsår) *(1+IF($C38="",0%,VLOOKUP($C38,Stamdata!$D$7:$E$15,2,0)))^(AH$2-S_Investeringsår) -> 27298.72663 | AI38: =$H38 *IF(AI$2>=$I38+S_Investeringsår-1,1,0) *IF(AI$2<=$J38+S_Investeringsår-1,1,0) *IF($K38=0,0,IF((AI$2-S_Investeringsår-$I38+1)/$K38=INT((AI$2-S_Investeringsår-$I38+1)/$K38),1,0)) *(1+IF(ISBLANK($L38),S_Inflation,$L38))^(AI$2-S_Investeringsår) *(1+IF($C38="",0%,VLOOKUP($C38,Stamdata!$D$7:$E$15,2,0)))^(AI$2-S_Investeringsår) -> 27898.48511 | AJ38: =$H38 *IF(AJ$2>=$I38+S_Investeringsår-1,1,0) *IF(AJ$2<=$J38+S_Investeringsår-1,1,0) *IF($K38=0,0,IF((AJ$2-S_Investeringsår-$I38+1)/$K38=INT((AJ$2-S_Investeringsår-$I38+1)/$K38),1,0)) *(1+IF(ISBLANK($L38),S_Inflation,$L38))^(AJ$2-S_Investeringsår) *(1+IF($C38="",0%,VLOOKUP($C38,Stamdata!$D$7:$E$15,2,0)))^(AJ$2-S_Investeringsår) -> 28511.42041 | AK38: =$H38 *IF(AK$2>=$I38+S_Investeringsår-1,1,0) *IF(AK$2<=$J38+S_Investeringsår-1,1,0) *IF($K38=0,0,IF((AK$2-S_Investeringsår-$I38+1)/$K38=INT((AK$2-S_Investeringsår-$I38+1)/$K38),1,0)) *(1+IF(ISBLANK($L38),S_Inflation,$L38))^(AK$2-S_Investeringsår) *(1+IF($C38="",0%,VLOOKUP($C38,Stamdata!$D$7:$E$15,2,0)))^(AK$2-S_Investeringsår) -> 29137.82202 | AL38: =$H38 *IF(AL$2>=$I38+S_Investeringsår-1,1,0) *IF(AL$2<=$J38+S_Investeringsår-1,1,0) *IF($K38=0,0,IF((AL$2-S_Investeringsår-$I38+1)/$K38=INT((AL$2-S_Investeringsår-$I38+1)/$K38),1,0)) *(1+IF(ISBLANK($L38),S_Inflation,$L38))^(AL$2-S_Investeringsår) *(1+IF($C38="",0%,VLOOKUP($C38,Stamdata!$D$7:$E$15,2,0)))^(AL$2-S_Investeringsår) -> 29777.98579 | AM38: =$H38 *IF(AM$2>=$I38+S_Investeringsår-1,1,0) *IF(AM$2<=$J38+S_Investeringsår-1,1,0) *IF($K38=0,0,IF((AM$2-S_Investeringsår-$I38+1)/$K38=INT((AM$2-S_Investeringsår-$I38+1)/$K38),1,0)) *(1+IF(ISBLANK($L38),S_Inflation,$L38))^(AM$2-S_Investeringsår) *(1+IF($C38="",0%,VLOOKUP($C38,Stamdata!$D$7:$E$15,2,0)))^(AM$2-S_Investeringsår) -> 30432.2141 | AN38: =$H38 *IF(AN$2>=$I38+S_Investeringsår-1,1,0) *IF(AN$2<=$J38+S_Investeringsår-1,1,0) *IF($K38=0,0,IF((AN$2-S_Investeringsår-$I38+1)/$K38=INT((AN$2-S_Investeringsår-$I38+1)/$K38),1,0)) *(1+IF(ISBLANK($L38),S_Inflation,$L38))^(AN$2-S_Investeringsår) *(1+IF($C38="",0%,VLOOKUP($C38,Stamdata!$D$7:$E$15,2,0)))^(AN$2-S_Investeringsår) -> 31100.81593 | AO38: =$H38 *IF(AO$2>=$I38+S_Investeringsår-1,1,0) *IF(AO$2<=$J38+S_Investeringsår-1,1,0) *IF($K38=0,0,IF((AO$2-S_Investeringsår-$I38+1)/$K38=INT((AO$2-S_Investeringsår-$I38+1)/$K38),1,0)) *(1+IF(ISBLANK($L38),S_Inflation,$L38))^(AO$2-S_Investeringsår) *(1+IF($C38="",0%,VLOOKUP($C38,Stamdata!$D$7:$E$15,2,0)))^(AO$2-S_Investeringsår) -> 31784.10707 | AP38: =$H38 *IF(AP$2>=$I38+S_Investeringsår-1,1,0) *IF(AP$2<=$J38+S_Investeringsår-1,1,0) *IF($K38=0,0,IF((AP$2-S_Investeringsår-$I38+1)/$K38=INT((AP$2-S_Investeringsår-$I38+1)/$K38),1,0)) *(1+IF(ISBLANK($L38),S_Inflation,$L38))^(AP$2-S_Investeringsår) *(1+IF($C38="",0%,VLOOKUP($C38,Stamdata!$D$7:$E$15,2,0)))^(AP$2-S_Investeringsår) -> 32482.41026 | AQ38: =$H38 *IF(AQ$2>=$I38+S_Investeringsår-1,1,0) *IF(AQ$2<=$J38+S_Investeringsår-1,1,0) *IF($K38=0,0,IF((AQ$2-S_Investeringsår-$I38+1)/$K38=INT((AQ$2-S_Investeringsår-$I38+1)/$K38),1,0)) *(1+IF(ISBLANK($L38),S_Inflation,$L38))^(AQ$2-S_Investeringsår) *(1+IF($C38="",0%,VLOOKUP($C38,Stamdata!$D$7:$E$15,2,0)))^(AQ$2-S_Investeringsår) -> 33196.05531 | AR38: =$H38 *IF(AR$2>=$I38+S_Investeringsår-1,1,0) *IF(AR$2<=$J38+S_Investeringsår-1,1,0) *IF($K38=0,0,IF((AR$2-S_Investeringsår-$I38+1)/$K38=INT((AR$2-S_Investeringsår-$I38+1)/$K38),1,0)) *(1+IF(ISBLANK($L38),S_Inflation,$L38))^(AR$2-S_Investeringsår) *(1+IF($C38="",0%,VLOOKUP($C38,Stamdata!$D$7:$E$15,2,0)))^(AR$2-S_Investeringsår) -> 33925.37929 | AS38: =$H38 *IF(AS$2>=$I38+S_Investeringsår-1,1,0) *IF(AS$2<=$J38+S_Investeringsår-1,1,0) *IF($K38=0,0,IF((AS$2-S_Investeringsår-$I38+1)/$K38=INT((AS$2-S_Investeringsår-$I38+1)/$K38),1,0)) *(1+IF(ISBLANK($L38),S_Inflation,$L38))^(AS$2-S_Investeringsår) *(1+IF($C38="",0%,VLOOKUP($C38,Stamdata!$D$7:$E$15,2,0)))^(AS$2-S_Investeringsår) -> 34670.72665 | AT38: =$H38 *IF(AT$2>=$I38+S_Investeringsår-1,1,0) *IF(AT$2<=$J38+S_Investeringsår-1,1,0) *IF($K38=0,0,IF((AT$2-S_Investeringsår-$I38+1)/$K38=INT((AT$2-S_Investeringsår-$I38+1)/$K38),1,0)) *(1+IF(ISBLANK($L38),S_Inflation,$L38))^(AT$2-S_Investeringsår) *(1+IF($C38="",0%,VLOOKUP($C38,Stamdata!$D$7:$E$15,2,0)))^(AT$2-S_Investeringsår) -> 35432.44945 | AU38: =$H38 *IF(AU$2>=$I38+S_Investeringsår-1,1,0) *IF(AU$2<=$J38+S_Investeringsår-1,1,0) *IF($K38=0,0,IF((AU$2-S_Investeringsår-$I38+1)/$K38=INT((AU$2-S_Investeringsår-$I38+1)/$K38),1,0)) *(1+IF(ISBLANK($L38),S_Inflation,$L38))^(AU$2-S_Investeringsår) *(1+IF($C38="",0%,VLOOKUP($C38,Stamdata!$D$7:$E$15,2,0)))^(AU$2-S_Investeringsår) -> 36210.90745 | AV38: =$H38 *IF(AV$2>=$I38+S_Investeringsår-1,1,0) *IF(AV$2<=$J38+S_Investeringsår-1,1,0) *IF($K38=0,0,IF((AV$2-S_Investeringsår-$I38+1)/$K38=INT((AV$2-S_Investeringsår-$I38+1)/$K38),1,0)) *(1+IF(ISBLANK($L38),S_Inflation,$L38))^(AV$2-S_Investeringsår) *(1+IF($C38="",0%,VLOOKUP($C38,Stamdata!$D$7:$E$15,2,0)))^(AV$2-S_Investeringsår) -> 37006.46833 | AW38: =$H38 *IF(AW$2>=$I38+S_Investeringsår-1,1,0) *IF(AW$2<=$J38+S_Investeringsår-1,1,0) *IF($K38=0,0,IF((AW$2-S_Investeringsår-$I38+1)/$K38=INT((AW$2-S_Investeringsår-$I38+1)/$K38),1,0)) *(1+IF(ISBLANK($L38),S_Inflation,$L38))^(AW$2-S_Investeringsår) *(1+IF($C38="",0%,VLOOKUP($C38,Stamdata!$D$7:$E$15,2,0)))^(AW$2-S_Investeringsår) -> 37819.50784 | AX38: =$H38 *IF(AX$2>=$I38+S_Investeringsår-1,1,0) *IF(AX$2<=$J38+S_Investeringsår-1,1,0) *IF($K38=0,0,IF((AX$2-S_Investeringsår-$I38+1)/$K38=INT((AX$2-S_Investeringsår-$I38+1)/$K38),1,0)) *(1+IF(ISBLANK($L38),S_Inflation,$L38))^(AX$2-S_Investeringsår) *(1+IF($C38="",0%,VLOOKUP($C38,Stamdata!$D$7:$E$15,2,0)))^(AX$2-S_Investeringsår) -> 38650.41 | AY38: =$H38 *IF(AY$2>=$I38+S_Investeringsår-1,1,0) *IF(AY$2<=$J38+S_Investeringsår-1,1,0) *IF($K38=0,0,IF((AY$2-S_Investeringsår-$I38+1)/$K38=INT((AY$2-S_Investeringsår-$I38+1)/$K38),1,0)) *(1+IF(ISBLANK($L38),S_Inflation,$L38))^(AY$2-S_Investeringsår) *(1+IF($C38="",0%,VLOOKUP($C38,Stamdata!$D$7:$E$15,2,0)))^(AY$2-S_Investeringsår) -> 0 | BB38: =SUM(BD38:CH38) -> 430.5733956 | BD38: =U38/S_Areal -> 10.29 | BE38: 10.51607336 | BF38: 10.74711359 | BG38: 10.98322983 | BH38: 11.22453358 | BI38: 11.47113883 | BJ38: 11.72316205 | BK38: 11.98072226 | BL38: 12.24394113 | BM38: 12.51294296 | BN38: =AE38/S_Areal -> 12.78785482 | BO38: 13.06880655 | BP38: 13.35593084 | BQ38: 13.64936331 | BR38: 13.94924255 | BS38: 14.2557102 | BT38: 14.56891101 | BU38: 14.8889929 | BV38: 15.21610705 | BW38: 15.55040796 | BX38: =AO38/S_Areal -> 15.89205354 | BY38: 16.24120513 | BZ38: 16.59802766 | CA38: 16.96268964 | CB38: 17.33536333 | CC38: 17.71622473 | CD38: 18.10545373 | CE38: 18.50323417 | CF38: 18.90975392 | CG38: 19.325205 | CH38: =AY38/S_Areal -> 0
B39: - | F39: =IF(ISBLANK(D39),"",VLOOKUP(D39,S_forsyningsoplysninger,5,0)) ->  | G39: 0 | H39: 0 | I39: 0 | J39: 0 | K39: 0 | L39: 0.018 | M39: 0 | P39: =T39 -> 0 | T39: 0 | U39: =$H39 *IF(U$2>=$I39+S_Investeringsår-1,1,0) *IF(U$2<=$J39+S_Investeringsår-1,1,0) *IF($K39=0,0,IF((U$2-S_Investeringsår-$I39+1)/$K39=INT((U$2-S_Investeringsår-$I39+1)/$K39),1,0)) *(1+IF(ISBLANK($L39),S_Inflation,$L39))^(U$2-S_Investeringsår) *(1+IF($C39="",0%,VLOOKUP($C39,Stamdata!$D$7:$E$15,2,0)))^(U$2-S_Investeringsår) -> 0 | V39: =$H39 *IF(V$2>=$I39+S_Investeringsår-1,1,0) *IF(V$2<=$J39+S_Investeringsår-1,1,0) *IF($K39=0,0,IF((V$2-S_Investeringsår-$I39+1)/$K39=INT((V$2-S_Investeringsår-$I39+1)/$K39),1,0)) *(1+IF(ISBLANK($L39),S_Inflation,$L39))^(V$2-S_Investeringsår) *(1+IF($C39="",0%,VLOOKUP($C39,Stamdata!$D$7:$E$15,2,0)))^(V$2-S_Investeringsår) -> 0 | W39: =$H39 *IF(W$2>=$I39+S_Investeringsår-1,1,0) *IF(W$2<=$J39+S_Investeringsår-1,1,0) *IF($K39=0,0,IF((W$2-S_Investeringsår-$I39+1)/$K39=INT((W$2-S_Investeringsår-$I39+1)/$K39),1,0)) *(1+IF(ISBLANK($L39),S_Inflation,$L39))^(W$2-S_Investeringsår) *(1+IF($C39="",0%,VLOOKUP($C39,Stamdata!$D$7:$E$15,2,0)))^(W$2-S_Investeringsår) -> 0 | X39: =$H39 *IF(X$2>=$I39+S_Investeringsår-1,1,0) *IF(X$2<=$J39+S_Investeringsår-1,1,0) *IF($K39=0,0,IF((X$2-S_Investeringsår-$I39+1)/$K39=INT((X$2-S_Investeringsår-$I39+1)/$K39),1,0)) *(1+IF(ISBLANK($L39),S_Inflation,$L39))^(X$2-S_Investeringsår) *(1+IF($C39="",0%,VLOOKUP($C39,Stamdata!$D$7:$E$15,2,0)))^(X$2-S_Investeringsår) -> 0 | Y39: =$H39 *IF(Y$2>=$I39+S_Investeringsår-1,1,0) *IF(Y$2<=$J39+S_Investeringsår-1,1,0) *IF($K39=0,0,IF((Y$2-S_Investeringsår-$I39+1)/$K39=INT((Y$2-S_Investeringsår-$I39+1)/$K39),1,0)) *(1+IF(ISBLANK($L39),S_Inflation,$L39))^(Y$2-S_Investeringsår) *(1+IF($C39="",0%,VLOOKUP($C39,Stamdata!$D$7:$E$15,2,0)))^(Y$2-S_Investeringsår) -> 0 | Z39: =$H39 *IF(Z$2>=$I39+S_Investeringsår-1,1,0) *IF(Z$2<=$J39+S_Investeringsår-1,1,0) *IF($K39=0,0,IF((Z$2-S_Investeringsår-$I39+1)/$K39=INT((Z$2-S_Investeringsår-$I39+1)/$K39),1,0)) *(1+IF(ISBLANK($L39),S_Inflation,$L39))^(Z$2-S_Investeringsår) *(1+IF($C39="",0%,VLOOKUP($C39,Stamdata!$D$7:$E$15,2,0)))^(Z$2-S_Investeringsår) -> 0 | AA39: =$H39 *IF(AA$2>=$I39+S_Investeringsår-1,1,0) *IF(AA$2<=$J39+S_Investeringsår-1,1,0) *IF($K39=0,0,IF((AA$2-S_Investeringsår-$I39+1)/$K39=INT((AA$2-S_Investeringsår-$I39+1)/$K39),1,0)) *(1+IF(ISBLANK($L39),S_Inflation,$L39))^(AA$2-S_Investeringsår) *(1+IF($C39="",0%,VLOOKUP($C39,Stamdata!$D$7:$E$15,2,0)))^(AA$2-S_Investeringsår) -> 0 | AB39: =$H39 *IF(AB$2>=$I39+S_Investeringsår-1,1,0) *IF(AB$2<=$J39+S_Investeringsår-1,1,0) *IF($K39=0,0,IF((AB$2-S_Investeringsår-$I39+1)/$K39=INT((AB$2-S_Investeringsår-$I39+1)/$K39),1,0)) *(1+IF(ISBLANK($L39),S_Inflation,$L39))^(AB$2-S_Investeringsår) *(1+IF($C39="",0%,VLOOKUP($C39,Stamdata!$D$7:$E$15,2,0)))^(AB$2-S_Investeringsår) -> 0 | AC39: =$H39 *IF(AC$2>=$I39+S_Investeringsår-1,1,0) *IF(AC$2<=$J39+S_Investeringsår-1,1,0) *IF($K39=0,0,IF((AC$2-S_Investeringsår-$I39+1)/$K39=INT((AC$2-S_Investeringsår-$I39+1)/$K39),1,0)) *(1+IF(ISBLANK($L39),S_Inflation,$L39))^(AC$2-S_Investeringsår) *(1+IF($C39="",0%,VLOOKUP($C39,Stamdata!$D$7:$E$15,2,0)))^(AC$2-S_Investeringsår) -> 0 | AD39: =$H39 *IF(AD$2>=$I39+S_Investeringsår-1,1,0) *IF(AD$2<=$J39+S_Investeringsår-1,1,0) *IF($K39=0,0,IF((AD$2-S_Investeringsår-$I39+1)/$K39=INT((AD$2-S_Investeringsår-$I39+1)/$K39),1,0)) *(1+IF(ISBLANK($L39),S_Inflation,$L39))^(AD$2-S_Investeringsår) *(1+IF($C39="",0%,VLOOKUP($C39,Stamdata!$D$7:$E$15,2,0)))^(AD$2-S_Investeringsår) -> 0 | AE39: =$H39 *IF(AE$2>=$I39+S_Investeringsår-1,1,0) *IF(AE$2<=$J39+S_Investeringsår-1,1,0) *IF($K39=0,0,IF((AE$2-S_Investeringsår-$I39+1)/$K39=INT((AE$2-S_Investeringsår-$I39+1)/$K39),1,0)) *(1+IF(ISBLANK($L39),S_Inflation,$L39))^(AE$2-S_Investeringsår) *(1+IF($C39="",0%,VLOOKUP($C39,Stamdata!$D$7:$E$15,2,0)))^(AE$2-S_Investeringsår) -> 0 | AF39: =$H39 *IF(AF$2>=$I39+S_Investeringsår-1,1,0) *IF(AF$2<=$J39+S_Investeringsår-1,1,0) *IF($K39=0,0,IF((AF$2-S_Investeringsår-$I39+1)/$K39=INT((AF$2-S_Investeringsår-$I39+1)/$K39),1,0)) *(1+IF(ISBLANK($L39),S_Inflation,$L39))^(AF$2-S_Investeringsår) *(1+IF($C39="",0%,VLOOKUP($C39,Stamdata!$D$7:$E$15,2,0)))^(AF$2-S_Investeringsår) -> 0 | AG39: =$H39 *IF(AG$2>=$I39+S_Investeringsår-1,1,0) *IF(AG$2<=$J39+S_Investeringsår-1,1,0) *IF($K39=0,0,IF((AG$2-S_Investeringsår-$I39+1)/$K39=INT((AG$2-S_Investeringsår-$I39+1)/$K39),1,0)) *(1+IF(ISBLANK($L39),S_Inflation,$L39))^(AG$2-S_Investeringsår) *(1+IF($C39="",0%,VLOOKUP($C39,Stamdata!$D$7:$E$15,2,0)))^(AG$2-S_Investeringsår) -> 0 | AH39: =$H39 *IF(AH$2>=$I39+S_Investeringsår-1,1,0) *IF(AH$2<=$J39+S_Investeringsår-1,1,0) *IF($K39=0,0,IF((AH$2-S_Investeringsår-$I39+1)/$K39=INT((AH$2-S_Investeringsår-$I39+1)/$K39),1,0)) *(1+IF(ISBLANK($L39),S_Inflation,$L39))^(AH$2-S_Investeringsår) *(1+IF($C39="",0%,VLOOKUP($C39,Stamdata!$D$7:$E$15,2,0)))^(AH$2-S_Investeringsår) -> 0 | AI39: =$H39 *IF(AI$2>=$I39+S_Investeringsår-1,1,0) *IF(AI$2<=$J39+S_Investeringsår-1,1,0) *IF($K39=0,0,IF((AI$2-S_Investeringsår-$I39+1)/$K39=INT((AI$2-S_Investeringsår-$I39+1)/$K39),1,0)) *(1+IF(ISBLANK($L39),S_Inflation,$L39))^(AI$2-S_Investeringsår) *(1+IF($C39="",0%,VLOOKUP($C39,Stamdata!$D$7:$E$15,2,0)))^(AI$2-S_Investeringsår) -> 0 | AJ39: =$H39 *IF(AJ$2>=$I39+S_Investeringsår-1,1,0) *IF(AJ$2<=$J39+S_Investeringsår-1,1,0) *IF($K39=0,0,IF((AJ$2-S_Investeringsår-$I39+1)/$K39=INT((AJ$2-S_Investeringsår-$I39+1)/$K39),1,0)) *(1+IF(ISBLANK($L39),S_Inflation,$L39))^(AJ$2-S_Investeringsår) *(1+IF($C39="",0%,VLOOKUP($C39,Stamdata!$D$7:$E$15,2,0)))^(AJ$2-S_Investeringsår) -> 0 | AK39: =$H39 *IF(AK$2>=$I39+S_Investeringsår-1,1,0) *IF(AK$2<=$J39+S_Investeringsår-1,1,0) *IF($K39=0,0,IF((AK$2-S_Investeringsår-$I39+1)/$K39=INT((AK$2-S_Investeringsår-$I39+1)/$K39),1,0)) *(1+IF(ISBLANK($L39),S_Inflation,$L39))^(AK$2-S_Investeringsår) *(1+IF($C39="",0%,VLOOKUP($C39,Stamdata!$D$7:$E$15,2,0)))^(AK$2-S_Investeringsår) -> 0 | AL39: =$H39 *IF(AL$2>=$I39+S_Investeringsår-1,1,0) *IF(AL$2<=$J39+S_Investeringsår-1,1,0) *IF($K39=0,0,IF((AL$2-S_Investeringsår-$I39+1)/$K39=INT((AL$2-S_Investeringsår-$I39+1)/$K39),1,0)) *(1+IF(ISBLANK($L39),S_Inflation,$L39))^(AL$2-S_Investeringsår) *(1+IF($C39="",0%,VLOOKUP($C39,Stamdata!$D$7:$E$15,2,0)))^(AL$2-S_Investeringsår) -> 0 | AM39: =$H39 *IF(AM$2>=$I39+S_Investeringsår-1,1,0) *IF(AM$2<=$J39+S_Investeringsår-1,1,0) *IF($K39=0,0,IF((AM$2-S_Investeringsår-$I39+1)/$K39=INT((AM$2-S_Investeringsår-$I39+1)/$K39),1,0)) *(1+IF(ISBLANK($L39),S_Inflation,$L39))^(AM$2-S_Investeringsår) *(1+IF($C39="",0%,VLOOKUP($C39,Stamdata!$D$7:$E$15,2,0)))^(AM$2-S_Investeringsår) -> 0 | AN39: =$H39 *IF(AN$2>=$I39+S_Investeringsår-1,1,0) *IF(AN$2<=$J39+S_Investeringsår-1,1,0) *IF($K39=0,0,IF((AN$2-S_Investeringsår-$I39+1)/$K39=INT((AN$2-S_Investeringsår-$I39+1)/$K39),1,0)) *(1+IF(ISBLANK($L39),S_Inflation,$L39))^(AN$2-S_Investeringsår) *(1+IF($C39="",0%,VLOOKUP($C39,Stamdata!$D$7:$E$15,2,0)))^(AN$2-S_Investeringsår) -> 0 | AO39: =$H39 *IF(AO$2>=$I39+S_Investeringsår-1,1,0) *IF(AO$2<=$J39+S_Investeringsår-1,1,0) *IF($K39=0,0,IF((AO$2-S_Investeringsår-$I39+1)/$K39=INT((AO$2-S_Investeringsår-$I39+1)/$K39),1,0)) *(1+IF(ISBLANK($L39),S_Inflation,$L39))^(AO$2-S_Investeringsår) *(1+IF($C39="",0%,VLOOKUP($C39,Stamdata!$D$7:$E$15,2,0)))^(AO$2-S_Investeringsår) -> 0 | AP39: =$H39 *IF(AP$2>=$I39+S_Investeringsår-1,1,0) *IF(AP$2<=$J39+S_Investeringsår-1,1,0) *IF($K39=0,0,IF((AP$2-S_Investeringsår-$I39+1)/$K39=INT((AP$2-S_Investeringsår-$I39+1)/$K39),1,0)) *(1+IF(ISBLANK($L39),S_Inflation,$L39))^(AP$2-S_Investeringsår) *(1+IF($C39="",0%,VLOOKUP($C39,Stamdata!$D$7:$E$15,2,0)))^(AP$2-S_Investeringsår) -> 0 | AQ39: =$H39 *IF(AQ$2>=$I39+S_Investeringsår-1,1,0) *IF(AQ$2<=$J39+S_Investeringsår-1,1,0) *IF($K39=0,0,IF((AQ$2-S_Investeringsår-$I39+1)/$K39=INT((AQ$2-S_Investeringsår-$I39+1)/$K39),1,0)) *(1+IF(ISBLANK($L39),S_Inflation,$L39))^(AQ$2-S_Investeringsår) *(1+IF($C39="",0%,VLOOKUP($C39,Stamdata!$D$7:$E$15,2,0)))^(AQ$2-S_Investeringsår) -> 0 | AR39: =$H39 *IF(AR$2>=$I39+S_Investeringsår-1,1,0) *IF(AR$2<=$J39+S_Investeringsår-1,1,0) *IF($K39=0,0,IF((AR$2-S_Investeringsår-$I39+1)/$K39=INT((AR$2-S_Investeringsår-$I39+1)/$K39),1,0)) *(1+IF(ISBLANK($L39),S_Inflation,$L39))^(AR$2-S_Investeringsår) *(1+IF($C39="",0%,VLOOKUP($C39,Stamdata!$D$7:$E$15,2,0)))^(AR$2-S_Investeringsår) -> 0 | AS39: =$H39 *IF(AS$2>=$I39+S_Investeringsår-1,1,0) *IF(AS$2<=$J39+S_Investeringsår-1,1,0) *IF($K39=0,0,IF((AS$2-S_Investeringsår-$I39+1)/$K39=INT((AS$2-S_Investeringsår-$I39+1)/$K39),1,0)) *(1+IF(ISBLANK($L39),S_Inflation,$L39))^(AS$2-S_Investeringsår) *(1+IF($C39="",0%,VLOOKUP($C39,Stamdata!$D$7:$E$15,2,0)))^(AS$2-S_Investeringsår) -> 0 | AT39: =$H39 *IF(AT$2>=$I39+S_Investeringsår-1,1,0) *IF(AT$2<=$J39+S_Investeringsår-1,1,0) *IF($K39=0,0,IF((AT$2-S_Investeringsår-$I39+1)/$K39=INT((AT$2-S_Investeringsår-$I39+1)/$K39),1,0)) *(1+IF(ISBLANK($L39),S_Inflation,$L39))^(AT$2-S_Investeringsår) *(1+IF($C39="",0%,VLOOKUP($C39,Stamdata!$D$7:$E$15,2,0)))^(AT$2-S_Investeringsår) -> 0 | AU39: =$H39 *IF(AU$2>=$I39+S_Investeringsår-1,1,0) *IF(AU$2<=$J39+S_Investeringsår-1,1,0) *IF($K39=0,0,IF((AU$2-S_Investeringsår-$I39+1)/$K39=INT((AU$2-S_Investeringsår-$I39+1)/$K39),1,0)) *(1+IF(ISBLANK($L39),S_Inflation,$L39))^(AU$2-S_Investeringsår) *(1+IF($C39="",0%,VLOOKUP($C39,Stamdata!$D$7:$E$15,2,0)))^(AU$2-S_Investeringsår) -> 0 | AV39: =$H39 *IF(AV$2>=$I39+S_Investeringsår-1,1,0) *IF(AV$2<=$J39+S_Investeringsår-1,1,0) *IF($K39=0,0,IF((AV$2-S_Investeringsår-$I39+1)/$K39=INT((AV$2-S_Investeringsår-$I39+1)/$K39),1,0)) *(1+IF(ISBLANK($L39),S_Inflation,$L39))^(AV$2-S_Investeringsår) *(1+IF($C39="",0%,VLOOKUP($C39,Stamdata!$D$7:$E$15,2,0)))^(AV$2-S_Investeringsår) -> 0 | AW39: =$H39 *IF(AW$2>=$I39+S_Investeringsår-1,1,0) *IF(AW$2<=$J39+S_Investeringsår-1,1,0) *IF($K39=0,0,IF((AW$2-S_Investeringsår-$I39+1)/$K39=INT((AW$2-S_Investeringsår-$I39+1)/$K39),1,0)) *(1+IF(ISBLANK($L39),S_Inflation,$L39))^(AW$2-S_Investeringsår) *(1+IF($C39="",0%,VLOOKUP($C39,Stamdata!$D$7:$E$15,2,0)))^(AW$2-S_Investeringsår) -> 0 | AX39: =$H39 *IF(AX$2>=$I39+S_Investeringsår-1,1,0) *IF(AX$2<=$J39+S_Investeringsår-1,1,0) *IF($K39=0,0,IF((AX$2-S_Investeringsår-$I39+1)/$K39=INT((AX$2-S_Investeringsår-$I39+1)/$K39),1,0)) *(1+IF(ISBLANK($L39),S_Inflation,$L39))^(AX$2-S_Investeringsår) *(1+IF($C39="",0%,VLOOKUP($C39,Stamdata!$D$7:$E$15,2,0)))^(AX$2-S_Investeringsår) -> 0 | AY39: =$H39 *IF(AY$2>=$I39+S_Investeringsår-1,1,0) *IF(AY$2<=$J39+S_Investeringsår-1,1,0) *IF($K39=0,0,IF((AY$2-S_Investeringsår-$I39+1)/$K39=INT((AY$2-S_Investeringsår-$I39+1)/$K39),1,0)) *(1+IF(ISBLANK($L39),S_Inflation,$L39))^(AY$2-S_Investeringsår) *(1+IF($C39="",0%,VLOOKUP($C39,Stamdata!$D$7:$E$15,2,0)))^(AY$2-S_Investeringsår) -> 0 | BB39: 0 | BD39: 0 | BE39: 0 | BF39: 0 | BG39: 0 | BH39: 0 | BI39: 0 | BJ39: 0 | BK39: 0 | BL39: 0 | BM39: 0 | BN39: 0 | BO39: 0 | BP39: 0 | BQ39: 0 | BR39: 0 | BS39: 0 | BT39: 0 | BU39: 0 | BV39: 0 | BW39: 0 | BX39: 0 | BY39: 0 | BZ39: 0 | CA39: 0 | CB39: 0 | CC39: 0 | CD39: 0 | CE39: 0 | CF39: 0 | CG39: 0 | CH39: 0
B40: - | G40: 0 | H40: 0 | I40: 0 | J40: 0 | K40: 0 | L40: 0.018 | M40: 0 | P40: 0 | T40: 0 | U40: =$H40 *IF(U$2>=$I40+S_Investeringsår-1,1,0) *IF(U$2<=$J40+S_Investeringsår-1,1,0) *IF($K40=0,0,IF((U$2-S_Investeringsår-$I40+1)/$K40=INT((U$2-S_Investeringsår-$I40+1)/$K40),1,0)) *(1+IF(ISBLANK($L40),S_Inflation,$L40))^(U$2-S_Investeringsår) *(1+IF($C40="",0%,VLOOKUP($C40,Stamdata!$D$7:$E$15,2,0)))^(U$2-S_Investeringsår) -> 0 | V40: =$H40 *IF(V$2>=$I40+S_Investeringsår-1,1,0) *IF(V$2<=$J40+S_Investeringsår-1,1,0) *IF($K40=0,0,IF((V$2-S_Investeringsår-$I40+1)/$K40=INT((V$2-S_Investeringsår-$I40+1)/$K40),1,0)) *(1+IF(ISBLANK($L40),S_Inflation,$L40))^(V$2-S_Investeringsår) *(1+IF($C40="",0%,VLOOKUP($C40,Stamdata!$D$7:$E$15,2,0)))^(V$2-S_Investeringsår) -> 0 | W40: =$H40 *IF(W$2>=$I40+S_Investeringsår-1,1,0) *IF(W$2<=$J40+S_Investeringsår-1,1,0) *IF($K40=0,0,IF((W$2-S_Investeringsår-$I40+1)/$K40=INT((W$2-S_Investeringsår-$I40+1)/$K40),1,0)) *(1+IF(ISBLANK($L40),S_Inflation,$L40))^(W$2-S_Investeringsår) *(1+IF($C40="",0%,VLOOKUP($C40,Stamdata!$D$7:$E$15,2,0)))^(W$2-S_Investeringsår) -> 0 | X40: =$H40 *IF(X$2>=$I40+S_Investeringsår-1,1,0) *IF(X$2<=$J40+S_Investeringsår-1,1,0) *IF($K40=0,0,IF((X$2-S_Investeringsår-$I40+1)/$K40=INT((X$2-S_Investeringsår-$I40+1)/$K40),1,0)) *(1+IF(ISBLANK($L40),S_Inflation,$L40))^(X$2-S_Investeringsår) *(1+IF($C40="",0%,VLOOKUP($C40,Stamdata!$D$7:$E$15,2,0)))^(X$2-S_Investeringsår) -> 0 | Y40: =$H40 *IF(Y$2>=$I40+S_Investeringsår-1,1,0) *IF(Y$2<=$J40+S_Investeringsår-1,1,0) *IF($K40=0,0,IF((Y$2-S_Investeringsår-$I40+1)/$K40=INT((Y$2-S_Investeringsår-$I40+1)/$K40),1,0)) *(1+IF(ISBLANK($L40),S_Inflation,$L40))^(Y$2-S_Investeringsår) *(1+IF($C40="",0%,VLOOKUP($C40,Stamdata!$D$7:$E$15,2,0)))^(Y$2-S_Investeringsår) -> 0 | Z40: =$H40 *IF(Z$2>=$I40+S_Investeringsår-1,1,0) *IF(Z$2<=$J40+S_Investeringsår-1,1,0) *IF($K40=0,0,IF((Z$2-S_Investeringsår-$I40+1)/$K40=INT((Z$2-S_Investeringsår-$I40+1)/$K40),1,0)) *(1+IF(ISBLANK($L40),S_Inflation,$L40))^(Z$2-S_Investeringsår) *(1+IF($C40="",0%,VLOOKUP($C40,Stamdata!$D$7:$E$15,2,0)))^(Z$2-S_Investeringsår) -> 0 | AA40: =$H40 *IF(AA$2>=$I40+S_Investeringsår-1,1,0) *IF(AA$2<=$J40+S_Investeringsår-1,1,0) *IF($K40=0,0,IF((AA$2-S_Investeringsår-$I40+1)/$K40=INT((AA$2-S_Investeringsår-$I40+1)/$K40),1,0)) *(1+IF(ISBLANK($L40),S_Inflation,$L40))^(AA$2-S_Investeringsår) *(1+IF($C40="",0%,VLOOKUP($C40,Stamdata!$D$7:$E$15,2,0)))^(AA$2-S_Investeringsår) -> 0 | AB40: =$H40 *IF(AB$2>=$I40+S_Investeringsår-1,1,0) *IF(AB$2<=$J40+S_Investeringsår-1,1,0) *IF($K40=0,0,IF((AB$2-S_Investeringsår-$I40+1)/$K40=INT((AB$2-S_Investeringsår-$I40+1)/$K40),1,0)) *(1+IF(ISBLANK($L40),S_Inflation,$L40))^(AB$2-S_Investeringsår) *(1+IF($C40="",0%,VLOOKUP($C40,Stamdata!$D$7:$E$15,2,0)))^(AB$2-S_Investeringsår) -> 0 | AC40: =$H40 *IF(AC$2>=$I40+S_Investeringsår-1,1,0) *IF(AC$2<=$J40+S_Investeringsår-1,1,0) *IF($K40=0,0,IF((AC$2-S_Investeringsår-$I40+1)/$K40=INT((AC$2-S_Investeringsår-$I40+1)/$K40),1,0)) *(1+IF(ISBLANK($L40),S_Inflation,$L40))^(AC$2-S_Investeringsår) *(1+IF($C40="",0%,VLOOKUP($C40,Stamdata!$D$7:$E$15,2,0)))^(AC$2-S_Investeringsår) -> 0 | AD40: =$H40 *IF(AD$2>=$I40+S_Investeringsår-1,1,0) *IF(AD$2<=$J40+S_Investeringsår-1,1,0) *IF($K40=0,0,IF((AD$2-S_Investeringsår-$I40+1)/$K40=INT((AD$2-S_Investeringsår-$I40+1)/$K40),1,0)) *(1+IF(ISBLANK($L40),S_Inflation,$L40))^(AD$2-S_Investeringsår) *(1+IF($C40="",0%,VLOOKUP($C40,Stamdata!$D$7:$E$15,2,0)))^(AD$2-S_Investeringsår) -> 0 | AE40: =$H40 *IF(AE$2>=$I40+S_Investeringsår-1,1,0) *IF(AE$2<=$J40+S_Investeringsår-1,1,0) *IF($K40=0,0,IF((AE$2-S_Investeringsår-$I40+1)/$K40=INT((AE$2-S_Investeringsår-$I40+1)/$K40),1,0)) *(1+IF(ISBLANK($L40),S_Inflation,$L40))^(AE$2-S_Investeringsår) *(1+IF($C40="",0%,VLOOKUP($C40,Stamdata!$D$7:$E$15,2,0)))^(AE$2-S_Investeringsår) -> 0 | AF40: =$H40 *IF(AF$2>=$I40+S_Investeringsår-1,1,0) *IF(AF$2<=$J40+S_Investeringsår-1,1,0) *IF($K40=0,0,IF((AF$2-S_Investeringsår-$I40+1)/$K40=INT((AF$2-S_Investeringsår-$I40+1)/$K40),1,0)) *(1+IF(ISBLANK($L40),S_Inflation,$L40))^(AF$2-S_Investeringsår) *(1+IF($C40="",0%,VLOOKUP($C40,Stamdata!$D$7:$E$15,2,0)))^(AF$2-S_Investeringsår) -> 0 | AG40: =$H40 *IF(AG$2>=$I40+S_Investeringsår-1,1,0) *IF(AG$2<=$J40+S_Investeringsår-1,1,0) *IF($K40=0,0,IF((AG$2-S_Investeringsår-$I40+1)/$K40=INT((AG$2-S_Investeringsår-$I40+1)/$K40),1,0)) *(1+IF(ISBLANK($L40),S_Inflation,$L40))^(AG$2-S_Investeringsår) *(1+IF($C40="",0%,VLOOKUP($C40,Stamdata!$D$7:$E$15,2,0)))^(AG$2-S_Investeringsår) -> 0 | AH40: =$H40 *IF(AH$2>=$I40+S_Investeringsår-1,1,0) *IF(AH$2<=$J40+S_Investeringsår-1,1,0) *IF($K40=0,0,IF((AH$2-S_Investeringsår-$I40+1)/$K40=INT((AH$2-S_Investeringsår-$I40+1)/$K40),1,0)) *(1+IF(ISBLANK($L40),S_Inflation,$L40))^(AH$2-S_Investeringsår) *(1+IF($C40="",0%,VLOOKUP($C40,Stamdata!$D$7:$E$15,2,0)))^(AH$2-S_Investeringsår) -> 0 | AI40: =$H40 *IF(AI$2>=$I40+S_Investeringsår-1,1,0) *IF(AI$2<=$J40+S_Investeringsår-1,1,0) *IF($K40=0,0,IF((AI$2-S_Investeringsår-$I40+1)/$K40=INT((AI$2-S_Investeringsår-$I40+1)/$K40),1,0)) *(1+IF(ISBLANK($L40),S_Inflation,$L40))^(AI$2-S_Investeringsår) *(1+IF($C40="",0%,VLOOKUP($C40,Stamdata!$D$7:$E$15,2,0)))^(AI$2-S_Investeringsår) -> 0 | AJ40: =$H40 *IF(AJ$2>=$I40+S_Investeringsår-1,1,0) *IF(AJ$2<=$J40+S_Investeringsår-1,1,0) *IF($K40=0,0,IF((AJ$2-S_Investeringsår-$I40+1)/$K40=INT((AJ$2-S_Investeringsår-$I40+1)/$K40),1,0)) *(1+IF(ISBLANK($L40),S_Inflation,$L40))^(AJ$2-S_Investeringsår) *(1+IF($C40="",0%,VLOOKUP($C40,Stamdata!$D$7:$E$15,2,0)))^(AJ$2-S_Investeringsår) -> 0 | AK40: =$H40 *IF(AK$2>=$I40+S_Investeringsår-1,1,0) *IF(AK$2<=$J40+S_Investeringsår-1,1,0) *IF($K40=0,0,IF((AK$2-S_Investeringsår-$I40+1)/$K40=INT((AK$2-S_Investeringsår-$I40+1)/$K40),1,0)) *(1+IF(ISBLANK($L40),S_Inflation,$L40))^(AK$2-S_Investeringsår) *(1+IF($C40="",0%,VLOOKUP($C40,Stamdata!$D$7:$E$15,2,0)))^(AK$2-S_Investeringsår) -> 0 | AL40: =$H40 *IF(AL$2>=$I40+S_Investeringsår-1,1,0) *IF(AL$2<=$J40+S_Investeringsår-1,1,0) *IF($K40=0,0,IF((AL$2-S_Investeringsår-$I40+1)/$K40=INT((AL$2-S_Investeringsår-$I40+1)/$K40),1,0)) *(1+IF(ISBLANK($L40),S_Inflation,$L40))^(AL$2-S_Investeringsår) *(1+IF($C40="",0%,VLOOKUP($C40,Stamdata!$D$7:$E$15,2,0)))^(AL$2-S_Investeringsår) -> 0 | AM40: =$H40 *IF(AM$2>=$I40+S_Investeringsår-1,1,0) *IF(AM$2<=$J40+S_Investeringsår-1,1,0) *IF($K40=0,0,IF((AM$2-S_Investeringsår-$I40+1)/$K40=INT((AM$2-S_Investeringsår-$I40+1)/$K40),1,0)) *(1+IF(ISBLANK($L40),S_Inflation,$L40))^(AM$2-S_Investeringsår) *(1+IF($C40="",0%,VLOOKUP($C40,Stamdata!$D$7:$E$15,2,0)))^(AM$2-S_Investeringsår) -> 0 | AN40: =$H40 *IF(AN$2>=$I40+S_Investeringsår-1,1,0) *IF(AN$2<=$J40+S_Investeringsår-1,1,0) *IF($K40=0,0,IF((AN$2-S_Investeringsår-$I40+1)/$K40=INT((AN$2-S_Investeringsår-$I40+1)/$K40),1,0)) *(1+IF(ISBLANK($L40),S_Inflation,$L40))^(AN$2-S_Investeringsår) *(1+IF($C40="",0%,VLOOKUP($C40,Stamdata!$D$7:$E$15,2,0)))^(AN$2-S_Investeringsår) -> 0 | AO40: =$H40 *IF(AO$2>=$I40+S_Investeringsår-1,1,0) *IF(AO$2<=$J40+S_Investeringsår-1,1,0) *IF($K40=0,0,IF((AO$2-S_Investeringsår-$I40+1)/$K40=INT((AO$2-S_Investeringsår-$I40+1)/$K40),1,0)) *(1+IF(ISBLANK($L40),S_Inflation,$L40))^(AO$2-S_Investeringsår) *(1+IF($C40="",0%,VLOOKUP($C40,Stamdata!$D$7:$E$15,2,0)))^(AO$2-S_Investeringsår) -> 0 | AP40: =$H40 *IF(AP$2>=$I40+S_Investeringsår-1,1,0) *IF(AP$2<=$J40+S_Investeringsår-1,1,0) *IF($K40=0,0,IF((AP$2-S_Investeringsår-$I40+1)/$K40=INT((AP$2-S_Investeringsår-$I40+1)/$K40),1,0)) *(1+IF(ISBLANK($L40),S_Inflation,$L40))^(AP$2-S_Investeringsår) *(1+IF($C40="",0%,VLOOKUP($C40,Stamdata!$D$7:$E$15,2,0)))^(AP$2-S_Investeringsår) -> 0 | AQ40: =$H40 *IF(AQ$2>=$I40+S_Investeringsår-1,1,0) *IF(AQ$2<=$J40+S_Investeringsår-1,1,0) *IF($K40=0,0,IF((AQ$2-S_Investeringsår-$I40+1)/$K40=INT((AQ$2-S_Investeringsår-$I40+1)/$K40),1,0)) *(1+IF(ISBLANK($L40),S_Inflation,$L40))^(AQ$2-S_Investeringsår) *(1+IF($C40="",0%,VLOOKUP($C40,Stamdata!$D$7:$E$15,2,0)))^(AQ$2-S_Investeringsår) -> 0 | AR40: =$H40 *IF(AR$2>=$I40+S_Investeringsår-1,1,0) *IF(AR$2<=$J40+S_Investeringsår-1,1,0) *IF($K40=0,0,IF((AR$2-S_Investeringsår-$I40+1)/$K40=INT((AR$2-S_Investeringsår-$I40+1)/$K40),1,0)) *(1+IF(ISBLANK($L40),S_Inflation,$L40))^(AR$2-S_Investeringsår) *(1+IF($C40="",0%,VLOOKUP($C40,Stamdata!$D$7:$E$15,2,0)))^(AR$2-S_Investeringsår) -> 0 | AS40: =$H40 *IF(AS$2>=$I40+S_Investeringsår-1,1,0) *IF(AS$2<=$J40+S_Investeringsår-1,1,0) *IF($K40=0,0,IF((AS$2-S_Investeringsår-$I40+1)/$K40=INT((AS$2-S_Investeringsår-$I40+1)/$K40),1,0)) *(1+IF(ISBLANK($L40),S_Inflation,$L40))^(AS$2-S_Investeringsår) *(1+IF($C40="",0%,VLOOKUP($C40,Stamdata!$D$7:$E$15,2,0)))^(AS$2-S_Investeringsår) -> 0 | AT40: =$H40 *IF(AT$2>=$I40+S_Investeringsår-1,1,0) *IF(AT$2<=$J40+S_Investeringsår-1,1,0) *IF($K40=0,0,IF((AT$2-S_Investeringsår-$I40+1)/$K40=INT((AT$2-S_Investeringsår-$I40+1)/$K40),1,0)) *(1+IF(ISBLANK($L40),S_Inflation,$L40))^(AT$2-S_Investeringsår) *(1+IF($C40="",0%,VLOOKUP($C40,Stamdata!$D$7:$E$15,2,0)))^(AT$2-S_Investeringsår) -> 0 | AU40: =$H40 *IF(AU$2>=$I40+S_Investeringsår-1,1,0) *IF(AU$2<=$J40+S_Investeringsår-1,1,0) *IF($K40=0,0,IF((AU$2-S_Investeringsår-$I40+1)/$K40=INT((AU$2-S_Investeringsår-$I40+1)/$K40),1,0)) *(1+IF(ISBLANK($L40),S_Inflation,$L40))^(AU$2-S_Investeringsår) *(1+IF($C40="",0%,VLOOKUP($C40,Stamdata!$D$7:$E$15,2,0)))^(AU$2-S_Investeringsår) -> 0 | AV40: =$H40 *IF(AV$2>=$I40+S_Investeringsår-1,1,0) *IF(AV$2<=$J40+S_Investeringsår-1,1,0) *IF($K40=0,0,IF((AV$2-S_Investeringsår-$I40+1)/$K40=INT((AV$2-S_Investeringsår-$I40+1)/$K40),1,0)) *(1+IF(ISBLANK($L40),S_Inflation,$L40))^(AV$2-S_Investeringsår) *(1+IF($C40="",0%,VLOOKUP($C40,Stamdata!$D$7:$E$15,2,0)))^(AV$2-S_Investeringsår) -> 0 | AW40: =$H40 *IF(AW$2>=$I40+S_Investeringsår-1,1,0) *IF(AW$2<=$J40+S_Investeringsår-1,1,0) *IF($K40=0,0,IF((AW$2-S_Investeringsår-$I40+1)/$K40=INT((AW$2-S_Investeringsår-$I40+1)/$K40),1,0)) *(1+IF(ISBLANK($L40),S_Inflation,$L40))^(AW$2-S_Investeringsår) *(1+IF($C40="",0%,VLOOKUP($C40,Stamdata!$D$7:$E$15,2,0)))^(AW$2-S_Investeringsår) -> 0 | AX40: =$H40 *IF(AX$2>=$I40+S_Investeringsår-1,1,0) *IF(AX$2<=$J40+S_Investeringsår-1,1,0) *IF($K40=0,0,IF((AX$2-S_Investeringsår-$I40+1)/$K40=INT((AX$2-S_Investeringsår-$I40+1)/$K40),1,0)) *(1+IF(ISBLANK($L40),S_Inflation,$L40))^(AX$2-S_Investeringsår) *(1+IF($C40="",0%,VLOOKUP($C40,Stamdata!$D$7:$E$15,2,0)))^(AX$2-S_Investeringsår) -> 0 | AY40: =$H40 *IF(AY$2>=$I40+S_Investeringsår-1,1,0) *IF(AY$2<=$J40+S_Investeringsår-1,1,0) *IF($K40=0,0,IF((AY$2-S_Investeringsår-$I40+1)/$K40=INT((AY$2-S_Investeringsår-$I40+1)/$K40),1,0)) *(1+IF(ISBLANK($L40),S_Inflation,$L40))^(AY$2-S_Investeringsår) *(1+IF($C40="",0%,VLOOKUP($C40,Stamdata!$D$7:$E$15,2,0)))^(AY$2-S_Investeringsår) -> 0 | BB40: 0 | BD40: 0 | BE40: 0 | BF40: 0 | BG40: 0 | BH40: 0 | BI40: 0 | BJ40: 0 | BK40: 0 | BL40: 0 | BM40: 0 | BN40: 0 | BO40: 0 | BP40: 0 | BQ40: 0 | BR40: 0 | BS40: 0 | BT40: 0 | BU40: 0 | BV40: 0 | BW40: 0 | BX40: 0 | BY40: 0 | BZ40: 0 | CA40: 0 | CB40: 0 | CC40: 0 | CD40: 0 | CE40: 0 | CF40: 0 | CG40: 0 | CH40: 0
B41: - | G41: 0 | H41: 0 | I41: 0 | J41: 0 | K41: 0 | L41: 0.018 | M41: 0 | P41: 0 | T41: 0 | U41: =$H41 *IF(U$2>=$I41+S_Investeringsår-1,1,0) *IF(U$2<=$J41+S_Investeringsår-1,1,0) *IF($K41=0,0,IF((U$2-S_Investeringsår-$I41+1)/$K41=INT((U$2-S_Investeringsår-$I41+1)/$K41),1,0)) *(1+IF(ISBLANK($L41),S_Inflation,$L41))^(U$2-S_Investeringsår) *(1+IF($C41="",0%,VLOOKUP($C41,Stamdata!$D$7:$E$15,2,0)))^(U$2-S_Investeringsår) -> 0 | V41: =$H41 *IF(V$2>=$I41+S_Investeringsår-1,1,0) *IF(V$2<=$J41+S_Investeringsår-1,1,0) *IF($K41=0,0,IF((V$2-S_Investeringsår-$I41+1)/$K41=INT((V$2-S_Investeringsår-$I41+1)/$K41),1,0)) *(1+IF(ISBLANK($L41),S_Inflation,$L41))^(V$2-S_Investeringsår) *(1+IF($C41="",0%,VLOOKUP($C41,Stamdata!$D$7:$E$15,2,0)))^(V$2-S_Investeringsår) -> 0 | W41: =$H41 *IF(W$2>=$I41+S_Investeringsår-1,1,0) *IF(W$2<=$J41+S_Investeringsår-1,1,0) *IF($K41=0,0,IF((W$2-S_Investeringsår-$I41+1)/$K41=INT((W$2-S_Investeringsår-$I41+1)/$K41),1,0)) *(1+IF(ISBLANK($L41),S_Inflation,$L41))^(W$2-S_Investeringsår) *(1+IF($C41="",0%,VLOOKUP($C41,Stamdata!$D$7:$E$15,2,0)))^(W$2-S_Investeringsår) -> 0 | X41: =$H41 *IF(X$2>=$I41+S_Investeringsår-1,1,0) *IF(X$2<=$J41+S_Investeringsår-1,1,0) *IF($K41=0,0,IF((X$2-S_Investeringsår-$I41+1)/$K41=INT((X$2-S_Investeringsår-$I41+1)/$K41),1,0)) *(1+IF(ISBLANK($L41),S_Inflation,$L41))^(X$2-S_Investeringsår) *(1+IF($C41="",0%,VLOOKUP($C41,Stamdata!$D$7:$E$15,2,0)))^(X$2-S_Investeringsår) -> 0 | Y41: =$H41 *IF(Y$2>=$I41+S_Investeringsår-1,1,0) *IF(Y$2<=$J41+S_Investeringsår-1,1,0) *IF($K41=0,0,IF((Y$2-S_Investeringsår-$I41+1)/$K41=INT((Y$2-S_Investeringsår-$I41+1)/$K41),1,0)) *(1+IF(ISBLANK($L41),S_Inflation,$L41))^(Y$2-S_Investeringsår) *(1+IF($C41="",0%,VLOOKUP($C41,Stamdata!$D$7:$E$15,2,0)))^(Y$2-S_Investeringsår) -> 0 | Z41: =$H41 *IF(Z$2>=$I41+S_Investeringsår-1,1,0) *IF(Z$2<=$J41+S_Investeringsår-1,1,0) *IF($K41=0,0,IF((Z$2-S_Investeringsår-$I41+1)/$K41=INT((Z$2-S_Investeringsår-$I41+1)/$K41),1,0)) *(1+IF(ISBLANK($L41),S_Inflation,$L41))^(Z$2-S_Investeringsår) *(1+IF($C41="",0%,VLOOKUP($C41,Stamdata!$D$7:$E$15,2,0)))^(Z$2-S_Investeringsår) -> 0 | AA41: =$H41 *IF(AA$2>=$I41+S_Investeringsår-1,1,0) *IF(AA$2<=$J41+S_Investeringsår-1,1,0) *IF($K41=0,0,IF((AA$2-S_Investeringsår-$I41+1)/$K41=INT((AA$2-S_Investeringsår-$I41+1)/$K41),1,0)) *(1+IF(ISBLANK($L41),S_Inflation,$L41))^(AA$2-S_Investeringsår) *(1+IF($C41="",0%,VLOOKUP($C41,Stamdata!$D$7:$E$15,2,0)))^(AA$2-S_Investeringsår) -> 0 | AB41: =$H41 *IF(AB$2>=$I41+S_Investeringsår-1,1,0) *IF(AB$2<=$J41+S_Investeringsår-1,1,0) *IF($K41=0,0,IF((AB$2-S_Investeringsår-$I41+1)/$K41=INT((AB$2-S_Investeringsår-$I41+1)/$K41),1,0)) *(1+IF(ISBLANK($L41),S_Inflation,$L41))^(AB$2-S_Investeringsår) *(1+IF($C41="",0%,VLOOKUP($C41,Stamdata!$D$7:$E$15,2,0)))^(AB$2-S_Investeringsår) -> 0 | AC41: =$H41 *IF(AC$2>=$I41+S_Investeringsår-1,1,0) *IF(AC$2<=$J41+S_Investeringsår-1,1,0) *IF($K41=0,0,IF((AC$2-S_Investeringsår-$I41+1)/$K41=INT((AC$2-S_Investeringsår-$I41+1)/$K41),1,0)) *(1+IF(ISBLANK($L41),S_Inflation,$L41))^(AC$2-S_Investeringsår) *(1+IF($C41="",0%,VLOOKUP($C41,Stamdata!$D$7:$E$15,2,0)))^(AC$2-S_Investeringsår) -> 0 | AD41: =$H41 *IF(AD$2>=$I41+S_Investeringsår-1,1,0) *IF(AD$2<=$J41+S_Investeringsår-1,1,0) *IF($K41=0,0,IF((AD$2-S_Investeringsår-$I41+1)/$K41=INT((AD$2-S_Investeringsår-$I41+1)/$K41),1,0)) *(1+IF(ISBLANK($L41),S_Inflation,$L41))^(AD$2-S_Investeringsår) *(1+IF($C41="",0%,VLOOKUP($C41,Stamdata!$D$7:$E$15,2,0)))^(AD$2-S_Investeringsår) -> 0 | AE41: =$H41 *IF(AE$2>=$I41+S_Investeringsår-1,1,0) *IF(AE$2<=$J41+S_Investeringsår-1,1,0) *IF($K41=0,0,IF((AE$2-S_Investeringsår-$I41+1)/$K41=INT((AE$2-S_Investeringsår-$I41+1)/$K41),1,0)) *(1+IF(ISBLANK($L41),S_Inflation,$L41))^(AE$2-S_Investeringsår) *(1+IF($C41="",0%,VLOOKUP($C41,Stamdata!$D$7:$E$15,2,0)))^(AE$2-S_Investeringsår) -> 0 | AF41: =$H41 *IF(AF$2>=$I41+S_Investeringsår-1,1,0) *IF(AF$2<=$J41+S_Investeringsår-1,1,0) *IF($K41=0,0,IF((AF$2-S_Investeringsår-$I41+1)/$K41=INT((AF$2-S_Investeringsår-$I41+1)/$K41),1,0)) *(1+IF(ISBLANK($L41),S_Inflation,$L41))^(AF$2-S_Investeringsår) *(1+IF($C41="",0%,VLOOKUP($C41,Stamdata!$D$7:$E$15,2,0)))^(AF$2-S_Investeringsår) -> 0 | AG41: =$H41 *IF(AG$2>=$I41+S_Investeringsår-1,1,0) *IF(AG$2<=$J41+S_Investeringsår-1,1,0) *IF($K41=0,0,IF((AG$2-S_Investeringsår-$I41+1)/$K41=INT((AG$2-S_Investeringsår-$I41+1)/$K41),1,0)) *(1+IF(ISBLANK($L41),S_Inflation,$L41))^(AG$2-S_Investeringsår) *(1+IF($C41="",0%,VLOOKUP($C41,Stamdata!$D$7:$E$15,2,0)))^(AG$2-S_Investeringsår) -> 0 | AH41: =$H41 *IF(AH$2>=$I41+S_Investeringsår-1,1,0) *IF(AH$2<=$J41+S_Investeringsår-1,1,0) *IF($K41=0,0,IF((AH$2-S_Investeringsår-$I41+1)/$K41=INT((AH$2-S_Investeringsår-$I41+1)/$K41),1,0)) *(1+IF(ISBLANK($L41),S_Inflation,$L41))^(AH$2-S_Investeringsår) *(1+IF($C41="",0%,VLOOKUP($C41,Stamdata!$D$7:$E$15,2,0)))^(AH$2-S_Investeringsår) -> 0 | AI41: =$H41 *IF(AI$2>=$I41+S_Investeringsår-1,1,0) *IF(AI$2<=$J41+S_Investeringsår-1,1,0) *IF($K41=0,0,IF((AI$2-S_Investeringsår-$I41+1)/$K41=INT((AI$2-S_Investeringsår-$I41+1)/$K41),1,0)) *(1+IF(ISBLANK($L41),S_Inflation,$L41))^(AI$2-S_Investeringsår) *(1+IF($C41="",0%,VLOOKUP($C41,Stamdata!$D$7:$E$15,2,0)))^(AI$2-S_Investeringsår) -> 0 | AJ41: =$H41 *IF(AJ$2>=$I41+S_Investeringsår-1,1,0) *IF(AJ$2<=$J41+S_Investeringsår-1,1,0) *IF($K41=0,0,IF((AJ$2-S_Investeringsår-$I41+1)/$K41=INT((AJ$2-S_Investeringsår-$I41+1)/$K41),1,0)) *(1+IF(ISBLANK($L41),S_Inflation,$L41))^(AJ$2-S_Investeringsår) *(1+IF($C41="",0%,VLOOKUP($C41,Stamdata!$D$7:$E$15,2,0)))^(AJ$2-S_Investeringsår) -> 0 | AK41: =$H41 *IF(AK$2>=$I41+S_Investeringsår-1,1,0) *IF(AK$2<=$J41+S_Investeringsår-1,1,0) *IF($K41=0,0,IF((AK$2-S_Investeringsår-$I41+1)/$K41=INT((AK$2-S_Investeringsår-$I41+1)/$K41),1,0)) *(1+IF(ISBLANK($L41),S_Inflation,$L41))^(AK$2-S_Investeringsår) *(1+IF($C41="",0%,VLOOKUP($C41,Stamdata!$D$7:$E$15,2,0)))^(AK$2-S_Investeringsår) -> 0 | AL41: =$H41 *IF(AL$2>=$I41+S_Investeringsår-1,1,0) *IF(AL$2<=$J41+S_Investeringsår-1,1,0) *IF($K41=0,0,IF((AL$2-S_Investeringsår-$I41+1)/$K41=INT((AL$2-S_Investeringsår-$I41+1)/$K41),1,0)) *(1+IF(ISBLANK($L41),S_Inflation,$L41))^(AL$2-S_Investeringsår) *(1+IF($C41="",0%,VLOOKUP($C41,Stamdata!$D$7:$E$15,2,0)))^(AL$2-S_Investeringsår) -> 0 | AM41: =$H41 *IF(AM$2>=$I41+S_Investeringsår-1,1,0) *IF(AM$2<=$J41+S_Investeringsår-1,1,0) *IF($K41=0,0,IF((AM$2-S_Investeringsår-$I41+1)/$K41=INT((AM$2-S_Investeringsår-$I41+1)/$K41),1,0)) *(1+IF(ISBLANK($L41),S_Inflation,$L41))^(AM$2-S_Investeringsår) *(1+IF($C41="",0%,VLOOKUP($C41,Stamdata!$D$7:$E$15,2,0)))^(AM$2-S_Investeringsår) -> 0 | AN41: =$H41 *IF(AN$2>=$I41+S_Investeringsår-1,1,0) *IF(AN$2<=$J41+S_Investeringsår-1,1,0) *IF($K41=0,0,IF((AN$2-S_Investeringsår-$I41+1)/$K41=INT((AN$2-S_Investeringsår-$I41+1)/$K41),1,0)) *(1+IF(ISBLANK($L41),S_Inflation,$L41))^(AN$2-S_Investeringsår) *(1+IF($C41="",0%,VLOOKUP($C41,Stamdata!$D$7:$E$15,2,0)))^(AN$2-S_Investeringsår) -> 0 | AO41: =$H41 *IF(AO$2>=$I41+S_Investeringsår-1,1,0) *IF(AO$2<=$J41+S_Investeringsår-1,1,0) *IF($K41=0,0,IF((AO$2-S_Investeringsår-$I41+1)/$K41=INT((AO$2-S_Investeringsår-$I41+1)/$K41),1,0)) *(1+IF(ISBLANK($L41),S_Inflation,$L41))^(AO$2-S_Investeringsår) *(1+IF($C41="",0%,VLOOKUP($C41,Stamdata!$D$7:$E$15,2,0)))^(AO$2-S_Investeringsår) -> 0 | AP41: =$H41 *IF(AP$2>=$I41+S_Investeringsår-1,1,0) *IF(AP$2<=$J41+S_Investeringsår-1,1,0) *IF($K41=0,0,IF((AP$2-S_Investeringsår-$I41+1)/$K41=INT((AP$2-S_Investeringsår-$I41+1)/$K41),1,0)) *(1+IF(ISBLANK($L41),S_Inflation,$L41))^(AP$2-S_Investeringsår) *(1+IF($C41="",0%,VLOOKUP($C41,Stamdata!$D$7:$E$15,2,0)))^(AP$2-S_Investeringsår) -> 0 | AQ41: =$H41 *IF(AQ$2>=$I41+S_Investeringsår-1,1,0) *IF(AQ$2<=$J41+S_Investeringsår-1,1,0) *IF($K41=0,0,IF((AQ$2-S_Investeringsår-$I41+1)/$K41=INT((AQ$2-S_Investeringsår-$I41+1)/$K41),1,0)) *(1+IF(ISBLANK($L41),S_Inflation,$L41))^(AQ$2-S_Investeringsår) *(1+IF($C41="",0%,VLOOKUP($C41,Stamdata!$D$7:$E$15,2,0)))^(AQ$2-S_Investeringsår) -> 0 | AR41: =$H41 *IF(AR$2>=$I41+S_Investeringsår-1,1,0) *IF(AR$2<=$J41+S_Investeringsår-1,1,0) *IF($K41=0,0,IF((AR$2-S_Investeringsår-$I41+1)/$K41=INT((AR$2-S_Investeringsår-$I41+1)/$K41),1,0)) *(1+IF(ISBLANK($L41),S_Inflation,$L41))^(AR$2-S_Investeringsår) *(1+IF($C41="",0%,VLOOKUP($C41,Stamdata!$D$7:$E$15,2,0)))^(AR$2-S_Investeringsår) -> 0 | AS41: =$H41 *IF(AS$2>=$I41+S_Investeringsår-1,1,0) *IF(AS$2<=$J41+S_Investeringsår-1,1,0) *IF($K41=0,0,IF((AS$2-S_Investeringsår-$I41+1)/$K41=INT((AS$2-S_Investeringsår-$I41+1)/$K41),1,0)) *(1+IF(ISBLANK($L41),S_Inflation,$L41))^(AS$2-S_Investeringsår) *(1+IF($C41="",0%,VLOOKUP($C41,Stamdata!$D$7:$E$15,2,0)))^(AS$2-S_Investeringsår) -> 0 | AT41: =$H41 *IF(AT$2>=$I41+S_Investeringsår-1,1,0) *IF(AT$2<=$J41+S_Investeringsår-1,1,0) *IF($K41=0,0,IF((AT$2-S_Investeringsår-$I41+1)/$K41=INT((AT$2-S_Investeringsår-$I41+1)/$K41),1,0)) *(1+IF(ISBLANK($L41),S_Inflation,$L41))^(AT$2-S_Investeringsår) *(1+IF($C41="",0%,VLOOKUP($C41,Stamdata!$D$7:$E$15,2,0)))^(AT$2-S_Investeringsår) -> 0 | AU41: =$H41 *IF(AU$2>=$I41+S_Investeringsår-1,1,0) *IF(AU$2<=$J41+S_Investeringsår-1,1,0) *IF($K41=0,0,IF((AU$2-S_Investeringsår-$I41+1)/$K41=INT((AU$2-S_Investeringsår-$I41+1)/$K41),1,0)) *(1+IF(ISBLANK($L41),S_Inflation,$L41))^(AU$2-S_Investeringsår) *(1+IF($C41="",0%,VLOOKUP($C41,Stamdata!$D$7:$E$15,2,0)))^(AU$2-S_Investeringsår) -> 0 | AV41: =$H41 *IF(AV$2>=$I41+S_Investeringsår-1,1,0) *IF(AV$2<=$J41+S_Investeringsår-1,1,0) *IF($K41=0,0,IF((AV$2-S_Investeringsår-$I41+1)/$K41=INT((AV$2-S_Investeringsår-$I41+1)/$K41),1,0)) *(1+IF(ISBLANK($L41),S_Inflation,$L41))^(AV$2-S_Investeringsår) *(1+IF($C41="",0%,VLOOKUP($C41,Stamdata!$D$7:$E$15,2,0)))^(AV$2-S_Investeringsår) -> 0 | AW41: =$H41 *IF(AW$2>=$I41+S_Investeringsår-1,1,0) *IF(AW$2<=$J41+S_Investeringsår-1,1,0) *IF($K41=0,0,IF((AW$2-S_Investeringsår-$I41+1)/$K41=INT((AW$2-S_Investeringsår-$I41+1)/$K41),1,0)) *(1+IF(ISBLANK($L41),S_Inflation,$L41))^(AW$2-S_Investeringsår) *(1+IF($C41="",0%,VLOOKUP($C41,Stamdata!$D$7:$E$15,2,0)))^(AW$2-S_Investeringsår) -> 0 | AX41: =$H41 *IF(AX$2>=$I41+S_Investeringsår-1,1,0) *IF(AX$2<=$J41+S_Investeringsår-1,1,0) *IF($K41=0,0,IF((AX$2-S_Investeringsår-$I41+1)/$K41=INT((AX$2-S_Investeringsår-$I41+1)/$K41),1,0)) *(1+IF(ISBLANK($L41),S_Inflation,$L41))^(AX$2-S_Investeringsår) *(1+IF($C41="",0%,VLOOKUP($C41,Stamdata!$D$7:$E$15,2,0)))^(AX$2-S_Investeringsår) -> 0 | AY41: =$H41 *IF(AY$2>=$I41+S_Investeringsår-1,1,0) *IF(AY$2<=$J41+S_Investeringsår-1,1,0) *IF($K41=0,0,IF((AY$2-S_Investeringsår-$I41+1)/$K41=INT((AY$2-S_Investeringsår-$I41+1)/$K41),1,0)) *(1+IF(ISBLANK($L41),S_Inflation,$L41))^(AY$2-S_Investeringsår) *(1+IF($C41="",0%,VLOOKUP($C41,Stamdata!$D$7:$E$15,2,0)))^(AY$2-S_Investeringsår) -> 0 | BB41: 0 | BD41: 0 | BE41: 0 | BF41: 0 | BG41: 0 | BH41: 0 | BI41: 0 | BJ41: 0 | BK41: 0 | BL41: 0 | BM41: 0 | BN41: 0 | BO41: 0 | BP41: 0 | BQ41: 0 | BR41: 0 | BS41: 0 | BT41: 0 | BU41: 0 | BV41: 0 | BW41: 0 | BX41: 0 | BY41: 0 | BZ41: 0 | CA41: 0 | CB41: 0 | CC41: 0 | CD41: 0 | CE41: 0 | CF41: 0 | CG41: 0 | CH41: 0
B42: - | G42: 0 | H42: 0 | I42: 0 | J42: 0 | K42: 0 | L42: 0.018 | M42: 0 | P42: 0 | T42: 0 | U42: =$H42 *IF(U$2>=$I42+S_Investeringsår-1,1,0) *IF(U$2<=$J42+S_Investeringsår-1,1,0) *IF($K42=0,0,IF((U$2-S_Investeringsår-$I42+1)/$K42=INT((U$2-S_Investeringsår-$I42+1)/$K42),1,0)) *(1+IF(ISBLANK($L42),S_Inflation,$L42))^(U$2-S_Investeringsår) *(1+IF($C42="",0%,VLOOKUP($C42,Stamdata!$D$7:$E$15,2,0)))^(U$2-S_Investeringsår) -> 0 | V42: =$H42 *IF(V$2>=$I42+S_Investeringsår-1,1,0) *IF(V$2<=$J42+S_Investeringsår-1,1,0) *IF($K42=0,0,IF((V$2-S_Investeringsår-$I42+1)/$K42=INT((V$2-S_Investeringsår-$I42+1)/$K42),1,0)) *(1+IF(ISBLANK($L42),S_Inflation,$L42))^(V$2-S_Investeringsår) *(1+IF($C42="",0%,VLOOKUP($C42,Stamdata!$D$7:$E$15,2,0)))^(V$2-S_Investeringsår) -> 0 | W42: =$H42 *IF(W$2>=$I42+S_Investeringsår-1,1,0) *IF(W$2<=$J42+S_Investeringsår-1,1,0) *IF($K42=0,0,IF((W$2-S_Investeringsår-$I42+1)/$K42=INT((W$2-S_Investeringsår-$I42+1)/$K42),1,0)) *(1+IF(ISBLANK($L42),S_Inflation,$L42))^(W$2-S_Investeringsår) *(1+IF($C42="",0%,VLOOKUP($C42,Stamdata!$D$7:$E$15,2,0)))^(W$2-S_Investeringsår) -> 0 | X42: =$H42 *IF(X$2>=$I42+S_Investeringsår-1,1,0) *IF(X$2<=$J42+S_Investeringsår-1,1,0) *IF($K42=0,0,IF((X$2-S_Investeringsår-$I42+1)/$K42=INT((X$2-S_Investeringsår-$I42+1)/$K42),1,0)) *(1+IF(ISBLANK($L42),S_Inflation,$L42))^(X$2-S_Investeringsår) *(1+IF($C42="",0%,VLOOKUP($C42,Stamdata!$D$7:$E$15,2,0)))^(X$2-S_Investeringsår) -> 0 | Y42: =$H42 *IF(Y$2>=$I42+S_Investeringsår-1,1,0) *IF(Y$2<=$J42+S_Investeringsår-1,1,0) *IF($K42=0,0,IF((Y$2-S_Investeringsår-$I42+1)/$K42=INT((Y$2-S_Investeringsår-$I42+1)/$K42),1,0)) *(1+IF(ISBLANK($L42),S_Inflation,$L42))^(Y$2-S_Investeringsår) *(1+IF($C42="",0%,VLOOKUP($C42,Stamdata!$D$7:$E$15,2,0)))^(Y$2-S_Investeringsår) -> 0 | Z42: =$H42 *IF(Z$2>=$I42+S_Investeringsår-1,1,0) *IF(Z$2<=$J42+S_Investeringsår-1,1,0) *IF($K42=0,0,IF((Z$2-S_Investeringsår-$I42+1)/$K42=INT((Z$2-S_Investeringsår-$I42+1)/$K42),1,0)) *(1+IF(ISBLANK($L42),S_Inflation,$L42))^(Z$2-S_Investeringsår) *(1+IF($C42="",0%,VLOOKUP($C42,Stamdata!$D$7:$E$15,2,0)))^(Z$2-S_Investeringsår) -> 0 | AA42: =$H42 *IF(AA$2>=$I42+S_Investeringsår-1,1,0) *IF(AA$2<=$J42+S_Investeringsår-1,1,0) *IF($K42=0,0,IF((AA$2-S_Investeringsår-$I42+1)/$K42=INT((AA$2-S_Investeringsår-$I42+1)/$K42),1,0)) *(1+IF(ISBLANK($L42),S_Inflation,$L42))^(AA$2-S_Investeringsår) *(1+IF($C42="",0%,VLOOKUP($C42,Stamdata!$D$7:$E$15,2,0)))^(AA$2-S_Investeringsår) -> 0 | AB42: =$H42 *IF(AB$2>=$I42+S_Investeringsår-1,1,0) *IF(AB$2<=$J42+S_Investeringsår-1,1,0) *IF($K42=0,0,IF((AB$2-S_Investeringsår-$I42+1)/$K42=INT((AB$2-S_Investeringsår-$I42+1)/$K42),1,0)) *(1+IF(ISBLANK($L42),S_Inflation,$L42))^(AB$2-S_Investeringsår) *(1+IF($C42="",0%,VLOOKUP($C42,Stamdata!$D$7:$E$15,2,0)))^(AB$2-S_Investeringsår) -> 0 | AC42: =$H42 *IF(AC$2>=$I42+S_Investeringsår-1,1,0) *IF(AC$2<=$J42+S_Investeringsår-1,1,0) *IF($K42=0,0,IF((AC$2-S_Investeringsår-$I42+1)/$K42=INT((AC$2-S_Investeringsår-$I42+1)/$K42),1,0)) *(1+IF(ISBLANK($L42),S_Inflation,$L42))^(AC$2-S_Investeringsår) *(1+IF($C42="",0%,VLOOKUP($C42,Stamdata!$D$7:$E$15,2,0)))^(AC$2-S_Investeringsår) -> 0 | AD42: =$H42 *IF(AD$2>=$I42+S_Investeringsår-1,1,0) *IF(AD$2<=$J42+S_Investeringsår-1,1,0) *IF($K42=0,0,IF((AD$2-S_Investeringsår-$I42+1)/$K42=INT((AD$2-S_Investeringsår-$I42+1)/$K42),1,0)) *(1+IF(ISBLANK($L42),S_Inflation,$L42))^(AD$2-S_Investeringsår) *(1+IF($C42="",0%,VLOOKUP($C42,Stamdata!$D$7:$E$15,2,0)))^(AD$2-S_Investeringsår) -> 0 | AE42: =$H42 *IF(AE$2>=$I42+S_Investeringsår-1,1,0) *IF(AE$2<=$J42+S_Investeringsår-1,1,0) *IF($K42=0,0,IF((AE$2-S_Investeringsår-$I42+1)/$K42=INT((AE$2-S_Investeringsår-$I42+1)/$K42),1,0)) *(1+IF(ISBLANK($L42),S_Inflation,$L42))^(AE$2-S_Investeringsår) *(1+IF($C42="",0%,VLOOKUP($C42,Stamdata!$D$7:$E$15,2,0)))^(AE$2-S_Investeringsår) -> 0 | AF42: =$H42 *IF(AF$2>=$I42+S_Investeringsår-1,1,0) *IF(AF$2<=$J42+S_Investeringsår-1,1,0) *IF($K42=0,0,IF((AF$2-S_Investeringsår-$I42+1)/$K42=INT((AF$2-S_Investeringsår-$I42+1)/$K42),1,0)) *(1+IF(ISBLANK($L42),S_Inflation,$L42))^(AF$2-S_Investeringsår) *(1+IF($C42="",0%,VLOOKUP($C42,Stamdata!$D$7:$E$15,2,0)))^(AF$2-S_Investeringsår) -> 0 | AG42: =$H42 *IF(AG$2>=$I42+S_Investeringsår-1,1,0) *IF(AG$2<=$J42+S_Investeringsår-1,1,0) *IF($K42=0,0,IF((AG$2-S_Investeringsår-$I42+1)/$K42=INT((AG$2-S_Investeringsår-$I42+1)/$K42),1,0)) *(1+IF(ISBLANK($L42),S_Inflation,$L42))^(AG$2-S_Investeringsår) *(1+IF($C42="",0%,VLOOKUP($C42,Stamdata!$D$7:$E$15,2,0)))^(AG$2-S_Investeringsår) -> 0 | AH42: =$H42 *IF(AH$2>=$I42+S_Investeringsår-1,1,0) *IF(AH$2<=$J42+S_Investeringsår-1,1,0) *IF($K42=0,0,IF((AH$2-S_Investeringsår-$I42+1)/$K42=INT((AH$2-S_Investeringsår-$I42+1)/$K42),1,0)) *(1+IF(ISBLANK($L42),S_Inflation,$L42))^(AH$2-S_Investeringsår) *(1+IF($C42="",0%,VLOOKUP($C42,Stamdata!$D$7:$E$15,2,0)))^(AH$2-S_Investeringsår) -> 0 | AI42: =$H42 *IF(AI$2>=$I42+S_Investeringsår-1,1,0) *IF(AI$2<=$J42+S_Investeringsår-1,1,0) *IF($K42=0,0,IF((AI$2-S_Investeringsår-$I42+1)/$K42=INT((AI$2-S_Investeringsår-$I42+1)/$K42),1,0)) *(1+IF(ISBLANK($L42),S_Inflation,$L42))^(AI$2-S_Investeringsår) *(1+IF($C42="",0%,VLOOKUP($C42,Stamdata!$D$7:$E$15,2,0)))^(AI$2-S_Investeringsår) -> 0 | AJ42: =$H42 *IF(AJ$2>=$I42+S_Investeringsår-1,1,0) *IF(AJ$2<=$J42+S_Investeringsår-1,1,0) *IF($K42=0,0,IF((AJ$2-S_Investeringsår-$I42+1)/$K42=INT((AJ$2-S_Investeringsår-$I42+1)/$K42),1,0)) *(1+IF(ISBLANK($L42),S_Inflation,$L42))^(AJ$2-S_Investeringsår) *(1+IF($C42="",0%,VLOOKUP($C42,Stamdata!$D$7:$E$15,2,0)))^(AJ$2-S_Investeringsår) -> 0 | AK42: =$H42 *IF(AK$2>=$I42+S_Investeringsår-1,1,0) *IF(AK$2<=$J42+S_Investeringsår-1,1,0) *IF($K42=0,0,IF((AK$2-S_Investeringsår-$I42+1)/$K42=INT((AK$2-S_Investeringsår-$I42+1)/$K42),1,0)) *(1+IF(ISBLANK($L42),S_Inflation,$L42))^(AK$2-S_Investeringsår) *(1+IF($C42="",0%,VLOOKUP($C42,Stamdata!$D$7:$E$15,2,0)))^(AK$2-S_Investeringsår) -> 0 | AL42: =$H42 *IF(AL$2>=$I42+S_Investeringsår-1,1,0) *IF(AL$2<=$J42+S_Investeringsår-1,1,0) *IF($K42=0,0,IF((AL$2-S_Investeringsår-$I42+1)/$K42=INT((AL$2-S_Investeringsår-$I42+1)/$K42),1,0)) *(1+IF(ISBLANK($L42),S_Inflation,$L42))^(AL$2-S_Investeringsår) *(1+IF($C42="",0%,VLOOKUP($C42,Stamdata!$D$7:$E$15,2,0)))^(AL$2-S_Investeringsår) -> 0 | AM42: =$H42 *IF(AM$2>=$I42+S_Investeringsår-1,1,0) *IF(AM$2<=$J42+S_Investeringsår-1,1,0) *IF($K42=0,0,IF((AM$2-S_Investeringsår-$I42+1)/$K42=INT((AM$2-S_Investeringsår-$I42+1)/$K42),1,0)) *(1+IF(ISBLANK($L42),S_Inflation,$L42))^(AM$2-S_Investeringsår) *(1+IF($C42="",0%,VLOOKUP($C42,Stamdata!$D$7:$E$15,2,0)))^(AM$2-S_Investeringsår) -> 0 | AN42: =$H42 *IF(AN$2>=$I42+S_Investeringsår-1,1,0) *IF(AN$2<=$J42+S_Investeringsår-1,1,0) *IF($K42=0,0,IF((AN$2-S_Investeringsår-$I42+1)/$K42=INT((AN$2-S_Investeringsår-$I42+1)/$K42),1,0)) *(1+IF(ISBLANK($L42),S_Inflation,$L42))^(AN$2-S_Investeringsår) *(1+IF($C42="",0%,VLOOKUP($C42,Stamdata!$D$7:$E$15,2,0)))^(AN$2-S_Investeringsår) -> 0 | AO42: =$H42 *IF(AO$2>=$I42+S_Investeringsår-1,1,0) *IF(AO$2<=$J42+S_Investeringsår-1,1,0) *IF($K42=0,0,IF((AO$2-S_Investeringsår-$I42+1)/$K42=INT((AO$2-S_Investeringsår-$I42+1)/$K42),1,0)) *(1+IF(ISBLANK($L42),S_Inflation,$L42))^(AO$2-S_Investeringsår) *(1+IF($C42="",0%,VLOOKUP($C42,Stamdata!$D$7:$E$15,2,0)))^(AO$2-S_Investeringsår) -> 0 | AP42: =$H42 *IF(AP$2>=$I42+S_Investeringsår-1,1,0) *IF(AP$2<=$J42+S_Investeringsår-1,1,0) *IF($K42=0,0,IF((AP$2-S_Investeringsår-$I42+1)/$K42=INT((AP$2-S_Investeringsår-$I42+1)/$K42),1,0)) *(1+IF(ISBLANK($L42),S_Inflation,$L42))^(AP$2-S_Investeringsår) *(1+IF($C42="",0%,VLOOKUP($C42,Stamdata!$D$7:$E$15,2,0)))^(AP$2-S_Investeringsår) -> 0 | AQ42: =$H42 *IF(AQ$2>=$I42+S_Investeringsår-1,1,0) *IF(AQ$2<=$J42+S_Investeringsår-1,1,0) *IF($K42=0,0,IF((AQ$2-S_Investeringsår-$I42+1)/$K42=INT((AQ$2-S_Investeringsår-$I42+1)/$K42),1,0)) *(1+IF(ISBLANK($L42),S_Inflation,$L42))^(AQ$2-S_Investeringsår) *(1+IF($C42="",0%,VLOOKUP($C42,Stamdata!$D$7:$E$15,2,0)))^(AQ$2-S_Investeringsår) -> 0 | AR42: =$H42 *IF(AR$2>=$I42+S_Investeringsår-1,1,0) *IF(AR$2<=$J42+S_Investeringsår-1,1,0) *IF($K42=0,0,IF((AR$2-S_Investeringsår-$I42+1)/$K42=INT((AR$2-S_Investeringsår-$I42+1)/$K42),1,0)) *(1+IF(ISBLANK($L42),S_Inflation,$L42))^(AR$2-S_Investeringsår) *(1+IF($C42="",0%,VLOOKUP($C42,Stamdata!$D$7:$E$15,2,0)))^(AR$2-S_Investeringsår) -> 0 | AS42: =$H42 *IF(AS$2>=$I42+S_Investeringsår-1,1,0) *IF(AS$2<=$J42+S_Investeringsår-1,1,0) *IF($K42=0,0,IF((AS$2-S_Investeringsår-$I42+1)/$K42=INT((AS$2-S_Investeringsår-$I42+1)/$K42),1,0)) *(1+IF(ISBLANK($L42),S_Inflation,$L42))^(AS$2-S_Investeringsår) *(1+IF($C42="",0%,VLOOKUP($C42,Stamdata!$D$7:$E$15,2,0)))^(AS$2-S_Investeringsår) -> 0 | AT42: =$H42 *IF(AT$2>=$I42+S_Investeringsår-1,1,0) *IF(AT$2<=$J42+S_Investeringsår-1,1,0) *IF($K42=0,0,IF((AT$2-S_Investeringsår-$I42+1)/$K42=INT((AT$2-S_Investeringsår-$I42+1)/$K42),1,0)) *(1+IF(ISBLANK($L42),S_Inflation,$L42))^(AT$2-S_Investeringsår) *(1+IF($C42="",0%,VLOOKUP($C42,Stamdata!$D$7:$E$15,2,0)))^(AT$2-S_Investeringsår) -> 0 | AU42: =$H42 *IF(AU$2>=$I42+S_Investeringsår-1,1,0) *IF(AU$2<=$J42+S_Investeringsår-1,1,0) *IF($K42=0,0,IF((AU$2-S_Investeringsår-$I42+1)/$K42=INT((AU$2-S_Investeringsår-$I42+1)/$K42),1,0)) *(1+IF(ISBLANK($L42),S_Inflation,$L42))^(AU$2-S_Investeringsår) *(1+IF($C42="",0%,VLOOKUP($C42,Stamdata!$D$7:$E$15,2,0)))^(AU$2-S_Investeringsår) -> 0 | AV42: =$H42 *IF(AV$2>=$I42+S_Investeringsår-1,1,0) *IF(AV$2<=$J42+S_Investeringsår-1,1,0) *IF($K42=0,0,IF((AV$2-S_Investeringsår-$I42+1)/$K42=INT((AV$2-S_Investeringsår-$I42+1)/$K42),1,0)) *(1+IF(ISBLANK($L42),S_Inflation,$L42))^(AV$2-S_Investeringsår) *(1+IF($C42="",0%,VLOOKUP($C42,Stamdata!$D$7:$E$15,2,0)))^(AV$2-S_Investeringsår) -> 0 | AW42: =$H42 *IF(AW$2>=$I42+S_Investeringsår-1,1,0) *IF(AW$2<=$J42+S_Investeringsår-1,1,0) *IF($K42=0,0,IF((AW$2-S_Investeringsår-$I42+1)/$K42=INT((AW$2-S_Investeringsår-$I42+1)/$K42),1,0)) *(1+IF(ISBLANK($L42),S_Inflation,$L42))^(AW$2-S_Investeringsår) *(1+IF($C42="",0%,VLOOKUP($C42,Stamdata!$D$7:$E$15,2,0)))^(AW$2-S_Investeringsår) -> 0 | AX42: =$H42 *IF(AX$2>=$I42+S_Investeringsår-1,1,0) *IF(AX$2<=$J42+S_Investeringsår-1,1,0) *IF($K42=0,0,IF((AX$2-S_Investeringsår-$I42+1)/$K42=INT((AX$2-S_Investeringsår-$I42+1)/$K42),1,0)) *(1+IF(ISBLANK($L42),S_Inflation,$L42))^(AX$2-S_Investeringsår) *(1+IF($C42="",0%,VLOOKUP($C42,Stamdata!$D$7:$E$15,2,0)))^(AX$2-S_Investeringsår) -> 0 | AY42: =$H42 *IF(AY$2>=$I42+S_Investeringsår-1,1,0) *IF(AY$2<=$J42+S_Investeringsår-1,1,0) *IF($K42=0,0,IF((AY$2-S_Investeringsår-$I42+1)/$K42=INT((AY$2-S_Investeringsår-$I42+1)/$K42),1,0)) *(1+IF(ISBLANK($L42),S_Inflation,$L42))^(AY$2-S_Investeringsår) *(1+IF($C42="",0%,VLOOKUP($C42,Stamdata!$D$7:$E$15,2,0)))^(AY$2-S_Investeringsår) -> 0 | BB42: 0 | BD42: 0 | BE42: 0 | BF42: 0 | BG42: 0 | BH42: 0 | BI42: 0 | BJ42: 0 | BK42: 0 | BL42: 0 | BM42: 0 | BN42: 0 | BO42: 0 | BP42: 0 | BQ42: 0 | BR42: 0 | BS42: 0 | BT42: 0 | BU42: 0 | BV42: 0 | BW42: 0 | BX42: 0 | BY42: 0 | BZ42: 0 | CA42: 0 | CB42: 0 | CC42: 0 | CD42: 0 | CE42: 0 | CF42: 0 | CG42: 0 | CH42: 0
B43: - | G43: 0 | H43: 0 | I43: 0 | J43: 0 | K43: 0 | L43: 0.018 | M43: 0 | P43: 0 | T43: 0 | U43: =$H43 *IF(U$2>=$I43+S_Investeringsår-1,1,0) *IF(U$2<=$J43+S_Investeringsår-1,1,0) *IF($K43=0,0,IF((U$2-S_Investeringsår-$I43+1)/$K43=INT((U$2-S_Investeringsår-$I43+1)/$K43),1,0)) *(1+IF(ISBLANK($L43),S_Inflation,$L43))^(U$2-S_Investeringsår) *(1+IF($C43="",0%,VLOOKUP($C43,Stamdata!$D$7:$E$15,2,0)))^(U$2-S_Investeringsår) -> 0 | V43: =$H43 *IF(V$2>=$I43+S_Investeringsår-1,1,0) *IF(V$2<=$J43+S_Investeringsår-1,1,0) *IF($K43=0,0,IF((V$2-S_Investeringsår-$I43+1)/$K43=INT((V$2-S_Investeringsår-$I43+1)/$K43),1,0)) *(1+IF(ISBLANK($L43),S_Inflation,$L43))^(V$2-S_Investeringsår) *(1+IF($C43="",0%,VLOOKUP($C43,Stamdata!$D$7:$E$15,2,0)))^(V$2-S_Investeringsår) -> 0 | W43: =$H43 *IF(W$2>=$I43+S_Investeringsår-1,1,0) *IF(W$2<=$J43+S_Investeringsår-1,1,0) *IF($K43=0,0,IF((W$2-S_Investeringsår-$I43+1)/$K43=INT((W$2-S_Investeringsår-$I43+1)/$K43),1,0)) *(1+IF(ISBLANK($L43),S_Inflation,$L43))^(W$2-S_Investeringsår) *(1+IF($C43="",0%,VLOOKUP($C43,Stamdata!$D$7:$E$15,2,0)))^(W$2-S_Investeringsår) -> 0 | X43: =$H43 *IF(X$2>=$I43+S_Investeringsår-1,1,0) *IF(X$2<=$J43+S_Investeringsår-1,1,0) *IF($K43=0,0,IF((X$2-S_Investeringsår-$I43+1)/$K43=INT((X$2-S_Investeringsår-$I43+1)/$K43),1,0)) *(1+IF(ISBLANK($L43),S_Inflation,$L43))^(X$2-S_Investeringsår) *(1+IF($C43="",0%,VLOOKUP($C43,Stamdata!$D$7:$E$15,2,0)))^(X$2-S_Investeringsår) -> 0 | Y43: =$H43 *IF(Y$2>=$I43+S_Investeringsår-1,1,0) *IF(Y$2<=$J43+S_Investeringsår-1,1,0) *IF($K43=0,0,IF((Y$2-S_Investeringsår-$I43+1)/$K43=INT((Y$2-S_Investeringsår-$I43+1)/$K43),1,0)) *(1+IF(ISBLANK($L43),S_Inflation,$L43))^(Y$2-S_Investeringsår) *(1+IF($C43="",0%,VLOOKUP($C43,Stamdata!$D$7:$E$15,2,0)))^(Y$2-S_Investeringsår) -> 0 | Z43: =$H43 *IF(Z$2>=$I43+S_Investeringsår-1,1,0) *IF(Z$2<=$J43+S_Investeringsår-1,1,0) *IF($K43=0,0,IF((Z$2-S_Investeringsår-$I43+1)/$K43=INT((Z$2-S_Investeringsår-$I43+1)/$K43),1,0)) *(1+IF(ISBLANK($L43),S_Inflation,$L43))^(Z$2-S_Investeringsår) *(1+IF($C43="",0%,VLOOKUP($C43,Stamdata!$D$7:$E$15,2,0)))^(Z$2-S_Investeringsår) -> 0 | AA43: =$H43 *IF(AA$2>=$I43+S_Investeringsår-1,1,0) *IF(AA$2<=$J43+S_Investeringsår-1,1,0) *IF($K43=0,0,IF((AA$2-S_Investeringsår-$I43+1)/$K43=INT((AA$2-S_Investeringsår-$I43+1)/$K43),1,0)) *(1+IF(ISBLANK($L43),S_Inflation,$L43))^(AA$2-S_Investeringsår) *(1+IF($C43="",0%,VLOOKUP($C43,Stamdata!$D$7:$E$15,2,0)))^(AA$2-S_Investeringsår) -> 0 | AB43: =$H43 *IF(AB$2>=$I43+S_Investeringsår-1,1,0) *IF(AB$2<=$J43+S_Investeringsår-1,1,0) *IF($K43=0,0,IF((AB$2-S_Investeringsår-$I43+1)/$K43=INT((AB$2-S_Investeringsår-$I43+1)/$K43),1,0)) *(1+IF(ISBLANK($L43),S_Inflation,$L43))^(AB$2-S_Investeringsår) *(1+IF($C43="",0%,VLOOKUP($C43,Stamdata!$D$7:$E$15,2,0)))^(AB$2-S_Investeringsår) -> 0 | AC43: =$H43 *IF(AC$2>=$I43+S_Investeringsår-1,1,0) *IF(AC$2<=$J43+S_Investeringsår-1,1,0) *IF($K43=0,0,IF((AC$2-S_Investeringsår-$I43+1)/$K43=INT((AC$2-S_Investeringsår-$I43+1)/$K43),1,0)) *(1+IF(ISBLANK($L43),S_Inflation,$L43))^(AC$2-S_Investeringsår) *(1+IF($C43="",0%,VLOOKUP($C43,Stamdata!$D$7:$E$15,2,0)))^(AC$2-S_Investeringsår) -> 0 | AD43: =$H43 *IF(AD$2>=$I43+S_Investeringsår-1,1,0) *IF(AD$2<=$J43+S_Investeringsår-1,1,0) *IF($K43=0,0,IF((AD$2-S_Investeringsår-$I43+1)/$K43=INT((AD$2-S_Investeringsår-$I43+1)/$K43),1,0)) *(1+IF(ISBLANK($L43),S_Inflation,$L43))^(AD$2-S_Investeringsår) *(1+IF($C43="",0%,VLOOKUP($C43,Stamdata!$D$7:$E$15,2,0)))^(AD$2-S_Investeringsår) -> 0 | AE43: =$H43 *IF(AE$2>=$I43+S_Investeringsår-1,1,0) *IF(AE$2<=$J43+S_Investeringsår-1,1,0) *IF($K43=0,0,IF((AE$2-S_Investeringsår-$I43+1)/$K43=INT((AE$2-S_Investeringsår-$I43+1)/$K43),1,0)) *(1+IF(ISBLANK($L43),S_Inflation,$L43))^(AE$2-S_Investeringsår) *(1+IF($C43="",0%,VLOOKUP($C43,Stamdata!$D$7:$E$15,2,0)))^(AE$2-S_Investeringsår) -> 0 | AF43: =$H43 *IF(AF$2>=$I43+S_Investeringsår-1,1,0) *IF(AF$2<=$J43+S_Investeringsår-1,1,0) *IF($K43=0,0,IF((AF$2-S_Investeringsår-$I43+1)/$K43=INT((AF$2-S_Investeringsår-$I43+1)/$K43),1,0)) *(1+IF(ISBLANK($L43),S_Inflation,$L43))^(AF$2-S_Investeringsår) *(1+IF($C43="",0%,VLOOKUP($C43,Stamdata!$D$7:$E$15,2,0)))^(AF$2-S_Investeringsår) -> 0 | AG43: =$H43 *IF(AG$2>=$I43+S_Investeringsår-1,1,0) *IF(AG$2<=$J43+S_Investeringsår-1,1,0) *IF($K43=0,0,IF((AG$2-S_Investeringsår-$I43+1)/$K43=INT((AG$2-S_Investeringsår-$I43+1)/$K43),1,0)) *(1+IF(ISBLANK($L43),S_Inflation,$L43))^(AG$2-S_Investeringsår) *(1+IF($C43="",0%,VLOOKUP($C43,Stamdata!$D$7:$E$15,2,0)))^(AG$2-S_Investeringsår) -> 0 | AH43: =$H43 *IF(AH$2>=$I43+S_Investeringsår-1,1,0) *IF(AH$2<=$J43+S_Investeringsår-1,1,0) *IF($K43=0,0,IF((AH$2-S_Investeringsår-$I43+1)/$K43=INT((AH$2-S_Investeringsår-$I43+1)/$K43),1,0)) *(1+IF(ISBLANK($L43),S_Inflation,$L43))^(AH$2-S_Investeringsår) *(1+IF($C43="",0%,VLOOKUP($C43,Stamdata!$D$7:$E$15,2,0)))^(AH$2-S_Investeringsår) -> 0 | AI43: =$H43 *IF(AI$2>=$I43+S_Investeringsår-1,1,0) *IF(AI$2<=$J43+S_Investeringsår-1,1,0) *IF($K43=0,0,IF((AI$2-S_Investeringsår-$I43+1)/$K43=INT((AI$2-S_Investeringsår-$I43+1)/$K43),1,0)) *(1+IF(ISBLANK($L43),S_Inflation,$L43))^(AI$2-S_Investeringsår) *(1+IF($C43="",0%,VLOOKUP($C43,Stamdata!$D$7:$E$15,2,0)))^(AI$2-S_Investeringsår) -> 0 | AJ43: =$H43 *IF(AJ$2>=$I43+S_Investeringsår-1,1,0) *IF(AJ$2<=$J43+S_Investeringsår-1,1,0) *IF($K43=0,0,IF((AJ$2-S_Investeringsår-$I43+1)/$K43=INT((AJ$2-S_Investeringsår-$I43+1)/$K43),1,0)) *(1+IF(ISBLANK($L43),S_Inflation,$L43))^(AJ$2-S_Investeringsår) *(1+IF($C43="",0%,VLOOKUP($C43,Stamdata!$D$7:$E$15,2,0)))^(AJ$2-S_Investeringsår) -> 0 | AK43: =$H43 *IF(AK$2>=$I43+S_Investeringsår-1,1,0) *IF(AK$2<=$J43+S_Investeringsår-1,1,0) *IF($K43=0,0,IF((AK$2-S_Investeringsår-$I43+1)/$K43=INT((AK$2-S_Investeringsår-$I43+1)/$K43),1,0)) *(1+IF(ISBLANK($L43),S_Inflation,$L43))^(AK$2-S_Investeringsår) *(1+IF($C43="",0%,VLOOKUP($C43,Stamdata!$D$7:$E$15,2,0)))^(AK$2-S_Investeringsår) -> 0 | AL43: =$H43 *IF(AL$2>=$I43+S_Investeringsår-1,1,0) *IF(AL$2<=$J43+S_Investeringsår-1,1,0) *IF($K43=0,0,IF((AL$2-S_Investeringsår-$I43+1)/$K43=INT((AL$2-S_Investeringsår-$I43+1)/$K43),1,0)) *(1+IF(ISBLANK($L43),S_Inflation,$L43))^(AL$2-S_Investeringsår) *(1+IF($C43="",0%,VLOOKUP($C43,Stamdata!$D$7:$E$15,2,0)))^(AL$2-S_Investeringsår) -> 0 | AM43: =$H43 *IF(AM$2>=$I43+S_Investeringsår-1,1,0) *IF(AM$2<=$J43+S_Investeringsår-1,1,0) *IF($K43=0,0,IF((AM$2-S_Investeringsår-$I43+1)/$K43=INT((AM$2-S_Investeringsår-$I43+1)/$K43),1,0)) *(1+IF(ISBLANK($L43),S_Inflation,$L43))^(AM$2-S_Investeringsår) *(1+IF($C43="",0%,VLOOKUP($C43,Stamdata!$D$7:$E$15,2,0)))^(AM$2-S_Investeringsår) -> 0 | AN43: =$H43 *IF(AN$2>=$I43+S_Investeringsår-1,1,0) *IF(AN$2<=$J43+S_Investeringsår-1,1,0) *IF($K43=0,0,IF((AN$2-S_Investeringsår-$I43+1)/$K43=INT((AN$2-S_Investeringsår-$I43+1)/$K43),1,0)) *(1+IF(ISBLANK($L43),S_Inflation,$L43))^(AN$2-S_Investeringsår) *(1+IF($C43="",0%,VLOOKUP($C43,Stamdata!$D$7:$E$15,2,0)))^(AN$2-S_Investeringsår) -> 0 | AO43: =$H43 *IF(AO$2>=$I43+S_Investeringsår-1,1,0) *IF(AO$2<=$J43+S_Investeringsår-1,1,0) *IF($K43=0,0,IF((AO$2-S_Investeringsår-$I43+1)/$K43=INT((AO$2-S_Investeringsår-$I43+1)/$K43),1,0)) *(1+IF(ISBLANK($L43),S_Inflation,$L43))^(AO$2-S_Investeringsår) *(1+IF($C43="",0%,VLOOKUP($C43,Stamdata!$D$7:$E$15,2,0)))^(AO$2-S_Investeringsår) -> 0 | AP43: =$H43 *IF(AP$2>=$I43+S_Investeringsår-1,1,0) *IF(AP$2<=$J43+S_Investeringsår-1,1,0) *IF($K43=0,0,IF((AP$2-S_Investeringsår-$I43+1)/$K43=INT((AP$2-S_Investeringsår-$I43+1)/$K43),1,0)) *(1+IF(ISBLANK($L43),S_Inflation,$L43))^(AP$2-S_Investeringsår) *(1+IF($C43="",0%,VLOOKUP($C43,Stamdata!$D$7:$E$15,2,0)))^(AP$2-S_Investeringsår) -> 0 | AQ43: =$H43 *IF(AQ$2>=$I43+S_Investeringsår-1,1,0) *IF(AQ$2<=$J43+S_Investeringsår-1,1,0) *IF($K43=0,0,IF((AQ$2-S_Investeringsår-$I43+1)/$K43=INT((AQ$2-S_Investeringsår-$I43+1)/$K43),1,0)) *(1+IF(ISBLANK($L43),S_Inflation,$L43))^(AQ$2-S_Investeringsår) *(1+IF($C43="",0%,VLOOKUP($C43,Stamdata!$D$7:$E$15,2,0)))^(AQ$2-S_Investeringsår) -> 0 | AR43: =$H43 *IF(AR$2>=$I43+S_Investeringsår-1,1,0) *IF(AR$2<=$J43+S_Investeringsår-1,1,0) *IF($K43=0,0,IF((AR$2-S_Investeringsår-$I43+1)/$K43=INT((AR$2-S_Investeringsår-$I43+1)/$K43),1,0)) *(1+IF(ISBLANK($L43),S_Inflation,$L43))^(AR$2-S_Investeringsår) *(1+IF($C43="",0%,VLOOKUP($C43,Stamdata!$D$7:$E$15,2,0)))^(AR$2-S_Investeringsår) -> 0 | AS43: =$H43 *IF(AS$2>=$I43+S_Investeringsår-1,1,0) *IF(AS$2<=$J43+S_Investeringsår-1,1,0) *IF($K43=0,0,IF((AS$2-S_Investeringsår-$I43+1)/$K43=INT((AS$2-S_Investeringsår-$I43+1)/$K43),1,0)) *(1+IF(ISBLANK($L43),S_Inflation,$L43))^(AS$2-S_Investeringsår) *(1+IF($C43="",0%,VLOOKUP($C43,Stamdata!$D$7:$E$15,2,0)))^(AS$2-S_Investeringsår) -> 0 | AT43: =$H43 *IF(AT$2>=$I43+S_Investeringsår-1,1,0) *IF(AT$2<=$J43+S_Investeringsår-1,1,0) *IF($K43=0,0,IF((AT$2-S_Investeringsår-$I43+1)/$K43=INT((AT$2-S_Investeringsår-$I43+1)/$K43),1,0)) *(1+IF(ISBLANK($L43),S_Inflation,$L43))^(AT$2-S_Investeringsår) *(1+IF($C43="",0%,VLOOKUP($C43,Stamdata!$D$7:$E$15,2,0)))^(AT$2-S_Investeringsår) -> 0 | AU43: =$H43 *IF(AU$2>=$I43+S_Investeringsår-1,1,0) *IF(AU$2<=$J43+S_Investeringsår-1,1,0) *IF($K43=0,0,IF((AU$2-S_Investeringsår-$I43+1)/$K43=INT((AU$2-S_Investeringsår-$I43+1)/$K43),1,0)) *(1+IF(ISBLANK($L43),S_Inflation,$L43))^(AU$2-S_Investeringsår) *(1+IF($C43="",0%,VLOOKUP($C43,Stamdata!$D$7:$E$15,2,0)))^(AU$2-S_Investeringsår) -> 0 | AV43: =$H43 *IF(AV$2>=$I43+S_Investeringsår-1,1,0) *IF(AV$2<=$J43+S_Investeringsår-1,1,0) *IF($K43=0,0,IF((AV$2-S_Investeringsår-$I43+1)/$K43=INT((AV$2-S_Investeringsår-$I43+1)/$K43),1,0)) *(1+IF(ISBLANK($L43),S_Inflation,$L43))^(AV$2-S_Investeringsår) *(1+IF($C43="",0%,VLOOKUP($C43,Stamdata!$D$7:$E$15,2,0)))^(AV$2-S_Investeringsår) -> 0 | AW43: =$H43 *IF(AW$2>=$I43+S_Investeringsår-1,1,0) *IF(AW$2<=$J43+S_Investeringsår-1,1,0) *IF($K43=0,0,IF((AW$2-S_Investeringsår-$I43+1)/$K43=INT((AW$2-S_Investeringsår-$I43+1)/$K43),1,0)) *(1+IF(ISBLANK($L43),S_Inflation,$L43))^(AW$2-S_Investeringsår) *(1+IF($C43="",0%,VLOOKUP($C43,Stamdata!$D$7:$E$15,2,0)))^(AW$2-S_Investeringsår) -> 0 | AX43: =$H43 *IF(AX$2>=$I43+S_Investeringsår-1,1,0) *IF(AX$2<=$J43+S_Investeringsår-1,1,0) *IF($K43=0,0,IF((AX$2-S_Investeringsår-$I43+1)/$K43=INT((AX$2-S_Investeringsår-$I43+1)/$K43),1,0)) *(1+IF(ISBLANK($L43),S_Inflation,$L43))^(AX$2-S_Investeringsår) *(1+IF($C43="",0%,VLOOKUP($C43,Stamdata!$D$7:$E$15,2,0)))^(AX$2-S_Investeringsår) -> 0 | AY43: =$H43 *IF(AY$2>=$I43+S_Investeringsår-1,1,0) *IF(AY$2<=$J43+S_Investeringsår-1,1,0) *IF($K43=0,0,IF((AY$2-S_Investeringsår-$I43+1)/$K43=INT((AY$2-S_Investeringsår-$I43+1)/$K43),1,0)) *(1+IF(ISBLANK($L43),S_Inflation,$L43))^(AY$2-S_Investeringsår) *(1+IF($C43="",0%,VLOOKUP($C43,Stamdata!$D$7:$E$15,2,0)))^(AY$2-S_Investeringsår) -> 0 | BB43: 0 | BD43: 0 | BE43: 0 | BF43: 0 | BG43: 0 | BH43: 0 | BI43: 0 | BJ43: 0 | BK43: 0 | BL43: 0 | BM43: 0 | BN43: 0 | BO43: 0 | BP43: 0 | BQ43: 0 | BR43: 0 | BS43: 0 | BT43: 0 | BU43: 0 | BV43: 0 | BW43: 0 | BX43: 0 | BY43: 0 | BZ43: 0 | CA43: 0 | CB43: 0 | CC43: 0 | CD43: 0 | CE43: 0 | CF43: 0 | CG43: 0 | CH43: 0
B44: Elbesparelse | P44: 0 | T44: 0 | U44: =SUMIF($C$38:$C$43,"El",U$38:U$43) -> 0 | V44: 0 | W44: 0 | X44: 0 | Y44: 0 | Z44: 0 | AA44: 0 | AB44: 0 | AC44: 0 | AD44: 0 | AE44: 0 | AF44: 0 | AG44: 0 | AH44: 0 | AI44: 0 | AJ44: 0 | AK44: 0 | AL44: 0 | AM44: 0 | AN44: 0 | AO44: 0 | AP44: 0 | AQ44: 0 | AR44: 0 | AS44: 0 | AT44: 0 | AU44: 0 | AV44: 0 | AW44: 0 | AX44: 0 | AY44: 0 | BB44: 0 | BD44: =SUMIF($C$38:$C$43,"El",BD$38:BD$43) -> 0 | BE44: 0 | BF44: 0 | BG44: 0 | BH44: 0 | BI44: 0 | BJ44: 0 | BK44: 0 | BL44: 0 | BM44: 0 | BN44: 0 | BO44: 0 | BP44: 0 | BQ44: 0 | BR44: 0 | BS44: 0 | BT44: 0 | BU44: 0 | BV44: 0 | BW44: 0 | BX44: 0 | BY44: 0 | BZ44: 0 | CA44: 0 | CB44: 0 | CC44: 0 | CD44: 0 | CE44: 0 | CF44: 0 | CG44: 0 | CH44: 0
B45: Varmebesparelse | P45: 861146.7912 | T45: 861146.7912 | U45: =SUMIF($C$38:$C$43,"Fjernvarme",U$38:U$43)+SUMIF($C$38:$C$43,"Naturgas",U$38:U$43)+SUMIF($C$38:$C$43,"Gasolie",U$38:U$43)+SUMIF($C$38:$C$43,"Træpiller",U$38:U$43) -> 20580 | V45: =SUMIF($C$38:$C$43,"Fjernvarme",V$38:V$43)+SUMIF($C$38:$C$43,"Naturgas",V$38:V$43)+SUMIF($C$38:$C$43,"Gasolie",V$38:V$43)+SUMIF($C$38:$C$43,"Træpiller",V$38:V$43) -> 21032.14672 | W45: 21494.22719 | X45: 21966.45966 | Y45: 22449.06717 | Z45: 22942.27766 | AA45: 23446.32409 | AB45: 23961.44452 | AC45: 24487.88225 | AD45: 25025.88592 | AE45: 25575.70964 | AF45: 26137.6131 | AG45: 26711.86168 | AH45: 27298.72663 | AI45: 27898.48511 | AJ45: 28511.42041 | AK45: 29137.82202 | AL45: 29777.98579 | AM45: 30432.2141 | AN45: 31100.81593 | AO45: 31784.10707 | AP45: 32482.41026 | AQ45: 33196.05531 | AR45: 33925.37929 | AS45: 34670.72665 | AT45: 35432.44945 | AU45: 36210.90745 | AV45: 37006.46833 | AW45: 37819.50784 | AX45: 38650.41 | AY45: 0 | BB45: 430.5733956 | BD45: =SUMIF($C$38:$C$43,"Fjernvarme",BD$38:BD$43)+SUMIF($C$38:$C$43,"Naturgas",BD$38:BD$43)+SUMIF($C$38:$C$43,"Gasolie",BD$38:BD$43)+SUMIF($C$38:$C$43,"Træpiller",BD$38:BD$43) -> 10.29 | BE45: 10.51607336 | BF45: 10.74711359 | BG45: 10.98322983 | BH45: 11.22453358 | BI45: 11.47113883 | BJ45: 11.72316205 | BK45: 11.98072226 | BL45: 12.24394113 | BM45: 12.51294296 | BN45: 12.78785482 | BO45: 13.06880655 | BP45: 13.35593084 | BQ45: 13.64936331 | BR45: 13.94924255 | BS45: 14.2557102 | BT45: 14.56891101 | BU45: 14.8889929 | BV45: 15.21610705 | BW45: 15.55040796 | BX45: 15.89205354 | BY45: 16.24120513 | BZ45: 16.59802766 | CA45: 16.96268964 | CB45: 17.33536333 | CC45: 17.71622473 | CD45: 18.10545373 | CE45: 18.50323417 | CF45: 18.90975392 | CG45: 19.325205 | CH45: 0
B46: Vandbesparelse | P46: 0 | T46: 0 | U46: =SUMIF($C$38:$C$43,"Vand",U$38:U$43) -> 0 | V46: 0 | W46: 0 | X46: 0 | Y46: 0 | Z46: 0 | AA46: 0 | AB46: 0 | AC46: 0 | AD46: 0 | AE46: 0 | AF46: 0 | AG46: 0 | AH46: 0 | AI46: 0 | AJ46: 0 | AK46: 0 | AL46: 0 | AM46: 0 | AN46: 0 | AO46: 0 | AP46: 0 | AQ46: 0 | AR46: 0 | AS46: 0 | AT46: 0 | AU46: 0 | AV46: 0 | AW46: 0 | AX46: 0 | AY46: 0 | BB46: 0 | BD46: =SUMIF($C$38:$C$43,"Vand",BD$38:BD$43) -> 0 | BE46: 0 | BF46: 0 | BG46: 0 | BH46: 0 | BI46: 0 | BJ46: 0 | BK46: 0 | BL46: 0 | BM46: 0 | BN46: 0 | BO46: 0 | BP46: 0 | BQ46: 0 | BR46: 0 | BS46: 0 | BT46: 0 | BU46: 0 | BV46: 0 | BW46: 0 | BX46: 0 | BY46: 0 | BZ46: 0 | CA46: 0 | CB46: 0 | CC46: 0 | CD46: 0 | CE46: 0 | CF46: 0 | CG46: 0 | CH46: 0
A47: Non-Energy Benefits | H47: Periodisk beløb [kr.] | I47: Første gang [år] | J47: Sidste gang [år] | K47: Interval [år] | L47: Pris- udvikling [%] | P47: SUM [kr.] | Q47: =A47 -> Non-Energy Benefits | T47: SUM | U47: =S_Investeringsår -> 2014 | V47: =U47+1 -> 2015 | W47: =V47+1 -> 2016 | X47: 2017 | Y47: 2018 | Z47: 2019 | AA47: 2020 | AB47: 2021 | AC47: 2022 | AD47: 2023 | AE47: 2024 | AF47: 2025 | AG47: 2026 | AH47: 2027 | AI47: 2028 | AJ47: 2029 | AK47: 2030 | AL47: 2031 | AM47: 2032 | AN47: 2033 | AO47: 2034 | AP47: 2035 | AQ47: 2036 | AR47: 2037 | AS47: 2038 | AT47: 2039 | AU47: 2040 | AV47: 2041 | AW47: 2042 | AX47: 2043 | AY47: 2044 | BB47: SUM | BC47: =A47 -> Non-Energy Benefits | BD47: =S_Investeringsår -> 2014 | BE47: =BD47+1 -> 2015 | BF47: =BE47+1 -> 2016 | BG47: 2017 | BH47: 2018 | BI47: 2019 | BJ47: 2020 | BK47: 2021 | BL47: 2022 | BM47: 2023 | BN47: 2024 | BO47: 2025 | BP47: 2026 | BQ47: 2027 | BR47: 2028 | BS47: 2029 | BT47: 2030 | BU47: 2031 | BV47: 2032 | BW47: 2033 | BX47: 2034 | BY47: 2035 | BZ47: 2036 | CA47: 2037 | CB47: 2038 | CC47: 2039 | CD47: 2040 | CE47: 2041 | CF47: 2042 | CG47: 2043 | CH47: 2044 | CJ47: =A47 -> Non-Energy Benefits
B48: Herlighedsværdi, forbedret indeklima etc. | H48: 28000 | I48: 1 | J48: 15 | K48: 1 | L48: =S_Inflation -> 0.018 | P48: =T48 -> 477279.7569 | T48: =SUM(U48:AY48) -> 477279.7569 | U48: =$H48 *IF(U$2>=$I48+S_Investeringsår-1,1,0) *IF(U$2<=$J48+S_Investeringsår-1,1,0) *IF($K48=0,0,IF((U$2-S_Investeringsår-$I48+1)/$K48=INT((U$2-S_Investeringsår-$I48+1)/$K48),1,0)) *(1+IF(ISBLANK($L48),S_Inflation,$L48))^(U$2-S_Investeringsår) -> 28000 | V48: =$H48 *IF(V$2>=$I48+S_Investeringsår-1,1,0) *IF(V$2<=$J48+S_Investeringsår-1,1,0) *IF($K48=0,0,IF((V$2-S_Investeringsår-$I48+1)/$K48=INT((V$2-S_Investeringsår-$I48+1)/$K48),1,0)) *(1+IF(ISBLANK($L48),S_Inflation,$L48))^(V$2-S_Investeringsår) -> 28504 | W48: 29017.072 | X48: 29539.3793 | Y48: 30071.08812 | Z48: 30612.36771 | AA48: 31163.39033 | AB48: 31724.33135 | AC48: 32295.36932 | AD48: 32876.68597 | AE48: 33468.46631 | AF48: 34070.89871 | AG48: 34684.17488 | AH48: 35308.49003 | AI48: 35944.04285 | AJ48: 0 | AK48: 0 | AL48: =$H48 *IF(AL$2>=$I48+S_Investeringsår-1,1,0) *IF(AL$2<=$J48+S_Investeringsår-1,1,0) *IF($K48=0,0,IF((AL$2-S_Investeringsår-$I48+1)/$K48=INT((AL$2-S_Investeringsår-$I48+1)/$K48),1,0)) *(1+IF(ISBLANK($L48),S_Inflation,$L48))^(AL$2-S_Investeringsår) -> 0 | AM48: 0 | AN48: 0 | AO48: 0 | AP48: 0 | AQ48: 0 | AR48: 0 | AS48: 0 | AT48: 0 | AU48: 0 | AV48: 0 | AW48: 0 | AX48: 0 | AY48: 0 | BB48: =SUM(BD48:CH48) -> 238.6398784 | BD48: =U48/S_Areal -> 14 | BE48: 14.252 | BF48: 14.508536 | BG48: 14.76968965 | BH48: 15.03554406 | BI48: 15.30618385 | BJ48: 15.58169516 | BK48: 15.86216568 | BL48: 16.14768466 | BM48: 16.43834298 | BN48: =AE48/S_Areal -> 16.73423316 | BO48: 17.03544935 | BP48: 17.34208744 | BQ48: 17.65424502 | BR48: 17.97202143 | BS48: 0 | BT48: 0 | BU48: 0 | BV48: 0 | BW48: 0 | BX48: =AO48/S_Areal -> 0 | BY48: 0 | BZ48: 0 | CA48: 0 | CB48: 0 | CC48: 0 | CD48: 0 | CE48: 0 | CF48: 0 | CG48: 0 | CH48: =AY48/S_Areal -> 0
B49: - | H49: 0 | I49: 0 | J49: 0 | K49: 0 | L49: 0.018 | P49: 0 | T49: 0 | U49: =$H49 *IF(U$2>=$I49+S_Investeringsår-1,1,0) *IF(U$2<=$J49+S_Investeringsår-1,1,0) *IF($K49=0,0,IF((U$2-S_Investeringsår-$I49+1)/$K49=INT((U$2-S_Investeringsår-$I49+1)/$K49),1,0)) *(1+IF(ISBLANK($L49),S_Inflation,$L49))^(U$2-S_Investeringsår) -> 0 | V49: 0 | W49: 0 | X49: 0 | Y49: 0 | Z49: 0 | AA49: 0 | AB49: 0 | AC49: 0 | AD49: 0 | AE49: 0 | AF49: 0 | AG49: 0 | AH49: 0 | AI49: 0 | AJ49: 0 | AK49: 0 | AL49: 0 | AM49: 0 | AN49: 0 | AO49: 0 | AP49: 0 | AQ49: 0 | AR49: 0 | AS49: 0 | AT49: 0 | AU49: 0 | AV49: 0 | AW49: 0 | AX49: 0 | AY49: 0 | BB49: 0 | BD49: 0 | BE49: 0 | BF49: 0 | BG49: 0 | BH49: 0 | BI49: 0 | BJ49: 0 | BK49: 0 | BL49: 0 | BM49: 0 | BN49: 0 | BO49: 0 | BP49: 0 | BQ49: 0 | BR49: 0 | BS49: 0 | BT49: 0 | BU49: 0 | BV49: 0 | BW49: 0 | BX49: 0 | BY49: 0 | BZ49: 0 | CA49: 0 | CB49: 0 | CC49: 0 | CD49: 0 | CE49: 0 | CF49: 0 | CG49: 0 | CH49: 0
B50: - | H50: 0 | I50: 0 | J50: 0 | K50: 0 | L50: 0.018 | P50: 0 | T50: 0 | U50: 0 | V50: 0 | W50: 0 | X50: 0 | Y50: 0 | Z50: 0 | AA50: 0 | AB50: 0 | AC50: 0 | AD50: 0 | AE50: 0 | AF50: 0 | AG50: 0 | AH50: 0 | AI50: 0 | AJ50: 0 | AK50: 0 | AL50: 0 | AM50: 0 | AN50: 0 | AO50: 0 | AP50: 0 | AQ50: 0 | AR50: 0 | AS50: 0 | AT50: 0 | AU50: 0 | AV50: 0 | AW50: 0 | AX50: 0 | AY50: 0 | BB50: 0 | BD50: 0 | BE50: 0 | BF50: 0 | BG50: 0 | BH50: 0 | BI50: 0 | BJ50: 0 | BK50: 0 | BL50: 0 | BM50: 0 | BN50: 0 | BO50: 0 | BP50: 0 | BQ50: 0 | BR50: 0 | BS50: 0 | BT50: 0 | BU50: 0 | BV50: 0 | BW50: 0 | BX50: 0 | BY50: 0 | BZ50: 0 | CA50: 0 | CB50: 0 | CC50: 0 | CD50: 0 | CE50: 0 | CF50: 0 | CG50: 0 | CH50: 0
B51: - | H51: 0 | I51: 0 | J51: 0 | K51: 0 | L51: 0.018 | P51: 0 | T51: 0 | U51: 0 | V51: 0 | W51: 0 | X51: 0 | Y51: 0 | Z51: 0 | AA51: 0 | AB51: 0 | AC51: 0 | AD51: 0 | AE51: 0 | AF51: 0 | AG51: 0 | AH51: 0 | AI51: 0 | AJ51: 0 | AK51: 0 | AL51: 0 | AM51: 0 | AN51: 0 | AO51: 0 | AP51: 0 | AQ51: 0 | AR51: 0 | AS51: 0 | AT51: 0 | AU51: 0 | AV51: 0 | AW51: 0 | AX51: 0 | AY51: 0 | BB51: 0 | BD51: 0 | BE51: 0 | BF51: 0 | BG51: 0 | BH51: 0 | BI51: 0 | BJ51: 0 | BK51: 0 | BL51: 0 | BM51: 0 | BN51: 0 | BO51: 0 | BP51: 0 | BQ51: 0 | BR51: 0 | BS51: 0 | BT51: 0 | BU51: 0 | BV51: 0 | BW51: 0 | BX51: 0 | BY51: 0 | BZ51: 0 | CA51: 0 | CB51: 0 | CC51: 0 | CD51: 0 | CE51: 0 | CF51: 0 | CG51: 0 | CH51: 0
B52: - | H52: 0 | I52: 0 | J52: 0 | K52: 0 | L52: 0.018 | P52: 0 | T52: 0 | U52: 0 | V52: 0 | W52: 0 | X52: 0 | Y52: 0 | Z52: 0 | AA52: 0 | AB52: 0 | AC52: 0 | AD52: 0 | AE52: 0 | AF52: 0 | AG52: 0 | AH52: 0 | AI52: 0 | AJ52: 0 | AK52: 0 | AL52: 0 | AM52: 0 | AN52: 0 | AO52: 0 | AP52: 0 | AQ52: 0 | AR52: 0 | AS52: 0 | AT52: 0 | AU52: 0 | AV52: 0 | AW52: 0 | AX52: 0 | AY52: 0 | BB52: 0 | BD52: 0 | BE52: 0 | BF52: 0 | BG52: 0 | BH52: 0 | BI52: 0 | BJ52: 0 | BK52: 0 | BL52: 0 | BM52: 0 | BN52: 0 | BO52: 0 | BP52: 0 | BQ52: 0 | BR52: 0 | BS52: 0 | BT52: 0 | BU52: 0 | BV52: 0 | BW52: 0 | BX52: 0 | BY52: 0 | BZ52: 0 | CA52: 0 | CB52: 0 | CC52: 0 | CD52: 0 | CE52: 0 | CF52: 0 | CG52: 0 | CH52: 0
B53: - | H53: 0 | I53: 0 | J53: 0 | K53: 0 | L53: 0.018 | P53: 0 | T53: 0 | U53: 0 | V53: 0 | W53: 0 | X53: 0 | Y53: 0 | Z53: 0 | AA53: 0 | AB53: 0 | AC53: 0 | AD53: 0 | AE53: 0 | AF53: 0 | AG53: 0 | AH53: 0 | AI53: 0 | AJ53: 0 | AK53: 0 | AL53: 0 | AM53: 0 | AN53: 0 | AO53: 0 | AP53: 0 | AQ53: 0 | AR53: 0 | AS53: 0 | AT53: 0 | AU53: 0 | AV53: 0 | AW53: 0 | AX53: 0 | AY53: 0 | BB53: 0 | BD53: 0 | BE53: 0 | BF53: 0 | BG53: 0 | BH53: 0 | BI53: 0 | BJ53: 0 | BK53: 0 | BL53: 0 | BM53: 0 | BN53: 0 | BO53: 0 | BP53: 0 | BQ53: 0 | BR53: 0 | BS53: 0 | BT53: 0 | BU53: 0 | BV53: 0 | BW53: 0 | BX53: 0 | BY53: 0 | BZ53: 0 | CA53: 0 | CB53: 0 | CC53: 0 | CD53: 0 | CE53: 0 | CF53: 0 | CG53: 0 | CH53: 0
B54: Non Energy Benefits | P54: 477279.7569 | T54: 477279.7569 | U54: =SUM(U48:U53) -> 28000 | V54: =SUM(V48:V53) -> 28504 | W54: 29017.072 | X54: 29539.3793 | Y54: 30071.08812 | Z54: 30612.36771 | AA54: 31163.39033 | AB54: 31724.33135 | AC54: 32295.36932 | AD54: 32876.68597 | AE54: 33468.46631 | AF54: 34070.89871 | AG54: 34684.17488 | AH54: 35308.49003 | AI54: 35944.04285 | AJ54: 0 | AK54: 0 | AL54: 0 | AM54: 0 | AN54: 0 | AO54: 0 | AP54: 0 | AQ54: 0 | AR54: 0 | AS54: 0 | AT54: 0 | AU54: 0 | AV54: 0 | AW54: 0 | AX54: 0 | AY54: 0 | BB54: 238.6398784 | BD54: =SUM(BD48:BD53) -> 14 | BE54: 14.252 | BF54: 14.508536 | BG54: 14.76968965 | BH54: 15.03554406 | BI54: 15.30618385 | BJ54: 15.58169516 | BK54: 15.86216568 | BL54: 16.14768466 | BM54: 16.43834298 | BN54: 16.73423316 | BO54: 17.03544935 | BP54: 17.34208744 | BQ54: 17.65424502 | BR54: 17.97202143 | BS54: 0 | BT54: 0 | BU54: 0 | BV54: 0 | BW54: 0 | BX54: 0 | BY54: 0 | BZ54: 0 | CA54: 0 | CB54: 0 | CC54: 0 | CD54: 0 | CE54: 0 | CF54: 0 | CG54: 0 | CH54: 0
A55: Huslejeændring (kr./m2) | O55: Gennemsnit over 30 år [kr.] | P55: SUM år 1 [kr.] | Q55: =A55 -> Huslejeændring (kr./m2) | BC55: =A55 -> Huslejeændring (kr./m2) | BD55: =S_Investeringsår -> 2014 | BE55: =BD55+1 -> 2015 | BF55: =BE55+1 -> 2016 | BG55: 2017 | BH55: 2018 | BI55: 2019 | BJ55: 2020 | BK55: 2021 | BL55: 2022 | BM55: 2023 | BN55: 2024 | BO55: 2025 | BP55: 2026 | BQ55: 2027 | BR55: 2028 | BS55: 2029 | BT55: 2030 | BU55: 2031 | BV55: 2032 | BW55: 2033 | BX55: 2034 | BY55: 2035 | BZ55: 2036 | CA55: 2037 | CB55: 2038 | CC55: 2039 | CD55: 2040 | CE55: 2041 | CF55: 2042 | CG55: 2043 | CH55: 2044
B56: Henlæggelse til investeringer og reinvestringer | O56: =SUM(BD56:CG56)/S_Beregningsperiode -> -36.83307024 | P56: =BD56 -> -36.83307024 | BB56: =SUM(BD56:CG56) -> -1104.992107 | BD56: =BD10 -> -36.83307024 | BE56: =BE10 -> -36.83307024 | BF56: -36.83307024 | BG56: -36.83307024 | BH56: -36.83307024 | BI56: -36.83307024 | BJ56: -36.83307024 | BK56: -36.83307024 | BL56: -36.83307024 | BM56: -36.83307024 | BN56: -36.83307024 | BO56: -36.83307024 | BP56: -36.83307024 | BQ56: -36.83307024 | BR56: -36.83307024 | BS56: -36.83307024 | BT56: -36.83307024 | BU56: -36.83307024 | BV56: -36.83307024 | BW56: -36.83307024 | BX56: -36.83307024 | BY56: -36.83307024 | BZ56: -36.83307024 | CA56: -36.83307024 | CB56: -36.83307024 | CC56: -36.83307024 | CD56: -36.83307024 | CE56: -36.83307024 | CF56: -36.83307024 | CG56: -36.83307024 | CH56: 0
B57: Henlæggelse til fremtidig vedligehold | O57: =SUM(BD57:CG57)/S_Beregningsperiode -> 0 | P57: =BD57 -> 0 | BB57: =SUM(BD57:CG57) -> 0 | BD57: =BD21 -> 0 | BE57: =BE21 -> 0 | BF57: 0 | BG57: 0 | BH57: 0 | BI57: 0 | BJ57: 0 | BK57: 0 | BL57: 0 | BM57: 0 | BN57: 0 | BO57: 0 | BP57: 0 | BQ57: 0 | BR57: 0 | BS57: 0 | BT57: 0 | BU57: 0 | BV57: 0 | BW57: 0 | BX57: 0 | BY57: 0 | BZ57: 0 | CA57: 0 | CB57: 0 | CC57: 0 | CD57: 0 | CE57: 0 | CF57: 0 | CG57: 0 | CH57: 0
B58: Tilskud | O58: =SUM(BD58:CG58)/S_Beregningsperiode -> 0.147 | P58: =BD58 -> 4.41 | BB58: =SUM(BD58:CG58) -> 4.41 | BD58: =BD30 -> 4.41 | BE58: =BE30 -> 0 | BF58: 0 | BG58: 0 | BH58: 0 | BI58: 0 | BJ58: 0 | BK58: 0 | BL58: 0 | BM58: 0 | BN58: 0 | BO58: 0 | BP58: 0 | BQ58: 0 | BR58: 0 | BS58: 0 | BT58: 0 | BU58: 0 | BV58: 0 | BW58: 0 | BX58: 0 | BY58: 0 | BZ58: 0 | CA58: 0 | CB58: 0 | CC58: 0 | CD58: 0 | CE58: 0 | CF58: 0 | CG58: 0 | CH58: 0
B59: Ydelse | O59: =SUM(BD59:CG59)/S_Beregningsperiode -> -34.27218745 | P59: =BD59 -> -34.27218745 | BB59: -1028.165623 | BD59: =U32/S_Areal -> -34.27218745 | BE59: -34.27218745 | BF59: -34.27218745 | BG59: -34.27218745 | BH59: -34.27218745 | BI59: -34.27218745 | BJ59: -34.27218745 | BK59: -34.27218745 | BL59: -34.27218745 | BM59: -34.27218745 | BN59: -34.27218745 | BO59: -34.27218745 | BP59: -34.27218745 | BQ59: -34.27218745 | BR59: -34.27218745 | BS59: -34.27218745 | BT59: -34.27218745 | BU59: -34.27218745 | BV59: -34.27218745 | BW59: -34.27218745 | BX59: -34.27218745 | BY59: -34.27218745 | BZ59: -34.27218745 | CA59: -34.27218745 | CB59: -34.27218745 | CC59: -34.27218745 | CD59: -34.27218745 | CE59: -34.27218745 | CF59: -34.27218745 | CG59: -34.27218745 | CH59: 0
B60: Elbesparelse | O60: =SUM(BD60:CG60)/S_Beregningsperiode -> 0 | P60: 0 | BB60: 0 | BD60: =BD44 -> 0 | BE60: 0 | BF60: 0 | BG60: 0 | BH60: 0 | BI60: 0 | BJ60: 0 | BK60: 0 | BL60: 0 | BM60: 0 | BN60: 0 | BO60: 0 | BP60: 0 | BQ60: 0 | BR60: 0 | BS60: 0 | BT60: 0 | BU60: 0 | BV60: 0 | BW60: 0 | BX60: 0 | BY60: 0 | BZ60: 0 | CA60: 0 | CB60: 0 | CC60: 0 | CD60: 0 | CE60: 0 | CF60: 0 | CG60: 0 | CH60: 0
B61: Varmebesparelse | O61: =SUM(BD61:CG61)/S_Beregningsperiode -> 14.35244652 | P61: 10.29 | BB61: 430.5733956 | BD61: =BD45 -> 10.29 | BE61: 10.51607336 | BF61: 10.74711359 | BG61: 10.98322983 | BH61: 11.22453358 | BI61: 11.47113883 | BJ61: 11.72316205 | BK61: 11.98072226 | BL61: 12.24394113 | BM61: 12.51294296 | BN61: 12.78785482 | BO61: 13.06880655 | BP61: 13.35593084 | BQ61: 13.64936331 | BR61: 13.94924255 | BS61: 14.2557102 | BT61: 14.56891101 | BU61: 14.8889929 | BV61: 15.21610705 | BW61: 15.55040796 | BX61: 15.89205354 | BY61: 16.24120513 | BZ61: 16.59802766 | CA61: 16.96268964 | CB61: 17.33536333 | CC61: 17.71622473 | CD61: 18.10545373 | CE61: 18.50323417 | CF61: 18.90975392 | CG61: 19.325205 | CH61: 0
B62: Vandbesparelse | O62: 0 | P62: 0 | BB62: 0 | BD62: =BD46 -> 0 | BE62: 0 | BF62: 0 | BG62: 0 | BH62: 0 | BI62: 0 | BJ62: 0 | BK62: 0 | BL62: 0 | BM62: 0 | BN62: 0 | BO62: 0 | BP62: 0 | BQ62: 0 | BR62: 0 | BS62: 0 | BT62: 0 | BU62: 0 | BV62: 0 | BW62: 0 | BX62: 0 | BY62: 0 | BZ62: 0 | CA62: 0 | CB62: 0 | CC62: 0 | CD62: 0 | CE62: 0 | CF62: 0 | CG62: 0 | CH62: 0 | CK62: ½
B63: Non Energy Benefit | O63: 7.954662615 | P63: 14 | BB63: 238.6398784 | BD63: =BD54 -> 14 | BE63: 14.252 | BF63: 14.508536 | BG63: 14.76968965 | BH63: 15.03554406 | BI63: 15.30618385 | BJ63: 15.58169516 | BK63: 15.86216568 | BL63: 16.14768466 | BM63: 16.43834298 | BN63: 16.73423316 | BO63: 17.03544935 | BP63: 17.34208744 | BQ63: 17.65424502 | BR63: 17.97202143 | BS63: 0 | BT63: 0 | BU63: 0 | BV63: 0 | BW63: 0 | BX63: 0 | BY63: 0 | BZ63: 0 | CA63: 0 | CB63: 0 | CC63: 0 | CD63: 0 | CE63: 0 | CF63: 0 | CG63: 0 | CH63: 0
B64: Total inkl. driftsbesparelser og NEB | O64: -48.65114856 | P64: -42.40525769 | BB64: -1459.534457 | BD64: =SUM(BD56:BD63) -> -42.40525769 | BE64: -46.33718433 | BF64: -45.8496081 | BG64: -45.35233822 | BH64: -44.84518005 | BI64: -44.32793501 | BJ64: -43.80040048 | BK64: -43.26236975 | BL64: -42.71363191 | BM64: -42.15397175 | BN64: -41.58316972 | BO64: -41.00100179 | BP64: =SUM(BP56:BP63) -> -40.40723941 | BQ64: -39.80164936 | BR64: -39.18399371 | BS64: -56.84954749 | BT64: -56.53634668 | BU64: -56.2162648 | BV64: -55.88915064 | BW64: -55.55484973 | BX64: -55.21320416 | BY64: -54.86405256 | BZ64: -54.50723004 | CA64: -54.14256805 | CB64: -53.76989436 | CC64: -53.38903297 | CD64: -52.99980397 | CE64: -52.60202353 | CF64: -52.19550377 | CG64: -51.78005269 | CH64: 0
B65: Total eks. driftsbesparelser og NEB | O65: -70.95825769 | P65: -66.69525769 | BB65: -2128.747731 | BD65: =SUM(BD56:BD59) -> -66.69525769 | BE65: -71.10525769 | BF65: -71.10525769 | BG65: -71.10525769 | BH65: -71.10525769 | BI65: -71.10525769 | BJ65: -71.10525769 | BK65: -71.10525769 | BL65: -71.10525769 | BM65: -71.10525769 | BN65: -71.10525769 | BO65: -71.10525769 | BP65: -71.10525769 | BQ65: -71.10525769 | BR65: -71.10525769 | BS65: -71.10525769 | BT65: -71.10525769 | BU65: -71.10525769 | BV65: -71.10525769 | BW65: -71.10525769 | BX65: -71.10525769 | BY65: -71.10525769 | BZ65: -71.10525769 | CA65: -71.10525769 | CB65: -71.10525769 | CC65: -71.10525769 | CD65: -71.10525769 | CE65: -71.10525769 | CF65: -71.10525769 | CG65: -71.10525769 | CH65: 0
B66: Gennemsnit de næste 30 år inkl. drift og NEB | O66: -48.65114856 | P66: -48.65114856 | BB66: -1459.534457 | BD66: =SUM($BD$56:$CH$63)/S_Beregningsperiode -> -48.65114856 | BE66: -48.65114856 | BF66: -48.65114856 | BG66: -48.65114856 | BH66: -48.65114856 | BI66: -48.65114856 | BJ66: -48.65114856 | BK66: -48.65114856 | BL66: -48.65114856 | BM66: -48.65114856 | BN66: -48.65114856 | BO66: -48.65114856 | BP66: -48.65114856 | BQ66: -48.65114856 | BR66: -48.65114856 | BS66: -48.65114856 | BT66: -48.65114856 | BU66: -48.65114856 | BV66: -48.65114856 | BW66: -48.65114856 | BX66: -48.65114856 | BY66: -48.65114856 | BZ66: -48.65114856 | CA66: -48.65114856 | CB66: -48.65114856 | CC66: -48.65114856 | CD66: -48.65114856 | CE66: -48.65114856 | CF66: -48.65114856 | CG66: -48.65114856 | CH66: -48.65114856
A71: Totaløkonomisk oversigt i nutidskroner | P71: SUM [nutidskr.] | U71: =S_Investeringsår -> 2014 | V71: =U71+1 -> 2015 | W71: =V71+1 -> 2016 | X71: 2017 | Y71: 2018 | Z71: 2019 | AA71: 2020 | AB71: 2021 | AC71: 2022 | AD71: 2023 | AE71: 2024 | AF71: 2025 | AG71: 2026 | AH71: 2027 | AI71: 2028 | AJ71: 2029 | AK71: 2030 | AL71: 2031 | AM71: 2032 | AN71: 2033 | AO71: 2034 | AP71: 2035 | AQ71: 2036 | AR71: 2037 | AS71: 2038 | AT71: 2039 | AU71: 2040 | AV71: 2041 | AW71: 2042 | AX71: 2043 | AY71: 2044
B72: Reinvesteringer (eksl. År 1) | P72: =T72 -> 0 | T72: =SUM(V72:AY72) -> 0 | U72: =U10 *(1+S_Tilbagediskonteringsrente)^-(U$2-S_Investeringsår) -> -1443500 | V72: =V10 *(1+S_Tilbagediskonteringsrente)^-(V$2-S_Investeringsår) -> 0 | W72: 0 | X72: 0 | Y72: 0 | Z72: 0 | AA72: 0 | AB72: 0 | AC72: 0 | AD72: 0 | AE72: 0 | AF72: 0 | AG72: 0 | AH72: 0 | AI72: 0 | AJ72: 0 | AK72: 0 | AL72: 0 | AM72: 0 | AN72: 0 | AO72: 0 | AP72: 0 | AQ72: 0 | AR72: 0 | AS72: 0 | AT72: 0 | AU72: 0 | AV72: 0 | AW72: 0 | AX72: 0 | AY72: 0
B73: =B11 -> Scrapværdi | P73: =T73 -> 87673.25362 | T73: =SUM(U73:BAY73) -> 87673.25362 | U73: =(U11+U22) *(1+S_Tilbagediskonteringsrente)^-(U$2-S_Investeringsår) -> 0 | V73: =(V11+V22) *(1+S_Tilbagediskonteringsrente)^-(V$2-S_Investeringsår) -> 0 | W73: 0 | X73: 0 | Y73: 0 | Z73: 0 | AA73: 0 | AB73: 0 | AC73: 0 | AD73: 0 | AE73: 0 | AF73: 0 | AG73: 0 | AH73: 0 | AI73: 0 | AJ73: 0 | AK73: 0 | AL73: 0 | AM73: 0 | AN73: 0 | AO73: 0 | AP73: 0 | AQ73: 0 | AR73: 0 | AS73: 0 | AT73: 0 | AU73: 0 | AV73: 0 | AW73: 0 | AX73: 87673.25362 | AY73: 0
B74: Vedligehold (eksl. År 1) | P74: =T74 -> 0 | T74: =SUM(V74:AY74) -> 0 | U74: =U21 *(1+S_Tilbagediskonteringsrente)^-(U$2-S_Investeringsår) -> 0 | V74: =V21 *(1+S_Tilbagediskonteringsrente)^-(V$2-S_Investeringsår) -> 0 | W74: 0 | X74: 0 | Y74: 0 | Z74: 0 | AA74: 0 | AB74: 0 | AC74: 0 | AD74: 0 | AE74: 0 | AF74: 0 | AG74: 0 | AH74: 0 | AI74: 0 | AJ74: 0 | AK74: 0 | AL74: 0 | AM74: 0 | AN74: 0 | AO74: 0 | AP74: 0 | AQ74: 0 | AR74: 0 | AS74: 0 | AT74: 0 | AU74: 0 | AV74: 0 | AW74: 0 | AX74: 0 | AY74: 0
B75: =B44 -> Elbesparelse | P75: =T75 -> 0 | T75: =SUM(U75:AY75) -> 0 | U75: =U44 *(1+S_Tilbagediskonteringsrente)^-(U$2-S_Investeringsår) -> 0 | V75: =V44 *(1+S_Tilbagediskonteringsrente)^-(V$2-S_Investeringsår) -> 0 | W75: 0 | X75: 0 | Y75: 0 | Z75: 0 | AA75: 0 | AB75: 0 | AC75: 0 | AD75: 0 | AE75: 0 | AF75: 0 | AG75: 0 | AH75: 0 | AI75: 0 | AJ75: 0 | AK75: 0 | AL75: 0 | AM75: 0 | AN75: 0 | AO75: 0 | AP75: 0 | AQ75: 0 | AR75: 0 | AS75: 0 | AT75: 0 | AU75: 0 | AV75: 0 | AW75: 0 | AX75: 0 | AY75: 0
B76: =B45 -> Varmebesparelse | P76: 428569.7884 | T76: 428569.7884 | U76: =U45 *(1+S_Tilbagediskonteringsrente)^-(U$2-S_Investeringsår) -> 20580 | V76: =V45 *(1+S_Tilbagediskonteringsrente)^-(V$2-S_Investeringsår) -> 20030.61592 | W76: 19495.89767 | X76: 18975.45376 | Y76: 18468.90312 | Z76: 17975.87487 | AA76: 17496.00803 | AB76: 17028.95126 | AC76: 16574.3626 | AD76: 16131.9092 | AE76: 15701.26712 | AF76: 15282.12104 | AG76: 14874.16409 | AH76: 14477.09758 | AI76: 14090.63077 | AJ76: 13714.48071 | AK76: 13348.37199 | AL76: 12992.03657 | AM76: 12645.21353 | AN76: 12307.64895 | AO76: 11979.09568 | AP76: 11659.31315 | AQ76: 11348.06723 | AR76: 11045.13003 | AS76: 10750.27976 | AT76: 10463.30053 | AU76: 10183.98223 | AV76: 9912.120335 | AW76: 9647.515811 | AX76: 9389.974917 | AY76: 0
B77: =B46 -> Vandbesparelse | P77: 0 | T77: 0 | U77: =U46 *(1+S_Tilbagediskonteringsrente)^-(U$2-S_Investeringsår) -> 0 | V77: =V46 *(1+S_Tilbagediskonteringsrente)^-(V$2-S_Investeringsår) -> 0 | W77: 0 | X77: 0 | Y77: 0 | Z77: 0 | AA77: 0 | AB77: 0 | AC77: 0 | AD77: 0 | AE77: 0 | AF77: 0 | AG77: 0 | AH77: 0 | AI77: 0 | AJ77: 0 | AK77: 0 | AL77: 0 | AM77: 0 | AN77: 0 | AO77: 0 | AP77: 0 | AQ77: 0 | AR77: 0 | AS77: 0 | AT77: 0 | AU77: 0 | AV77: 0 | AW77: 0 | AX77: 0 | AY77: 0
B78: =B54 -> Non Energy Benefits | P78: 341220.0169 | T78: 341220.0169 | U78: =U54 *(1+S_Tilbagediskonteringsrente)^-(U$2-S_Investeringsår) -> 28000 | V78: =V54 *(1+S_Tilbagediskonteringsrente)^-(V$2-S_Investeringsår) -> 27146.66667 | W78: =W54 *(1+S_Tilbagediskonteringsrente)^-(W$2-S_Investeringsår) -> 26319.33968 | X78: =X54 *(1+S_Tilbagediskonteringsrente)^-(X$2-S_Investeringsår) -> 25517.22647 | Y78: 24739.55862 | Z78: 23985.59112 | AA78: 23254.60167 | AB78: 22545.89 | AC78: 21858.77717 | AD78: 21192.60491 | AE78: 20546.73505 | AF78: 19920.54883 | AG78: 19313.44639 | AH78: 18724.84612 | AI78: 18154.18415 | AJ78: 0 | AK78: 0 | AL78: 0 | AM78: 0 | AN78: 0 | AO78: 0 | AP78: 0 | AQ78: 0 | AR78: 0 | AS78: 0 | AT78: 0 | AU78: 0 | AV78: 0 | AW78: 0 | AX78: 0 | AY78: 0
B79: Ydelse | P79: -1106379.799 | T79: -1106379.799 | U79: =U32 *(1+S_Tilbagediskonteringsrente)^-(U$2-S_Investeringsår) -> -68544.3749 | V79: =V32 *(1+S_Tilbagediskonteringsrente)^-(V$2-S_Investeringsår) -> -65280.35704 | W79: =W32 *(1+S_Tilbagediskonteringsrente)^-(W$2-S_Investeringsår) -> -62171.76861 | X79: =X32 *(1+S_Tilbagediskonteringsrente)^-(X$2-S_Investeringsår) -> -59211.2082 | Y79: -56391.62686 | Z79: -53706.3113 | AA79: -51148.8679 | AB79: -48713.20752 | AC79: -46393.53098 | AD79: -44184.31522 | AE79: -42080.3002 | AF79: -40076.47639 | AG79: -38168.07275 | AH79: -36350.54547 | AI79: -34619.56712 | AJ79: -32971.0163 | AK79: -31400.96791 | AL79: -29905.68372 | AM79: -28481.60354 | AN79: -27125.33671 | AO79: -25833.65401 | AP79: -24603.48001 | AQ79: -23431.88572 | AR79: -22316.08164 | AS79: -21253.41109 | AT79: -20241.34389 | AU79: -19277.47037 | AV79: -18359.49559 | AW79: -17485.2339 | AX79: -16652.60371 | AY79: 0
B80: Egenfinansiering (brugt på at reducere lånebehovet og dermed ydelsen) | P80: =T80 -> -100000 | T80: -100000 | U80: =-U25 *(1+S_Tilbagediskonteringsrente)^-(U$2-S_Investeringsår) -> -100000
B81: ="Total nutidsværdi efter " &S_Beregningsperiode & " år" -> Total nutidsværdi efter 30 år | P81: =T81 -> -348916.7397 | T81: -348916.7397 | U81: =SUM(U75:U80)+U73 -> -119964.3749 | V81: =SUM(V72:V80) -> -18103.07446 | W81: =SUM(W72:W80) -> -16356.53126 | X81: =SUM(X72:X80) -> -14718.52797 | Y81: -13183.16513 | Z81: -11744.84531 | AA81: -10398.25819 | AB81: -9138.366256 | AC81: -7960.39121 | AD81: -6859.801105 | AE81: -5832.298043 | AF81: -4873.806508 | AG81: -3980.46226 | AH81: -3148.601776 | AI81: -2374.752206 | AJ81: -19256.5356 | AK81: -18052.59592 | AL81: -16913.64716 | AM81: -15836.39001 | AN81: -14817.68776 | AO81: -13854.55833 | AP81: -12944.16686 | AQ81: -12083.81849 | AR81: -11270.95161 | AS81: -10503.13132 | AT81: -9778.04336 | AU81: -9093.488147 | AV81: -8447.375258 | AW81: -7837.718087 | AX81: 80410.62483 | AY81: 0
B82: Resultat (akkumulret) | U82: =U81 -> -119964.3749 | V82: =U82+V81 -> -138067.4494 | W82: =V82+W81 -> -154423.9806 | X82: =W82+X81 -> -169142.5086 | Y82: =X82+Y81 -> -182325.6737 | Z82: =Y82+Z81 -> -194070.519 | AA82: =Z82+AA81 -> -204468.7772 | AB82: -213607.1435 | AC82: -221567.5347 | AD82: -228427.3358 | AE82: -234259.6338 | AF82: -239133.4403 | AG82: -243113.9026 | AH82: -246262.5044 | AI82: -248637.2566 | AJ82: -267893.7922 | AK82: -285946.3881 | AL82: -302860.0352 | AM82: -318696.4253 | AN82: -333514.113 | AO82: -347368.6713 | AP82: -360312.8382 | AQ82: -372396.6567 | AR82: -383667.6083 | AS82: -394170.7396 | AT82: -403948.783 | AU82: -413042.2711 | AV82: -421489.6464 | AW82: -429327.3645 | AX82: -348916.7397 | AY82: -348916.7397
